Workbook

Sheet Fiche d'intervention
F1: FICHE D'INTERVENTION MAINTENANCE | N1: FI115
C7: Compte-rendu d'intervention
C9: Demandeur | I9: Système | M9: Compteur machine | P9: Statut fiche d'intervention
C10: Nom: | D10: romain.dehan | I10: Réseau d'eau atelier | M10: 0
C12: Intervenant(s) | G12: Priorité | K12: Date de création de la demande
C13: Nom : | G13: 1 | I13: FALSE | K13: 27/04/2016
C14: Nom : | G14: 2 | I14: FALSE | P14: Intervention en attente
C15: Secteur Maintenance | G15: 3 | H15: TRUE | I15: FALSE | P15: Intervention finalisée
C16: Localisation de l'intervention | P16: Intervention en attente de pièce
C18: Description de la demande | P18: Intervention en cours
C19: Fuite d'eau derrière le 124 au niveau de la remontée d'huile. L'eau coule de temps en temps sur la remontée d'huile.
C25: Type de maintenance | F25: Type d'intervention | K25: Cause de défaillance
C27: Corrective | E27: FALSE | F27: Electrique | G27: FALSE | H27: Mesure | I27: FALSE | K27: Usure normale | N27: FALSE
C28: Préventive | E28: FALSE | F28: Mécanique | G28: FALSE | I28: TRUE | K28: Défaut utilisateur | N28: FALSE
C29: Préparation essais | E29: FALSE | F29: Hydraulique | G29: FALSE | I29: FALSE | K29: Défaut produit | N29: FALSE
C30: Amélioration | E30: FALSE | F30: Informatique | G30: FALSE | K30: Autre | N30: FALSE
C31: Cause liée à la défaillance
M33: Temps d'intervention en heure
M37: Date de fin d'intervention
C40: Rapport d'intervention
C49: Pièces de rechange et consommables
C51: Désignation | H51: Marque / Référence | L51: Quantité

Sheet BDD
A1: N° intervention | B1: Demandeur | C1: Nom Intervenant | D1: Nom intervenant | E1: Priorité 1 2 3 | H1: Systéme | I1: Compteur machine | J1: Date | K1: Description de la demande | L1: Corrective | M1: Préventive | N1: Préparation essai | O1: Amélioration | P1: Electrique | Q1: Mécanique | R1: Hydraulique | S1: Informatique | T1: Mesure | U1: Usure normale | V1: Défaut utilisateur | W1: Défaut produit | X1: Autre | Y1: Cause lié à la défaillance | Z1: Temps d'intervention | AA1: Date de fin d'intervention | AB1: Rapport d'intervention | AC1: Désignation | AM1: Marque / Référence | AW1: Quantité | BG1: Formule corectif et prévzentif | BH1: Formule pour prévefentif curatif en fonction du banc | BI1: Formule Pour amélioration et prépa essais
BI2: =H2&L2&M2&N2&O2&P2&Q2&R2 -> 
A7: FI6 | B7: GUILLAUME SEBASTIEN | C7: T.HEMART | E7: TRUE | F7: FALSE | G7: FALSE | H7: Banc 128 | I7: 1234 | J7: 42447 | K7: Problème sur limiteur de pression Ligne M | L7: TRUE | M7: FALSE | P7: FALSE | Q7: FALSE | R7: TRUE | T7: FALSE | U7: FALSE | V7: FALSE | W7: TRUE | X7: FALSE | Y7: Pollution | Z7: 1 | AA7: 42447 | AB7: DEMONTAGE NETTOYAGE ET REMONTAGE DU LIMITEUR DE PRESSION | BG7: =H7&L7&M7 -> Banc 128VRAIFAUX | BH7: =H7&L7&M7&P7&Q7&R7 -> Banc 128VRAIFAUXFAUXFAUXVRAI | BI7: =H7&N7&O7&P7&Q7&R7 -> Banc 128FAUXFAUXVRAI
A8: FI7 | B8: C.GAUVIN | C8: A.DELAUNAY | E8: TRUE | F8: FALSE | G8: FALSE | H8: Banc 126 | I8: 9316 | J8: 2016-03-18 | K8: TLC_RPP-516-941 prog automate + câblage bobines voir Jonathan BARRA - Chronogramme dans la TLC | L8: FALSE | M8: TRUE | N8: FALSE | O8: FALSE | P8: TRUE | Q8: FALSE | R8: FALSE | S8: FALSE | T8: FALSE | U8: FALSE | V8: FALSE | W8: FALSE | X8: FALSE | Y8: AUCUNE | Z8: 0.3 | AA8: 2016-03-18 | AB8: Programme finalisé, en attente par la suite du montage de l'essai sur le banc. | BG8: Banc 126FAUXVRAI | BH8: Banc 126FAUXVRAIVRAIFAUXFAUX | BI8: =H8&N8&O8&P8&Q8&R8 -> Banc 126FAUXFAUXVRAIFAUXFAUX
A9: FI8 | B9: C.GAUVIN | C9: T.HEMART | E9: TRUE | F9: FALSE | G9: FALSE | H9: Banc 125 | I9: 59195 | J9: 2016-03-22 | K9: VIBRATIONS ANORMALES DES 2 RETOURS P10 SUR REFRIGERANTS | L9: TRUE | M9: FALSE | N9: FALSE | O9: FALSE | P9: FALSE | Q9: FALSE | R9: TRUE | S9: FALSE | T9: FALSE | U9: TRUE | V9: FALSE | W9: FALSE | X9: FALSE | Y9: VIEILLISSEMENT DES 2 P10 SUR RETOUR REFRIGERANT | Z9: 2.3 | AA9: 2016-03-22 | AB9: CHANGEMENT DES 2 P10 PAR DES NEUFS | BG9: Banc 125VRAIFAUX | BH9: Banc 125VRAIFAUXFAUXFAUXVRAI | BI9: Banc 125FAUXFAUXFAUXFAUXVRAI
A10: FI9 | B10: C.GAUVIN | C10: T.HEMART | D10: J.BOUCHER | E10: TRUE | F10: FALSE | G10: FALSE | H10: Banc 123 | I10: 75697 | J10: 2016-03-22 | K10: VIDANGE DE L'HUILE XV32 / RINCAGE / REMPLISSAGE EN HUILE HV46 DISPONIBILITE DU BANC POUR VENDREDI MATIN | L10: FALSE | M10: TRUE | N10: FALSE | O10: FALSE | P10: FALSE | Q10: FALSE | R10: TRUE | S10: FALSE | T10: FALSE | U10: FALSE | V10: FALSE | W10: FALSE | X10: FALSE | Y10: USURE DE L'HUILE XV32 PREMATUREE | Z10: 32 | AA10: 2016-03-22 | AB10: Vidange, rinçage, nettoyage, remplissage en HV 46 et changement de tout les filtres | AC10: Filtre | AM10: Relumix 483-4/P10 | AW10: 3 | BG10: Banc 123FAUXVRAI | BH10: Banc 123FAUXVRAIFAUXFAUXVRAI | BI10: Banc 123FAUXFAUXFAUXFAUXVRAI
A11: FI10 | B11: GARCIA SANCHEZ | C11: D.GARCIA SANCHEZ | E11: TRUE | F11: FALSE | G11: FALSE | H11: Banc P7 | I11: 7569 | J11: 2016-03-22 | K11: Le variateur ne demarre pas | L11: TRUE | M11: FALSE | N11: FALSE | O11: FALSE | P11: TRUE | Q11: FALSE | R11: FALSE | S11: FALSE | T11: FALSE | U11: FALSE | V11: TRUE | W11: FALSE | X11: FALSE | Y11: Arrêt d'urgence variateur activer | Z11: 0.15 | AA11: 2016-03-22 | AB11: Désactivation arrêt d'urgence | BG11: Banc P7VRAIFAUX | BH11: Banc P7VRAIFAUXVRAIFAUXFAUX | BI11: Banc P7FAUXFAUXVRAIFAUXFAUX
A12: FI11 | B12: BARRA | C12: J.BOUCHER | E12: TRUE | F12: FALSE | G12: FALSE | H12: Banc 104 | I12: 4210,35 | J12: 2016-03-22 | K12: LA PRESSION N'EST PAS STABLE SUR LA LIGNE 8 | L12: FALSE | M12: TRUE | N12: FALSE | O12: FALSE | P12: FALSE | Q12: FALSE | R12: TRUE | S12: FALSE | T12: FALSE | U12: FALSE | V12: FALSE | W12: FALSE | X12: FALSE | Y12: AUCUNE | Z12: 1 | AA12: 2016-03-22 | AB12: DEMONTAGE / NETTOYAGE / REMONTAGE DU LP8 | AC12: LIMITEUR DE PRESSION 8 | AW12: 1 | BG12: Banc 104FAUXVRAI | BH12: Banc 104FAUXVRAIFAUXFAUXVRAI | BI12: Banc 104FAUXFAUXFAUXFAUXVRAI
A13: FI12 | B13: BARRA | C13: J.BOUCHER | E13: TRUE | F13: FALSE | G13: FALSE | H13: Banc 104 | I13: 4210,35 | J13: 2016-03-22 | K13: Probleme de régulation de RD8 (vitesse du moteur en test trop instable en PEV) | L13: TRUE | M13: FALSE | N13: FALSE | O13: FALSE | P13: FALSE | Q13: FALSE | R13: TRUE | S13: FALSE | T13: FALSE | U13: FALSE | V13: FALSE | W13: FALSE | X13: FALSE | Z13: 2 | AA13: 2016-03-22 | AB13: Remplacement du RD8 par RD9 | AC13: Réducteur de debit | AW13: 1 envoyer chez équipe | BG13: Banc 104VRAIFAUX | BH13: Banc 104VRAIFAUXFAUXFAUXVRAI | BI13: Banc 104FAUXFAUXFAUXFAUXVRAI
A14: FI13 | B14: romain.dehan | C14: J.BOUCHER | E14: FALSE | F14: TRUE | G14: FALSE | H14: Banc 124 | I14: 12795 | J14: 2016-03-21 | K14: REFAIRE LE NIVEAU D'HUILE JUSQU'AU MILIEU DE LA SECONDE BULLE | L14: FALSE | M14: TRUE | N14: FALSE | O14: FALSE | P14: FALSE | Q14: FALSE | R14: TRUE | S14: FALSE | T14: FALSE | U14: FALSE | V14: FALSE | W14: FALSE | X14: FALSE | Y14: Fuite dans le recepteur du 124bis. | Z14: 0.3 | AA14: 2016-03-21 | AB14: RAS | BG14: Banc 124FAUXVRAI | BH14: Banc 124FAUXVRAIFAUXFAUXVRAI | BI14: Banc 124FAUXFAUXFAUXFAUXVRAI
A15: FI15 | B15: christophe.gauvin | C15: A.DELAUNAY | E15: TRUE | F15: FALSE | G15: FALSE | H15: Chambre froide | I15: 2731 | J15: 2016-03-24 | K15: RPP_624-500-965 Installation d'un clignoteur pour le pilotage d'un distributeur. Voir Aëlig | L15: FALSE | M15: TRUE | N15: FALSE | O15: FALSE | P15: TRUE | Q15: FALSE | R15: FALSE | S15: FALSE | T15: FALSE | U15: FALSE | V15: FALSE | W15: FALSE | X15: FALSE | Y15: Installation a réaliser dans le cdre d'un essai RPP_624-500-965 | Z15: 0.3 | AA15: 2016-03-24 | AB15: Installation du clignoteur effectué, branchement de la bobine du distributeur faite et relié à une alimentation 24VDC se situant au banc d'essais P1 | AC15: Câble | AM15: 2X1 HO7RNF | AW15: 10 M | BG15: Chambre froideFAUXVRAI | BH15: Chambre froideFAUXVRAIVRAIFAUXFAUX | BI15: Chambre froideFAUXFAUXVRAIFAUXFAUX
A17: FI16 | B17: romain.dehan | C17: J.BOUCHER | E17: FALSE | F17: TRUE | G17: FALSE | H17: Banc 120 | I17: 26687 | J17: 2016-03-29 | K17: Refaire 3 plaques de fermeture sur le réservoir dont une équiper d'un filtre à air | L17: FALSE | M17: TRUE | P17: FALSE | Q17: FALSE | R17: TRUE | T17: FALSE | U17: FALSE | V17: FALSE | W17: FALSE | X17: FALSE | Y17: Perte des bouchons de réservoir liés à l'installation des retours directs dans le réservoir | Z17: 0.1 | AA17: 2016-03-29 | AB17: Mise en place de 2 bouchons et changement de la 3eme plaque par une plaque pleine. | BG17: Banc 120FAUXVRAI | BH17: Banc 120FAUXVRAIFAUXFAUXVRAI | BI17: Banc 120FAUXFAUXVRAI
A18: FI17 | B18: romain.dehan | C18: J.BOUCHER | E18: FALSE | F18: FALSE | G18: FALSE | H18: Banc 104 | I18: 4206 | J18: 2016-03-30 | K18: Intervertir RD8 et RD9 pour test de pilotage | L18: TRUE | M18: FALSE | P18: TRUE | Q18: FALSE | R18: FALSE | T18: FALSE | U18: FALSE | V18: FALSE | W18: FALSE | X18: TRUE | Y18: Probleme de regulation de debit | Z18: 0.05 | AA18: 2016-03-31 | AB18: intervention de diagnostic, invertion des prises des pilotages RD8 RD9 | BG18: Banc 104VRAIFAUX | BH18: Banc 104VRAIFAUXVRAIFAUXFAUX | BI18: Banc 104VRAIFAUXFAUX
A19: FI18 | B19: romain.dehan | C19: T.HEMART | E19: FALSE | F19: FALSE | G19: FALSE | H19: Banc 125 | I19: 59350 | J19: 2016-03-30 | K19: Remplacement du bloc pelle par un gros CETOP 5 avant le contrôle des débits sur HP MENANT | L19: TRUE | M19: FALSE | P19: FALSE | Q19: FALSE | R19: TRUE | T19: FALSE | U19: FALSE | V19: FALSE | W19: FALSE | X19: FALSE | Z19: 2.5 | AA19: 2016-03-30 | AB19: Changement du distributeur afin de déterminer si celui-ci est la cause des oscillations de pressions enregistrées sur le banc. | AC19: Distributeur électro-hydraulique 4/3 croisé parallèle centre en H | AM19: ATOS | AW19: 1 | BG19: Banc 125VRAIFAUX | BH19: Banc 125VRAIFAUXFAUXFAUXVRAI | BI19: Banc 125FAUXFAUXVRAI
A20: FI19 | B20: romain.dehan | C20: A.DELAUNAY | E20: FALSE | F20: FALSE | G20: FALSE | H20: Porte bâtiment | I20: 0 | J20: 2016-03-30 | K20: Problème détection du capteur de porte déroulante côté véhicule | L20: TRUE | M20: FALSE | P20: TRUE | Q20: FALSE | R20: FALSE | T20: FALSE | U20: FALSE | V20: FALSE | W20: FALSE | X20: FALSE | Y20: Capteur mal régleé par l'installateur sous traitant | Z20: 0.5 | AA20: 2016-03-30 | AB20: Réglage des axes x et y du capteur | BG20: Porte bâtimentVRAIFAUX | BH20: Porte bâtimentVRAIFAUXVRAIFAUXFAUX | BI20: Porte bâtimentVRAIFAUXFAUX
A21: FI20 | B21: romain.dehan | C21: J.BOUCHER | E21: FALSE | F21: FALSE | G21: FALSE | H21: Banc 104 | I21: 4206 | J21: 2016-03-30 | K21: Intervertir RD8 et RD9 pour test de pilotage | L21: FALSE | M21: TRUE | P21: FALSE | Q21: FALSE | R21: FALSE | T21: TRUE | U21: FALSE | V21: TRUE | W21: FALSE | X21: FALSE | Y21: Amélioration | Z21: 1 | AA21: 1900-01-01 | AB21: Voir FI17 | BG21: Banc 104FAUXVRAI | BH21: Banc 104FAUXVRAIFAUXFAUXFAUX | BI21: Banc 104FAUXFAUXFAUX
A22: FI21 | B22: romain.dehan | C22: D.GARCIA SANCHEZ | E22: TRUE | F22: FALSE | G22: FALSE | H22: Banc P1 | I22: 59173 | J22: 2016-03-24 | K22: Variateur en défaut | L22: TRUE | M22: FALSE | N22: FALSE | O22: FALSE | P22: TRUE | Q22: FALSE | R22: FALSE | S22: FALSE | T22: FALSE | U22: FALSE | V22: FALSE | W22: FALSE | X22: FALSE | Y22: Moteur chauffe trop par rapport a l'essai demander | Z22: 0.02 | AA22: 2016-03-24 | AB22: Reset défaut variateur | BG22: Banc P1VRAIFAUX | BH22: Banc P1VRAIFAUXVRAIFAUXFAUX | BI22: Banc P1FAUXFAUXVRAIFAUXFAUX
A23: FI22 | B23: romain.dehan | C23: A.DELAUNAY | D23: H.POTIER | E23: FALSE | F23: FALSE | G23: FALSE | H23: Banc 123 | I23: 75740 | J23: 2016-03-30 | K23: Refixer l'armoire à Mano + fixer le mano se trouvant au sol sur celle-ci | L23: TRUE | M23: FALSE | P23: FALSE | Q23: TRUE | R23: FALSE | T23: FALSE | U23: FALSE | V23: FALSE | W23: FALSE | X23: FALSE | Z23: 0.5 | AA23: 2016-03-30 | AB23: Coffret des manos soudé sur le pupitre, le mano se trouvant sur le sol n'a pas été fixer car le banc va être très bientôt rénové. | BG23: Banc 123VRAIFAUX | BH23: Banc 123VRAIFAUXFAUXVRAIFAUX | BI23: Banc 123FAUXVRAIFAUX
A24: FI23 | B24: romain.dehan | C24: T.HEMART | D24: D.GARCIA SANCHEZ | E24: TRUE | F24: FALSE | G24: FALSE | H24: Machine à laver | I24: 0 | J24: 2016-03-30 | K24: La machine à laver ne fonctionne plus. | L24: TRUE | M24: FALSE | P24: TRUE | Q24: FALSE | R24: TRUE | T24: FALSE | U24: TRUE | V24: FALSE | W24: FALSE | X24: FALSE | Z24: 8 | AA24: 2016-04-12 | AB24: La DA pour la pompe est faite et validée par Philippe. L'envoi de la pompe a été anticipé par le fournisseur JEAN BREL S.A. La pompe a été remplacée par une neuve. Le contacteur de la pompe a été changé. | AC24: Groupe moto-pompe | AE24: Contacteur moteur | AM24: LOWARA CA200/35/P-V | AO24: Scneider LC1D09 | AW24: 1 | AY24: 1 | BG24: Machine à laverVRAIFAUX | BH24: Machine à laverVRAIFAUXVRAIFAUXVRAI | BI24: Machine à laverVRAIFAUXVRAI
A25: FI24 | B25: romain.dehan | C25: J.BOUCHER | D25: T.HEMART | E25: TRUE | F25: FALSE | G25: FALSE | H25: Banc 128 | I25: 4124 | J25: 2016-03-31 | K25: Le réducteur de débit RD BAL présente des signes de collage. | L25: TRUE | M25: FALSE | P25: FALSE | Q25: FALSE | R25: TRUE | T25: FALSE | U25: TRUE | V25: FALSE | W25: FALSE | X25: FALSE | Z25: 2 | AA25: 31/04/2016 | AB25: Rréducteur démonté, nettoyé et remonté. Remise ne service OK | BG25: Banc 128VRAIFAUX | BH25: Banc 128VRAIFAUXFAUXFAUXVRAI | BI25: Banc 128FAUXFAUXVRAI
A26: FI25 | B26: lilian.charlier | C26: D.GARCIA SANCHEZ | D26: A.DELAUNAY | E26: FALSE | F26: TRUE | G26: FALSE | H26: Banc électroniques | I26: 0 | J26: 2016-04-04 | K26: Demande officielle pour le déplacement des bancs électroniques situés derrière le nouveau P9 (bancs + armoires). Ils sont à replacer en face du magasin de raccords (au niveau des poteaux à coté de la TY45). Il faut aussi les raccorder électriquement. Merci d'avance, Lilian. | L26: FALSE | M26: FALSE | O26: TRUE | P26: TRUE | Q26: FALSE | R26: FALSE | T26: FALSE | U26: FALSE | V26: TRUE | W26: FALSE | X26: FALSE | Z26: 1.5 | AA26: 2016-04-11 | AB26: Déplacement des bancs électroniques et des armoires de rangement, et branchement des bancs ( prise 230V standard que toutes personnes présentres au service essais peut débrancher). Aucune valeur rajoutée et perte de temps d'un électrotechnicien, qui n'est pas déménageur. | BG26: Banc électroniquesFAUXFAUX | BH26: Banc électroniquesFAUXFAUXVRAIFAUXFAUX | BI26: Banc électroniquesVRAIVRAIFAUXFAUX
A27: FI26 | B27: romain.dehan | C27: T.HEMART | D27: J.BOUCHER | E27: FALSE | F27: TRUE | G27: FALSE | H27: Banc 124 bis | I27: 7 | J27: 2016-04-04 | K27: Raccorder la remontée d’huile sur le bac de rétention de la platine d’essai | L27: FALSE | M27: TRUE | P27: FALSE | Q27: FALSE | R27: TRUE | T27: FALSE | U27: FALSE | V27: FALSE | W27: FALSE | X27: TRUE | BG27: Banc 124 bisFAUXVRAI | BH27: Banc 124 bisFAUXVRAIFAUXFAUXVRAI | BI27: Banc 124 bisFAUXFAUXVRAI
A28: FI27 | B28: yann.nourricier | C28: A.DELAUNAY | D28: H.POTIER | E28: FALSE | F28: FALSE | G28: TRUE | H28: Banc 128 | I28: 4128 | J28: 2016-04-05 | K28: Suite à la maintenance préventive d'InTest, il faut : Mettre en place des borniers, repérer les câbles et passé sur des plus petite section. | L28: TRUE | M28: FALSE | P28: TRUE | Q28: FALSE | R28: FALSE | T28: FALSE | U28: FALSE | V28: FALSE | W28: FALSE | X28: TRUE | BG28: Banc 128VRAIFAUX | BH28: Banc 128VRAIFAUXVRAIFAUXFAUX | BI28: Banc 128VRAIFAUXFAUX
A29: FI28 | B29: yann.nourricier | C29: J.BOUCHER | E29: FALSE | F29: TRUE | G29: FALSE | H29: Banc 128 | I29: 4128 | J29: 2016-04-05 | K29: Suite à la maintenance préventive d'InTest, il y a une fuite d'huile dans la centrale hydraulique dans le bac de rétention | L29: TRUE | M29: FALSE | P29: FALSE | Q29: FALSE | R29: TRUE | T29: FALSE | U29: FALSE | V29: FALSE | W29: FALSE | X29: FALSE | BG29: Banc 128VRAIFAUX | BH29: Banc 128VRAIFAUXFAUXFAUXVRAI | BI29: Banc 128FAUXFAUXVRAI
A30: FI29 | B30: yann.nourricier | C30: A.DELAUNAY | E30: TRUE | F30: FALSE | G30: FALSE | H30: Banc 128 | I30: 4128 | J30: 2016-04-05 | K30: Il faudrait mettre à jours les schémas électrique. | L30: TRUE | M30: FALSE | P30: TRUE | Q30: FALSE | R30: FALSE | T30: FALSE | U30: FALSE | V30: FALSE | W30: FALSE | X30: TRUE | BG30: Banc 128VRAIFAUX | BH30: Banc 128VRAIFAUXVRAIFAUXFAUX | BI30: Banc 128VRAIFAUXFAUX
A31: FI30 | B31: yann.nourricier | C31: A.DELAUNAY | E31: FALSE | F31: TRUE | G31: FALSE | H31: Banc 131 | I31: 2309 | J31: 2016-04-05 | K31: Les relais de l'armoire de puissance n'ont pas de diode de roue libre. Est-il intéressant d'en mettre avec diode ? (pour éviter les arcs électrique) | L31: FALSE | M31: TRUE | P31: TRUE | Q31: FALSE | R31: FALSE | T31: FALSE | U31: FALSE | V31: FALSE | W31: FALSE | X31: FALSE | Z31: 0.1 | AA31: 2016-04-05 | AB31: Les relais actuel supportent les arcs électriques | BG31: Banc 131FAUXVRAI | BH31: Banc 131FAUXVRAIVRAIFAUXFAUX | BI31: Banc 131VRAIFAUXFAUX
A32: FI31 | B32: yann.nourricier | C32: D.GARCIA SANCHEZ | E32: TRUE | F32: FALSE | G32: FALSE | H32: Banc 131 | I32: 2309 | J32: 2016-04-05 | K32: Il faudrait mettre à jour le schéma électrique du banc suite aux modifications apportées demandées par Yann NOURRICIER | L32: FALSE | M32: FALSE | O32: TRUE | P32: TRUE | Q32: FALSE | R32: FALSE | T32: FALSE | U32: FALSE | V32: FALSE | W32: FALSE | X32: FALSE | Z32: 2 | AA32: 2016-04-14 | AB32: Mis à jour des schémas électriques suite aux modifications par rapport a la sonde de température. | BG32: Banc 131FAUXFAUX | BH32: Banc 131FAUXFAUXVRAIFAUXFAUX | BI32: Banc 131VRAIVRAIFAUXFAUX
A33: FI32 | B33: yann.nourricier | C33: A.DELAUNAY | E33: TRUE | F33: FALSE | G33: FALSE | H33: Banc 131 | I33: 2309 | J33: 2016-04-05 | K33: Le banc possède une centrale MX879 dans l'armoire de puissance. il faudrait la retirer et déplacer le câble connecté dessus (Pilotage de la pompe P90) vers la tranche AO2 du barreau phoenix. | L33: TRUE | M33: FALSE | P33: TRUE | Q33: FALSE | R33: FALSE | T33: FALSE | U33: FALSE | V33: FALSE | W33: FALSE | X33: FALSE | Z33: 1.3 | AA33: 2016-04-07 | AB33: Récupération d'une centrale MX879, déplacement du pilotage de la pompe sur une carte de sortie ANA de la baie de pilotage | BG33: Banc 131VRAIFAUX | BH33: Banc 131VRAIFAUXVRAIFAUXFAUX | BI33: Banc 131VRAIFAUXFAUX
A34: FI33 | B34: yann.nourricier | C34: A.DELAUNAY | E34: FALSE | F34: TRUE | G34: FALSE | H34: Banc 104 | I34: 4217 | J34: 2016-04-05 | K34: La grille de ventillation de l'armoire est cassé. | L34: TRUE | M34: FALSE | P34: TRUE | Q34: FALSE | R34: FALSE | T34: FALSE | U34: FALSE | V34: FALSE | W34: FALSE | X34: FALSE | Y34: Bloc du ventilateur cassé | Z34: 0.1 | AA34: 2016-04-05 | AB34: Pas de changement du bloc --> 500€/p le bloc ventilo, non génant pour son fonctionnement et pour la sécurité des personnes | BG34: Banc 104VRAIFAUX | BH34: Banc 104VRAIFAUXVRAIFAUXFAUX | BI34: Banc 104VRAIFAUXFAUX
A35: FI34 | B35: yann.nourricier | C35: A.DELAUNAY | E35: FALSE | F35: FALSE | G35: TRUE | H35: Banc 007 | I35: 840 | J35: 2016-04-05 | K35: Il manque le cache de la goullotte dans le coffret de mesure dans l'enceinte du banc. | L35: TRUE | M35: FALSE | P35: TRUE | Q35: FALSE | R35: FALSE | T35: FALSE | U35: FALSE | V35: FALSE | W35: FALSE | X35: FALSE | Y35: Câble de mesure gênant pour la remise en place d'un couvercle | Z35: 0.2 | AA35: 2016-04-05 | AB35: Goulotte laissé sans couvercle qui n'est en rien génant pour le coffret tant esthétique que fonctionnel | BG35: Banc 007VRAIFAUX | BH35: Banc 007VRAIFAUXVRAIFAUXFAUX | BI35: Banc 007VRAIFAUXFAUX
A36: FI35 | B36: yann.nourricier | C36: T.HEMART | D36: J.BOUCHER | E36: FALSE | F36: TRUE | G36: FALSE | H36: Banc 008 | I36: 954 | J36: 2016-04-05 | K36: Il y a une fuite dans la centrale hydraulique. Générateur ou récepteur? Voir Yann en direct. | L36: TRUE | M36: FALSE | P36: FALSE | Q36: FALSE | R36: TRUE | T36: FALSE | U36: FALSE | V36: FALSE | W36: FALSE | X36: FALSE | BG36: Banc 008VRAIFAUX | BH36: Banc 008VRAIFAUXFAUXFAUXVRAI | BI36: Banc 008FAUXFAUXVRAI
A37: FI36 | B37: yann.nourricier | C37: A.DELAUNAY | E37: FALSE | F37: FALSE | G37: TRUE | H37: Banc 008 | I37: 954 | J37: 2016-04-05 | K37: Il faudrait remplacer les filtres de l'armoire de puissance du banc et remettre en place un porte document dans l'armoire. | L37: TRUE | M37: FALSE | P37: TRUE | Q37: FALSE | R37: FALSE | T37: FALSE | U37: FALSE | V37: FALSE | W37: TRUE | X37: FALSE | Y37: Porte document de qualité médiocre | Z37: 0.1 | AA37: 2016-04-05 | AB37: Mise en place d'un porte document, filtre changé tous les 6 mois (aout, décembre) | BG37: Banc 008VRAIFAUX | BH37: Banc 008VRAIFAUXVRAIFAUXFAUX | BI37: Banc 008VRAIFAUXFAUX
A38: FI37 | B38: yann.nourricier | C38: D.GARCIA SANCHEZ | E38: FALSE | F38: TRUE | G38: FALSE | H38: Banc 101 | I38: 5376 | J38: 2016-04-05 | K38: Il faudrait changer les filtres de l'armoire électrique et un repérage manque sur un contact aux à côter de 42KM07 | L38: FALSE | M38: TRUE | P38: TRUE | Q38: FALSE | R38: FALSE | T38: FALSE | U38: FALSE | V38: FALSE | W38: FALSE | X38: FALSE | Z38: 0.1 | AA38: 2016-04-05 | AB38: Mis en place de repères sur les fils du contact 42KM03 ainsi que sur le compteur car ce sont les fils qui vont du contact au compteur/ modification des schémas | BG38: Banc 101FAUXVRAI | BH38: Banc 101FAUXVRAIVRAIFAUXFAUX | BI38: Banc 101VRAIFAUXFAUX
A39: FI38 | B39: yann.nourricier | C39: T.HEMART | D39: J.BOUCHER | E39: FALSE | F39: TRUE | G39: FALSE | H39: Banc 101 | I39: 5376 | J39: 2016-04-05 | K39: Fuite d'huile dans la centrale hydraulique. | L39: TRUE | M39: FALSE | P39: FALSE | Q39: FALSE | R39: TRUE | T39: FALSE | U39: FALSE | V39: FALSE | W39: FALSE | X39: TRUE | AB39: Non soldé. Attente de fonctionnement pour recherche de fuite. | BG39: Banc 101VRAIFAUX | BH39: Banc 101VRAIFAUXFAUXFAUXVRAI | BI39: Banc 101FAUXFAUXVRAI
A40: FI39 | B40: benjamin.eyraud | C40: T.HEMART | E40: TRUE | F40: FALSE | G40: FALSE | H40: Pompe à eau | I40: 27949 | J40: 2016-04-05 | K40: les ventilateurs des tours couinent de manière très audible. | L40: TRUE | M40: FALSE | P40: FALSE | Q40: TRUE | R40: FALSE | T40: FALSE | U40: TRUE | V40: FALSE | W40: FALSE | X40: FALSE | Y40: Courroies détendues | Z40: 1.3 | AA40: 2016-04-05 | AB40: Tension des courroies | BG40: Pompe à eauVRAIFAUX | BH40: Pompe à eauVRAIFAUXFAUXVRAIFAUX | BI40: Pompe à eauFAUXVRAIFAUX
A41: FI40 | B41: romain.dehan | C41: T.HEMART | D41: J.BOUCHER | E41: TRUE | F41: FALSE | G41: FALSE | H41: Banc 124 bis | I41: 7 | J41: 2016-04-05 | K41: Modifier le pont de clapet actuel en correspondance avec le schéma hydraulique | L41: TRUE | M41: FALSE | P41: FALSE | Q41: FALSE | R41: TRUE | T41: FALSE | U41: FALSE | V41: TRUE | W41: FALSE | X41: FALSE | Z41: 0 | AA41: 2016-04-08 | AB41: Intervention annulée | BG41: Banc 124 bisVRAIFAUX | BH41: Banc 124 bisVRAIFAUXFAUXFAUXVRAI | BI41: Banc 124 bisFAUXFAUXVRAI
A42: FI41 | B42: romain.dehan | C42: A.DELAUNAY | E42: TRUE | F42: FALSE | G42: FALSE | H42: Banc 124 bis | I42: 7 | J42: 2016-04-05 | K42: - Mettre à jours le schéma électrique du banc | L42: TRUE | M42: FALSE | P42: TRUE | Q42: FALSE | R42: FALSE | T42: FALSE | U42: FALSE | V42: FALSE | W42: FALSE | X42: FALSE | Z42: 1 | AA42: 2016-04-05 | AB42: Mise à jours des chémas électrique | BG42: Banc 124 bisVRAIFAUX | BH42: Banc 124 bisVRAIFAUXVRAIFAUXFAUX | BI42: Banc 124 bisVRAIFAUXFAUX
A43: FI42 | B43: christophe.gauvin | C43: T.HEMART | E43: TRUE | F43: FALSE | G43: FALSE | H43: Pompe à eau | I43: 0 | J43: 2016-04-05 | K43: Fuite d'eau se trouvant sur le haut du bromisateur Voir FI67 | L43: TRUE | M43: FALSE | P43: FALSE | Q43: FALSE | R43: TRUE | T43: FALSE | U43: TRUE | V43: FALSE | W43: FALSE | X43: FALSE | Z43: 0 | AA43: 2016-04-05 | AB43: Voir FI67 | BG43: Pompe à eauVRAIFAUX | BH43: Pompe à eauVRAIFAUXFAUXFAUXVRAI | BI43: Pompe à eauFAUXFAUXVRAI
A44: FI43 | B44: romain.dehan | C44: T.HEMART | E44: TRUE | F44: FALSE | G44: FALSE | H44: Banc 113 | I44: 19594 | J44: 2016-04-05 | K44: La presssion carter est trop élevée 3 bars | L44: FALSE | M44: TRUE | P44: FALSE | Q44: FALSE | R44: TRUE | T44: FALSE | U44: TRUE | V44: FALSE | W44: FALSE | X44: FALSE | Z44: 0.5 | AA44: 2016-04-05 | AB44: Nettoyage du filtre magnétique situé sur le côté du reservoir | BG44: Banc 113FAUXVRAI | BH44: Banc 113FAUXVRAIFAUXFAUXVRAI | BI44: Banc 113FAUXFAUXVRAI
A45: FI44 | B45: romain.dehan | C45: D.GARCIA SANCHEZ | E45: FALSE | F45: TRUE | G45: FALSE | H45: Banc 124 bis | I45: 7 | J45: 2016-04-05 | K45: Recopie distributeur proportionnel démonté. Cable électrique des contacts de fin de course des limiteurs de pression décablé. Finir quand société extérieur viendra | L45: FALSE | M45: FALSE | N45: TRUE | P45: TRUE | Q45: FALSE | R45: FALSE | T45: FALSE | U45: FALSE | V45: FALSE | W45: FALSE | X45: FALSE | AB45: Devis fait mais attente intervention Eqhyp lorsque l'essai en cours sera terminer. Voir Yann NOURRICIER | BG45: Banc 124 bisFAUXFAUX | BH45: Banc 124 bisFAUXFAUXVRAIFAUXFAUX | BI45: Banc 124 bisVRAIVRAIFAUXFAUX
A46: FI45 | B46: romain.dehan | C46: J.BOUCHER | D46: T.HEMART | E46: TRUE | F46: FALSE | G46: FALSE | H46: Banc 124 | I46: 12924 | J46: 2016-04-05 | K46: Bruit anormale de la pompe de recirculation et intensité moteur trop importante. Attente de la livraison de la nouvelle pompe de recirculation. Intervention prévue dans le cadre d'un arrêt planifié pour maintenance préventive. | L46: TRUE | M46: FALSE | P46: FALSE | Q46: FALSE | R46: TRUE | T46: FALSE | U46: TRUE | V46: FALSE | W46: FALSE | X46: FALSE | BG46: Banc 124VRAIFAUX | BH46: Banc 124VRAIFAUXFAUXFAUXVRAI | BI46: Banc 124FAUXFAUXVRAI
A47: FI46 | B47: romain.dehan | C47: J.BOUCHER | D47: T.HEMART | E47: FALSE | F47: TRUE | G47: FALSE | H47: Banc 124 | I47: 12924 | J47: 2016-04-05 | K47: Prévoir le perçage de la lanterne pour contrôler l'accouplement de GMP1. Intervention prévue dans le cadre d'un arrêt planifié pour maintenance préventive | L47: TRUE | M47: FALSE | P47: FALSE | Q47: TRUE | R47: FALSE | T47: FALSE | U47: FALSE | V47: FALSE | W47: FALSE | X47: FALSE | BG47: Banc 124VRAIFAUX | BH47: Banc 124VRAIFAUXFAUXVRAIFAUX | BI47: Banc 124FAUXVRAIFAUX
A48: FI47 | B48: romain.dehan | C48: T.HEMART | D48: J.BOUCHER | E48: TRUE | F48: FALSE | G48: FALSE | H48: Banc 124 | I48: 12924 | J48: 2016-04-05 | K48: Presence d'huile sur dessus du réservoir (joint de la pompe fuyard ???) Intervention prévue dans le cadre d'un arrêt planifié pour maintenance préventive | L48: TRUE | M48: FALSE | P48: FALSE | Q48: FALSE | R48: TRUE | T48: FALSE | U48: FALSE | V48: FALSE | W48: FALSE | X48: FALSE | BG48: Banc 124VRAIFAUX | BH48: Banc 124VRAIFAUXFAUXFAUXVRAI | BI48: Banc 124FAUXFAUXVRAI
A49: FI48 | B49: romain.dehan | C49: T.HEMART | D49: J.BOUCHER | E49: TRUE | F49: FALSE | G49: FALSE | H49: Banc 117 bis | I49: 9698 | J49: 2016-04-05 | K49: Prélèvement Huile | L49: FALSE | M49: TRUE | P49: FALSE | Q49: FALSE | R49: TRUE | T49: FALSE | U49: FALSE | V49: FALSE | W49: FALSE | X49: FALSE | Z49: 0.1 | AA49: 2016-04-08 | AB49: Prélèvement effectué | BG49: Banc 117 bisFAUXVRAI | BH49: Banc 117 bisFAUXVRAIFAUXFAUXVRAI | BI49: Banc 117 bisFAUXFAUXVRAI
A50: FI49 | B50: romain.dehan | C50: T.HEMART | D50: J.BOUCHER | E50: FALSE | F50: FALSE | G50: FALSE | H50: Banc 117 bis | I50: 9668 | J50: 2016-04-05 | K50: Fuite huile sur couvercle échangeur. Intervention prévue dans le cadre d'un arrêt planifié pour maintenance préventive | L50: TRUE | M50: FALSE | P50: FALSE | Q50: FALSE | R50: TRUE | T50: FALSE | U50: TRUE | V50: FALSE | W50: FALSE | X50: FALSE | BG50: Banc 117 bisVRAIFAUX | BH50: Banc 117 bisVRAIFAUXFAUXFAUXVRAI | BI50: Banc 117 bisFAUXFAUXVRAI
A51: FI50 | B51: romain.dehan | C51: D.GARCIA SANCHEZ | D51: A.DELAUNAY | E51: FALSE | F51: TRUE | G51: FALSE | H51: Banc 117 bis | I51: 9668 | J51: 2016-04-05 | K51: niveau non isolé et non fixé | L51: TRUE | M51: FALSE | P51: TRUE | Q51: FALSE | R51: FALSE | T51: FALSE | U51: FALSE | V51: FALSE | W51: FALSE | X51: TRUE | BG51: Banc 117 bisVRAIFAUX | BH51: Banc 117 bisVRAIFAUXVRAIFAUXFAUX | BI51: Banc 117 bisVRAIFAUXFAUX
A52: FI51 | B52: romain.dehan | C52: A.DELAUNAY | D52: D.GARCIA SANCHEZ | E52: FALSE | F52: TRUE | G52: FALSE | H52: Banc 117 bis | I52: 9668 | J52: 2016-04-05 | K52: indicateur de colmatage non cablé | L52: TRUE | M52: FALSE | P52: TRUE | Q52: FALSE | R52: FALSE | T52: FALSE | U52: FALSE | V52: FALSE | W52: FALSE | X52: TRUE | BG52: Banc 117 bisVRAIFAUX | BH52: Banc 117 bisVRAIFAUXVRAIFAUXFAUX | BI52: Banc 117 bisVRAIFAUXFAUX
A53: FI52 | B53: romain.dehan | C53: T.HEMART | D53: J.BOUCHER | E53: FALSE | F53: TRUE | G53: FALSE | H53: Banc 117 bis | I53: 9668 | J53: 2016-04-05 | K53: Resserage raccords et support tuyauterie BP. Intervention prévue dans le cadre d'un arrêt planifié pour maintenance préventive | L53: TRUE | M53: FALSE | P53: FALSE | Q53: FALSE | R53: TRUE | T53: FALSE | U53: FALSE | V53: FALSE | W53: FALSE | X53: TRUE | BG53: Banc 117 bisVRAIFAUX | BH53: Banc 117 bisVRAIFAUXFAUXFAUXVRAI | BI53: Banc 117 bisFAUXFAUXVRAI
A54: FI53 | B54: romain.dehan | C54: T.HEMART | D54: J.BOUCHER | E54: FALSE | F54: TRUE | G54: FALSE | H54: Banc 117 bis | I54: 9668 | J54: 2016-04-05 | K54: Remplacement filtre "arlon" attention pas d'indicateur de colmatage. Intervention prévue dans le cadre d'un arrêt planifié pour maintenance préventive | L54: FALSE | M54: TRUE | P54: FALSE | Q54: FALSE | R54: TRUE | T54: FALSE | U54: FALSE | V54: FALSE | W54: FALSE | X54: TRUE | BG54: Banc 117 bisFAUXVRAI | BH54: Banc 117 bisFAUXVRAIFAUXFAUXVRAI | BI54: Banc 117 bisFAUXFAUXVRAI
A55: FI54 | B55: romain.dehan | C55: D.GARCIA SANCHEZ | D55: A.DELAUNAY | E55: FALSE | F55: FALSE | G55: FALSE | H55: Banc 117 bis | I55: 9668 | J55: 2016-04-05 | K55: Moteur Limiteur de pression HP non isolé. Cable alimentation distributeur HP dénudé | L55: TRUE | M55: FALSE | P55: TRUE | Q55: FALSE | R55: FALSE | T55: FALSE | U55: TRUE | V55: FALSE | W55: FALSE | X55: FALSE | BG55: Banc 117 bisVRAIFAUX | BH55: Banc 117 bisVRAIFAUXVRAIFAUXFAUX | BI55: Banc 117 bisVRAIFAUXFAUX
A56: FI55 | B56: romain.dehan | C56: T.HEMART | D56: J.BOUCHER | E56: FALSE | F56: TRUE | G56: FALSE | H56: Banc 117 bis | I56: 9668 | J56: 2016-04-05 | K56: Fuite sur vis de réglage limiteur de pression et sur plan de pose du distributeur NG10 ATOS du circuit BP. Intervention prévue dans le cadre d'un arrêt planifié pour maintenance préventive | L56: TRUE | M56: FALSE | P56: FALSE | Q56: FALSE | R56: TRUE | T56: FALSE | U56: TRUE | V56: FALSE | W56: FALSE | X56: FALSE | BG56: Banc 117 bisVRAIFAUX | BH56: Banc 117 bisVRAIFAUXFAUXFAUXVRAI | BI56: Banc 117 bisFAUXFAUXVRAI
A57: FI56 | B57: romain.dehan | C57: T.HEMART | D57: J.BOUCHER | E57: FALSE | F57: TRUE | G57: FALSE | H57: Banc 117 bis | I57: 9668 | J57: 2016-04-05 | K57: Jeu sur canlures entre chaque tête de cardan. Chgt du cardan. Intervention prévue dans le cadre d'un arrêt planifié pour maintenance préventive | L57: TRUE | M57: FALSE | P57: FALSE | Q57: TRUE | R57: FALSE | T57: FALSE | U57: TRUE | V57: FALSE | W57: FALSE | X57: FALSE | BG57: Banc 117 bisVRAIFAUX | BH57: Banc 117 bisVRAIFAUXFAUXVRAIFAUX | BI57: Banc 117 bisFAUXVRAIFAUX
A58: FI57 | B58: romain.dehan | C58: T.HEMART | E58: TRUE | F58: FALSE | G58: FALSE | H58: Banc 115 | I58: 29032 | J58: 2016-04-05 | K58: Faire Prélèvement d'huile | L58: FALSE | M58: TRUE | P58: FALSE | Q58: FALSE | R58: TRUE | T58: FALSE | U58: FALSE | V58: FALSE | W58: FALSE | X58: FALSE | Z58: 0.1 | AA58: 2016-04-08 | AB58: Prélèvement effectué | BG58: Banc 115FAUXVRAI | BH58: Banc 115FAUXVRAIFAUXFAUXVRAI | BI58: Banc 115FAUXFAUXVRAI
A59: FI58 | B59: romain.dehan | C59: D.GARCIA SANCHEZ | D59: A.DELAUNAY | E59: FALSE | F59: TRUE | G59: FALSE | H59: Banc 115 | I59: 29024 | J59: 2016-04-05 | K59: Indicateur de niveau non isolé et non fixé. Prévoir petit cabochon en plastique du style tuyau d'évac. en diam.40 | L59: TRUE | M59: FALSE | P59: TRUE | Q59: FALSE | R59: FALSE | T59: FALSE | U59: FALSE | V59: FALSE | W59: FALSE | X59: FALSE | BG59: Banc 115VRAIFAUX | BH59: Banc 115VRAIFAUXVRAIFAUXFAUX | BI59: Banc 115VRAIFAUXFAUX
A60: FI59 | B60: romain.dehan | C60: J.BOUCHER | D60: T.HEMART | E60: FALSE | F60: TRUE | G60: FALSE | H60: Banc 115 | I60: 29024 | J60: 2016-04-05 | K60: Prévoir la vidange suite au résultat du prélèvement Contrôle colmatage des 2 filtres "pall + filtre gris pall | L60: FALSE | M60: TRUE | N60: FALSE | O60: FALSE | P60: FALSE | Q60: FALSE | R60: TRUE | S60: FALSE | T60: FALSE | U60: TRUE | V60: FALSE | W60: FALSE | X60: FALSE | BG60: Banc 115FAUXVRAI | BH60: Banc 115FAUXVRAIFAUXFAUXVRAI | BI60: Banc 115FAUXFAUXFAUXFAUXVRAI
A61: FI60 | B61: romain.dehan | E61: FALSE | F61: FALSE | G61: FALSE | H61: Banc 117 bis | I61: 9668 | J61: 2016-04-06 | K61: Prévoir la vidange du banc si prélèvement d'huile négatif | L61: FALSE | M61: FALSE | P61: FALSE | Q61: FALSE | R61: FALSE | T61: FALSE | U61: FALSE | V61: FALSE | W61: FALSE | X61: FALSE | BG61: Banc 117 bisFAUXFAUX | BH61: Banc 117 bisFAUXFAUXFAUXFAUXFAUX | BI61: Banc 117 bisFAUXFAUXFAUX
A62: FI61 | B62: romain.dehan | C62: T.HEMART | E62: FALSE | F62: TRUE | G62: FALSE | H62: Banc 104 | I62: 4219 | J62: 2016-04-06 | K62: Colmatage du filtre de la ligne D détecté (HC 9801 FDS 4Z) | L62: FALSE | M62: TRUE | P62: FALSE | Q62: FALSE | R62: TRUE | T62: FALSE | U62: TRUE | V62: FALSE | W62: FALSE | X62: FALSE | Z62: 0.1 | AA62: 2016-04-08 | AB62: Remplacement de l'élément filtrant | AC62: Elément filtrant | AM62: PALL HC9801FDS4Z | AW62: 1 | BG62: Banc 104FAUXVRAI | BH62: Banc 104FAUXVRAIFAUXFAUXVRAI | BI62: Banc 104FAUXFAUXVRAI
A63: FI62 | B63: romain.dehan | C63: T.HEMART | E63: FALSE | F63: TRUE | G63: FALSE | H63: Banc 008 | I63: 957 | J63: 2016-04-06 | K63: Alarme Colmatage FC (UE219AN04Z) ainsi que Colmatage F8 (UE319AN40Z) | L63: FALSE | M63: TRUE | P63: FALSE | Q63: FALSE | R63: TRUE | T63: FALSE | U63: TRUE | V63: FALSE | W63: FALSE | X63: FALSE | Z63: 0.2 | AA63: 2016-04-08 | AB63: Remplacement des éléments filtrants | AC63: Elément filtrant | AE63: Elément filtrant | AM63: PALL UE219AN04Z | AO63: PALL UE319AN40Z | AW63: 1 | AY63: 1 | BG63: Banc 008FAUXVRAI | BH63: Banc 008FAUXVRAIFAUXFAUXVRAI | BI63: Banc 008FAUXFAUXVRAI
A64: FI63 | B64: romain.dehan | C64: T.HEMART | E64: TRUE | F64: FALSE | G64: FALSE | H64: Banc 124 | I64: 12924 | J64: 2016-04-06 | K64: Prélèvement pour analyse d'huile | L64: FALSE | M64: TRUE | N64: FALSE | O64: FALSE | P64: FALSE | Q64: FALSE | R64: TRUE | S64: FALSE | T64: FALSE | U64: FALSE | V64: FALSE | W64: FALSE | X64: FALSE | Z64: 0.1 | AA64: 2016-04-08 | AB64: Prélèvement effectué | BG64: Banc 124FAUXVRAI | BH64: Banc 124FAUXVRAIFAUXFAUXVRAI | BI64: Banc 124FAUXFAUXFAUXFAUXVRAI
A65: FI64 | B65: christophe.gauvin | C65: D.GARCIA SANCHEZ | E65: TRUE | F65: FALSE | G65: FALSE | H65: Banc 145 | I65: 7200 | J65: 2016-04-06 | K65: Faire un programme automate sur le banc 145 en rapport avec la TLC de l’essai 790-020-1038. Voir avec Jérôme MUNTREZ | L65: FALSE | M65: FALSE | N65: TRUE | O65: FALSE | P65: TRUE | Q65: FALSE | R65: FALSE | S65: FALSE | T65: FALSE | U65: FALSE | V65: FALSE | W65: FALSE | X65: FALSE | Z65: 1 | AA65: 2016-04-06 | AB65: Programme et câblage fait | BG65: Banc 145FAUXFAUX | BH65: Banc 145FAUXFAUXVRAIFAUXFAUX | BI65: Banc 145VRAIFAUXVRAIFAUXFAUX
A66: FI65 | B66: christophe.gauvin | C66: A.DELAUNAY | E66: TRUE | F66: FALSE | G66: FALSE | H66: Banc 119 | I66: 6620 | J66: 2016-04-06 | K66: Demande de programme automate sur le banc 119 suivant la TLC_780-000-1013 en PJ. | L66: FALSE | M66: FALSE | N66: TRUE | O66: FALSE | P66: TRUE | Q66: FALSE | R66: FALSE | S66: FALSE | T66: FALSE | U66: FALSE | V66: FALSE | W66: FALSE | X66: FALSE | Z66: 1 | AA66: 2016-04-08 | AB66: Programmation du ZELIO, raccordement des bobines sur les distributeurs, essais du programme et vérification du pilotage | BG66: Banc 119FAUXFAUX | BH66: Banc 119FAUXFAUXVRAIFAUXFAUX | BI66: Banc 119VRAIFAUXVRAIFAUXFAUX
A67: FI66 | B67: romain.dehan | C67: T.HEMART | E67: TRUE | F67: FALSE | G67: FALSE | H67: Réseau d'eau atelier | I67: x | J67: 2016-04-07 | K67: Fuite d'eau sur l'arrivée du nouveau P9. Canalisation percée. | L67: TRUE | M67: FALSE | N67: FALSE | O67: FALSE | P67: FALSE | Q67: FALSE | R67: TRUE | S67: FALSE | T67: FALSE | U67: TRUE | V67: FALSE | W67: FALSE | X67: FALSE | Z67: 0.15 | AA67: 2016-04-07 | AB67: Mise en place d'un manchon autour de la tuyauterie | BG67: Réseau d'eau atelierVRAIFAUX | BH67: Réseau d'eau atelierVRAIFAUXFAUXFAUXVRAI | BI67: Réseau d'eau atelierFAUXFAUXFAUXFAUXVRAI
A68: FI67 | B68: romain.dehan | C68: T.HEMART | E68: TRUE | F68: FALSE | G68: FALSE | H68: Pompe à eau | I68: 27553 | J68: 2016-04-07 | K68: Fuite d'eau sur la vanne supérieur du bromisateur. | L68: TRUE | M68: FALSE | N68: FALSE | O68: FALSE | P68: FALSE | Q68: FALSE | R68: TRUE | S68: FALSE | T68: FALSE | U68: TRUE | V68: FALSE | W68: FALSE | X68: FALSE | Z68: 5 | AA68: 2016-04-07 | AB68: Remplacement du raccord cassé | BG68: Pompe à eauVRAIFAUX | BH68: Pompe à eauVRAIFAUXFAUXFAUXVRAI | BI68: Pompe à eauFAUXFAUXFAUXFAUXVRAI
A69: FI68 | B69: romain.dehan | C69: D.GARCIA SANCHEZ | E69: TRUE | F69: FALSE | G69: FALSE | H69: M73001 (Banc new P9) | I69: 26 | J69: 2016-04-07 | K69: Câblage d'un échangeur thermique air huile. | L69: FALSE | M69: FALSE | N69: TRUE | O69: FALSE | P69: TRUE | Q69: FALSE | R69: FALSE | S69: FALSE | T69: FALSE | U69: FALSE | V69: FALSE | W69: FALSE | X69: FALSE | Z69: 3 | AA69: 2016-04-07 | AB69: Câblage de l'échangeur air huille | BG69: M73001 (Banc new P9)FAUXFAUX | BH69: M73001 (Banc new P9)FAUXFAUXVRAIFAUXFAUX | BI69: M73001 (Banc new P9)VRAIFAUXVRAIFAUXFAUX
A70: FI69 | B70: samy.boussetta | C70: D.GARCIA SANCHEZ | E70: FALSE | F70: FALSE | G70: FALSE | H70: Banc P1 | I70: 5631 | J70: 2016-04-08 | K70: Coupure moteur électrique | L70: TRUE | M70: FALSE | N70: FALSE | O70: FALSE | P70: TRUE | Q70: FALSE | R70: FALSE | S70: FALSE | T70: FALSE | U70: FALSE | V70: FALSE | W70: FALSE | X70: FALSE | Y70: Variateur en défaut | Z70: 0.02 | AA70: 2016-04-08 | AB70: Reset variateur | BG70: Banc P1VRAIFAUX | BH70: Banc P1VRAIFAUXVRAIFAUXFAUX | BI70: Banc P1FAUXFAUXVRAIFAUXFAUX
A71: FI70 | B71: christophe.gebhard | C71: T.HEMART | D71: D.GARCIA SANCHEZ | E71: TRUE | F71: FALSE | G71: FALSE | H71: Banc 119 | I71: 6625 | J71: 2016-04-11 | K71: Prob dist Atos - Changer mano à seuil | L71: TRUE | M71: FALSE | N71: FALSE | O71: FALSE | P71: TRUE | Q71: FALSE | R71: TRUE | S71: FALSE | T71: FALSE | U71: TRUE | V71: FALSE | W71: FALSE | X71: FALSE | Z71: 1 | AA71: 2016-04-11 | AB71: Changement distributeur - Changement mano numéro 2: 100 bars par un mano 600 bars -> remettre en place a la fin de l'essai | BG71: =H71&L71&M71 -> Banc 119VRAIFAUX | BH71: =H71&L71&M71&P71&Q71&R71 -> Banc 119VRAIFAUXVRAIFAUXVRAI | BI71: Banc 119FAUXFAUXVRAIFAUXVRAI
A72: FI71 | B72: christophe.gauvin | C72: T.HEMART | E72: TRUE | F72: FALSE | G72: FALSE | H72: Banc 123 | I72: 75753 | J72: 2016-04-11 | K72: Installation d'un débitmètre sur le circuit de refroidissement, aprés l'EV de refroidissement. Intervention prévue pour le 12/04 au matin. | L72: FALSE | M72: FALSE | N72: FALSE | O72: TRUE | P72: FALSE | Q72: FALSE | R72: TRUE | S72: FALSE | T72: FALSE | U72: FALSE | V72: FALSE | W72: FALSE | X72: FALSE | Z72: 2.5 | AA72: 2016-04-12 | AB72: Débimètre installé | BG72: Banc 123FAUXFAUX | BH72: Banc 123FAUXFAUXFAUXFAUXVRAI | BI72: =H72&N72&O72&P72&Q72&R72 -> Banc 123FAUXVRAIFAUXFAUXVRAI
A73: FI72 | B73: jerome.muntrez | C73: A.DELAUNAY | E73: TRUE | F73: FALSE | G73: FALSE | H73: Banc 145 | I73: 7198.25 | J73: 2016-04-11 | K73: Manocontacts de sécurité défaillants | L73: TRUE | M73: FALSE | N73: FALSE | O73: FALSE | P73: TRUE | Q73: FALSE | R73: FALSE | S73: FALSE | T73: FALSE | U73: FALSE | V73: FALSE | W73: FALSE | X73: FALSE | Y73: Manos déffaillant impossible de retourner à 0bar, et enclenchement du mano bouton sécurité sur off | Z73: 3 | AA73: 2016-04-11 | AB73: Changement du mano et modification de cablage de la chaine de sécurité | BG73: Banc 145VRAIFAUX | BH73: Banc 145VRAIFAUXVRAIFAUXFAUX | BI73: Banc 145FAUXFAUXVRAIFAUXFAUX
A74: FI73 | B74: christophe.gebhard | E74: FALSE | F74: FALSE | G74: FALSE | H74: Banc 119 | I74: 6627 | J74: 2016-04-11 | K74: test de demande na pas tenir compte | L74: FALSE | M74: FALSE | N74: FALSE | O74: FALSE | P74: FALSE | Q74: FALSE | R74: FALSE | S74: FALSE | T74: FALSE | U74: FALSE | V74: FALSE | W74: FALSE | X74: FALSE | BG74: Banc 119FAUXFAUX | BH74: Banc 119FAUXFAUXFAUXFAUXFAUX | BI74: Banc 119FAUXFAUXFAUXFAUXFAUX
A75: FI74 | B75: christophe.gauvin | C75: A.DELAUNAY | E75: TRUE | F75: FALSE | G75: FALSE | H75: Banc 145 | I75: 7200 | J75: 2016-04-11 | K75: Modification de tempos dans l'automate | L75: FALSE | M75: FALSE | N75: TRUE | O75: FALSE | P75: TRUE | Q75: FALSE | R75: FALSE | S75: FALSE | T75: FALSE | U75: FALSE | V75: FALSE | W75: FALSE | X75: FALSE | Z75: 0.3 | AA75: 2016-04-11 | AB75: Connection et modification du programme | BG75: Banc 145FAUXFAUX | BH75: Banc 145FAUXFAUXVRAIFAUXFAUX | BI75: Banc 145VRAIFAUXVRAIFAUXFAUX
A76: FI75 | B76: cyril.beauchamps | C76: D.GARCIA SANCHEZ | D76: A.DELAUNAY | E76: TRUE | F76: FALSE | G76: FALSE | H76: Banc HP | I76: 1342 | J76: 2016-04-12 | K76: Mauvaise lecture de la pression circuit sur les afficheurs. Pas de sécurité possible sur le Banc. Le banc est donc arrêté. | L76: FALSE | M76: FALSE | N76: TRUE | O76: FALSE | P76: TRUE | Q76: FALSE | R76: FALSE | S76: FALSE | T76: FALSE | U76: FALSE | V76: FALSE | W76: FALSE | X76: FALSE | Z76: 1 | AA76: 2016-04-12 | AB76: Reparamétragre de l'afficheur | BG76: Banc HPFAUXFAUX | BH76: Banc HPFAUXFAUXVRAIFAUXFAUX | BI76: Banc HPVRAIFAUXVRAIFAUXFAUX
A77: FI76 | B77: christophe.gauvin | C77: A.DELAUNAY | E77: TRUE | F77: FALSE | G77: FALSE | H77: Banc PowerTrain | I77: 0 | J77: 2016-04-12 | K77: Besoin d'un câble d'alimentation pour le branchement en 230VAC d'une alimentation de puissance pour l'essai et d’un câble pour l’alimentation d'un GEP POWERTRAIN | L77: FALSE | M77: FALSE | N77: TRUE | O77: FALSE | P77: TRUE | Q77: FALSE | R77: FALSE | S77: FALSE | T77: FALSE | U77: FALSE | V77: FALSE | W77: FALSE | X77: FALSE | Z77: 0.3 | AA77: 2016-04-12 | AB77: Mise en place d'un câble 3G2.5 pour l'alimentation et de fils en 4² pour l'alimentation du GEP | BG77: Banc PowerTrainFAUXFAUX | BH77: Banc PowerTrainFAUXFAUXVRAIFAUXFAUX | BI77: Banc PowerTrainVRAIFAUXVRAIFAUXFAUX
A78: FI77 | B78: christophe.gauvin | C78: A.DELAUNAY | E78: TRUE | F78: FALSE | G78: FALSE | H78: Banc 123 | I78: 75754 | J78: 2016-04-12 | K78: Pb sur la marche générale. La marche générale ne s’enclenche pas. Automate ??? | L78: TRUE | M78: FALSE | N78: FALSE | O78: FALSE | P78: TRUE | Q78: FALSE | R78: FALSE | S78: FALSE | T78: FALSE | U78: FALSE | V78: FALSE | W78: FALSE | X78: FALSE | Y78: Fusible HS | Z78: 0.15 | AA78: 2016-04-12 | AB78: Recherche de la panne et remplacent du fusible 230V | BG78: Banc 123VRAIFAUX | BH78: Banc 123VRAIFAUXVRAIFAUXFAUX | BI78: Banc 123FAUXFAUXVRAIFAUXFAUX
A79: FI78 | B79: christophe.gauvin | C79: C.GAUVIN | E79: TRUE | F79: FALSE | G79: FALSE | H79: Banc 119 | I79: 6633 | J79: 2016-04-12 | K79: Défaut sur alarme incendie. Contacter SIEMENS pour intervention la plus rapide. | L79: TRUE | M79: FALSE | N79: FALSE | O79: FALSE | P79: TRUE | Q79: FALSE | R79: FALSE | S79: FALSE | T79: FALSE | U79: TRUE | V79: FALSE | W79: FALSE | X79: FALSE | AB79: Contact avec la HOTLINE le 12/04 | BG79: Banc 119VRAIFAUX | BH79: Banc 119VRAIFAUXVRAIFAUXFAUX | BI79: Banc 119FAUXFAUXVRAIFAUXFAUX
A80: FI79 | B80: christophe.gauvin | C80: T.HEMART | E80: TRUE | F80: FALSE | G80: FALSE | H80: Banc 145 | I80: 7206 | J80: 2016-04-12 | K80: Démonter, nettoyer et remonter la vanne de refroidissement des capteurs de vitesse. Fuite "goute à goute" qui gêne la chauffe des capteurs à 80°C. Intervention prioritaire dès ton arrivée. | L80: TRUE | M80: FALSE | N80: FALSE | O80: FALSE | P80: FALSE | Q80: FALSE | R80: TRUE | S80: FALSE | T80: FALSE | U80: TRUE | V80: FALSE | W80: FALSE | X80: FALSE | Z80: 2.3 | AA80: 2016-04-12 | AB80: Démontage et nettoyage de l'électrovanne. Montage d'une vanne manuelle d'isolement en amont. | BG80: Banc 145VRAIFAUX | BH80: Banc 145VRAIFAUXFAUXFAUXVRAI | BI80: Banc 145FAUXFAUXFAUXFAUXVRAI
A81: FI80 | B81: christophe.gauvin | C81: T.HEMART | E81: TRUE | F81: FALSE | G81: FALSE | H81: Banc 131 | I81: 2326 | J81: 2016-04-12 | K81: Pb de fonctionnement du refroidissement du banc. Voir EV. | L81: TRUE | M81: FALSE | N81: FALSE | O81: FALSE | P81: FALSE | Q81: TRUE | R81: TRUE | S81: FALSE | T81: FALSE | U81: FALSE | V81: FALSE | W81: TRUE | X81: FALSE | Z81: 2 | AA81: 2016-04-12 | AB81: Démontage nettoyage des deux électrovannes de refroidissement | BG81: Banc 131VRAIFAUX | BH81: Banc 131VRAIFAUXFAUXVRAIVRAI | BI81: Banc 131FAUXFAUXFAUXVRAIVRAI
A82: FI81 | B82: christophe.gauvin | C82: A.DELAUNAY | D82: D.GARCIA SANCHEZ | E82: FALSE | F82: FALSE | G82: TRUE | H82: Machine à laver | I82: 1 | J82: 2016-04-12 | K82: Vérifier le bon fonctionnement de la pompe de la scie à ruban. Démontage, nettoyage et remontage de la pompe. | L82: TRUE | M82: FALSE | N82: FALSE | O82: FALSE | P82: TRUE | Q82: TRUE | R82: FALSE | S82: FALSE | T82: FALSE | U82: TRUE | V82: FALSE | W82: FALSE | X82: FALSE | Y82: Buses bouchés | Z82: 1.3 | AA82: 2016-04-13 | AB82: Démontage et nettoyage des buses - Démontage et nettoyage de la pompe | BG82: Machine à laverVRAIFAUX | BH82: Machine à laverVRAIFAUXVRAIVRAIFAUX | BI82: Machine à laverFAUXFAUXVRAIVRAIFAUX
A83: FI82 | B83: jonathan.barra | C83: A.DELAUNAY | E83: TRUE | F83: FALSE | G83: FALSE | H83: Banc 111 | I83: 8545 | J83: 2016-04-13 | K83: Pas de marche moteur et defaut de calibration du capteur hydac de securité 0-60 bar | L83: TRUE | M83: FALSE | N83: FALSE | O83: FALSE | P83: TRUE | Q83: FALSE | R83: FALSE | S83: FALSE | T83: FALSE | U83: FALSE | V83: FALSE | W83: FALSE | X83: FALSE | Y83: Contacteur moteur consigné | Z83: 0.1 | AA83: EN COURS | AB83: Déconsignation du contacteur, RESTE A VOIR POUR LES CAPTEURS, CAPTEUR NON CORRESPONDANT AUX AFFICHEURS, le 0-60 bar doit être un 100 car le 0-60bar n'a rien faire sur ce banc ( cela engendre des changements intempestifs des plages des afficheurs alors que cela doit être réglé en dur et pas en provisoire selon les essais), il manque un 0-10bar et il manque aussi un 0-600bar à voir avec C.GAUVIN pour l'achat de capteur. | BG83: Banc 111VRAIFAUX | BH83: Banc 111VRAIFAUXVRAIFAUXFAUX | BI83: Banc 111FAUXFAUXVRAIFAUXFAUX
A84: FI83 | B84: david.garcia | C84: D.GARCIA SANCHEZ | E84: TRUE | F84: FALSE | G84: FALSE | H84: Banc 131 | I84: 2332 | J84: 2016-04-12 | K84: Les sorties Ev eau et Rdg clignotent | L84: TRUE | M84: FALSE | N84: FALSE | O84: FALSE | P84: TRUE | Q84: FALSE | R84: FALSE | S84: FALSE | T84: FALSE | U84: FALSE | V84: FALSE | W84: FALSE | X84: FALSE | Z84: 0.2 | AA84: 2016-04-14 | AB84: Vu avec Yann,modification des paramètres dans Intest. | BG84: Banc 131VRAIFAUX | BH84: Banc 131VRAIFAUXVRAIFAUXFAUX | BI84: Banc 131FAUXFAUXVRAIFAUXFAUX
A85: FI84 | B85: christophe.gauvin | C85: J.BOUCHER | D85: T.HEMART | E85: TRUE | F85: FALSE | G85: FALSE | H85: Banc P2 | I85: 15822 | J85: 2016-04-14 | K85: Faire le niveau d'huile au 2/3 du niveau visuel | L85: TRUE | M85: FALSE | N85: FALSE | O85: FALSE | P85: FALSE | Q85: FALSE | R85: TRUE | S85: FALSE | T85: FALSE | U85: FALSE | V85: FALSE | W85: FALSE | X85: FALSE | Z85: 2 | AA85: 2016-04-14 | AB85: Fait | BG85: Banc P2VRAIFAUX | BH85: Banc P2VRAIFAUXFAUXFAUXVRAI | BI85: Banc P2FAUXFAUXFAUXFAUXVRAI
A86: FI85 | B86: christophe.gauvin | C86: J.BOUCHER | D86: T.HEMART | E86: TRUE | F86: FALSE | G86: FALSE | H86: Banc 124 | I86: 12977 | J86: 2016-04-06 | K86: Faire le niveau d'huile au 2/3 du niveau visuel | L86: TRUE | M86: FALSE | N86: FALSE | O86: FALSE | P86: FALSE | Q86: FALSE | R86: TRUE | S86: FALSE | T86: FALSE | U86: FALSE | V86: FALSE | W86: FALSE | X86: FALSE | Z86: 0.3 | AA86: 2016-04-15 | AB86: RAS | BG86: Banc 124VRAIFAUX | BH86: Banc 124VRAIFAUXFAUXFAUXVRAI | BI86: Banc 124FAUXFAUXFAUXFAUXVRAI
A87: FI86 | B87: benjamin.eyraud | C87: D.GARCIA SANCHEZ | D87: T.HEMART | E87: FALSE | F87: TRUE | G87: FALSE | H87: Banc PowerTrain | I87: 0 | J87: 19/04/2016 | K87: La potence électrique ABUS ne remonte pas jusque en haut (probablement un réglage de fin de course à faire, la potence est neuve) | L87: FALSE | M87: FALSE | N87: TRUE | O87: FALSE | P87: FALSE | Q87: TRUE | R87: FALSE | S87: FALSE | T87: FALSE | U87: FALSE | V87: FALSE | W87: TRUE | X87: FALSE | Y87: La chaine est trop longue | Z87: 0.3 | AA87: 2016-04-19 | AB87: Racourcissement de la chaine. Test position haute et basse OK. | BG87: Banc PowerTrainFAUXFAUX | BH87: Banc PowerTrainFAUXFAUXFAUXVRAIFAUX | BI87: Banc PowerTrainVRAIFAUXFAUXVRAIFAUX
A88: FI87 | B88: david.garcia | C88: D.GARCIA SANCHEZ | E88: TRUE | F88: FALSE | G88: FALSE | H88: Banc PowerTrain | I88: 0 | J88: 2016-04-13 | K88: Essai sur table de Christophe Gebhard pour Powertrain: mis en place platine GEP ainsi que changement du câblage | L88: FALSE | M88: FALSE | N88: TRUE | O88: FALSE | P88: TRUE | Q88: FALSE | R88: FALSE | S88: FALSE | T88: FALSE | U88: FALSE | V88: FALSE | W88: FALSE | X88: FALSE | Z88: 1 | AA88: 2016-04-15 | AB88: Mis en place d'un bouton 3 positions et vérification du câblage sur platine GEP | BG88: Banc PowerTrainFAUXFAUX | BH88: Banc PowerTrainFAUXFAUXVRAIFAUXFAUX | BI88: Banc PowerTrainVRAIFAUXVRAIFAUXFAUX
A89: FI88 | B89: jonathan.barra | C89: D.GARCIA SANCHEZ | E89: TRUE | F89: FALSE | G89: FALSE | H89: Banc 126 | I89: 9316 | J89: 2016-04-18 | K89: Faire le programme et le cablage pour la TLC_RPP-516-941 | L89: FALSE | M89: FALSE | N89: TRUE | O89: FALSE | P89: TRUE | Q89: FALSE | R89: FALSE | S89: FALSE | T89: FALSE | U89: FALSE | V89: FALSE | W89: FALSE | X89: FALSE | Z89: 1.3 | AA89: 2016-04-18 | AB89: Programmation du ZELIO, raccordement des bobines sur les distributeurs | BG89: =H89&L89&M89 -> Banc 126FAUXFAUX | BH89: Banc 126FAUXFAUXVRAIFAUXFAUX | BI89: Banc 126VRAIFAUXVRAIFAUXFAUX
A90: FI89 | B90: yann.nourricier | E90: FALSE | F90: FALSE | G90: FALSE | H90: Banc 124 bis | I90: 7 | J90: 2016-04-18 | K90: Il faudrait mettre à jours le schéma électrique du banc 124 #. J'aurais besoin des modifications apporté par Alexandre sur la chaine des afficheurs Mano Hydac pour l'envoyer a EQHYP pour les bancs 123-129. Merci. | L90: FALSE | M90: FALSE | N90: FALSE | O90: FALSE | P90: FALSE | Q90: FALSE | R90: FALSE | S90: FALSE | T90: FALSE | U90: FALSE | V90: FALSE | W90: FALSE | X90: FALSE | BI90: Banc 124 bisFAUXFAUXFAUXFAUXFAUX
A91: FI90 | B91: romain.dehan | C91: T.HEMART | E91: TRUE | F91: FALSE | G91: FALSE | H91: Banc P2 | I91: 15822 | J91: 19/04/2016 | K91: Voyant défaut de la marche générale allumé (suite au trop plein du réservoir ??) + prévoir un petit nettoyage à l'étage (suite au trop plein du réservoir) | L91: TRUE | M91: FALSE | N91: FALSE | O91: FALSE | P91: FALSE | Q91: FALSE | R91: TRUE | S91: FALSE | T91: FALSE | U91: FALSE | V91: TRUE | W91: FALSE | X91: FALSE | Y91: Réservoir ayant débordé lors du remplissage | Z91: 3 | AA91: 2016-04-15 | AB91: Nettoyage du réservoir et du toit du banc. Vidange du trop plein d'huile. | BI91: Banc P2FAUXFAUXFAUXFAUXVRAI
A93: FI92 | B93: yann.nourricier | C93: A.DELAUNAY | E93: FALSE | F93: TRUE | G93: FALSE | H93: Banc 123 | I93: 0 | J93: 19/04/2016 | K93: Pour la rénovation des bancs 123 et 129, il faudrait approvisionner 1 éclairage par générateur hydraulique. La date d'intervention par EQHYP est prévut pour le moment semaine 23. | L93: FALSE | M93: FALSE | N93: FALSE | O93: TRUE | P93: TRUE | Q93: FALSE | R93: FALSE | S93: FALSE | T93: FALSE | U93: FALSE | V93: FALSE | W93: FALSE | X93: TRUE | BI93: Banc 123FAUXVRAIVRAIFAUXFAUX
A94: FI93 | B94: romain.dehan | C94: R.DEHAN | D94: C.GAUVIN | E94: FALSE | F94: TRUE | G94: FALSE | H94: Banc 113 | I94: 19623 | J94: 19/04/2016 | K94: Révision du moteur électrique nombre d'heure de fonctionnement atteint | L94: FALSE | M94: TRUE | N94: FALSE | O94: FALSE | P94: TRUE | Q94: FALSE | R94: FALSE | S94: FALSE | T94: FALSE | U94: TRUE | V94: FALSE | W94: FALSE | X94: FALSE
A95: FI94 | B95: yann.nourricier | C95: D.GARCIA SANCHEZ | E95: TRUE | F95: FALSE | G95: FALSE | H95: Banc 124 bis | I95: 6 | J95: 19/04/2016 | K95: La Dynex actuellement connecté dans le générateur du banc 124# est une Dynex 12V. Elle a été raccordé à une alimentation 24V. Il faut changer l'alim et vérifier que la Dynex n'a pas prit de coup.. | L95: TRUE | M95: FALSE | N95: FALSE | O95: FALSE | P95: TRUE | Q95: FALSE | R95: FALSE | S95: FALSE | T95: FALSE | U95: FALSE | V95: FALSE | W95: FALSE | X95: TRUE
A96: FI95 | B96: romain.dehan | C96: R.DEHAN | D96: J.BOUCHER | E96: FALSE | F96: FALSE | G96: FALSE | H96: Pont roulant | I96: 0 | J96: 19/04/2016 | K96: Boitier de commande de la télécommande pont roulant est HS | L96: TRUE | M96: FALSE | N96: FALSE | O96: FALSE | P96: TRUE | Q96: FALSE | R96: FALSE | S96: FALSE | T96: FALSE | U96: TRUE | V96: FALSE | W96: FALSE | X96: FALSE | Y96: Usure du connecteur lié a l'utilisation | Z96: 1 | AA96: 2016-04-20 | AB96: Reparation provisoire, en attente de pièce | BG96: Pont roulantVRAIFAUX | BH96: Pont roulantVRAIFAUXVRAIFAUXFAUX | BI96: Pont roulantFAUXFAUXVRAIFAUXFAUX
A97: FI96 | B97: guillaume.lemaire | C97: D.Garcia | E97: FALSE | F97: TRUE | G97: FALSE | H97: Banc 128 | I97: 0 | J97: 2016-04-19 | K97: la prise ITT CANON présente sur le banc permet l'utilisation du HHT et pas du CAN pour faire la mise au point.Il faudrait cabler le CAN des broches 12/13 et 14 du Smart driveet ramener CAN-L et CAN-H sur le connecteur en façade. MERCI | L97: TRUE | M97: FALSE | N97: FALSE | O97: FALSE | P97: TRUE | Q97: FALSE | R97: FALSE | S97: FALSE | T97: FALSE | U97: FALSE | V97: FALSE | W97: FALSE | X97: FALSE | BG97: Banc 128VRAIFAUX | BH97: Banc 128VRAIFAUXVRAIFAUXFAUX | BI97: Banc 128FAUXFAUXVRAIFAUXFAUX
A98: FI97 | B98: guillaume.lemaire | C98: D.GARCIA SANCHEZ | E98: TRUE | F98: FALSE | G98: FALSE | H98: Banc 101 | I98: 0 | J98: 19/04/2016 | K98: la prise ITT CANON présente sur le banc permet l'utilisation du HHT et pas du CAN pour faire la mise au point.Il faudrait cabler le CAN des broches 12/13 et 14 du Smart driveet ramener CAN-L et CAN-H sur le connecteur en façade | L98: TRUE | M98: FALSE | N98: FALSE | O98: FALSE | P98: TRUE | Q98: FALSE | R98: FALSE | S98: FALSE | T98: FALSE | U98: FALSE | V98: FALSE | W98: FALSE | X98: FALSE | Y98: Câble de Guillaume qui a des faux contacts | Z98: 0 | AA98: 2016-04-21 | AB98: En attente qu'il le répare pour refaire des essais. | BG98: Banc 101VRAIFAUX | BH98: Banc 101VRAIFAUXVRAIFAUXFAUX | BI98: Banc 101FAUXFAUXVRAIFAUXFAUX
A99: FI98 | B99: jonathan.barra | C99: D.GARCIA SANCHEZ | E99: TRUE | F99: FALSE | G99: FALSE | H99: Banc 111 | I99: 8850 | J99: 20/04/2016 | K99: Probleme de seuil sur l afficheur du banc 111.Essai P22 à l'arret | L99: TRUE | M99: FALSE | N99: FALSE | O99: FALSE | P99: TRUE | Q99: FALSE | R99: FALSE | S99: FALSE | T99: FALSE | U99: FALSE | V99: FALSE | W99: FALSE | X99: FALSE | Y99: Seuil régler trop bas par rapport a la pression de l'essai | Z99: 0.15 | AA99: 2016-04-20 | AB99: Réglage des plages du mano a seuil. Test et remis et en service du banc
A100: FI99 | B100: amine.selhami | C100: J.BOUCHER | E100: TRUE | F100: FALSE | G100: FALSE | H100: M73001 (Banc new P9) | I100: 47 | J100: 20/04/2016 | K100: Problème avec RH20 motorisée volante.. URGENT, essai POWERTRAIN. Merci | L100: TRUE | M100: FALSE | N100: FALSE | O100: FALSE | P100: FALSE | Q100: TRUE | R100: FALSE | S100: FALSE | T100: FALSE | U100: FALSE | V100: FALSE | W100: TRUE | X100: FALSE | Y100: Plus de goupille sur l'acouplement | Z100: 0.15 | AA100: 2016-04-20 | AB100: Remise en place d'une nouvelle goupille | BG100: M73001 (Banc new P9)VRAIFAUX | BH100: M73001 (Banc new P9)VRAIFAUXFAUXVRAIFAUX | BI100: M73001 (Banc new P9)FAUXFAUXFAUXVRAIFAUX
A101: FI100 | B101: christophe.gebhard | C101: J.BOUCHER | D101: T.HEMART | E101: FALSE | F101: FALSE | G101: FALSE | H101: Chambre froide | I101: 9134 | J101: 20/04/2016 | K101: Tuyau PVC de vidange des frigo cassé Il pleut dedans lorsque la chambre se rechauffe | L101: FALSE | M101: FALSE | N101: FALSE | O101: FALSE | P101: FALSE | Q101: FALSE | R101: FALSE | S101: FALSE | T101: FALSE | U101: FALSE | V101: FALSE | W101: FALSE | X101: FALSE | BG101: Chambre froideFAUXFAUX | BH101: Chambre froideFAUXFAUXFAUXFAUXFAUX | BI101: Chambre froideFAUXFAUXFAUXFAUXFAUX
A102: FI101 | B102: romain.dehan | C102: J.BOUCHER | E102: FALSE | F102: FALSE | G102: FALSE | H102: Tours à eau | I102: 28352 | J102: 22/04/2016 | K102: Présence d'air dans le circuit du réseau d'eau. Niveau bas des tours allumés | L102: TRUE | M102: FALSE | N102: FALSE | O102: FALSE | P102: FALSE | Q102: TRUE | R102: FALSE | S102: FALSE | T102: FALSE | U102: TRUE | V102: FALSE | W102: FALSE | X102: FALSE | Y102: Electrovanne de remplissage des tours HS (membrane usée), cavitation des pompes. | Z102: 1 | AA102: 2016-04-22 | AB102: Vitesse des groupes motopompes reduite à 600tr/min lors de l'intervention pour limiter la cavitation. | AC102: Mebrane 3/8" | AM102: cemé | AW102: 1 | BG102: Tours à eauVRAIFAUX | BH102: Tours à eauVRAIFAUXFAUXVRAIFAUX | BI102: Tours à eauFAUXFAUXFAUXVRAIFAUX
A103: FI102 | B103: romain.dehan | C103: J.BOUCHER | D103: T.HEMART | E103: FALSE | F103: FALSE | G103: FALSE | H103: Pompe à eau | I103: 28352 | J103: 22/04/2016 | K103: Prévoir le remplacement de l'électrovanne au niveau de l'arrivée de l'eau de ville. | L103: FALSE | M103: FALSE | N103: FALSE | O103: FALSE | P103: FALSE | Q103: FALSE | R103: FALSE | S103: FALSE | T103: FALSE | U103: FALSE | V103: FALSE | W103: FALSE | X103: FALSE | BG103: Pompe à eauFAUXFAUX | BH103: Pompe à eauFAUXFAUXFAUXFAUXFAUX | BI103: Pompe à eauFAUXFAUXFAUXFAUXFAUX
A104: FI103 | B104: samy.boussetta | C104: J.BOUCHER | E104: TRUE | F104: FALSE | G104: FALSE | H104: Banc P7 | I104: 413457 | J104: 22/04/2016 | K104: La pompe a fait une performance cette nuit. et ce matin vers 8h30. Il y a eu une hausse soudaine de la température du réservoir. Je souhaiterai avoir une expertise du banc pour redémarrer. Merci | L104: TRUE | M104: FALSE | N104: FALSE | O104: FALSE | P104: FALSE | Q104: FALSE | R104: TRUE | S104: FALSE | T104: FALSE | U104: TRUE | V104: FALSE | W104: FALSE | X104: FALSE | Y104: Electrovanne de remplissage en eau des tours défaillante | Z104: 0 | AA104: 2016-04-22 | AB104: L'augmentation de température est dû au défaut de l'électrovanne. Celle-ci était défaillante et a rempli le circuit en air. | BG104: Banc P7VRAIFAUX | BH104: Banc P7VRAIFAUXFAUXFAUXVRAI | BI104: Banc P7FAUXFAUXFAUXFAUXVRAI
A105: FI104 | B105: yann.nourricier | C105: D.GARCIA SANCHEZ | E105: TRUE | F105: FALSE | G105: FALSE | H105: Banc 128 | I105: 123456 | J105: 22/04/2016 | K105: Le codeur du banc 128 a été remplacé. Il faut retirer un câble du codeur jusqu'au coffret de mesure dans le bancs puis jusqu'au module gantner. Le câble est en préparation à la mesure par Amédée. C'est urgent, sans le codeur le banc ne tourne pas :) | L105: FALSE | M105: FALSE | N105: TRUE | O105: FALSE | P105: TRUE | Q105: FALSE | R105: FALSE | S105: FALSE | T105: FALSE | U105: FALSE | V105: FALSE | W105: FALSE | X105: FALSE | Z105: 3 | AA105: 24 et 25/04/2016 | AB105: Passage de câbles et câblage de ceux-ci | BG105: Banc 128FAUXFAUX | BH105: Banc 128FAUXFAUXVRAIFAUXFAUX | BI105: Banc 128VRAIFAUXVRAIFAUXFAUX
A106: FI105 | B106: jonathan.barra | C106: R.DEHAN | E106: TRUE | F106: FALSE | G106: FALSE | H106: Banc 126 | I106: 8750 | J106: 22/04/2016 | K106: Probleme de distributeur au 126 vu avec Jonathan boucher. Je pense qu il manque les joints du distributeur. Il y a une grosse fuite au demarrage du banc. | L106: TRUE | M106: FALSE | N106: FALSE | O106: FALSE | P106: FALSE | Q106: FALSE | R106: TRUE | S106: FALSE | T106: FALSE | U106: FALSE | V106: FALSE | W106: TRUE | X106: FALSE | Y106: 1 joint d'embase du distributeur était pincé | Z106: 0.25 | AA106: 2016-04-22 | AB106: Changement de tous les joints de l'embase du distributeur | BG106: Banc 126VRAIFAUX | BH106: Banc 126VRAIFAUXFAUXFAUXVRAI | BI106: Banc 126FAUXFAUXFAUXFAUXVRAI
A107: FI106 | B107: david.gariglietti | C107: D.GARCIA SANCHEZ | E107: FALSE | F107: FALSE | G107: FALSE | H107: Banc 104 | I107: 4040 | J107: 22/04/2016 | K107: Probleme arret systematique du variateur de la pompe P2 a chaque demarrage. impossible de demarrer. | L107: FALSE | M107: FALSE | N107: FALSE | O107: FALSE | P107: FALSE | Q107: FALSE | R107: FALSE | S107: FALSE | T107: FALSE | U107: FALSE | V107: FALSE | W107: FALSE | X107: FALSE | BG107: Banc 104FAUXFAUX | BH107: Banc 104FAUXFAUXFAUXFAUXFAUX | BI107: Banc 104FAUXFAUXFAUXFAUXFAUX
A108: FI107 | B108: amine.selhami | C108: J.BOUCHER | D108: T.HEMART | E108: FALSE | F108: FALSE | G108: FALSE | H108: Banc 007 | I108: 876,50 | J108: 25/04/2016 | K108: Fuites constatées au niveau du bloc foré de puissance (mauvais serrage composants ?..) /!\ Ne pas intervenir pour le moment car le banc est en fonctionnement... | L108: FALSE | M108: FALSE | N108: FALSE | O108: FALSE | P108: FALSE | Q108: FALSE | R108: FALSE | S108: FALSE | T108: FALSE | U108: FALSE | V108: FALSE | W108: FALSE | X108: FALSE | BG108: Banc 007FAUXFAUX | BH108: Banc 007FAUXFAUXFAUXFAUXFAUX | BI108: Banc 007FAUXFAUXFAUXFAUXFAUX
A109: FI108 | B109: romain.dehan | C109: R.DEHAN | E109: TRUE | F109: FALSE | G109: FALSE | H109: Chambre sourde | I109: 24058 | J109: 2016-04-22 | K109: Préparation d'une soupape de tarrage pour l'essais PowerTrain | L109: FALSE | M109: FALSE | N109: TRUE | O109: FALSE | P109: FALSE | Q109: TRUE | R109: FALSE | S109: FALSE | T109: FALSE | U109: FALSE | V109: FALSE | W109: FALSE | X109: TRUE | Z109: 1.5 | AA109: 2015-04-22 | AB109: Préparation d'une soupape de tarrage pour l'essais PowerTrain | BG109: Chambre sourdeFAUXFAUX | BH109: Chambre sourdeFAUXFAUXFAUXVRAIFAUX | BI109: Chambre sourdeVRAIFAUXFAUXVRAIFAUX
A110: FI109 | B110: christophe.chaldjian | C110: D.GARCIA SANCHEZ | E110: FALSE | F110: FALSE | G110: FALSE | H110: Chambre sourde | I110: 24058 | J110: 25/04/2016 | K110: Cablage ventilateur refroidissement huile, RH20 motorisée, GEP véhicule | L110: FALSE | M110: FALSE | N110: FALSE | O110: FALSE | P110: FALSE | Q110: FALSE | R110: FALSE | S110: FALSE | T110: FALSE | U110: FALSE | V110: FALSE | W110: FALSE | X110: FALSE
A111: FI110 | B111: thibault.hemart | C111: T.HEMART | E111: FALSE | F111: TRUE | G111: FALSE | H111: Banc P1 | I111: 5638 | J111: 25/04/2016 | K111: Filtre recirculation colmaté | L111: FALSE | M111: TRUE | N111: FALSE | O111: FALSE | P111: FALSE | Q111: FALSE | R111: TRUE | S111: FALSE | T111: FALSE | U111: TRUE | V111: FALSE | W111: FALSE | X111: FALSE | Z111: 0.1 | AA111: 2016-04-21 | AB111: Remplacement de l'élément filtrant | AC111: Elément filtrant | AM111: Pall UE319AP20Z | AW111: 1
A112: FI111 | B112: thibault.hemart | C112: T.HEMART | E112: FALSE | F112: TRUE | G112: FALSE | H112: Banc 104 | I112: 4242 | J112: 25/04/2016 | K112: Filtre recirculation colmaté | L112: FALSE | M112: TRUE | N112: FALSE | O112: FALSE | P112: FALSE | Q112: FALSE | R112: TRUE | S112: FALSE | T112: FALSE | U112: TRUE | V112: FALSE | W112: FALSE | X112: FALSE | Z112: 0.1 | AA112: 2016-04-25 | AB112: Remplacement de l'élément filtrant | AC112: Elément filtrant | AM112: PALL UE310AP20Z | AW112: 1 | BG112: Banc 104FAUXVRAI | BH112: Banc 104FAUXVRAIFAUXFAUXVRAI | BI112: Banc 104FAUXFAUXFAUXFAUXVRAI
A113: FI112 | B113: christophe.gauvin | C113: J.BOUCHER | D113: A.DELAUNAY | E113: TRUE | F113: FALSE | G113: FALSE | H113: Chambre froide | I113: 9176 | J113: 25/04/2016 | K113: Jérôme MUNTREZ RPP-658-022 Recherche d'un moteur électrique 5,5kw (E443) avec une pompe HPI 300 bars (E432) avec accouplement pour fabrication d'un groupe motopompe avec, comme réservoir, la petite centrale qui se trouve sur le banc 105 (canne chauffante, thermostat...) Voir directement avec Jérôme MUNTREZ. Recherche des composants électriques pour la commande de cette mini centrale. | L113: FALSE | M113: FALSE | N113: TRUE | O113: FALSE | P113: TRUE | Q113: FALSE | R113: TRUE | S113: FALSE | T113: FALSE | U113: FALSE | V113: FALSE | W113: FALSE | X113: TRUE
A114: FI113 | B114: jonathan.barra | C114: A.DELAUNAY | E114: TRUE | F114: FALSE | G114: FALSE | H114: Montage sur table | I114: x | J114: 25/04/2016 | K114: Prévoir un transformateur 230/48 ou une alim 48V pour un moto reducteur.Prevoir un boitier pour piloter le moto reducteur avec le cablage. Pour details me contacter | L114: FALSE | M114: FALSE | N114: TRUE | O114: FALSE | P114: TRUE | Q114: FALSE | R114: FALSE | S114: FALSE | T114: FALSE | U114: FALSE | V114: FALSE | W114: FALSE | X114: TRUE
A115: FI114 | B115: romain.dehan | C115: J.BOUCHER | D115: A.DELAUNAY | E115: FALSE | F115: TRUE | G115: FALSE | H115: Pont roulant | I115: 0 | J115: 2016-04-26 | K115: Remplacement du boitier BJ24 du pont se situant dans l'allée des bancs P1 et P2 | L115: TRUE | M115: FALSE | N115: FALSE | O115: FALSE | P115: TRUE | Q115: FALSE | R115: FALSE | S115: FALSE | T115: FALSE | U115: FALSE | V115: TRUE | W115: FALSE | X115: FALSE | Y115: Surcharge sur le support du boitier dû à une mauvaise utilisation | Z115: 1.5 | AA115: 2016-04-26 | AB115: Changement du support avec l'aide d'une nacelle | AC115: Plug-in distrib switchboard BJ control carrier | AM115: ABUS / 102792 | AW115: 1 | BG115: Pont roulantVRAIFAUX | BH115: Pont roulantVRAIFAUXVRAIFAUXFAUX | BI115: Pont roulantFAUXFAUXVRAIFAUXFAUX
A116: FI115 | B116: romain.dehan | E116: FALSE | F116: FALSE | G116: FALSE | H116: Réseau d'eau atelier | I116: 0 | J116: 27/04/2016 | K116: Fuite d'eau derrière le 124 au niveau de la remontée d'huile. L'eau coule de temps en temps sur la remontée d'huile. | L116: FALSE | M116: FALSE | N116: FALSE | O116: FALSE | P116: FALSE | Q116: FALSE | R116: FALSE | S116: FALSE | T116: FALSE | U116: FALSE | V116: FALSE | W116: FALSE | X116: FALSE
A117: FI116 | B117: jonathan.barra | E117: FALSE | F117: FALSE | G117: FALSE | H117: Banc 117 bis | I117: 9868 | J117: 27/04/2016 | K117: L'accouplement du moto reducteur est cassé. | L117: FALSE | M117: FALSE | N117: FALSE | O117: FALSE | P117: FALSE | Q117: FALSE | R117: FALSE | S117: FALSE | T117: FALSE | U117: FALSE | V117: FALSE | W117: FALSE | X117: FALSE
A118: FI117 | B118: romain.dehan | E118: FALSE | F118: FALSE | G118: FALSE | H118: Banc 156 | I118: 1051 | J118: 27/04/2016 | K118: Besoin de faire tarauder une ou deux culasses en 1/4G pour essais d'endurance capteur. 3 trous par culasses serait un plus | L118: FALSE | M118: FALSE | N118: FALSE | O118: FALSE | P118: FALSE | Q118: FALSE | R118: FALSE | S118: FALSE | T118: FALSE | U118: FALSE | V118: FALSE | W118: FALSE | X118: FALSE
BG134: =H134&L134&M134 ->  | BH134: =H134&L134&M134&P134&Q134&R134 -> 
BI135: =H135&N135&O135&P135&Q135&R135 -> 
BG198: =H198&L198&M198 ->  | BH198: =H198&L198&M198&P198&Q198&R198 -> 
BI199: =H199&N199&O199&P199&Q199&R199 -> 
BG219: =H219&L219&M219 -> 
BH231: =H231&L231&M231&P231&Q231&R231 -> 
BH242: =H242&L242&M242&P242&Q242&R242 -> 
BG256: =H256&L256&M256 ->  | BH256: =H256&L256&M256&P256&Q256&R256 -> 
BI263: =H263&N263&O263&P263&Q263&R263 -> 
BG320: =H320&L320&M320 ->  | BH320: =H320&L320&M320&P320&Q320&R320 -> 
BI327: =H327&N327&O327&P327&Q327&R327 -> 
BG384: =H384&L384&M384 ->  | BH384: =H384&L384&M384&P384&Q384&R384 -> 
BI391: =H391&N391&O391&P391&Q391&R391 -> 
BG448: =H448&L448&M448 ->  | BH448: =H448&L448&M448&P448&Q448&R448 -> 
BI455: =H455&N455&O455&P455&Q455&R455 -> 

Sheet Liste
A1: Liste des bancs | C1: Service maintenance | D1: MDP | E1: Fiche d'intervention | F1: BDD | G1: Liste
A2: Banc P1 | C2: Christophe Gauvin | D2: Christophe | E2: X | F2: X | G2: X
A3: Banc P2 | C3: David Garcia | D3: motdepasse | E3: X | F3: X
A4: Banc PowerTrain | C4: Alexandre Delaunay | D4: 123456 | E4: X | F4: X
A5: Banc P5 | C5: Jonhathan Boucher | D5: changer | E5: X | F5: X
A6: Banc P7 | C6: Thibault Hemart | D6: Changer2016 | E6: X | F6: X
A7: Banc P9 | C7: Romain Dehan | D7: 940606 | E7: X | F7: X | G7: X
A8: M73001 (Banc new P9) | C8: Benjamin Eyraud | E8: X | F8: X
A9: Banc HP | C9: Angela Andrino | E9: X | F9: X
A10: Banc Cisaillement | C10: Philippe Tavola | E10: X | F10: X
A11: Banc 007 | C11: Visiteur
A12: Banc 008
A13: Banc 101
A14: Banc 104
A15: Banc 111
A16: Banc 113
A17: Banc 115
A18: Banc 117
A19: Banc 117 bis
A20: Banc 119
A21: Banc 120
A22: Banc 120 bis
A23: Banc 121
A24: Banc 123
A25: Banc 124
A26: Banc 124 bis
A27: Banc 125
A28: Banc 126
A29: Banc 128
A30: Banc 129
A31: Banc 131
A32: Chambre sourde
A33: Banc 145
A34: Banc 156
A35: Chambre froide
A36: Banc W+B
A37: Ressort verticale
A38: Pompe à eau
A39: Porte bâtiment
A40: Mulet Alpha
A41: Mulet Househam
A42: Démo Truck
A43: Tech Truck
A44: Hamm HD130
A45: Volvo EC160
A46: Chariot C
A47: SSL John Deere
A48: Multi Phunction
A49: Volvo EC35
A50: Brodd SurPH
A51: TY45
A52: Boxer New
A53: CSF
A54: CNH BC2
A55: 208
A56: Renault Truck C460
A57: Plateau Lider
A58: Chariot BT2
A59: Machine à laver
A60: Réseau d'eau atelier
A61: Pont roulant

Sheet Indicateur Zone5
B2: Suivi des arrêts par banc
A3: Banc zone 5 | B3: Janvier | C3: Février | D3: Mars | E3: Avril | F3: Mai | G3: Juin | H3: Juillet | I3: Août | J3: Septembre | K3: Octobre | L3: Novembre | M3: Décembre
A4: Banc 124 | B4: =SUMIF(BDD!$H$2:$H$3,'Indicateur Zone5'!$A4,BDD!$Z$2:$Z$3) -> 0 | C4: =SUMIF(BDD!$H$2:$H$3,'Indicateur Zone5'!$A4,BDD!$Z$2:$Z$3) -> 0 | D4: =SUMIF(BDD!$H$2:$H$25,'Indicateur Zone5'!$A4,BDD!$Z$2:$Z$25) -> 0.3 | E4: =SUMIF(BDD!$H$25:$H$599,'Indicateur Zone5'!$A4,BDD!$Z$25:$Z$599) -> 0.4 | F4: =SUMIF(BDD!$H$2:$H$3,'Indicateur Zone5'!$A4,BDD!$Z$2:$Z$3) -> 0 | G4: =SUMIF(BDD!$H$2:$H$3,'Indicateur Zone5'!$A4,BDD!$Z$2:$Z$3) -> 0 | H4: =SUMIF(BDD!$H$2:$H$3,'Indicateur Zone5'!$A4,BDD!$Z$2:$Z$3) -> 0 | I4: =SUMIF(BDD!$H$2:$H$3,'Indicateur Zone5'!$A4,BDD!$Z$2:$Z$3) -> 0 | J4: =SUMIF(BDD!$H$2:$H$3,'Indicateur Zone5'!$A4,BDD!$Z$2:$Z$3) -> 0 | K4: =SUMIF(BDD!$H$2:$H$3,'Indicateur Zone5'!$A4,BDD!$Z$2:$Z$3) -> 0 | L4: =SUMIF(BDD!$H$2:$H$3,'Indicateur Zone5'!$A4,BDD!$Z$2:$Z$3) -> 0 | M4: =SUMIF(BDD!$H$2:$H$3,'Indicateur Zone5'!$A4,BDD!$Z$2:$Z$3) -> 0
A5: Banc 124 bis | B5: =SUMIF(BDD!$H$2:$H$3,'Indicateur Zone5'!$A5,BDD!$Z$2:$Z$3) -> 0 | C5: =SUMIF(BDD!$H$2:$H$3,'Indicateur Zone5'!$A5,BDD!$Z$2:$Z$3) -> 0 | D5: =SUMIF(BDD!$H$2:$H$25,'Indicateur Zone5'!$A5,BDD!$Z$2:$Z$25) -> 0 | E5: =SUMIF(BDD!$H$25:$H$599,'Indicateur Zone5'!$A5,BDD!$Z$25:$Z$599) -> 1 | F5: =SUMIF(BDD!$H$2:$H$3,'Indicateur Zone5'!$A5,BDD!$Z$2:$Z$3) -> 0 | G5: =SUMIF(BDD!$H$2:$H$3,'Indicateur Zone5'!$A5,BDD!$Z$2:$Z$3) -> 0 | H5: =SUMIF(BDD!$H$2:$H$3,'Indicateur Zone5'!$A5,BDD!$Z$2:$Z$3) -> 0 | I5: =SUMIF(BDD!$H$2:$H$3,'Indicateur Zone5'!$A5,BDD!$Z$2:$Z$3) -> 0 | J5: =SUMIF(BDD!$H$2:$H$3,'Indicateur Zone5'!$A5,BDD!$Z$2:$Z$3) -> 0 | K5: =SUMIF(BDD!$H$2:$H$3,'Indicateur Zone5'!$A5,BDD!$Z$2:$Z$3) -> 0 | L5: =SUMIF(BDD!$H$2:$H$3,'Indicateur Zone5'!$A5,BDD!$Z$2:$Z$3) -> 0 | M5: =SUMIF(BDD!$H$2:$H$3,'Indicateur Zone5'!$A5,BDD!$Z$2:$Z$3) -> 0
A6: Banc 145 | B6: =SUMIF(BDD!$H$2:$H$3,'Indicateur Zone5'!$A6,BDD!$Z$2:$Z$3) -> 0 | C6: =SUMIF(BDD!$H$2:$H$3,'Indicateur Zone5'!$A6,BDD!$Z$2:$Z$3) -> 0 | D6: =SUMIF(BDD!$H$2:$H$25,'Indicateur Zone5'!$A6,BDD!$Z$2:$Z$25) -> 0 | E6: =SUMIF(BDD!$H$25:$H$599,'Indicateur Zone5'!$A6,BDD!$Z$25:$Z$599) -> 6.6 | F6: =SUMIF(BDD!$H$2:$H$3,'Indicateur Zone5'!$A6,BDD!$Z$2:$Z$3) -> 0 | G6: =SUMIF(BDD!$H$2:$H$3,'Indicateur Zone5'!$A6,BDD!$Z$2:$Z$3) -> 0 | H6: =SUMIF(BDD!$H$2:$H$3,'Indicateur Zone5'!$A6,BDD!$Z$2:$Z$3) -> 0 | I6: =SUMIF(BDD!$H$2:$H$3,'Indicateur Zone5'!$A6,BDD!$Z$2:$Z$3) -> 0 | J6: =SUMIF(BDD!$H$2:$H$3,'Indicateur Zone5'!$A6,BDD!$Z$2:$Z$3) -> 0 | K6: =SUMIF(BDD!$H$2:$H$3,'Indicateur Zone5'!$A6,BDD!$Z$2:$Z$3) -> 0 | L6: =SUMIF(BDD!$H$2:$H$3,'Indicateur Zone5'!$A6,BDD!$Z$2:$Z$3) -> 0 | M6: =SUMIF(BDD!$H$2:$H$3,'Indicateur Zone5'!$A6,BDD!$Z$2:$Z$3) -> 0
A7: Banc cisaillement | B7: =SUMIF(BDD!$H$2:$H$3,'Indicateur Zone5'!$A7,BDD!$Z$2:$Z$3) -> 0 | C7: =SUMIF(BDD!$H$2:$H$3,'Indicateur Zone5'!$A7,BDD!$Z$2:$Z$3) -> 0 | D7: =SUMIF(BDD!$H$2:$H$25,'Indicateur Zone5'!$A7,BDD!$Z$2:$Z$25) -> 0 | E7: =SUMIF(BDD!$H$25:$H$599,'Indicateur Zone5'!$A7,BDD!$Z$25:$Z$599) -> 0 | F7: =SUMIF(BDD!$H$2:$H$3,'Indicateur Zone5'!$A7,BDD!$Z$2:$Z$3) -> 0 | G7: =SUMIF(BDD!$H$2:$H$3,'Indicateur Zone5'!$A7,BDD!$Z$2:$Z$3) -> 0 | H7: =SUMIF(BDD!$H$2:$H$3,'Indicateur Zone5'!$A7,BDD!$Z$2:$Z$3) -> 0 | I7: =SUMIF(BDD!$H$2:$H$3,'Indicateur Zone5'!$A7,BDD!$Z$2:$Z$3) -> 0 | J7: =SUMIF(BDD!$H$2:$H$3,'Indicateur Zone5'!$A7,BDD!$Z$2:$Z$3) -> 0 | K7: =SUMIF(BDD!$H$2:$H$3,'Indicateur Zone5'!$A7,BDD!$Z$2:$Z$3) -> 0 | L7: =SUMIF(BDD!$H$2:$H$3,'Indicateur Zone5'!$A7,BDD!$Z$2:$Z$3) -> 0 | M7: =SUMIF(BDD!$H$2:$H$3,'Indicateur Zone5'!$A7,BDD!$Z$2:$Z$3) -> 0
A8: Banc HP | B8: =SUMIF(BDD!$H$2:$H$3,'Indicateur Zone5'!$A8,BDD!$Z$2:$Z$3) -> 0 | C8: =SUMIF(BDD!$H$2:$H$3,'Indicateur Zone5'!$A8,BDD!$Z$2:$Z$3) -> 0 | D8: =SUMIF(BDD!$H$2:$H$25,'Indicateur Zone5'!$A8,BDD!$Z$2:$Z$25) -> 0 | E8: =SUMIF(BDD!$H$25:$H$599,'Indicateur Zone5'!$A8,BDD!$Z$25:$Z$599) -> 1 | F8: =SUMIF(BDD!$H$2:$H$3,'Indicateur Zone5'!$A8,BDD!$Z$2:$Z$3) -> 0 | G8: =SUMIF(BDD!$H$2:$H$3,'Indicateur Zone5'!$A8,BDD!$Z$2:$Z$3) -> 0 | H8: =SUMIF(BDD!$H$2:$H$3,'Indicateur Zone5'!$A8,BDD!$Z$2:$Z$3) -> 0 | I8: =SUMIF(BDD!$H$2:$H$3,'Indicateur Zone5'!$A8,BDD!$Z$2:$Z$3) -> 0 | J8: =SUMIF(BDD!$H$2:$H$3,'Indicateur Zone5'!$A8,BDD!$Z$2:$Z$3) -> 0 | K8: =SUMIF(BDD!$H$2:$H$3,'Indicateur Zone5'!$A8,BDD!$Z$2:$Z$3) -> 0 | L8: =SUMIF(BDD!$H$2:$H$3,'Indicateur Zone5'!$A8,BDD!$Z$2:$Z$3) -> 0 | M8: =SUMIF(BDD!$H$2:$H$3,'Indicateur Zone5'!$A8,BDD!$Z$2:$Z$3) -> 0
A9: Banc W+B | B9: =SUMIF(BDD!$H$2:$H$3,'Indicateur Zone5'!$A9,BDD!$Z$2:$Z$3) -> 0 | C9: =SUMIF(BDD!$H$2:$H$3,'Indicateur Zone5'!$A9,BDD!$Z$2:$Z$3) -> 0 | D9: =SUMIF(BDD!$H$2:$H$25,'Indicateur Zone5'!$A9,BDD!$Z$2:$Z$25) -> 0 | E9: =SUMIF(BDD!$H$25:$H$599,'Indicateur Zone5'!$A9,BDD!$Z$25:$Z$599) -> 0 | F9: =SUMIF(BDD!$H$2:$H$3,'Indicateur Zone5'!$A9,BDD!$Z$2:$Z$3) -> 0 | G9: =SUMIF(BDD!$H$2:$H$3,'Indicateur Zone5'!$A9,BDD!$Z$2:$Z$3) -> 0 | H9: =SUMIF(BDD!$H$2:$H$3,'Indicateur Zone5'!$A9,BDD!$Z$2:$Z$3) -> 0 | I9: =SUMIF(BDD!$H$2:$H$3,'Indicateur Zone5'!$A9,BDD!$Z$2:$Z$3) -> 0 | J9: =SUMIF(BDD!$H$2:$H$3,'Indicateur Zone5'!$A9,BDD!$Z$2:$Z$3) -> 0 | K9: =SUMIF(BDD!$H$2:$H$3,'Indicateur Zone5'!$A9,BDD!$Z$2:$Z$3) -> 0 | L9: =SUMIF(BDD!$H$2:$H$3,'Indicateur Zone5'!$A9,BDD!$Z$2:$Z$3) -> 0 | M9: =SUMIF(BDD!$H$2:$H$3,'Indicateur Zone5'!$A9,BDD!$Z$2:$Z$3) -> 0
A10: Ressort verticale | B10: =SUMIF(BDD!$H$2:$H$3,'Indicateur Zone5'!$A10,BDD!$Z$2:$Z$3) -> 0 | C10: =SUMIF(BDD!$H$2:$H$3,'Indicateur Zone5'!$A10,BDD!$Z$2:$Z$3) -> 0 | D10: =SUMIF(BDD!$H$2:$H$25,'Indicateur Zone5'!$A10,BDD!$Z$2:$Z$25) -> 0 | E10: =SUMIF(BDD!$H$25:$H$599,'Indicateur Zone5'!$A10,BDD!$Z$25:$Z$599) -> 0 | F10: =SUMIF(BDD!$H$2:$H$3,'Indicateur Zone5'!$A10,BDD!$Z$2:$Z$3) -> 0 | G10: =SUMIF(BDD!$H$2:$H$3,'Indicateur Zone5'!$A10,BDD!$Z$2:$Z$3) -> 0 | H10: =SUMIF(BDD!$H$2:$H$3,'Indicateur Zone5'!$A10,BDD!$Z$2:$Z$3) -> 0 | I10: =SUMIF(BDD!$H$2:$H$3,'Indicateur Zone5'!$A10,BDD!$Z$2:$Z$3) -> 0 | J10: =SUMIF(BDD!$H$2:$H$3,'Indicateur Zone5'!$A10,BDD!$Z$2:$Z$3) -> 0 | K10: =SUMIF(BDD!$H$2:$H$3,'Indicateur Zone5'!$A10,BDD!$Z$2:$Z$3) -> 0 | L10: =SUMIF(BDD!$H$2:$H$3,'Indicateur Zone5'!$A10,BDD!$Z$2:$Z$3) -> 0 | M10: =SUMIF(BDD!$H$2:$H$3,'Indicateur Zone5'!$A10,BDD!$Z$2:$Z$3) -> 0
B32: Suivi du correctif et du préventif
A33: Type de maintenance | B33: Janvier | C33: Février | D33: Mars | E33: Avril | F33: Mai | G33: Juin | H33: Juillet | I33: Août | J33: Septembre | K33: Octobre | L33: Novembre | M33: Décembre
A34: Préventive | B34: =SUM(C59:C65) -> 0 | C34: =SUM(E59:E65) -> 0 | D34: =SUM(G59:G65) -> 0.3 | E34: =SUM(I59:I65) -> 0.1 | F34: =SUM(K59:K65) -> 0 | G34: =SUM(M59:M65) -> 0 | H34: =SUM(O59:O65) -> 0 | I34: =SUM(Q59:Q65) -> 0 | J34: =SUM(S59:S65) -> 0 | K34: =SUM(U59:U65) -> 0 | L34: =SUM(W59:W65) -> 0 | M34: =SUM(Y59:Y65) -> 0
A35: Corrective | B35: =SUM(B59:B65) -> 0 | C35: =SUM(D59:D65) -> 0 | D35: =SUM(F59:F65) -> 0 | E35: =SUM(H59:H65) -> 6.6 | F35: =SUM(J59:J65) -> 0 | G35: =SUM(L59:L65) -> 0 | H35: =SUM(N59:N65) -> 0 | I35: =SUM(N59:N65) -> 0 | J35: =SUM(R59:R65) -> 0 | K35: =SUM(T59:T65) -> 0 | L35: =SUM(V59:V65) -> 0 | M35: =SUM(X59:X65) -> 0
B56: Suivi du correctif et du préventif par banc
B57: Janvier | D57: Février | F57: Mars | H57: Avril | J57: Mai | L57: Juin | N57: Juillet | P57: Août | R57: Septembre | T57: Octobre | V57: Novembre | X57: Décembre
A58: Banc zone 5 | B58: Corrective | C58: Préventive | D58: Corrective | E58: Préventive | F58: Corrective | G58: Préventive | H58: Corrective | I58: Préventive | J58: Corrective | K58: Préventive | L58: Corrective | M58: Préventive | N58: Corrective | O58: Préventive | P58: Corrective | Q58: Préventive | R58: Corrective | S58: Préventive | T58: Corrective | U58: Préventive | V58: Corrective | W58: Préventive | X58: Corrective | Y58: Préventive
A59: Banc 124 | B59: =SUMIF(BDD!$BG$2:$BG$3,"Banc 124VRAIFAUX",BDD!$Z$2:$Z$3) -> 0 | C59: =SUMIF(BDD!$BG$2:$BG$3,"Banc 124FAUXVRAI",BDD!$Z$2:$Z$3) -> 0 | D59: =SUMIF(BDD!$BG$2:$BG$3,"Banc 124VRAIFAUX",BDD!$Z$2:$Z$3) -> 0 | E59: =SUMIF(BDD!$BG$2:$BG$3,"Banc 124FAUXVRAI",BDD!$Z$2:$Z$3) -> 0 | F59: =SUMIF(BDD!$BG$2:$BG$25,"Banc 124VRAIFAUX",BDD!$Z$2:$Z$25) -> 0 | G59: =SUMIF(BDD!$BG$2:$BG$25,"Banc 124FAUXvrai",BDD!$Z$2:$Z$25) -> 0.3 | H59: =SUMIF(BDD!$BG$26:$BG$599,"Banc 124VRAIFAUX",BDD!$Z$26:$Z$599) -> 0.3 | I59: =SUMIF(BDD!$BG$26:$BG$599,"Banc 124FAUXVRAI",BDD!$Z$26:$Z$599) -> 0.1 | J59: =SUMIF(BDD!$BG$2:$BG$3,"Banc 124VRAIFAUX",BDD!$Z$2:$Z$3) -> 0 | K59: =SUMIF(BDD!$BG$2:$BG$3,"Banc 124FAUXVRAI",BDD!$Z$2:$Z$3) -> 0 | L59: =SUMIF(BDD!$BG$2:$BG$3,"Banc 124VRAIFAUX",BDD!$Z$2:$Z$3) -> 0 | M59: =SUMIF(BDD!$BG$2:$BG$3,"Banc 124FAUXVRAI",BDD!$Z$2:$Z$3) -> 0 | N59: =SUMIF(BDD!$BG$2:$BG$3,"Banc 124VRAIFAUX",BDD!$Z$2:$Z$3) -> 0 | O59: =SUMIF(BDD!$BG$2:$BG$3,"Banc 124FAUXVRAI",BDD!$Z$2:$Z$3) -> 0 | P59: =SUMIF(BDD!$BG$2:$BG$3,"Banc 124VRAIFAUX",BDD!$Z$2:$Z$3) -> 0 | Q59: =SUMIF(BDD!$BG$2:$BG$3,"Banc 124FAUXVRAI",BDD!$Z$2:$Z$3) -> 0 | R59: =SUMIF(BDD!$BG$2:$BG$3,"Banc 124VRAIFAUX",BDD!$Z$2:$Z$3) -> 0 | S59: =SUMIF(BDD!$BG$2:$BG$3,"Banc 124FAUXVRAI",BDD!$Z$2:$Z$3) -> 0 | T59: =SUMIF(BDD!$BG$2:$BG$3,"Banc 124VRAIFAUX",BDD!$Z$2:$Z$3) -> 0 | U59: =SUMIF(BDD!$BG$2:$BG$3,"Banc 124FAUXVRAI",BDD!$Z$2:$Z$3) -> 0 | V59: =SUMIF(BDD!$BG$2:$BG$3,"Banc 124VRAIFAUX",BDD!$Z$2:$Z$3) -> 0 | W59: =SUMIF(BDD!$BG$2:$BG$3,"Banc 124FAUXVRAI",BDD!$Z$2:$Z$3) -> 0 | X59: =SUMIF(BDD!$BG$2:$BG$3,"Banc 124VRAIFAUX",BDD!$Z$2:$Z$3) -> 0 | Y59: =SUMIF(BDD!$BG$2:$BG$3,"Banc 124FAUXVRAI",BDD!$Z$2:$Z$3) -> 0
A60: Banc 124 bis | B60: =SUMIF(BDD!$BG$2:$BG$3,"Banc 124 bisVRAIFAUX",BDD!$Z$2:$Z$3) -> 0 | C60: =SUMIF(BDD!$BG$2:$BG$3,"Banc 124 bisFAUXVRAI",BDD!$Z$2:$Z$3) -> 0 | D60: =SUMIF(BDD!$BG$2:$BG$3,"Banc 124 bisVRAIFAUX",BDD!$Z$2:$Z$3) -> 0 | E60: =SUMIF(BDD!$BG$2:$BG$3,"Banc 124 bisFAUXVRAI",BDD!$Z$2:$Z$3) -> 0 | F60: =SUMIF(BDD!$BG$2:$BG$25,"Banc 124 bisVRAIFAUX",BDD!$Z$2:$Z$25) -> 0 | G60: =SUMIF(BDD!$BG$2:$BG$25,"Banc 124 bisFAUXVRAI",BDD!$Z$2:$Z$25) -> 0 | H60: =SUMIF(BDD!$BG$26:$BG$599,"Banc 124 bisVRAIFAUX",BDD!$Z$26:$Z$599) -> 1 | I60: =SUMIF(BDD!$BG$26:$BG$599,"Banc 124 bisFAUXVRAI",BDD!$Z$26:$Z$599) -> 0 | J60: =SUMIF(BDD!$BG$2:$BG$3,"Banc 124 bisVRAIFAUX",BDD!$Z$2:$Z$3) -> 0 | K60: =SUMIF(BDD!$BG$2:$BG$3,"Banc 124 bisFAUXVRAI",BDD!$Z$2:$Z$3) -> 0 | L60: =SUMIF(BDD!$BG$2:$BG$3,"Banc 124 bisVRAIFAUX",BDD!$Z$2:$Z$3) -> 0 | M60: =SUMIF(BDD!$BG$2:$BG$3,"Banc 124 bisFAUXVRAI",BDD!$Z$2:$Z$3) -> 0 | N60: =SUMIF(BDD!$BG$2:$BG$3,"Banc 124 bisVRAIFAUX",BDD!$Z$2:$Z$3) -> 0 | O60: =SUMIF(BDD!$BG$2:$BG$3,"Banc 124 bisFAUXVRAI",BDD!$Z$2:$Z$3) -> 0 | P60: =SUMIF(BDD!$BG$2:$BG$3,"Banc 124 bisVRAIFAUX",BDD!$Z$2:$Z$3) -> 0 | Q60: =SUMIF(BDD!$BG$2:$BG$3,"Banc 124 bisFAUXVRAI",BDD!$Z$2:$Z$3) -> 0 | R60: =SUMIF(BDD!$BG$2:$BG$3,"Banc 124 bisVRAIFAUX",BDD!$Z$2:$Z$3) -> 0 | S60: =SUMIF(BDD!$BG$2:$BG$3,"Banc 124 bisFAUXVRAI",BDD!$Z$2:$Z$3) -> 0 | T60: =SUMIF(BDD!$BG$2:$BG$3,"Banc 124 bisVRAIFAUX",BDD!$Z$2:$Z$3) -> 0 | U60: =SUMIF(BDD!$BG$2:$BG$3,"Banc 124 bisFAUXVRAI",BDD!$Z$2:$Z$3) -> 0 | V60: =SUMIF(BDD!$BG$2:$BG$3,"Banc 124 bisVRAIFAUX",BDD!$Z$2:$Z$3) -> 0 | W60: =SUMIF(BDD!$BG$2:$BG$3,"Banc 124 bisFAUXVRAI",BDD!$Z$2:$Z$3) -> 0 | X60: =SUMIF(BDD!$BG$2:$BG$3,"Banc 124 bisVRAIFAUX",BDD!$Z$2:$Z$3) -> 0 | Y60: =SUMIF(BDD!$BG$2:$BG$3,"Banc 124 bisFAUXVRAI",BDD!$Z$2:$Z$3) -> 0
A61: Banc 145 | B61: =SUMIF(BDD!$BG$2:$BG$3,"Banc 145VRAIFAUX",BDD!$Z$2:$Z$3) -> 0 | C61: =SUMIF(BDD!$BG$2:$BG$3,"Banc 145FAUXVRAI",BDD!$Z$2:$Z$3) -> 0 | D61: =SUMIF(BDD!$BG$2:$BG$3,"Banc 145VRAIFAUX",BDD!$Z$2:$Z$3) -> 0 | E61: =SUMIF(BDD!$BG$2:$BG$3,"Banc 145FAUXVRAI",BDD!$Z$2:$Z$3) -> 0 | F61: =SUMIF(BDD!$BG$2:$BG$25,"Banc 145VRAIFAUX",BDD!$Z$2:$Z$25) -> 0 | G61: =SUMIF(BDD!$BG$2:$BG$25,"Banc 145FAUXVRAI",BDD!$Z$2:$Z$25) -> 0 | H61: =SUMIF(BDD!$BG$26:$BG$599,"Banc 145VRAIFAUX",BDD!$Z$26:$Z$599) -> 5.3 | I61: =SUMIF(BDD!$BG$26:$BG$599,"Banc 145FAUXVRAI",BDD!$Z$26:$Z$599) -> 0 | J61: =SUMIF(BDD!$BG$2:$BG$3,"Banc 145VRAIFAUX",BDD!$Z$2:$Z$3) -> 0 | K61: =SUMIF(BDD!$BG$2:$BG$3,"Banc 145FAUXVRAI",BDD!$Z$2:$Z$3) -> 0 | L61: =SUMIF(BDD!$BG$2:$BG$3,"Banc 145VRAIFAUX",BDD!$Z$2:$Z$3) -> 0 | M61: =SUMIF(BDD!$BG$2:$BG$3,"Banc 145FAUXVRAI",BDD!$Z$2:$Z$3) -> 0 | N61: =SUMIF(BDD!$BG$2:$BG$3,"Banc 145VRAIFAUX",BDD!$Z$2:$Z$3) -> 0 | O61: =SUMIF(BDD!$BG$2:$BG$3,"Banc 145FAUXVRAI",BDD!$Z$2:$Z$3) -> 0 | P61: =SUMIF(BDD!$BG$2:$BG$3,"Banc 145VRAIFAUX",BDD!$Z$2:$Z$3) -> 0 | Q61: =SUMIF(BDD!$BG$2:$BG$3,"Banc 145FAUXVRAI",BDD!$Z$2:$Z$3) -> 0 | R61: =SUMIF(BDD!$BG$2:$BG$3,"Banc 145VRAIFAUX",BDD!$Z$2:$Z$3) -> 0 | S61: =SUMIF(BDD!$BG$2:$BG$3,"Banc 145FAUXVRAI",BDD!$Z$2:$Z$3) -> 0 | T61: =SUMIF(BDD!$BG$2:$BG$3,"Banc 145VRAIFAUX",BDD!$Z$2:$Z$3) -> 0 | U61: =SUMIF(BDD!$BG$2:$BG$3,"Banc 145FAUXVRAI",BDD!$Z$2:$Z$3) -> 0 | V61: =SUMIF(BDD!$BG$2:$BG$3,"Banc 145VRAIFAUX",BDD!$Z$2:$Z$3) -> 0 | W61: =SUMIF(BDD!$BG$2:$BG$3,"Banc 145FAUXVRAI",BDD!$Z$2:$Z$3) -> 0 | X61: =SUMIF(BDD!$BG$2:$BG$3,"Banc 145VRAIFAUX",BDD!$Z$2:$Z$3) -> 0 | Y61: =SUMIF(BDD!$BG$2:$BG$3,"Banc 145FAUXVRAI",BDD!$Z$2:$Z$3) -> 0
A62: Banc cisaillement | B62: =SUMIF(BDD!$BG$2:$BG$3,"Banc cisaillementVRAIFAUX",BDD!$Z$2:$Z$3) -> 0 | C62: =SUMIF(BDD!$BG$2:$BG$3,"Banc cisaillementFAUXVRAI",BDD!$Z$2:$Z$3) -> 0 | D62: =SUMIF(BDD!$BG$2:$BG$3,"Banc cisaillementVRAIFAUX",BDD!$Z$2:$Z$3) -> 0 | E62: =SUMIF(BDD!$BG$2:$BG$3,"Banc cisaillementFAUXVRAI",BDD!$Z$2:$Z$3) -> 0 | F62: =SUMIF(BDD!$BG$2:$BG$25,"Banc cisaillementVRAIFAUX",BDD!$Z$2:$Z$25) -> 0 | G62: =SUMIF(BDD!$BG$2:$BG$25,"Banc cisaillementFAUXVRAI",BDD!$Z$2:$Z$25) -> 0 | H62: =SUMIF(BDD!$BG$26:$BG$599,"Banc cisaillementVRAIFAUX",BDD!$Z$26:$Z$599) -> 0 | I62: =SUMIF(BDD!$BG$26:$BG$599,"Banc cisaillementFAUXVRAI",BDD!$Z$26:$Z$599) -> 0 | J62: =SUMIF(BDD!$BG$2:$BG$3,"Banc cisaillementVRAIFAUX",BDD!$Z$2:$Z$3) -> 0 | K62: =SUMIF(BDD!$BG$2:$BG$3,"Banc cisaillementFAUXVRAI",BDD!$Z$2:$Z$3) -> 0 | L62: =SUMIF(BDD!$BG$2:$BG$3,"Banc cisaillementVRAIFAUX",BDD!$Z$2:$Z$3) -> 0 | M62: =SUMIF(BDD!$BG$2:$BG$3,"Banc cisaillementFAUXVRAI",BDD!$Z$2:$Z$3) -> 0 | N62: =SUMIF(BDD!$BG$2:$BG$3,"Banc cisaillementVRAIFAUX",BDD!$Z$2:$Z$3) -> 0 | O62: =SUMIF(BDD!$BG$2:$BG$3,"Banc cisaillementFAUXVRAI",BDD!$Z$2:$Z$3) -> 0 | P62: =SUMIF(BDD!$BG$2:$BG$3,"Banc cisaillementVRAIFAUX",BDD!$Z$2:$Z$3) -> 0 | Q62: =SUMIF(BDD!$BG$2:$BG$3,"Banc cisaillementFAUXVRAI",BDD!$Z$2:$Z$3) -> 0 | R62: =SUMIF(BDD!$BG$2:$BG$3,"Banc cisaillementVRAIFAUX",BDD!$Z$2:$Z$3) -> 0 | S62: =SUMIF(BDD!$BG$2:$BG$3,"Banc cisaillementFAUXVRAI",BDD!$Z$2:$Z$3) -> 0 | T62: =SUMIF(BDD!$BG$2:$BG$3,"Banc cisaillementVRAIFAUX",BDD!$Z$2:$Z$3) -> 0 | U62: =SUMIF(BDD!$BG$2:$BG$3,"Banc cisaillementFAUXVRAI",BDD!$Z$2:$Z$3) -> 0 | V62: =SUMIF(BDD!$BG$2:$BG$3,"Banc cisaillementVRAIFAUX",BDD!$Z$2:$Z$3) -> 0 | W62: =SUMIF(BDD!$BG$2:$BG$3,"Banc cisaillementFAUXVRAI",BDD!$Z$2:$Z$3) -> 0 | X62: =SUMIF(BDD!$BG$2:$BG$3,"Banc cisaillementVRAIFAUX",BDD!$Z$2:$Z$3) -> 0 | Y62: =SUMIF(BDD!$BG$2:$BG$3,"Banc cisaillementFAUXVRAI",BDD!$Z$2:$Z$3) -> 0
A63: Banc HP | B63: =SUMIF(BDD!$BG$2:$BG$3,"Banc HPVRAIFAUX",BDD!$Z$2:$Z$3) -> 0 | C63: =SUMIF(BDD!$BG$2:$BG$3,"Banc HPFAUXVRAI",BDD!$Z$2:$Z$3) -> 0 | D63: =SUMIF(BDD!$BG$2:$BG$3,"Banc HPVRAIFAUX",BDD!$Z$2:$Z$3) -> 0 | E63: =SUMIF(BDD!$BG$2:$BG$3,"Banc HPFAUXVRAI",BDD!$Z$2:$Z$3) -> 0 | F63: =SUMIF(BDD!$BG$2:$BG$25,"Banc HPVRAIFAUX",BDD!$Z$2:$Z$25) -> 0 | G63: =SUMIF(BDD!$BG$2:$BG$25,"Banc HPFAUXVRAI",BDD!$Z$2:$Z$25) -> 0 | H63: =SUMIF(BDD!$BG$26:$BG$599,"Banc HPVRAIFAUX",BDD!$Z$26:$Z$599) -> 0 | I63: =SUMIF(BDD!$BG$26:$BG$599,"Banc HPFAUXVRAI",BDD!$Z$26:$Z$599) -> 0 | J63: =SUMIF(BDD!$BG$2:$BG$3,"Banc HPVRAIFAUX",BDD!$Z$2:$Z$3) -> 0 | K63: =SUMIF(BDD!$BG$2:$BG$3,"Banc HPFAUXVRAI",BDD!$Z$2:$Z$3) -> 0 | L63: =SUMIF(BDD!$BG$2:$BG$3,"Banc HPVRAIFAUX",BDD!$Z$2:$Z$3) -> 0 | M63: =SUMIF(BDD!$BG$2:$BG$3,"Banc HPFAUXVRAI",BDD!$Z$2:$Z$3) -> 0 | N63: =SUMIF(BDD!$BG$2:$BG$3,"Banc HPVRAIFAUX",BDD!$Z$2:$Z$3) -> 0 | O63: =SUMIF(BDD!$BG$2:$BG$3,"Banc HPFAUXVRAI",BDD!$Z$2:$Z$3) -> 0 | P63: =SUMIF(BDD!$BG$2:$BG$3,"Banc HPVRAIFAUX",BDD!$Z$2:$Z$3) -> 0 | Q63: =SUMIF(BDD!$BG$2:$BG$3,"Banc HPFAUXVRAI",BDD!$Z$2:$Z$3) -> 0 | R63: =SUMIF(BDD!$BG$2:$BG$3,"Banc HPVRAIFAUX",BDD!$Z$2:$Z$3) -> 0 | S63: =SUMIF(BDD!$BG$2:$BG$3,"Banc HPFAUXVRAI",BDD!$Z$2:$Z$3) -> 0 | T63: =SUMIF(BDD!$BG$2:$BG$3,"Banc HPVRAIFAUX",BDD!$Z$2:$Z$3) -> 0 | U63: =SUMIF(BDD!$BG$2:$BG$3,"Banc HPFAUXVRAI",BDD!$Z$2:$Z$3) -> 0 | V63: =SUMIF(BDD!$BG$2:$BG$3,"Banc HPVRAIFAUX",BDD!$Z$2:$Z$3) -> 0 | W63: =SUMIF(BDD!$BG$2:$BG$3,"Banc HPFAUXVRAI",BDD!$Z$2:$Z$3) -> 0 | X63: =SUMIF(BDD!$BG$2:$BG$3,"Banc HPVRAIFAUX",BDD!$Z$2:$Z$3) -> 0 | Y63: =SUMIF(BDD!$BG$2:$BG$3,"Banc HPFAUXVRAI",BDD!$Z$2:$Z$3) -> 0
A64: Banc W+B | B64: =SUMIF(BDD!$BG$2:$BG$3,"Banc W+BVRAIFAUX",BDD!$Z$2:$Z$3) -> 0 | C64: =SUMIF(BDD!$BG$2:$BG$3,"Banc W+BFAUXVRAI",BDD!$Z$2:$Z$3) -> 0 | D64: =SUMIF(BDD!$BG$2:$BG$3,"Banc W+BVRAIFAUX",BDD!$Z$2:$Z$3) -> 0 | E64: =SUMIF(BDD!$BG$2:$BG$3,"Banc W+BFAUXVRAI",BDD!$Z$2:$Z$3) -> 0 | F64: =SUMIF(BDD!$BG$2:$BG$25,"Banc W+BVRAIFAUX",BDD!$Z$2:$Z$25) -> 0 | G64: =SUMIF(BDD!$BG$2:$BG$25,"Banc W+BFAUXVRAI",BDD!$Z$2:$Z$25) -> 0 | H64: =SUMIF(BDD!$BG$26:$BG$599,"Banc W+BVRAIFAUX",BDD!$Z$26:$Z$599) -> 0 | I64: =SUMIF(BDD!$BG$26:$BG$599,"Banc W+BFAUXVRAI",BDD!$Z$26:$Z$599) -> 0 | J64: =SUMIF(BDD!$BG$2:$BG$3,"Banc W+BVRAIFAUX",BDD!$Z$2:$Z$3) -> 0 | K64: =SUMIF(BDD!$BG$2:$BG$3,"Banc W+BFAUXVRAI",BDD!$Z$2:$Z$3) -> 0 | L64: =SUMIF(BDD!$BG$2:$BG$3,"Banc W+BVRAIFAUX",BDD!$Z$2:$Z$3) -> 0 | M64: =SUMIF(BDD!$BG$2:$BG$3,"Banc W+BFAUXVRAI",BDD!$Z$2:$Z$3) -> 0 | N64: =SUMIF(BDD!$BG$2:$BG$3,"Banc W+BVRAIFAUX",BDD!$Z$2:$Z$3) -> 0 | O64: =SUMIF(BDD!$BG$2:$BG$3,"Banc W+BFAUXVRAI",BDD!$Z$2:$Z$3) -> 0 | P64: =SUMIF(BDD!$BG$2:$BG$3,"Banc W+BVRAIFAUX",BDD!$Z$2:$Z$3) -> 0 | Q64: =SUMIF(BDD!$BG$2:$BG$3,"Banc W+BFAUXVRAI",BDD!$Z$2:$Z$3) -> 0 | R64: =SUMIF(BDD!$BG$2:$BG$3,"Banc W+BVRAIFAUX",BDD!$Z$2:$Z$3) -> 0 | S64: =SUMIF(BDD!$BG$2:$BG$3,"Banc W+BFAUXVRAI",BDD!$Z$2:$Z$3) -> 0 | T64: =SUMIF(BDD!$BG$2:$BG$3,"Banc W+BVRAIFAUX",BDD!$Z$2:$Z$3) -> 0 | U64: =SUMIF(BDD!$BG$2:$BG$3,"Banc W+BFAUXVRAI",BDD!$Z$2:$Z$3) -> 0 | V64: =SUMIF(BDD!$BG$2:$BG$3,"Banc W+BVRAIFAUX",BDD!$Z$2:$Z$3) -> 0 | W64: =SUMIF(BDD!$BG$2:$BG$3,"Banc W+BFAUXVRAI",BDD!$Z$2:$Z$3) -> 0 | X64: =SUMIF(BDD!$BG$2:$BG$3,"Banc W+BVRAIFAUX",BDD!$Z$2:$Z$3) -> 0 | Y64: =SUMIF(BDD!$BG$2:$BG$3,"Banc W+BFAUXVRAI",BDD!$Z$2:$Z$3) -> 0
A65: Ressort verticale | B65: =SUMIF(BDD!$BG$2:$BG$3,"Ressort verticaleVRAIFAUX",BDD!$Z$2:$Z$3) -> 0 | C65: =SUMIF(BDD!$BG$2:$BG$3,"Ressort verticaleFAUXVRAI",BDD!$Z$2:$Z$3) -> 0 | D65: =SUMIF(BDD!$BG$2:$BG$3,"Ressort verticaleVRAIFAUX",BDD!$Z$2:$Z$3) -> 0 | E65: =SUMIF(BDD!$BG$2:$BG$3,"Ressort verticaleFAUXVRAI",BDD!$Z$2:$Z$3) -> 0 | F65: =SUMIF(BDD!$BG$2:$BG$25,"Ressort verticaleVRAIFAUX",BDD!$Z$2:$Z$25) -> 0 | G65: =SUMIF(BDD!$BG$2:$BG$25,"Ressort verticaleFAUXVRAI",BDD!$Z$2:$Z$25) -> 0 | H65: =SUMIF(BDD!$BG$26:$BG$599,"Ressort verticaleVRAIFAUX",BDD!$Z$26:$Z$599) -> 0 | I65: =SUMIF(BDD!$BG$26:$BG$599,"Ressort verticaleFAUXVRAI",BDD!$Z$26:$Z$599) -> 0 | J65: =SUMIF(BDD!$BG$2:$BG$3,"Ressort verticaleVRAIFAUX",BDD!$Z$2:$Z$3) -> 0 | K65: =SUMIF(BDD!$BG$2:$BG$3,"Ressort verticaleFAUXVRAI",BDD!$Z$2:$Z$3) -> 0 | L65: =SUMIF(BDD!$BG$2:$BG$3,"Ressort verticaleVRAIFAUX",BDD!$Z$2:$Z$3) -> 0 | M65: =SUMIF(BDD!$BG$2:$BG$3,"Ressort verticaleFAUXVRAI",BDD!$Z$2:$Z$3) -> 0 | N65: =SUMIF(BDD!$BG$2:$BG$3,"Ressort verticaleVRAIFAUX",BDD!$Z$2:$Z$3) -> 0 | O65: =SUMIF(BDD!$BG$2:$BG$3,"Ressort verticaleFAUXVRAI",BDD!$Z$2:$Z$3) -> 0 | P65: =SUMIF(BDD!$BG$2:$BG$3,"Ressort verticaleVRAIFAUX",BDD!$Z$2:$Z$3) -> 0 | Q65: =SUMIF(BDD!$BG$2:$BG$3,"Ressort verticaleFAUXVRAI",BDD!$Z$2:$Z$3) -> 0 | R65: =SUMIF(BDD!$BG$2:$BG$3,"Ressort verticaleVRAIFAUX",BDD!$Z$2:$Z$3) -> 0 | S65: =SUMIF(BDD!$BG$2:$BG$3,"Ressort verticaleFAUXVRAI",BDD!$Z$2:$Z$3) -> 0 | T65: =SUMIF(BDD!$BG$2:$BG$3,"Ressort verticaleVRAIFAUX",BDD!$Z$2:$Z$3) -> 0 | U65: =SUMIF(BDD!$BG$2:$BG$3,"Ressort verticaleFAUXVRAI",BDD!$Z$2:$Z$3) -> 0 | V65: =SUMIF(BDD!$BG$2:$BG$3,"Ressort verticaleVRAIFAUX",BDD!$Z$2:$Z$3) -> 0 | W65: =SUMIF(BDD!$BG$2:$BG$3,"Ressort verticaleFAUXVRAI",BDD!$Z$2:$Z$3) -> 0 | X65: =SUMIF(BDD!$BG$2:$BG$3,"Ressort verticaleVRAIFAUX",BDD!$Z$2:$Z$3) -> 0 | Y65: =SUMIF(BDD!$BG$2:$BG$3,"Ressort verticaleFAUXVRAI",BDD!$Z$2:$Z$3) -> 0
B88: Suivi du correctif et du préventif par banc
B89: Janvier | H89: Février | N89: Mars | T89: Avril | Z89: Mai | AF89: Juin | AL89: Juillet | AR89: Août | AX89: Septembre | BD89: Octobre | BJ89: Novembre | BP89: Décembre
B90: Corrective | E90: Préventive | H90: Corrective | K90: Préventive | N90: Corrective | Q90: Préventive | T90: Corrective | W90: Préventive | Z90: Corrective | AC90: Préventive | AF90: Corrective | AI90: Préventive | AL90: Corrective | AO90: Préventive | AR90: Corrective | AU90: Préventive | AX90: Corrective | BA90: Préventive | BD90: Corrective | BG90: Préventive | BJ90: Corrective | BM90: Préventive | BP90: Corrective | BS90: Préventive
A91: Banc zone 5 | B91: Electrique | C91: Mécanique | D91: Hydraulique | E91: Electrique | F91: Mécanique | G91: Hydraulique | H91: Electrique | I91: Mécanique | J91: Hydraulique | K91: Electrique | L91: Mécanique | M91: Hydraulique | N91: Electrique | O91: Mécanique | P91: Hydraulique | Q91: Electrique | R91: Mécanique | S91: Hydraulique | T91: Electrique | U91: Mécanique | V91: Hydraulique | W91: Electrique | X91: Mécanique | Y91: Hydraulique | Z91: Electrique | AA91: Mécanique | AB91: Hydraulique | AC91: Electrique | AD91: Mécanique | AE91: Hydraulique | AF91: Electrique | AG91: Mécanique | AH91: Hydraulique | AI91: Electrique | AJ91: Mécanique | AK91: Hydraulique | AL91: Electrique | AM91: Mécanique | AN91: Hydraulique | AO91: Electrique | AP91: Mécanique | AQ91: Hydraulique | AR91: Electrique | AS91: Mécanique | AT91: Hydraulique | AU91: Electrique | AV91: Mécanique | AW91: Hydraulique | AX91: Electrique | AY91: Mécanique | AZ91: Hydraulique | BA91: Electrique | BB91: Mécanique | BC91: Hydraulique | BD91: Electrique | BE91: Mécanique | BF91: Hydraulique | BG91: Electrique | BH91: Mécanique | BI91: Hydraulique | BJ91: Electrique | BK91: Mécanique | BL91: Hydraulique | BM91: Electrique | BN91: Mécanique | BO91: Hydraulique | BP91: Electrique | BQ91: Mécanique | BR91: Hydraulique | BS91: Electrique | BT91: Mécanique | BU91: Hydraulique
A92: Banc 124 | B92: =SUMIF(BDD!$BH$2:$BH$3,"Banc 124VRAIFAUXVRAIFAUXFAUX",BDD!$Z$2:$Z$3) -> 0 | C92: =SUMIF(BDD!$BH$2:$BH$3,"Banc 124VRAIFAUXFAUXVRAIFAUX",BDD!$Z$2:$Z$3) -> 0 | D92: =SUMIF(BDD!$BH$2:$BH$3,"Banc 124VRAIFAUXFAUXFAUXVRAI",BDD!$Z$2:$Z$3) -> 0 | E92: =SUMIF(BDD!$BH$2:$BH$3,"Banc 124FAUXVRAIVRAIFAUXFAUX",BDD!$Z$2:$Z$3) -> 0 | F92: =SUMIF(BDD!$BH$2:$BH$3,"Banc 124FAUXVRAIFAUXVRAIFAUX",BDD!$Z$2:$Z$3) -> 0 | G92: =SUMIF(BDD!$BH$2:$BH$3,"Banc 124FAUXVRAIFAUXFAUXVRAI",BDD!$Z$2:$Z$3) -> 0 | H92: =SUMIF(BDD!$BH$2:$BH$3,"Banc 124VRAIFAUXVRAIFAUXFAUX",BDD!$Z$2:$Z$3) -> 0 | I92: =SUMIF(BDD!$BH$2:$BH$3,"Banc 124VRAIFAUXFAUXVRAIFAUX",BDD!$Z$2:$Z$3) -> 0 | J92: =SUMIF(BDD!$BH$2:$BH$3,"Banc 124VRAIFAUXFAUXFAUXVRAI",BDD!$Z$2:$Z$3) -> 0 | K92: =SUMIF(BDD!$BH$2:$BH$3,"Banc 124FAUXVRAIVRAIFAUXFAUX",BDD!$Z$2:$Z$3) -> 0 | L92: =SUMIF(BDD!$BH$2:$BH$3,"Banc 124FAUXVRAIFAUXVRAIFAUX",BDD!$Z$2:$Z$3) -> 0 | M92: =SUMIF(BDD!$BH$2:$BH$3,"Banc 124FAUXVRAIFAUXFAUXVRAI",BDD!$Z$2:$Z$3) -> 0 | N92: =SUMIF(BDD!$BH$2:$BH$25,"Banc 124VRAIFAUXVRAIFAUXFAUX",BDD!$Z$2:$Z$25) -> 0 | O92: =SUMIF(BDD!$BH$2:$BH$25,"Banc 124VRAIFAUXFAUXVRAIFAUX",BDD!$Z$2:$Z$25) -> 0 | P92: =SUMIF(BDD!$BH$2:$BH$25,"Banc 124VRAIFAUXFAUXFAUXVRAI",BDD!$Z$2:$Z$25) -> 0 | Q92: =SUMIF(BDD!$BH$2:$BH$25,"Banc 124FAUXVRAIVRAIFAUXFAUX",BDD!$Z$2:$Z$25) -> 0 | R92: =SUMIF(BDD!$BH$2:$BH$25,"Banc 124FAUXVRAIFAUXVRAIFAUX",BDD!$Z$2:$Z$25) -> 0 | S92: =SUMIF(BDD!$BH$2:$BH$25,"Banc 124FAUXVRAIFAUXFAUXVRAI",BDD!$Z$2:$Z$25) -> 0.3 | T92: =SUMIF(BDD!$BH$26:$BH$599,"Banc 16004VRAIFAUXVRAIFAUXFAUX",BDD!$Z$26:$Z$599) -> 0 | U92: =SUMIF(BDD!$BH$26:$BH$599,"Banc 16004VRAIFAUXFAUXVRAIFAUX",BDD!$Z$26:$Z$599) -> 0 | V92: =SUMIF(BDD!$BH$26:$BH$599,"Banc 16004VRAIFAUXFAUXFAUXVRAI",BDD!$Z$26:$Z$599) -> 0 | W92: =SUMIF(BDD!$BH$26:$BH$599,"Banc 16004FAUXVRAIVRAIFAUXFAUX",BDD!$Z$26:$Z$599) -> 0 | X92: =SUMIF(BDD!$BH$26:$BH$599,"Banc 16004FAUXVRAIFAUXVRAIFAUX",BDD!$Z$26:$Z$599) -> 0 | Y92: =SUMIF(BDD!$BH$26:$BH$599,"Banc 16004FAUXVRAIFAUXFAUXVRAI",BDD!$Z$26:$Z$599) -> 0 | Z92: =SUMIF(BDD!$BH$2:$BH$3,"Banc 124VRAIFAUXVRAIFAUXFAUX",BDD!$Z$2:$Z$3) -> 0 | AA92: =SUMIF(BDD!$BH$2:$BH$3,"Banc 124VRAIFAUXFAUXVRAIFAUX",BDD!$Z$2:$Z$3) -> 0 | AB92: =SUMIF(BDD!$BH$2:$BH$3,"Banc 124VRAIFAUXFAUXFAUXVRAI",BDD!$Z$2:$Z$3) -> 0 | AC92: =SUMIF(BDD!$BH$2:$BH$3,"Banc 124FAUXVRAIVRAIFAUXFAUX",BDD!$Z$2:$Z$3) -> 0 | AD92: =SUMIF(BDD!$BH$2:$BH$3,"Banc 124FAUXVRAIFAUXVRAIFAUX",BDD!$Z$2:$Z$3) -> 0 | AE92: =SUMIF(BDD!$BH$2:$BH$3,"Banc 124FAUXVRAIFAUXFAUXVRAI",BDD!$Z$2:$Z$3) -> 0 | AF92: =SUMIF(BDD!$BH$2:$BH$3,"Banc 124VRAIFAUXVRAIFAUXFAUX",BDD!$Z$2:$Z$3) -> 0 | AG92: =SUMIF(BDD!$BH$2:$BH$3,"Banc 124VRAIFAUXFAUXVRAIFAUX",BDD!$Z$2:$Z$3) -> 0 | AH92: =SUMIF(BDD!$BH$2:$BH$3,"Banc 124VRAIFAUXFAUXFAUXVRAI",BDD!$Z$2:$Z$3) -> 0 | AI92: =SUMIF(BDD!$BH$2:$BH$3,"Banc 124FAUXVRAIVRAIFAUXFAUX",BDD!$Z$2:$Z$3) -> 0 | AJ92: =SUMIF(BDD!$BH$2:$BH$3,"Banc 124FAUXVRAIFAUXVRAIFAUX",BDD!$Z$2:$Z$3) -> 0 | AK92: =SUMIF(BDD!$BH$2:$BH$3,"Banc 124FAUXVRAIFAUXFAUXVRAI",BDD!$Z$2:$Z$3) -> 0 | AL92: =SUMIF(BDD!$BH$2:$BH$3,"Banc 124VRAIFAUXVRAIFAUXFAUX",BDD!$Z$2:$Z$3) -> 0 | AM92: =SUMIF(BDD!$BH$2:$BH$3,"Banc 124VRAIFAUXFAUXVRAIFAUX",BDD!$Z$2:$Z$3) -> 0 | AN92: =SUMIF(BDD!$BH$2:$BH$3,"Banc 124VRAIFAUXFAUXFAUXVRAI",BDD!$Z$2:$Z$3) -> 0 | AO92: =SUMIF(BDD!$BH$2:$BH$3,"Banc 124FAUXVRAIVRAIFAUXFAUX",BDD!$Z$2:$Z$3) -> 0 | AP92: =SUMIF(BDD!$BH$2:$BH$3,"Banc 124FAUXVRAIFAUXVRAIFAUX",BDD!$Z$2:$Z$3) -> 0 | AQ92: =SUMIF(BDD!$BH$2:$BH$3,"Banc 124FAUXVRAIFAUXFAUXVRAI",BDD!$Z$2:$Z$3) -> 0 | AR92: =SUMIF(BDD!$BH$2:$BH$3,"Banc 124VRAIFAUXVRAIFAUXFAUX",BDD!$Z$2:$Z$3) -> 0 | AS92: =SUMIF(BDD!$BH$2:$BH$3,"Banc 124VRAIFAUXFAUXVRAIFAUX",BDD!$Z$2:$Z$3) -> 0 | AT92: =SUMIF(BDD!$BH$2:$BH$3,"Banc 124VRAIFAUXFAUXFAUXVRAI",BDD!$Z$2:$Z$3) -> 0 | AU92: =SUMIF(BDD!$BH$2:$BH$3,"Banc 124FAUXVRAIVRAIFAUXFAUX",BDD!$Z$2:$Z$3) -> 0 | AV92: =SUMIF(BDD!$BH$2:$BH$3,"Banc 124FAUXVRAIFAUXVRAIFAUX",BDD!$Z$2:$Z$3) -> 0 | AW92: =SUMIF(BDD!$BH$2:$BH$3,"Banc 124FAUXVRAIFAUXFAUXVRAI",BDD!$Z$2:$Z$3) -> 0 | AX92: =SUMIF(BDD!$BH$2:$BH$3,"Banc 124VRAIFAUXVRAIFAUXFAUX",BDD!$Z$2:$Z$3) -> 0 | AY92: =SUMIF(BDD!$BH$2:$BH$3,"Banc 124VRAIFAUXFAUXVRAIFAUX",BDD!$Z$2:$Z$3) -> 0 | AZ92: =SUMIF(BDD!$BH$2:$BH$3,"Banc 124VRAIFAUXFAUXFAUXVRAI",BDD!$Z$2:$Z$3) -> 0 | BA92: =SUMIF(BDD!$BH$2:$BH$3,"Banc 124FAUXVRAIVRAIFAUXFAUX",BDD!$Z$2:$Z$3) -> 0 | BB92: =SUMIF(BDD!$BH$2:$BH$3,"Banc 124FAUXVRAIFAUXVRAIFAUX",BDD!$Z$2:$Z$3) -> 0 | BC92: =SUMIF(BDD!$BH$2:$BH$3,"Banc 124FAUXVRAIFAUXFAUXVRAI",BDD!$Z$2:$Z$3) -> 0 | BD92: =SUMIF(BDD!$BH$2:$BH$3,"Banc 124VRAIFAUXVRAIFAUXFAUX",BDD!$Z$2:$Z$3) -> 0 | BE92: =SUMIF(BDD!$BH$2:$BH$3,"Banc 124VRAIFAUXFAUXVRAIFAUX",BDD!$Z$2:$Z$3) -> 0 | BF92: =SUMIF(BDD!$BH$2:$BH$3,"Banc 124VRAIFAUXFAUXFAUXVRAI",BDD!$Z$2:$Z$3) -> 0 | BG92: =SUMIF(BDD!$BH$2:$BH$3,"Banc 124FAUXVRAIVRAIFAUXFAUX",BDD!$Z$2:$Z$3) -> 0 | BH92: =SUMIF(BDD!$BH$2:$BH$3,"Banc 124FAUXVRAIFAUXVRAIFAUX",BDD!$Z$2:$Z$3) -> 0 | BI92: =SUMIF(BDD!$BH$2:$BH$3,"Banc 124FAUXVRAIFAUXFAUXVRAI",BDD!$Z$2:$Z$3) -> 0 | BJ92: =SUMIF(BDD!$BH$2:$BH$3,"Banc 124VRAIFAUXVRAIFAUXFAUX",BDD!$Z$2:$Z$3) -> 0 | BK92: =SUMIF(BDD!$BH$2:$BH$3,"Banc 124VRAIFAUXFAUXVRAIFAUX",BDD!$Z$2:$Z$3) -> 0 | BL92: =SUMIF(BDD!$BH$2:$BH$3,"Banc 124VRAIFAUXFAUXFAUXVRAI",BDD!$Z$2:$Z$3) -> 0 | BM92: =SUMIF(BDD!$BH$2:$BH$3,"Banc 124FAUXVRAIVRAIFAUXFAUX",BDD!$Z$2:$Z$3) -> 0 | BN92: =SUMIF(BDD!$BH$2:$BH$3,"Banc 124FAUXVRAIFAUXVRAIFAUX",BDD!$Z$2:$Z$3) -> 0 | BO92: =SUMIF(BDD!$BH$2:$BH$3,"Banc 124FAUXVRAIFAUXFAUXVRAI",BDD!$Z$2:$Z$3) -> 0 | BP92: =SUMIF(BDD!$BH$2:$BH$3,"Banc 124VRAIFAUXVRAIFAUXFAUX",BDD!$Z$2:$Z$3) -> 0 | BQ92: =SUMIF(BDD!$BH$2:$BH$3,"Banc 124VRAIFAUXFAUXVRAIFAUX",BDD!$Z$2:$Z$3) -> 0 | BR92: =SUMIF(BDD!$BH$2:$BH$3,"Banc 124VRAIFAUXFAUXFAUXVRAI",BDD!$Z$2:$Z$3) -> 0 | BS92: =SUMIF(BDD!$BH$2:$BH$3,"Banc 124FAUXVRAIVRAIFAUXFAUX",BDD!$Z$2:$Z$3) -> 0 | BT92: =SUMIF(BDD!$BH$2:$BH$3,"Banc 124FAUXVRAIFAUXVRAIFAUX",BDD!$Z$2:$Z$3) -> 0 | BU92: =SUMIF(BDD!$BH$2:$BH$3,"Banc 124FAUXVRAIFAUXFAUXVRAI",BDD!$Z$2:$Z$3) -> 0
A93: Banc 124 bis | B93: =SUMIF(BDD!$BH$2:$BH$3,"Banc 124 bisVRAIFAUXVRAIFAUXFAUX",BDD!$Z$2:$Z$3) -> 0 | C93: =SUMIF(BDD!$BH$2:$BH$3,"Banc 124 bisVRAIFAUXFAUXVRAIFAUX",BDD!$Z$2:$Z$3) -> 0 | D93: =SUMIF(BDD!$BH$2:$BH$3,"Banc 124 bisVRAIFAUXFAUXFAUXVRAI",BDD!$Z$2:$Z$3) -> 0 | E93: =SUMIF(BDD!$BH$2:$BH$3,"Banc 124 bisFAUXVRAIVRAIFAUXFAUX",BDD!$Z$2:$Z$3) -> 0 | F93: =SUMIF(BDD!$BH$2:$BH$3,"Banc 124 bisFAUXVRAIFAUXVRAIFAUX",BDD!$Z$2:$Z$3) -> 0 | G93: =SUMIF(BDD!$BH$2:$BH$3,"Banc 124 bisFAUXVRAIFAUXFAUXVRAI",BDD!$Z$2:$Z$3) -> 0 | H93: =SUMIF(BDD!$BH$2:$BH$3,"Banc 124 bisVRAIFAUXVRAIFAUXFAUX",BDD!$Z$2:$Z$3) -> 0 | I93: =SUMIF(BDD!$BH$2:$BH$3,"Banc 124 bisVRAIFAUXFAUXVRAIFAUX",BDD!$Z$2:$Z$3) -> 0 | J93: =SUMIF(BDD!$BH$2:$BH$3,"Banc 124 bisVRAIFAUXFAUXFAUXVRAI",BDD!$Z$2:$Z$3) -> 0 | K93: =SUMIF(BDD!$BH$2:$BH$3,"Banc 124 bisFAUXVRAIVRAIFAUXFAUX",BDD!$Z$2:$Z$3) -> 0 | L93: =SUMIF(BDD!$BH$2:$BH$3,"Banc 124 bisFAUXVRAIFAUXVRAIFAUX",BDD!$Z$2:$Z$3) -> 0 | M93: =SUMIF(BDD!$BH$2:$BH$3,"Banc 124 bisFAUXVRAIFAUXFAUXVRAI",BDD!$Z$2:$Z$3) -> 0 | N93: =SUMIF(BDD!$BH$2:$BH$25,"Banc 124 bisVRAIFAUXVRAIFAUXFAUX",BDD!$Z$2:$Z$25) -> 0 | O93: =SUMIF(BDD!$BH$2:$BH$25,"Banc 124 bisVRAIFAUXFAUXVRAIFAUX",BDD!$Z$2:$Z$25) -> 0 | P93: =SUMIF(BDD!$BH$2:$BH$25,"Banc 124 bisVRAIFAUXFAUXFAUXVRAI",BDD!$Z$2:$Z$25) -> 0 | Q93: =SUMIF(BDD!$BH$2:$BH$25,"Banc 124 bisFAUXVRAIVRAIFAUXFAUX",BDD!$Z$2:$Z$25) -> 0 | R93: =SUMIF(BDD!$BH$2:$BH$25,"Banc 124 bisFAUXVRAIFAUXVRAIFAUX",BDD!$Z$2:$Z$25) -> 0 | S93: =SUMIF(BDD!$BH$2:$BH$25,"Banc 124 bisFAUXVRAIFAUXFAUXVRAI",BDD!$Z$2:$Z$25) -> 0 | T93: =SUMIF(BDD!$BH$26:$BH$599,"Banc 124 bisVRAIFAUXVRAIFAUXFAUX",BDD!$Z$26:$Z$599) -> 1 | U93: =SUMIF(BDD!$BH$26:$BH$599,"Banc 124 bisVRAIFAUXFAUXVRAIFAUX",BDD!$Z$26:$Z$599) -> 0 | V93: =SUMIF(BDD!$BH$26:$BH$599,"Banc 124 bisVRAIFAUXFAUXFAUXVRAI",BDD!$Z$26:$Z$599) -> 0 | W93: =SUMIF(BDD!$BH$26:$BH$599,"Banc 124 bisFAUXVRAIVRAIFAUXFAUX",BDD!$Z$26:$Z$599) -> 0 | X93: =SUMIF(BDD!$BH$26:$BH$599,"Banc 124 bisFAUXVRAIFAUXVRAIFAUX",BDD!$Z$26:$Z$599) -> 0 | Y93: =SUMIF(BDD!$BH$26:$BH$599,"Banc 124 bisFAUXVRAIFAUXFAUXVRAI",BDD!$Z$26:$Z$599) -> 0 | Z93: =SUMIF(BDD!$BH$2:$BH$3,"Banc 124 bisVRAIFAUXVRAIFAUXFAUX",BDD!$Z$2:$Z$3) -> 0 | AA93: =SUMIF(BDD!$BH$2:$BH$3,"Banc 124 bisVRAIFAUXFAUXVRAIFAUX",BDD!$Z$2:$Z$3) -> 0 | AB93: =SUMIF(BDD!$BH$2:$BH$3,"Banc 124 bisVRAIFAUXFAUXFAUXVRAI",BDD!$Z$2:$Z$3) -> 0 | AC93: =SUMIF(BDD!$BH$2:$BH$3,"Banc 124 bisFAUXVRAIVRAIFAUXFAUX",BDD!$Z$2:$Z$3) -> 0 | AD93: =SUMIF(BDD!$BH$2:$BH$3,"Banc 124 bisFAUXVRAIFAUXVRAIFAUX",BDD!$Z$2:$Z$3) -> 0 | AE93: =SUMIF(BDD!$BH$2:$BH$3,"Banc 124 bisFAUXVRAIFAUXFAUXVRAI",BDD!$Z$2:$Z$3) -> 0 | AF93: =SUMIF(BDD!$BH$2:$BH$3,"Banc 124 bisVRAIFAUXVRAIFAUXFAUX",BDD!$Z$2:$Z$3) -> 0 | AG93: =SUMIF(BDD!$BH$2:$BH$3,"Banc 124 bisVRAIFAUXFAUXVRAIFAUX",BDD!$Z$2:$Z$3) -> 0 | AH93: =SUMIF(BDD!$BH$2:$BH$3,"Banc 124 bisVRAIFAUXFAUXFAUXVRAI",BDD!$Z$2:$Z$3) -> 0 | AI93: =SUMIF(BDD!$BH$2:$BH$3,"Banc 124 bisFAUXVRAIVRAIFAUXFAUX",BDD!$Z$2:$Z$3) -> 0 | AJ93: =SUMIF(BDD!$BH$2:$BH$3,"Banc 124 bisFAUXVRAIFAUXVRAIFAUX",BDD!$Z$2:$Z$3) -> 0 | AK93: =SUMIF(BDD!$BH$2:$BH$3,"Banc 124 bisFAUXVRAIFAUXFAUXVRAI",BDD!$Z$2:$Z$3) -> 0 | AL93: =SUMIF(BDD!$BH$2:$BH$3,"Banc 124 bisVRAIFAUXVRAIFAUXFAUX",BDD!$Z$2:$Z$3) -> 0 | AM93: =SUMIF(BDD!$BH$2:$BH$3,"Banc 124 bisVRAIFAUXFAUXVRAIFAUX",BDD!$Z$2:$Z$3) -> 0 | AN93: =SUMIF(BDD!$BH$2:$BH$3,"Banc 124 bisVRAIFAUXFAUXFAUXVRAI",BDD!$Z$2:$Z$3) -> 0 | AO93: =SUMIF(BDD!$BH$2:$BH$3,"Banc 124 bisFAUXVRAIVRAIFAUXFAUX",BDD!$Z$2:$Z$3) -> 0 | AP93: =SUMIF(BDD!$BH$2:$BH$3,"Banc 124 bisFAUXVRAIFAUXVRAIFAUX",BDD!$Z$2:$Z$3) -> 0 | AQ93: =SUMIF(BDD!$BH$2:$BH$3,"Banc 124 bisFAUXVRAIFAUXFAUXVRAI",BDD!$Z$2:$Z$3) -> 0 | AR93: =SUMIF(BDD!$BH$2:$BH$3,"Banc 124 bisVRAIFAUXVRAIFAUXFAUX",BDD!$Z$2:$Z$3) -> 0 | AS93: =SUMIF(BDD!$BH$2:$BH$3,"Banc 124 bisVRAIFAUXFAUXVRAIFAUX",BDD!$Z$2:$Z$3) -> 0 | AT93: =SUMIF(BDD!$BH$2:$BH$3,"Banc 124 bisVRAIFAUXFAUXFAUXVRAI",BDD!$Z$2:$Z$3) -> 0 | AU93: =SUMIF(BDD!$BH$2:$BH$3,"Banc 124 bisFAUXVRAIVRAIFAUXFAUX",BDD!$Z$2:$Z$3) -> 0 | AV93: =SUMIF(BDD!$BH$2:$BH$3,"Banc 124 bisFAUXVRAIFAUXVRAIFAUX",BDD!$Z$2:$Z$3) -> 0 | AW93: =SUMIF(BDD!$BH$2:$BH$3,"Banc 124 bisFAUXVRAIFAUXFAUXVRAI",BDD!$Z$2:$Z$3) -> 0 | AX93: =SUMIF(BDD!$BH$2:$BH$3,"Banc 124 bisVRAIFAUXVRAIFAUXFAUX",BDD!$Z$2:$Z$3) -> 0 | AY93: =SUMIF(BDD!$BH$2:$BH$3,"Banc 124 bisVRAIFAUXFAUXVRAIFAUX",BDD!$Z$2:$Z$3) -> 0 | AZ93: =SUMIF(BDD!$BH$2:$BH$3,"Banc 124 bisVRAIFAUXFAUXFAUXVRAI",BDD!$Z$2:$Z$3) -> 0 | BA93: =SUMIF(BDD!$BH$2:$BH$3,"Banc 124 bisFAUXVRAIVRAIFAUXFAUX",BDD!$Z$2:$Z$3) -> 0 | BB93: =SUMIF(BDD!$BH$2:$BH$3,"Banc 124 bisFAUXVRAIFAUXVRAIFAUX",BDD!$Z$2:$Z$3) -> 0 | BC93: =SUMIF(BDD!$BH$2:$BH$3,"Banc 124 bisFAUXVRAIFAUXFAUXVRAI",BDD!$Z$2:$Z$3) -> 0 | BD93: =SUMIF(BDD!$BH$2:$BH$3,"Banc 124 bisVRAIFAUXVRAIFAUXFAUX",BDD!$Z$2:$Z$3) -> 0 | BE93: =SUMIF(BDD!$BH$2:$BH$3,"Banc 124 bisVRAIFAUXFAUXVRAIFAUX",BDD!$Z$2:$Z$3) -> 0 | BF93: =SUMIF(BDD!$BH$2:$BH$3,"Banc 124 bisVRAIFAUXFAUXFAUXVRAI",BDD!$Z$2:$Z$3) -> 0 | BG93: =SUMIF(BDD!$BH$2:$BH$3,"Banc 124 bisFAUXVRAIVRAIFAUXFAUX",BDD!$Z$2:$Z$3) -> 0 | BH93: =SUMIF(BDD!$BH$2:$BH$3,"Banc 124 bisFAUXVRAIFAUXVRAIFAUX",BDD!$Z$2:$Z$3) -> 0 | BI93: =SUMIF(BDD!$BH$2:$BH$3,"Banc 124 bisFAUXVRAIFAUXFAUXVRAI",BDD!$Z$2:$Z$3) -> 0 | BJ93: =SUMIF(BDD!$BH$2:$BH$3,"Banc 124 bisVRAIFAUXVRAIFAUXFAUX",BDD!$Z$2:$Z$3) -> 0 | BK93: =SUMIF(BDD!$BH$2:$BH$3,"Banc 124 bisVRAIFAUXFAUXVRAIFAUX",BDD!$Z$2:$Z$3) -> 0 | BL93: =SUMIF(BDD!$BH$2:$BH$3,"Banc 124 bisVRAIFAUXFAUXFAUXVRAI",BDD!$Z$2:$Z$3) -> 0 | BM93: =SUMIF(BDD!$BH$2:$BH$3,"Banc 124 bisFAUXVRAIVRAIFAUXFAUX",BDD!$Z$2:$Z$3) -> 0 | BN93: =SUMIF(BDD!$BH$2:$BH$3,"Banc 124 bisFAUXVRAIFAUXVRAIFAUX",BDD!$Z$2:$Z$3) -> 0 | BO93: =SUMIF(BDD!$BH$2:$BH$3,"Banc 124 bisFAUXVRAIFAUXFAUXVRAI",BDD!$Z$2:$Z$3) -> 0 | BP93: =SUMIF(BDD!$BH$2:$BH$3,"Banc 124 bisVRAIFAUXVRAIFAUXFAUX",BDD!$Z$2:$Z$3) -> 0 | BQ93: =SUMIF(BDD!$BH$2:$BH$3,"Banc 124 bisVRAIFAUXFAUXVRAIFAUX",BDD!$Z$2:$Z$3) -> 0 | BR93: =SUMIF(BDD!$BH$2:$BH$3,"Banc 124 bisVRAIFAUXFAUXFAUXVRAI",BDD!$Z$2:$Z$3) -> 0 | BS93: =SUMIF(BDD!$BH$2:$BH$3,"Banc 124 bisFAUXVRAIVRAIFAUXFAUX",BDD!$Z$2:$Z$3) -> 0 | BT93: =SUMIF(BDD!$BH$2:$BH$3,"Banc 124 bisFAUXVRAIFAUXVRAIFAUX",BDD!$Z$2:$Z$3) -> 0 | BU93: =SUMIF(BDD!$BH$2:$BH$3,"Banc 124 bisFAUXVRAIFAUXFAUXVRAI",BDD!$Z$2:$Z$3) -> 0
A94: Banc 145 | B94: =SUMIF(BDD!$BH$2:$BH$3,"Banc 145VRAIFAUXVRAIFAUXFAUX",BDD!$Z$2:$Z$3) -> 0 | C94: =SUMIF(BDD!$BH$2:$BH$3,"Banc 145VRAIFAUXFAUXVRAIFAUX",BDD!$Z$2:$Z$3) -> 0 | D94: =SUMIF(BDD!$BH$2:$BH$3,"Banc 145VRAIFAUXFAUXFAUXVRAI",BDD!$Z$2:$Z$3) -> 0 | E94: =SUMIF(BDD!$BH$2:$BH$3,"Banc 145FAUXVRAIVRAIFAUXFAUX",BDD!$Z$2:$Z$3) -> 0 | F94: =SUMIF(BDD!$BH$2:$BH$3,"Banc 145FAUXVRAIFAUXVRAIFAUX",BDD!$Z$2:$Z$3) -> 0 | G94: =SUMIF(BDD!$BH$2:$BH$3,"Banc 145FAUXVRAIFAUXFAUXVRAI",BDD!$Z$2:$Z$3) -> 0 | H94: =SUMIF(BDD!$BH$2:$BH$3,"Banc 145VRAIFAUXVRAIFAUXFAUX",BDD!$Z$2:$Z$3) -> 0 | I94: =SUMIF(BDD!$BH$2:$BH$3,"Banc 145VRAIFAUXFAUXVRAIFAUX",BDD!$Z$2:$Z$3) -> 0 | J94: =SUMIF(BDD!$BH$2:$BH$3,"Banc 145VRAIFAUXFAUXFAUXVRAI",BDD!$Z$2:$Z$3) -> 0 | K94: =SUMIF(BDD!$BH$2:$BH$3,"Banc 145FAUXVRAIVRAIFAUXFAUX",BDD!$Z$2:$Z$3) -> 0 | L94: =SUMIF(BDD!$BH$2:$BH$3,"Banc 145FAUXVRAIFAUXVRAIFAUX",BDD!$Z$2:$Z$3) -> 0 | M94: =SUMIF(BDD!$BH$2:$BH$3,"Banc 145FAUXVRAIFAUXFAUXVRAI",BDD!$Z$2:$Z$3) -> 0 | N94: =SUMIF(BDD!$BH$2:$BH$25,"Banc 145VRAIFAUXVRAIFAUXFAUX",BDD!$Z$2:$Z$25) -> 0 | O94: =SUMIF(BDD!$BH$2:$BH$25,"Banc 145VRAIFAUXFAUXVRAIFAUX",BDD!$Z$2:$Z$25) -> 0 | P94: =SUMIF(BDD!$BH$2:$BH$25,"Banc 145VRAIFAUXFAUXFAUXVRAI",BDD!$Z$2:$Z$25) -> 0 | Q94: =SUMIF(BDD!$BH$2:$BH$25,"Banc 145FAUXVRAIVRAIFAUXFAUX",BDD!$Z$2:$Z$25) -> 0 | R94: =SUMIF(BDD!$BH$2:$BH$25,"Banc 145FAUXVRAIFAUXVRAIFAUX",BDD!$Z$2:$Z$25) -> 0 | S94: =SUMIF(BDD!$BH$2:$BH$25,"Banc 145FAUXVRAIFAUXFAUXVRAI",BDD!$Z$2:$Z$25) -> 0 | T94: =SUMIF(BDD!$BH$26:$BH$599,"Banc 145VRAIFAUXVRAIFAUXFAUX",BDD!$Z$26:$Z$599) -> 3 | U94: =SUMIF(BDD!$BH$26:$BH$599,"Banc 145VRAIFAUXFAUXVRAIFAUX",BDD!$Z$26:$Z$599) -> 0 | V94: =SUMIF(BDD!$BH$26:$BH$599,"Banc 145VRAIFAUXFAUXFAUXVRAI",BDD!$Z$26:$Z$599) -> 2.3 | W94: =SUMIF(BDD!$BH$26:$BH$599,"Banc 145FAUXVRAIVRAIFAUXFAUX",BDD!$Z$26:$Z$599) -> 0 | X94: =SUMIF(BDD!$BH$26:$BH$599,"Banc 145FAUXVRAIFAUXVRAIFAUX",BDD!$Z$26:$Z$599) -> 0 | Y94: =SUMIF(BDD!$BH$26:$BH$599,"Banc 145FAUXVRAIFAUXFAUXVRAI",BDD!$Z$26:$Z$599) -> 0 | Z94: =SUMIF(BDD!$BH$2:$BH$3,"Banc 145VRAIFAUXVRAIFAUXFAUX",BDD!$Z$2:$Z$3) -> 0 | AA94: =SUMIF(BDD!$BH$2:$BH$3,"Banc 145VRAIFAUXFAUXVRAIFAUX",BDD!$Z$2:$Z$3) -> 0 | AB94: =SUMIF(BDD!$BH$2:$BH$3,"Banc 145VRAIFAUXFAUXFAUXVRAI",BDD!$Z$2:$Z$3) -> 0 | AC94: =SUMIF(BDD!$BH$2:$BH$3,"Banc 145FAUXVRAIVRAIFAUXFAUX",BDD!$Z$2:$Z$3) -> 0 | AD94: =SUMIF(BDD!$BH$2:$BH$3,"Banc 145FAUXVRAIFAUXVRAIFAUX",BDD!$Z$2:$Z$3) -> 0 | AE94: =SUMIF(BDD!$BH$2:$BH$3,"Banc 145FAUXVRAIFAUXFAUXVRAI",BDD!$Z$2:$Z$3) -> 0 | AF94: =SUMIF(BDD!$BH$2:$BH$3,"Banc 145VRAIFAUXVRAIFAUXFAUX",BDD!$Z$2:$Z$3) -> 0 | AG94: =SUMIF(BDD!$BH$2:$BH$3,"Banc 145VRAIFAUXFAUXVRAIFAUX",BDD!$Z$2:$Z$3) -> 0 | AH94: =SUMIF(BDD!$BH$2:$BH$3,"Banc 145VRAIFAUXFAUXFAUXVRAI",BDD!$Z$2:$Z$3) -> 0 | AI94: =SUMIF(BDD!$BH$2:$BH$3,"Banc 145FAUXVRAIVRAIFAUXFAUX",BDD!$Z$2:$Z$3) -> 0 | AJ94: =SUMIF(BDD!$BH$2:$BH$3,"Banc 145FAUXVRAIFAUXVRAIFAUX",BDD!$Z$2:$Z$3) -> 0 | AK94: =SUMIF(BDD!$BH$2:$BH$3,"Banc 145FAUXVRAIFAUXFAUXVRAI",BDD!$Z$2:$Z$3) -> 0 | AL94: =SUMIF(BDD!$BH$2:$BH$3,"Banc 145VRAIFAUXVRAIFAUXFAUX",BDD!$Z$2:$Z$3) -> 0 | AM94: =SUMIF(BDD!$BH$2:$BH$3,"Banc 145VRAIFAUXFAUXVRAIFAUX",BDD!$Z$2:$Z$3) -> 0 | AN94: =SUMIF(BDD!$BH$2:$BH$3,"Banc 145VRAIFAUXFAUXFAUXVRAI",BDD!$Z$2:$Z$3) -> 0 | AO94: =SUMIF(BDD!$BH$2:$BH$3,"Banc 145FAUXVRAIVRAIFAUXFAUX",BDD!$Z$2:$Z$3) -> 0 | AP94: =SUMIF(BDD!$BH$2:$BH$3,"Banc 145FAUXVRAIFAUXVRAIFAUX",BDD!$Z$2:$Z$3) -> 0 | AQ94: =SUMIF(BDD!$BH$2:$BH$3,"Banc 145FAUXVRAIFAUXFAUXVRAI",BDD!$Z$2:$Z$3) -> 0 | AR94: =SUMIF(BDD!$BH$2:$BH$3,"Banc 145VRAIFAUXVRAIFAUXFAUX",BDD!$Z$2:$Z$3) -> 0 | AS94: =SUMIF(BDD!$BH$2:$BH$3,"Banc 145VRAIFAUXFAUXVRAIFAUX",BDD!$Z$2:$Z$3) -> 0 | AT94: =SUMIF(BDD!$BH$2:$BH$3,"Banc 145VRAIFAUXFAUXFAUXVRAI",BDD!$Z$2:$Z$3) -> 0 | AU94: =SUMIF(BDD!$BH$2:$BH$3,"Banc 145FAUXVRAIVRAIFAUXFAUX",BDD!$Z$2:$Z$3) -> 0 | AV94: =SUMIF(BDD!$BH$2:$BH$3,"Banc 145FAUXVRAIFAUXVRAIFAUX",BDD!$Z$2:$Z$3) -> 0 | AW94: =SUMIF(BDD!$BH$2:$BH$3,"Banc 145FAUXVRAIFAUXFAUXVRAI",BDD!$Z$2:$Z$3) -> 0 | AX94: =SUMIF(BDD!$BH$2:$BH$3,"Banc 145VRAIFAUXVRAIFAUXFAUX",BDD!$Z$2:$Z$3) -> 0 | AY94: =SUMIF(BDD!$BH$2:$BH$3,"Banc 145VRAIFAUXFAUXVRAIFAUX",BDD!$Z$2:$Z$3) -> 0 | AZ94: =SUMIF(BDD!$BH$2:$BH$3,"Banc 145VRAIFAUXFAUXFAUXVRAI",BDD!$Z$2:$Z$3) -> 0 | BA94: =SUMIF(BDD!$BH$2:$BH$3,"Banc 145FAUXVRAIVRAIFAUXFAUX",BDD!$Z$2:$Z$3) -> 0 | BB94: =SUMIF(BDD!$BH$2:$BH$3,"Banc 145FAUXVRAIFAUXVRAIFAUX",BDD!$Z$2:$Z$3) -> 0 | BC94: =SUMIF(BDD!$BH$2:$BH$3,"Banc 145FAUXVRAIFAUXFAUXVRAI",BDD!$Z$2:$Z$3) -> 0 | BD94: =SUMIF(BDD!$BH$2:$BH$3,"Banc 145VRAIFAUXVRAIFAUXFAUX",BDD!$Z$2:$Z$3) -> 0 | BE94: =SUMIF(BDD!$BH$2:$BH$3,"Banc 145VRAIFAUXFAUXVRAIFAUX",BDD!$Z$2:$Z$3) -> 0 | BF94: =SUMIF(BDD!$BH$2:$BH$3,"Banc 145VRAIFAUXFAUXFAUXVRAI",BDD!$Z$2:$Z$3) -> 0 | BG94: =SUMIF(BDD!$BH$2:$BH$3,"Banc 145FAUXVRAIVRAIFAUXFAUX",BDD!$Z$2:$Z$3) -> 0 | BH94: =SUMIF(BDD!$BH$2:$BH$3,"Banc 145FAUXVRAIFAUXVRAIFAUX",BDD!$Z$2:$Z$3) -> 0 | BI94: =SUMIF(BDD!$BH$2:$BH$3,"Banc 145FAUXVRAIFAUXFAUXVRAI",BDD!$Z$2:$Z$3) -> 0 | BJ94: =SUMIF(BDD!$BH$2:$BH$3,"Banc 145VRAIFAUXVRAIFAUXFAUX",BDD!$Z$2:$Z$3) -> 0 | BK94: =SUMIF(BDD!$BH$2:$BH$3,"Banc 145VRAIFAUXFAUXVRAIFAUX",BDD!$Z$2:$Z$3) -> 0 | BL94: =SUMIF(BDD!$BH$2:$BH$3,"Banc 145VRAIFAUXFAUXFAUXVRAI",BDD!$Z$2:$Z$3) -> 0 | BM94: =SUMIF(BDD!$BH$2:$BH$3,"Banc 145FAUXVRAIVRAIFAUXFAUX",BDD!$Z$2:$Z$3) -> 0 | BN94: =SUMIF(BDD!$BH$2:$BH$3,"Banc 145FAUXVRAIFAUXVRAIFAUX",BDD!$Z$2:$Z$3) -> 0 | BO94: =SUMIF(BDD!$BH$2:$BH$3,"Banc 145FAUXVRAIFAUXFAUXVRAI",BDD!$Z$2:$Z$3) -> 0 | BP94: =SUMIF(BDD!$BH$2:$BH$3,"Banc 145VRAIFAUXVRAIFAUXFAUX",BDD!$Z$2:$Z$3) -> 0 | BQ94: =SUMIF(BDD!$BH$2:$BH$3,"Banc 145VRAIFAUXFAUXVRAIFAUX",BDD!$Z$2:$Z$3) -> 0 | BR94: =SUMIF(BDD!$BH$2:$BH$3,"Banc 145VRAIFAUXFAUXFAUXVRAI",BDD!$Z$2:$Z$3) -> 0 | BS94: =SUMIF(BDD!$BH$2:$BH$3,"Banc 145FAUXVRAIVRAIFAUXFAUX",BDD!$Z$2:$Z$3) -> 0 | BT94: =SUMIF(BDD!$BH$2:$BH$3,"Banc 145FAUXVRAIFAUXVRAIFAUX",BDD!$Z$2:$Z$3) -> 0 | BU94: =SUMIF(BDD!$BH$2:$BH$3,"Banc 145FAUXVRAIFAUXFAUXVRAI",BDD!$Z$2:$Z$3) -> 0
A95: Banc cisaillement | B95: =SUMIF(BDD!$BH$2:$BH$3,"Banc cisaillementVRAIFAUXVRAIFAUXFAUX",BDD!$Z$2:$Z$3) -> 0 | C95: =SUMIF(BDD!$BH$2:$BH$3,"Banc cisaillementVRAIFAUXFAUXVRAIFAUX",BDD!$Z$2:$Z$3) -> 0 | D95: =SUMIF(BDD!$BH$2:$BH$3,"Banc cisaillementVRAIFAUXFAUXFAUXVRAI",BDD!$Z$2:$Z$3) -> 0 | E95: =SUMIF(BDD!$BH$2:$BH$3,"Banc cisaillementFAUXVRAIVRAIFAUXFAUX",BDD!$Z$2:$Z$3) -> 0 | F95: =SUMIF(BDD!$BH$2:$BH$3,"Banc cisaillementFAUXVRAIFAUXVRAIFAUX",BDD!$Z$2:$Z$3) -> 0 | G95: =SUMIF(BDD!$BH$2:$BH$3,"Banc cisaillementFAUXVRAIFAUXFAUXVRAI",BDD!$Z$2:$Z$3) -> 0 | H95: =SUMIF(BDD!$BH$2:$BH$3,"Banc cisaillementVRAIFAUXVRAIFAUXFAUX",BDD!$Z$2:$Z$3) -> 0 | I95: =SUMIF(BDD!$BH$2:$BH$3,"Banc cisaillementVRAIFAUXFAUXVRAIFAUX",BDD!$Z$2:$Z$3) -> 0 | J95: =SUMIF(BDD!$BH$2:$BH$3,"Banc cisaillementVRAIFAUXFAUXFAUXVRAI",BDD!$Z$2:$Z$3) -> 0 | K95: =SUMIF(BDD!$BH$2:$BH$3,"Banc cisaillementFAUXVRAIVRAIFAUXFAUX",BDD!$Z$2:$Z$3) -> 0 | L95: =SUMIF(BDD!$BH$2:$BH$3,"Banc cisaillementFAUXVRAIFAUXVRAIFAUX",BDD!$Z$2:$Z$3) -> 0 | M95: =SUMIF(BDD!$BH$2:$BH$3,"Banc cisaillementFAUXVRAIFAUXFAUXVRAI",BDD!$Z$2:$Z$3) -> 0 | N95: =SUMIF(BDD!$BH$2:$BH$25,"Banc cisaillementVRAIFAUXVRAIFAUXFAUX",BDD!$Z$2:$Z$25) -> 0 | O95: =SUMIF(BDD!$BH$2:$BH$25,"Banc cisaillementVRAIFAUXFAUXVRAIFAUX",BDD!$Z$2:$Z$25) -> 0 | P95: =SUMIF(BDD!$BH$2:$BH$25,"Banc cisaillementVRAIFAUXFAUXFAUXVRAI",BDD!$Z$2:$Z$25) -> 0 | Q95: =SUMIF(BDD!$BH$2:$BH$25,"Banc cisaillementFAUXVRAIVRAIFAUXFAUX",BDD!$Z$2:$Z$25) -> 0 | R95: =SUMIF(BDD!$BH$2:$BH$25,"Banc cisaillementFAUXVRAIFAUXVRAIFAUX",BDD!$Z$2:$Z$25) -> 0 | S95: =SUMIF(BDD!$BH$2:$BH$25,"Banc cisaillementFAUXVRAIFAUXFAUXVRAI",BDD!$Z$2:$Z$25) -> 0 | T95: =SUMIF(BDD!$BH$26:$BH$599,"Banc cisaillementVRAIFAUXVRAIFAUXFAUX",BDD!$Z$26:$Z$599) -> 0 | U95: =SUMIF(BDD!$BH$26:$BH$599,"Banc cisaillementVRAIFAUXFAUXVRAIFAUX",BDD!$Z$26:$Z$599) -> 0 | V95: =SUMIF(BDD!$BH$26:$BH$599,"Banc cisaillementVRAIFAUXFAUXFAUXVRAI",BDD!$Z$26:$Z$599) -> 0 | W95: =SUMIF(BDD!$BH$26:$BH$599,"Banc cisaillementFAUXVRAIVRAIFAUXFAUX",BDD!$Z$26:$Z$599) -> 0 | X95: =SUMIF(BDD!$BH$26:$BH$599,"Banc cisaillementFAUXVRAIFAUXVRAIFAUX",BDD!$Z$26:$Z$599) -> 0 | Y95: =SUMIF(BDD!$BH$26:$BH$599,"Banc cisaillementFAUXVRAIFAUXFAUXVRAI",BDD!$Z$26:$Z$599) -> 0 | Z95: =SUMIF(BDD!$BH$2:$BH$3,"Banc cisaillementVRAIFAUXVRAIFAUXFAUX",BDD!$Z$2:$Z$3) -> 0 | AA95: =SUMIF(BDD!$BH$2:$BH$3,"Banc cisaillementVRAIFAUXFAUXVRAIFAUX",BDD!$Z$2:$Z$3) -> 0 | AB95: =SUMIF(BDD!$BH$2:$BH$3,"Banc cisaillementVRAIFAUXFAUXFAUXVRAI",BDD!$Z$2:$Z$3) -> 0 | AC95: =SUMIF(BDD!$BH$2:$BH$3,"Banc cisaillementFAUXVRAIVRAIFAUXFAUX",BDD!$Z$2:$Z$3) -> 0 | AD95: =SUMIF(BDD!$BH$2:$BH$3,"Banc cisaillementFAUXVRAIFAUXVRAIFAUX",BDD!$Z$2:$Z$3) -> 0 | AE95: =SUMIF(BDD!$BH$2:$BH$3,"Banc cisaillementFAUXVRAIFAUXFAUXVRAI",BDD!$Z$2:$Z$3) -> 0 | AF95: =SUMIF(BDD!$BH$2:$BH$3,"Banc cisaillementVRAIFAUXVRAIFAUXFAUX",BDD!$Z$2:$Z$3) -> 0 | AG95: =SUMIF(BDD!$BH$2:$BH$3,"Banc cisaillementVRAIFAUXFAUXVRAIFAUX",BDD!$Z$2:$Z$3) -> 0 | AH95: =SUMIF(BDD!$BH$2:$BH$3,"Banc cisaillementVRAIFAUXFAUXFAUXVRAI",BDD!$Z$2:$Z$3) -> 0 | AI95: =SUMIF(BDD!$BH$2:$BH$3,"Banc cisaillementFAUXVRAIVRAIFAUXFAUX",BDD!$Z$2:$Z$3) -> 0 | AJ95: =SUMIF(BDD!$BH$2:$BH$3,"Banc cisaillementFAUXVRAIFAUXVRAIFAUX",BDD!$Z$2:$Z$3) -> 0 | AK95: =SUMIF(BDD!$BH$2:$BH$3,"Banc cisaillementFAUXVRAIFAUXFAUXVRAI",BDD!$Z$2:$Z$3) -> 0 | AL95: =SUMIF(BDD!$BH$2:$BH$3,"Banc cisaillementVRAIFAUXVRAIFAUXFAUX",BDD!$Z$2:$Z$3) -> 0 | AM95: =SUMIF(BDD!$BH$2:$BH$3,"Banc cisaillementVRAIFAUXFAUXVRAIFAUX",BDD!$Z$2:$Z$3) -> 0 | AN95: =SUMIF(BDD!$BH$2:$BH$3,"Banc cisaillementVRAIFAUXFAUXFAUXVRAI",BDD!$Z$2:$Z$3) -> 0 | AO95: =SUMIF(BDD!$BH$2:$BH$3,"Banc cisaillementFAUXVRAIVRAIFAUXFAUX",BDD!$Z$2:$Z$3) -> 0 | AP95: =SUMIF(BDD!$BH$2:$BH$3,"Banc cisaillementFAUXVRAIFAUXVRAIFAUX",BDD!$Z$2:$Z$3) -> 0 | AQ95: =SUMIF(BDD!$BH$2:$BH$3,"Banc cisaillementFAUXVRAIFAUXFAUXVRAI",BDD!$Z$2:$Z$3) -> 0 | AR95: =SUMIF(BDD!$BH$2:$BH$3,"Banc cisaillementVRAIFAUXVRAIFAUXFAUX",BDD!$Z$2:$Z$3) -> 0 | AS95: =SUMIF(BDD!$BH$2:$BH$3,"Banc cisaillementVRAIFAUXFAUXVRAIFAUX",BDD!$Z$2:$Z$3) -> 0 | AT95: =SUMIF(BDD!$BH$2:$BH$3,"Banc cisaillementVRAIFAUXFAUXFAUXVRAI",BDD!$Z$2:$Z$3) -> 0 | AU95: =SUMIF(BDD!$BH$2:$BH$3,"Banc cisaillementFAUXVRAIVRAIFAUXFAUX",BDD!$Z$2:$Z$3) -> 0 | AV95: =SUMIF(BDD!$BH$2:$BH$3,"Banc cisaillementFAUXVRAIFAUXVRAIFAUX",BDD!$Z$2:$Z$3) -> 0 | AW95: =SUMIF(BDD!$BH$2:$BH$3,"Banc cisaillementFAUXVRAIFAUXFAUXVRAI",BDD!$Z$2:$Z$3) -> 0 | AX95: =SUMIF(BDD!$BH$2:$BH$3,"Banc cisaillementVRAIFAUXVRAIFAUXFAUX",BDD!$Z$2:$Z$3) -> 0 | AY95: =SUMIF(BDD!$BH$2:$BH$3,"Banc cisaillementVRAIFAUXFAUXVRAIFAUX",BDD!$Z$2:$Z$3) -> 0 | AZ95: =SUMIF(BDD!$BH$2:$BH$3,"Banc cisaillementVRAIFAUXFAUXFAUXVRAI",BDD!$Z$2:$Z$3) -> 0 | BA95: =SUMIF(BDD!$BH$2:$BH$3,"Banc cisaillementFAUXVRAIVRAIFAUXFAUX",BDD!$Z$2:$Z$3) -> 0 | BB95: =SUMIF(BDD!$BH$2:$BH$3,"Banc cisaillementFAUXVRAIFAUXVRAIFAUX",BDD!$Z$2:$Z$3) -> 0 | BC95: =SUMIF(BDD!$BH$2:$BH$3,"Banc cisaillementFAUXVRAIFAUXFAUXVRAI",BDD!$Z$2:$Z$3) -> 0 | BD95: =SUMIF(BDD!$BH$2:$BH$3,"Banc cisaillementVRAIFAUXVRAIFAUXFAUX",BDD!$Z$2:$Z$3) -> 0 | BE95: =SUMIF(BDD!$BH$2:$BH$3,"Banc cisaillementVRAIFAUXFAUXVRAIFAUX",BDD!$Z$2:$Z$3) -> 0 | BF95: =SUMIF(BDD!$BH$2:$BH$3,"Banc cisaillementVRAIFAUXFAUXFAUXVRAI",BDD!$Z$2:$Z$3) -> 0 | BG95: =SUMIF(BDD!$BH$2:$BH$3,"Banc cisaillementFAUXVRAIVRAIFAUXFAUX",BDD!$Z$2:$Z$3) -> 0 | BH95: =SUMIF(BDD!$BH$2:$BH$3,"Banc cisaillementFAUXVRAIFAUXVRAIFAUX",BDD!$Z$2:$Z$3) -> 0 | BI95: =SUMIF(BDD!$BH$2:$BH$3,"Banc cisaillementFAUXVRAIFAUXFAUXVRAI",BDD!$Z$2:$Z$3) -> 0 | BJ95: =SUMIF(BDD!$BH$2:$BH$3,"Banc cisaillementVRAIFAUXVRAIFAUXFAUX",BDD!$Z$2:$Z$3) -> 0 | BK95: =SUMIF(BDD!$BH$2:$BH$3,"Banc cisaillementVRAIFAUXFAUXVRAIFAUX",BDD!$Z$2:$Z$3) -> 0 | BL95: =SUMIF(BDD!$BH$2:$BH$3,"Banc cisaillementVRAIFAUXFAUXFAUXVRAI",BDD!$Z$2:$Z$3) -> 0 | BM95: =SUMIF(BDD!$BH$2:$BH$3,"Banc cisaillementFAUXVRAIVRAIFAUXFAUX",BDD!$Z$2:$Z$3) -> 0 | BN95: =SUMIF(BDD!$BH$2:$BH$3,"Banc cisaillementFAUXVRAIFAUXVRAIFAUX",BDD!$Z$2:$Z$3) -> 0 | BO95: =SUMIF(BDD!$BH$2:$BH$3,"Banc cisaillementFAUXVRAIFAUXFAUXVRAI",BDD!$Z$2:$Z$3) -> 0 | BP95: =SUMIF(BDD!$BH$2:$BH$3,"Banc cisaillementVRAIFAUXVRAIFAUXFAUX",BDD!$Z$2:$Z$3) -> 0 | BQ95: =SUMIF(BDD!$BH$2:$BH$3,"Banc cisaillementVRAIFAUXFAUXVRAIFAUX",BDD!$Z$2:$Z$3) -> 0 | BR95: =SUMIF(BDD!$BH$2:$BH$3,"Banc cisaillementVRAIFAUXFAUXFAUXVRAI",BDD!$Z$2:$Z$3) -> 0 | BS95: =SUMIF(BDD!$BH$2:$BH$3,"Banc cisaillementFAUXVRAIVRAIFAUXFAUX",BDD!$Z$2:$Z$3) -> 0 | BT95: =SUMIF(BDD!$BH$2:$BH$3,"Banc cisaillementFAUXVRAIFAUXVRAIFAUX",BDD!$Z$2:$Z$3) -> 0 | BU95: =SUMIF(BDD!$BH$2:$BH$3,"Banc cisaillementFAUXVRAIFAUXFAUXVRAI",BDD!$Z$2:$Z$3) -> 0
A96: Banc HP | B96: =SUMIF(BDD!$BH$2:$BH$3,"Banc HPVRAIFAUXVRAIFAUXFAUX",BDD!$Z$2:$Z$3) -> 0 | C96: =SUMIF(BDD!$BH$2:$BH$3,"Banc HPVRAIFAUXFAUXVRAIFAUX",BDD!$Z$2:$Z$3) -> 0 | D96: =SUMIF(BDD!$BH$2:$BH$3,"Banc HPVRAIFAUXFAUXFAUXVRAI",BDD!$Z$2:$Z$3) -> 0 | E96: =SUMIF(BDD!$BH$2:$BH$3,"Banc HPFAUXVRAIVRAIFAUXFAUX",BDD!$Z$2:$Z$3) -> 0 | F96: =SUMIF(BDD!$BH$2:$BH$3,"Banc HPFAUXVRAIFAUXVRAIFAUX",BDD!$Z$2:$Z$3) -> 0 | G96: =SUMIF(BDD!$BH$2:$BH$3,"Banc HPFAUXVRAIFAUXFAUXVRAI",BDD!$Z$2:$Z$3) -> 0 | H96: =SUMIF(BDD!$BH$2:$BH$3,"Banc HPVRAIFAUXVRAIFAUXFAUX",BDD!$Z$2:$Z$3) -> 0 | I96: =SUMIF(BDD!$BH$2:$BH$3,"Banc HPVRAIFAUXFAUXVRAIFAUX",BDD!$Z$2:$Z$3) -> 0 | J96: =SUMIF(BDD!$BH$2:$BH$3,"Banc HPVRAIFAUXFAUXFAUXVRAI",BDD!$Z$2:$Z$3) -> 0 | K96: =SUMIF(BDD!$BH$2:$BH$3,"Banc HPFAUXVRAIVRAIFAUXFAUX",BDD!$Z$2:$Z$3) -> 0 | L96: =SUMIF(BDD!$BH$2:$BH$3,"Banc HPFAUXVRAIFAUXVRAIFAUX",BDD!$Z$2:$Z$3) -> 0 | M96: =SUMIF(BDD!$BH$2:$BH$3,"Banc HPFAUXVRAIFAUXFAUXVRAI",BDD!$Z$2:$Z$3) -> 0 | N96: =SUMIF(BDD!$BH$2:$BH$25,"Banc HPVRAIFAUXVRAIFAUXFAUX",BDD!$Z$2:$Z$25) -> 0 | O96: =SUMIF(BDD!$BH$2:$BH$25,"Banc HPVRAIFAUXFAUXVRAIFAUX",BDD!$Z$2:$Z$25) -> 0 | P96: =SUMIF(BDD!$BH$2:$BH$25,"Banc HPVRAIFAUXFAUXFAUXVRAI",BDD!$Z$2:$Z$25) -> 0 | Q96: =SUMIF(BDD!$BH$2:$BH$25,"Banc HPFAUXVRAIVRAIFAUXFAUX",BDD!$Z$2:$Z$25) -> 0 | R96: =SUMIF(BDD!$BH$2:$BH$25,"Banc HPFAUXVRAIFAUXVRAIFAUX",BDD!$Z$2:$Z$25) -> 0 | S96: =SUMIF(BDD!$BH$2:$BH$25,"Banc HPFAUXVRAIFAUXFAUXVRAI",BDD!$Z$2:$Z$25) -> 0 | T96: =SUMIF(BDD!$BH$26:$BH$599,"Banc HPVRAIFAUXVRAIFAUXFAUX",BDD!$Z$26:$Z$599) -> 0 | U96: =SUMIF(BDD!$BH$26:$BH$599,"Banc HPVRAIFAUXFAUXVRAIFAUX",BDD!$Z$26:$Z$599) -> 0 | V96: =SUMIF(BDD!$BH$26:$BH$599,"Banc HPVRAIFAUXFAUXFAUXVRAI",BDD!$Z$26:$Z$599) -> 0 | W96: =SUMIF(BDD!$BH$26:$BH$599,"Banc HPFAUXVRAIVRAIFAUXFAUX",BDD!$Z$26:$Z$599) -> 0 | X96: =SUMIF(BDD!$BH$26:$BH$599,"Banc HPFAUXVRAIFAUXVRAIFAUX",BDD!$Z$26:$Z$599) -> 0 | Y96: =SUMIF(BDD!$BH$26:$BH$599,"Banc HPFAUXVRAIFAUXFAUXVRAI",BDD!$Z$26:$Z$599) -> 0 | Z96: =SUMIF(BDD!$BH$2:$BH$3,"Banc HPVRAIFAUXVRAIFAUXFAUX",BDD!$Z$2:$Z$3) -> 0 | AA96: =SUMIF(BDD!$BH$2:$BH$3,"Banc HPVRAIFAUXFAUXVRAIFAUX",BDD!$Z$2:$Z$3) -> 0 | AB96: =SUMIF(BDD!$BH$2:$BH$3,"Banc HPVRAIFAUXFAUXFAUXVRAI",BDD!$Z$2:$Z$3) -> 0 | AC96: =SUMIF(BDD!$BH$2:$BH$3,"Banc HPFAUXVRAIVRAIFAUXFAUX",BDD!$Z$2:$Z$3) -> 0 | AD96: =SUMIF(BDD!$BH$2:$BH$3,"Banc HPFAUXVRAIFAUXVRAIFAUX",BDD!$Z$2:$Z$3) -> 0 | AE96: =SUMIF(BDD!$BH$2:$BH$3,"Banc HPFAUXVRAIFAUXFAUXVRAI",BDD!$Z$2:$Z$3) -> 0 | AF96: =SUMIF(BDD!$BH$2:$BH$3,"Banc HPVRAIFAUXVRAIFAUXFAUX",BDD!$Z$2:$Z$3) -> 0 | AG96: =SUMIF(BDD!$BH$2:$BH$3,"Banc HPVRAIFAUXFAUXVRAIFAUX",BDD!$Z$2:$Z$3) -> 0 | AH96: =SUMIF(BDD!$BH$2:$BH$3,"Banc HPVRAIFAUXFAUXFAUXVRAI",BDD!$Z$2:$Z$3) -> 0 | AI96: =SUMIF(BDD!$BH$2:$BH$3,"Banc HPFAUXVRAIVRAIFAUXFAUX",BDD!$Z$2:$Z$3) -> 0 | AJ96: =SUMIF(BDD!$BH$2:$BH$3,"Banc HPFAUXVRAIFAUXVRAIFAUX",BDD!$Z$2:$Z$3) -> 0 | AK96: =SUMIF(BDD!$BH$2:$BH$3,"Banc HPFAUXVRAIFAUXFAUXVRAI",BDD!$Z$2:$Z$3) -> 0 | AL96: =SUMIF(BDD!$BH$2:$BH$3,"Banc HPVRAIFAUXVRAIFAUXFAUX",BDD!$Z$2:$Z$3) -> 0 | AM96: =SUMIF(BDD!$BH$2:$BH$3,"Banc HPVRAIFAUXFAUXVRAIFAUX",BDD!$Z$2:$Z$3) -> 0 | AN96: =SUMIF(BDD!$BH$2:$BH$3,"Banc HPVRAIFAUXFAUXFAUXVRAI",BDD!$Z$2:$Z$3) -> 0 | AO96: =SUMIF(BDD!$BH$2:$BH$3,"Banc HPFAUXVRAIVRAIFAUXFAUX",BDD!$Z$2:$Z$3) -> 0 | AP96: =SUMIF(BDD!$BH$2:$BH$3,"Banc HPFAUXVRAIFAUXVRAIFAUX",BDD!$Z$2:$Z$3) -> 0 | AQ96: =SUMIF(BDD!$BH$2:$BH$3,"Banc HPFAUXVRAIFAUXFAUXVRAI",BDD!$Z$2:$Z$3) -> 0 | AR96: =SUMIF(BDD!$BH$2:$BH$3,"Banc HPVRAIFAUXVRAIFAUXFAUX",BDD!$Z$2:$Z$3) -> 0 | AS96: =SUMIF(BDD!$BH$2:$BH$3,"Banc HPVRAIFAUXFAUXVRAIFAUX",BDD!$Z$2:$Z$3) -> 0 | AT96: =SUMIF(BDD!$BH$2:$BH$3,"Banc HPVRAIFAUXFAUXFAUXVRAI",BDD!$Z$2:$Z$3) -> 0 | AU96: =SUMIF(BDD!$BH$2:$BH$3,"Banc HPFAUXVRAIVRAIFAUXFAUX",BDD!$Z$2:$Z$3) -> 0 | AV96: =SUMIF(BDD!$BH$2:$BH$3,"Banc HPFAUXVRAIFAUXVRAIFAUX",BDD!$Z$2:$Z$3) -> 0 | AW96: =SUMIF(BDD!$BH$2:$BH$3,"Banc HPFAUXVRAIFAUXFAUXVRAI",BDD!$Z$2:$Z$3) -> 0 | AX96: =SUMIF(BDD!$BH$2:$BH$3,"Banc HPVRAIFAUXVRAIFAUXFAUX",BDD!$Z$2:$Z$3) -> 0 | AY96: =SUMIF(BDD!$BH$2:$BH$3,"Banc HPVRAIFAUXFAUXVRAIFAUX",BDD!$Z$2:$Z$3) -> 0 | AZ96: =SUMIF(BDD!$BH$2:$BH$3,"Banc HPVRAIFAUXFAUXFAUXVRAI",BDD!$Z$2:$Z$3) -> 0 | BA96: =SUMIF(BDD!$BH$2:$BH$3,"Banc HPFAUXVRAIVRAIFAUXFAUX",BDD!$Z$2:$Z$3) -> 0 | BB96: =SUMIF(BDD!$BH$2:$BH$3,"Banc HPFAUXVRAIFAUXVRAIFAUX",BDD!$Z$2:$Z$3) -> 0 | BC96: =SUMIF(BDD!$BH$2:$BH$3,"Banc HPFAUXVRAIFAUXFAUXVRAI",BDD!$Z$2:$Z$3) -> 0 | BD96: =SUMIF(BDD!$BH$2:$BH$3,"Banc HPVRAIFAUXVRAIFAUXFAUX",BDD!$Z$2:$Z$3) -> 0 | BE96: =SUMIF(BDD!$BH$2:$BH$3,"Banc HPVRAIFAUXFAUXVRAIFAUX",BDD!$Z$2:$Z$3) -> 0 | BF96: =SUMIF(BDD!$BH$2:$BH$3,"Banc HPVRAIFAUXFAUXFAUXVRAI",BDD!$Z$2:$Z$3) -> 0 | BG96: =SUMIF(BDD!$BH$2:$BH$3,"Banc HPFAUXVRAIVRAIFAUXFAUX",BDD!$Z$2:$Z$3) -> 0 | BH96: =SUMIF(BDD!$BH$2:$BH$3,"Banc HPFAUXVRAIFAUXVRAIFAUX",BDD!$Z$2:$Z$3) -> 0 | BI96: =SUMIF(BDD!$BH$2:$BH$3,"Banc HPFAUXVRAIFAUXFAUXVRAI",BDD!$Z$2:$Z$3) -> 0 | BJ96: =SUMIF(BDD!$BH$2:$BH$3,"Banc HPVRAIFAUXVRAIFAUXFAUX",BDD!$Z$2:$Z$3) -> 0 | BK96: =SUMIF(BDD!$BH$2:$BH$3,"Banc HPVRAIFAUXFAUXVRAIFAUX",BDD!$Z$2:$Z$3) -> 0 | BL96: =SUMIF(BDD!$BH$2:$BH$3,"Banc HPVRAIFAUXFAUXFAUXVRAI",BDD!$Z$2:$Z$3) -> 0 | BM96: =SUMIF(BDD!$BH$2:$BH$3,"Banc HPFAUXVRAIVRAIFAUXFAUX",BDD!$Z$2:$Z$3) -> 0 | BN96: =SUMIF(BDD!$BH$2:$BH$3,"Banc HPFAUXVRAIFAUXVRAIFAUX",BDD!$Z$2:$Z$3) -> 0 | BO96: =SUMIF(BDD!$BH$2:$BH$3,"Banc HPFAUXVRAIFAUXFAUXVRAI",BDD!$Z$2:$Z$3) -> 0 | BP96: =SUMIF(BDD!$BH$2:$BH$3,"Banc HPVRAIFAUXVRAIFAUXFAUX",BDD!$Z$2:$Z$3) -> 0 | BQ96: =SUMIF(BDD!$BH$2:$BH$3,"Banc HPVRAIFAUXFAUXVRAIFAUX",BDD!$Z$2:$Z$3) -> 0 | BR96: =SUMIF(BDD!$BH$2:$BH$3,"Banc HPVRAIFAUXFAUXFAUXVRAI",BDD!$Z$2:$Z$3) -> 0 | BS96: =SUMIF(BDD!$BH$2:$BH$3,"Banc HPFAUXVRAIVRAIFAUXFAUX",BDD!$Z$2:$Z$3) -> 0 | BT96: =SUMIF(BDD!$BH$2:$BH$3,"Banc HPFAUXVRAIFAUXVRAIFAUX",BDD!$Z$2:$Z$3) -> 0 | BU96: =SUMIF(BDD!$BH$2:$BH$3,"Banc HPFAUXVRAIFAUXFAUXVRAI",BDD!$Z$2:$Z$3) -> 0
A97: Banc W+B | B97: =SUMIF(BDD!$BH$2:$BH$3,"Banc W+BVRAIFAUXVRAIFAUXFAUX",BDD!$Z$2:$Z$3) -> 0 | C97: =SUMIF(BDD!$BH$2:$BH$3,"Banc W+BVRAIFAUXFAUXVRAIFAUX",BDD!$Z$2:$Z$3) -> 0 | D97: =SUMIF(BDD!$BH$2:$BH$3,"Banc W+BVRAIFAUXFAUXFAUXVRAI",BDD!$Z$2:$Z$3) -> 0 | E97: =SUMIF(BDD!$BH$2:$BH$3,"Banc W+BFAUXVRAIVRAIFAUXFAUX",BDD!$Z$2:$Z$3) -> 0 | F97: =SUMIF(BDD!$BH$2:$BH$3,"Banc W+BFAUXVRAIFAUXVRAIFAUX",BDD!$Z$2:$Z$3) -> 0 | G97: =SUMIF(BDD!$BH$2:$BH$3,"Banc W+BFAUXVRAIFAUXFAUXVRAI",BDD!$Z$2:$Z$3) -> 0 | H97: =SUMIF(BDD!$BH$2:$BH$3,"Banc W+BVRAIFAUXVRAIFAUXFAUX",BDD!$Z$2:$Z$3) -> 0 | I97: =SUMIF(BDD!$BH$2:$BH$3,"Banc W+BVRAIFAUXFAUXVRAIFAUX",BDD!$Z$2:$Z$3) -> 0 | J97: =SUMIF(BDD!$BH$2:$BH$3,"Banc W+BVRAIFAUXFAUXFAUXVRAI",BDD!$Z$2:$Z$3) -> 0 | K97: =SUMIF(BDD!$BH$2:$BH$3,"Banc W+BFAUXVRAIVRAIFAUXFAUX",BDD!$Z$2:$Z$3) -> 0 | L97: =SUMIF(BDD!$BH$2:$BH$3,"Banc W+BFAUXVRAIFAUXVRAIFAUX",BDD!$Z$2:$Z$3) -> 0 | M97: =SUMIF(BDD!$BH$2:$BH$3,"Banc W+BFAUXVRAIFAUXFAUXVRAI",BDD!$Z$2:$Z$3) -> 0 | N97: =SUMIF(BDD!$BH$2:$BH$25,"Banc W+BVRAIFAUXVRAIFAUXFAUX",BDD!$Z$2:$Z$25) -> 0 | O97: =SUMIF(BDD!$BH$2:$BH$25,"Banc W+BVRAIFAUXFAUXVRAIFAUX",BDD!$Z$2:$Z$25) -> 0 | P97: =SUMIF(BDD!$BH$2:$BH$25,"Banc W+BVRAIFAUXFAUXFAUXVRAI",BDD!$Z$2:$Z$25) -> 0 | Q97: =SUMIF(BDD!$BH$2:$BH$25,"Banc W+BFAUXVRAIVRAIFAUXFAUX",BDD!$Z$2:$Z$25) -> 0 | R97: =SUMIF(BDD!$BH$2:$BH$25,"Banc W+BFAUXVRAIFAUXVRAIFAUX",BDD!$Z$2:$Z$25) -> 0 | S97: =SUMIF(BDD!$BH$2:$BH$25,"Banc W+BFAUXVRAIFAUXFAUXVRAI",BDD!$Z$2:$Z$25) -> 0 | T97: =SUMIF(BDD!$BH$26:$BH$599,"Banc W+BVRAIFAUXVRAIFAUXFAUX",BDD!$Z$26:$Z$599) -> 0 | U97: =SUMIF(BDD!$BH$26:$BH$599,"Banc W+BVRAIFAUXFAUXVRAIFAUX",BDD!$Z$26:$Z$599) -> 0 | V97: =SUMIF(BDD!$BH$26:$BH$599,"Banc W+BVRAIFAUXFAUXFAUXVRAI",BDD!$Z$26:$Z$599) -> 0 | W97: =SUMIF(BDD!$BH$26:$BH$599,"Banc W+BFAUXVRAIVRAIFAUXFAUX",BDD!$Z$26:$Z$599) -> 0 | X97: =SUMIF(BDD!$BH$26:$BH$599,"Banc W+BFAUXVRAIFAUXVRAIFAUX",BDD!$Z$26:$Z$599) -> 0 | Y97: =SUMIF(BDD!$BH$26:$BH$599,"Banc W+BFAUXVRAIFAUXFAUXVRAI",BDD!$Z$26:$Z$599) -> 0 | Z97: =SUMIF(BDD!$BH$2:$BH$3,"Banc W+BVRAIFAUXVRAIFAUXFAUX",BDD!$Z$2:$Z$3) -> 0 | AA97: =SUMIF(BDD!$BH$2:$BH$3,"Banc W+BVRAIFAUXFAUXVRAIFAUX",BDD!$Z$2:$Z$3) -> 0 | AB97: =SUMIF(BDD!$BH$2:$BH$3,"Banc W+BVRAIFAUXFAUXFAUXVRAI",BDD!$Z$2:$Z$3) -> 0 | AC97: =SUMIF(BDD!$BH$2:$BH$3,"Banc W+BFAUXVRAIVRAIFAUXFAUX",BDD!$Z$2:$Z$3) -> 0 | AD97: =SUMIF(BDD!$BH$2:$BH$3,"Banc W+BFAUXVRAIFAUXVRAIFAUX",BDD!$Z$2:$Z$3) -> 0 | AE97: =SUMIF(BDD!$BH$2:$BH$3,"Banc W+BFAUXVRAIFAUXFAUXVRAI",BDD!$Z$2:$Z$3) -> 0 | AF97: =SUMIF(BDD!$BH$2:$BH$3,"Banc W+BVRAIFAUXVRAIFAUXFAUX",BDD!$Z$2:$Z$3) -> 0 | AG97: =SUMIF(BDD!$BH$2:$BH$3,"Banc W+BVRAIFAUXFAUXVRAIFAUX",BDD!$Z$2:$Z$3) -> 0 | AH97: =SUMIF(BDD!$BH$2:$BH$3,"Banc W+BVRAIFAUXFAUXFAUXVRAI",BDD!$Z$2:$Z$3) -> 0 | AI97: =SUMIF(BDD!$BH$2:$BH$3,"Banc W+BFAUXVRAIVRAIFAUXFAUX",BDD!$Z$2:$Z$3) -> 0 | AJ97: =SUMIF(BDD!$BH$2:$BH$3,"Banc W+BFAUXVRAIFAUXVRAIFAUX",BDD!$Z$2:$Z$3) -> 0 | AK97: =SUMIF(BDD!$BH$2:$BH$3,"Banc W+BFAUXVRAIFAUXFAUXVRAI",BDD!$Z$2:$Z$3) -> 0 | AL97: =SUMIF(BDD!$BH$2:$BH$3,"Banc W+BVRAIFAUXVRAIFAUXFAUX",BDD!$Z$2:$Z$3) -> 0 | AM97: =SUMIF(BDD!$BH$2:$BH$3,"Banc W+BVRAIFAUXFAUXVRAIFAUX",BDD!$Z$2:$Z$3) -> 0 | AN97: =SUMIF(BDD!$BH$2:$BH$3,"Banc W+BVRAIFAUXFAUXFAUXVRAI",BDD!$Z$2:$Z$3) -> 0 | AO97: =SUMIF(BDD!$BH$2:$BH$3,"Banc W+BFAUXVRAIVRAIFAUXFAUX",BDD!$Z$2:$Z$3) -> 0 | AP97: =SUMIF(BDD!$BH$2:$BH$3,"Banc W+BFAUXVRAIFAUXVRAIFAUX",BDD!$Z$2:$Z$3) -> 0 | AQ97: =SUMIF(BDD!$BH$2:$BH$3,"Banc W+BFAUXVRAIFAUXFAUXVRAI",BDD!$Z$2:$Z$3) -> 0 | AR97: =SUMIF(BDD!$BH$2:$BH$3,"Banc W+BVRAIFAUXVRAIFAUXFAUX",BDD!$Z$2:$Z$3) -> 0 | AS97: =SUMIF(BDD!$BH$2:$BH$3,"Banc W+BVRAIFAUXFAUXVRAIFAUX",BDD!$Z$2:$Z$3) -> 0 | AT97: =SUMIF(BDD!$BH$2:$BH$3,"Banc W+BVRAIFAUXFAUXFAUXVRAI",BDD!$Z$2:$Z$3) -> 0 | AU97: =SUMIF(BDD!$BH$2:$BH$3,"Banc W+BFAUXVRAIVRAIFAUXFAUX",BDD!$Z$2:$Z$3) -> 0 | AV97: =SUMIF(BDD!$BH$2:$BH$3,"Banc W+BFAUXVRAIFAUXVRAIFAUX",BDD!$Z$2:$Z$3) -> 0 | AW97: =SUMIF(BDD!$BH$2:$BH$3,"Banc W+BFAUXVRAIFAUXFAUXVRAI",BDD!$Z$2:$Z$3) -> 0 | AX97: =SUMIF(BDD!$BH$2:$BH$3,"Banc W+BVRAIFAUXVRAIFAUXFAUX",BDD!$Z$2:$Z$3) -> 0 | AY97: =SUMIF(BDD!$BH$2:$BH$3,"Banc W+BVRAIFAUXFAUXVRAIFAUX",BDD!$Z$2:$Z$3) -> 0 | AZ97: =SUMIF(BDD!$BH$2:$BH$3,"Banc W+BVRAIFAUXFAUXFAUXVRAI",BDD!$Z$2:$Z$3) -> 0 | BA97: =SUMIF(BDD!$BH$2:$BH$3,"Banc W+BFAUXVRAIVRAIFAUXFAUX",BDD!$Z$2:$Z$3) -> 0 | BB97: =SUMIF(BDD!$BH$2:$BH$3,"Banc W+BFAUXVRAIFAUXVRAIFAUX",BDD!$Z$2:$Z$3) -> 0 | BC97: =SUMIF(BDD!$BH$2:$BH$3,"Banc W+BFAUXVRAIFAUXFAUXVRAI",BDD!$Z$2:$Z$3) -> 0 | BD97: =SUMIF(BDD!$BH$2:$BH$3,"Banc W+BVRAIFAUXVRAIFAUXFAUX",BDD!$Z$2:$Z$3) -> 0 | BE97: =SUMIF(BDD!$BH$2:$BH$3,"Banc W+BVRAIFAUXFAUXVRAIFAUX",BDD!$Z$2:$Z$3) -> 0 | BF97: =SUMIF(BDD!$BH$2:$BH$3,"Banc W+BVRAIFAUXFAUXFAUXVRAI",BDD!$Z$2:$Z$3) -> 0 | BG97: =SUMIF(BDD!$BH$2:$BH$3,"Banc W+BFAUXVRAIVRAIFAUXFAUX",BDD!$Z$2:$Z$3) -> 0 | BH97: =SUMIF(BDD!$BH$2:$BH$3,"Banc W+BFAUXVRAIFAUXVRAIFAUX",BDD!$Z$2:$Z$3) -> 0 | BI97: =SUMIF(BDD!$BH$2:$BH$3,"Banc W+BFAUXVRAIFAUXFAUXVRAI",BDD!$Z$2:$Z$3) -> 0 | BJ97: =SUMIF(BDD!$BH$2:$BH$3,"Banc W+BVRAIFAUXVRAIFAUXFAUX",BDD!$Z$2:$Z$3) -> 0 | BK97: =SUMIF(BDD!$BH$2:$BH$3,"Banc W+BVRAIFAUXFAUXVRAIFAUX",BDD!$Z$2:$Z$3) -> 0 | BL97: =SUMIF(BDD!$BH$2:$BH$3,"Banc W+BVRAIFAUXFAUXFAUXVRAI",BDD!$Z$2:$Z$3) -> 0 | BM97: =SUMIF(BDD!$BH$2:$BH$3,"Banc W+BFAUXVRAIVRAIFAUXFAUX",BDD!$Z$2:$Z$3) -> 0 | BN97: =SUMIF(BDD!$BH$2:$BH$3,"Banc W+BFAUXVRAIFAUXVRAIFAUX",BDD!$Z$2:$Z$3) -> 0 | BO97: =SUMIF(BDD!$BH$2:$BH$3,"Banc W+BFAUXVRAIFAUXFAUXVRAI",BDD!$Z$2:$Z$3) -> 0 | BP97: =SUMIF(BDD!$BH$2:$BH$3,"Banc W+BVRAIFAUXVRAIFAUXFAUX",BDD!$Z$2:$Z$3) -> 0 | BQ97: =SUMIF(BDD!$BH$2:$BH$3,"Banc W+BVRAIFAUXFAUXVRAIFAUX",BDD!$Z$2:$Z$3) -> 0 | BR97: =SUMIF(BDD!$BH$2:$BH$3,"Banc W+BVRAIFAUXFAUXFAUXVRAI",BDD!$Z$2:$Z$3) -> 0 | BS97: =SUMIF(BDD!$BH$2:$BH$3,"Banc W+BFAUXVRAIVRAIFAUXFAUX",BDD!$Z$2:$Z$3) -> 0 | BT97: =SUMIF(BDD!$BH$2:$BH$3,"Banc W+BFAUXVRAIFAUXVRAIFAUX",BDD!$Z$2:$Z$3) -> 0 | BU97: =SUMIF(BDD!$BH$2:$BH$3,"Banc W+BFAUXVRAIFAUXFAUXVRAI",BDD!$Z$2:$Z$3) -> 0
A98: Ressort verticale | B98: =SUMIF(BDD!$BH$2:$BH$3,"Ressort verticaleVRAIFAUXVRAIFAUXFAUX",BDD!$Z$2:$Z$3) -> 0 | C98: =SUMIF(BDD!$BH$2:$BH$3,"Ressort verticaleVRAIFAUXFAUXVRAIFAUX",BDD!$Z$2:$Z$3) -> 0 | D98: =SUMIF(BDD!$BH$2:$BH$3,"Ressort verticaleVRAIFAUXFAUXFAUXVRAI",BDD!$Z$2:$Z$3) -> 0 | E98: =SUMIF(BDD!$BH$2:$BH$3,"Ressort verticaleFAUXVRAIVRAIFAUXFAUX",BDD!$Z$2:$Z$3) -> 0 | F98: =SUMIF(BDD!$BH$2:$BH$3,"Ressort verticaleFAUXVRAIFAUXVRAIFAUX",BDD!$Z$2:$Z$3) -> 0 | G98: =SUMIF(BDD!$BH$2:$BH$3,"Ressort verticaleFAUXVRAIFAUXFAUXVRAI",BDD!$Z$2:$Z$3) -> 0 | H98: =SUMIF(BDD!$BH$2:$BH$3,"Ressort verticaleVRAIFAUXVRAIFAUXFAUX",BDD!$Z$2:$Z$3) -> 0 | I98: =SUMIF(BDD!$BH$2:$BH$3,"Ressort verticaleVRAIFAUXFAUXVRAIFAUX",BDD!$Z$2:$Z$3) -> 0 | J98: =SUMIF(BDD!$BH$2:$BH$3,"Ressort verticaleVRAIFAUXFAUXFAUXVRAI",BDD!$Z$2:$Z$3) -> 0 | K98: =SUMIF(BDD!$BH$2:$BH$3,"Ressort verticaleFAUXVRAIVRAIFAUXFAUX",BDD!$Z$2:$Z$3) -> 0 | L98: =SUMIF(BDD!$BH$2:$BH$3,"Ressort verticaleFAUXVRAIFAUXVRAIFAUX",BDD!$Z$2:$Z$3) -> 0 | M98: =SUMIF(BDD!$BH$2:$BH$3,"Ressort verticaleFAUXVRAIFAUXFAUXVRAI",BDD!$Z$2:$Z$3) -> 0 | N98: =SUMIF(BDD!$BH$2:$BH$25,"Ressort verticaleVRAIFAUXVRAIFAUXFAUX",BDD!$Z$2:$Z$25) -> 0 | O98: =SUMIF(BDD!$BH$2:$BH$25,"Ressort verticaleVRAIFAUXFAUXVRAIFAUX",BDD!$Z$2:$Z$25) -> 0 | P98: =SUMIF(BDD!$BH$2:$BH$25,"Ressort verticaleVRAIFAUXFAUXFAUXVRAI",BDD!$Z$2:$Z$25) -> 0 | Q98: =SUMIF(BDD!$BH$2:$BH$25,"Ressort verticaleFAUXVRAIVRAIFAUXFAUX",BDD!$Z$2:$Z$25) -> 0 | R98: =SUMIF(BDD!$BH$2:$BH$25,"Ressort verticaleFAUXVRAIFAUXVRAIFAUX",BDD!$Z$2:$Z$25) -> 0 | S98: =SUMIF(BDD!$BH$2:$BH$25,"Ressort verticaleFAUXVRAIFAUXFAUXVRAI",BDD!$Z$2:$Z$25) -> 0 | T98: =SUMIF(BDD!$BH$26:$BH$599,"Ressort verticaleVRAIFAUXVRAIFAUXFAUX",BDD!$Z$26:$Z$599) -> 0 | U98: =SUMIF(BDD!$BH$26:$BH$599,"Ressort verticaleVRAIFAUXFAUXVRAIFAUX",BDD!$Z$26:$Z$599) -> 0 | V98: =SUMIF(BDD!$BH$26:$BH$599,"Ressort verticaleVRAIFAUXFAUXFAUXVRAI",BDD!$Z$26:$Z$599) -> 0 | W98: =SUMIF(BDD!$BH$26:$BH$599,"Ressort verticaleFAUXVRAIVRAIFAUXFAUX",BDD!$Z$26:$Z$599) -> 0 | X98: =SUMIF(BDD!$BH$26:$BH$599,"Ressort verticaleFAUXVRAIFAUXVRAIFAUX",BDD!$Z$26:$Z$599) -> 0 | Y98: =SUMIF(BDD!$BH$26:$BH$599,"Ressort verticaleFAUXVRAIFAUXFAUXVRAI",BDD!$Z$26:$Z$599) -> 0 | Z98: =SUMIF(BDD!$BH$2:$BH$3,"Ressort verticaleVRAIFAUXVRAIFAUXFAUX",BDD!$Z$2:$Z$3) -> 0 | AA98: =SUMIF(BDD!$BH$2:$BH$3,"Ressort verticaleVRAIFAUXFAUXVRAIFAUX",BDD!$Z$2:$Z$3) -> 0 | AB98: =SUMIF(BDD!$BH$2:$BH$3,"Ressort verticaleVRAIFAUXFAUXFAUXVRAI",BDD!$Z$2:$Z$3) -> 0 | AC98: =SUMIF(BDD!$BH$2:$BH$3,"Ressort verticaleFAUXVRAIVRAIFAUXFAUX",BDD!$Z$2:$Z$3) -> 0 | AD98: =SUMIF(BDD!$BH$2:$BH$3,"Ressort verticaleFAUXVRAIFAUXVRAIFAUX",BDD!$Z$2:$Z$3) -> 0 | AE98: =SUMIF(BDD!$BH$2:$BH$3,"Ressort verticaleFAUXVRAIFAUXFAUXVRAI",BDD!$Z$2:$Z$3) -> 0 | AF98: =SUMIF(BDD!$BH$2:$BH$3,"Ressort verticaleVRAIFAUXVRAIFAUXFAUX",BDD!$Z$2:$Z$3) -> 0 | AG98: =SUMIF(BDD!$BH$2:$BH$3,"Ressort verticaleVRAIFAUXFAUXVRAIFAUX",BDD!$Z$2:$Z$3) -> 0 | AH98: =SUMIF(BDD!$BH$2:$BH$3,"Ressort verticaleVRAIFAUXFAUXFAUXVRAI",BDD!$Z$2:$Z$3) -> 0 | AI98: =SUMIF(BDD!$BH$2:$BH$3,"Ressort verticaleFAUXVRAIVRAIFAUXFAUX",BDD!$Z$2:$Z$3) -> 0 | AJ98: =SUMIF(BDD!$BH$2:$BH$3,"Ressort verticaleFAUXVRAIFAUXVRAIFAUX",BDD!$Z$2:$Z$3) -> 0 | AK98: =SUMIF(BDD!$BH$2:$BH$3,"Ressort verticaleFAUXVRAIFAUXFAUXVRAI",BDD!$Z$2:$Z$3) -> 0 | AL98: =SUMIF(BDD!$BH$2:$BH$3,"Ressort verticaleVRAIFAUXVRAIFAUXFAUX",BDD!$Z$2:$Z$3) -> 0 | AM98: =SUMIF(BDD!$BH$2:$BH$3,"Ressort verticaleVRAIFAUXFAUXVRAIFAUX",BDD!$Z$2:$Z$3) -> 0 | AN98: =SUMIF(BDD!$BH$2:$BH$3,"Ressort verticaleVRAIFAUXFAUXFAUXVRAI",BDD!$Z$2:$Z$3) -> 0 | AO98: =SUMIF(BDD!$BH$2:$BH$3,"Ressort verticaleFAUXVRAIVRAIFAUXFAUX",BDD!$Z$2:$Z$3) -> 0 | AP98: =SUMIF(BDD!$BH$2:$BH$3,"Ressort verticaleFAUXVRAIFAUXVRAIFAUX",BDD!$Z$2:$Z$3) -> 0 | AQ98: =SUMIF(BDD!$BH$2:$BH$3,"Ressort verticaleFAUXVRAIFAUXFAUXVRAI",BDD!$Z$2:$Z$3) -> 0 | AR98: =SUMIF(BDD!$BH$2:$BH$3,"Ressort verticaleVRAIFAUXVRAIFAUXFAUX",BDD!$Z$2:$Z$3) -> 0 | AS98: =SUMIF(BDD!$BH$2:$BH$3,"Ressort verticaleVRAIFAUXFAUXVRAIFAUX",BDD!$Z$2:$Z$3) -> 0 | AT98: =SUMIF(BDD!$BH$2:$BH$3,"Ressort verticaleVRAIFAUXFAUXFAUXVRAI",BDD!$Z$2:$Z$3) -> 0 | AU98: =SUMIF(BDD!$BH$2:$BH$3,"Ressort verticaleFAUXVRAIVRAIFAUXFAUX",BDD!$Z$2:$Z$3) -> 0 | AV98: =SUMIF(BDD!$BH$2:$BH$3,"Ressort verticaleFAUXVRAIFAUXVRAIFAUX",BDD!$Z$2:$Z$3) -> 0 | AW98: =SUMIF(BDD!$BH$2:$BH$3,"Ressort verticaleFAUXVRAIFAUXFAUXVRAI",BDD!$Z$2:$Z$3) -> 0 | AX98: =SUMIF(BDD!$BH$2:$BH$3,"Ressort verticaleVRAIFAUXVRAIFAUXFAUX",BDD!$Z$2:$Z$3) -> 0 | AY98: =SUMIF(BDD!$BH$2:$BH$3,"Ressort verticaleVRAIFAUXFAUXVRAIFAUX",BDD!$Z$2:$Z$3) -> 0 | AZ98: =SUMIF(BDD!$BH$2:$BH$3,"Ressort verticaleVRAIFAUXFAUXFAUXVRAI",BDD!$Z$2:$Z$3) -> 0 | BA98: =SUMIF(BDD!$BH$2:$BH$3,"Ressort verticaleFAUXVRAIVRAIFAUXFAUX",BDD!$Z$2:$Z$3) -> 0 | BB98: =SUMIF(BDD!$BH$2:$BH$3,"Ressort verticaleFAUXVRAIFAUXVRAIFAUX",BDD!$Z$2:$Z$3) -> 0 | BC98: =SUMIF(BDD!$BH$2:$BH$3,"Ressort verticaleFAUXVRAIFAUXFAUXVRAI",BDD!$Z$2:$Z$3) -> 0 | BD98: =SUMIF(BDD!$BH$2:$BH$3,"Ressort verticaleVRAIFAUXVRAIFAUXFAUX",BDD!$Z$2:$Z$3) -> 0 | BE98: =SUMIF(BDD!$BH$2:$BH$3,"Ressort verticaleVRAIFAUXFAUXVRAIFAUX",BDD!$Z$2:$Z$3) -> 0 | BF98: =SUMIF(BDD!$BH$2:$BH$3,"Ressort verticaleVRAIFAUXFAUXFAUXVRAI",BDD!$Z$2:$Z$3) -> 0 | BG98: =SUMIF(BDD!$BH$2:$BH$3,"Ressort verticaleFAUXVRAIVRAIFAUXFAUX",BDD!$Z$2:$Z$3) -> 0 | BH98: =SUMIF(BDD!$BH$2:$BH$3,"Ressort verticaleFAUXVRAIFAUXVRAIFAUX",BDD!$Z$2:$Z$3) -> 0 | BI98: =SUMIF(BDD!$BH$2:$BH$3,"Ressort verticaleFAUXVRAIFAUXFAUXVRAI",BDD!$Z$2:$Z$3) -> 0 | BJ98: =SUMIF(BDD!$BH$2:$BH$3,"Ressort verticaleVRAIFAUXVRAIFAUXFAUX",BDD!$Z$2:$Z$3) -> 0 | BK98: =SUMIF(BDD!$BH$2:$BH$3,"Ressort verticaleVRAIFAUXFAUXVRAIFAUX",BDD!$Z$2:$Z$3) -> 0 | BL98: =SUMIF(BDD!$BH$2:$BH$3,"Ressort verticaleVRAIFAUXFAUXFAUXVRAI",BDD!$Z$2:$Z$3) -> 0 | BM98: =SUMIF(BDD!$BH$2:$BH$3,"Ressort verticaleFAUXVRAIVRAIFAUXFAUX",BDD!$Z$2:$Z$3) -> 0 | BN98: =SUMIF(BDD!$BH$2:$BH$3,"Ressort verticaleFAUXVRAIFAUXVRAIFAUX",BDD!$Z$2:$Z$3) -> 0 | BO98: =SUMIF(BDD!$BH$2:$BH$3,"Ressort verticaleFAUXVRAIFAUXFAUXVRAI",BDD!$Z$2:$Z$3) -> 0 | BP98: =SUMIF(BDD!$BH$2:$BH$3,"Ressort verticaleVRAIFAUXVRAIFAUXFAUX",BDD!$Z$2:$Z$3) -> 0 | BQ98: =SUMIF(BDD!$BH$2:$BH$3,"Ressort verticaleVRAIFAUXFAUXVRAIFAUX",BDD!$Z$2:$Z$3) -> 0 | BR98: =SUMIF(BDD!$BH$2:$BH$3,"Ressort verticaleVRAIFAUXFAUXFAUXVRAI",BDD!$Z$2:$Z$3) -> 0 | BS98: =SUMIF(BDD!$BH$2:$BH$3,"Ressort verticaleFAUXVRAIVRAIFAUXFAUX",BDD!$Z$2:$Z$3) -> 0 | BT98: =SUMIF(BDD!$BH$2:$BH$3,"Ressort verticaleFAUXVRAIFAUXVRAIFAUX",BDD!$Z$2:$Z$3) -> 0 | BU98: =SUMIF(BDD!$BH$2:$BH$3,"Ressort verticaleFAUXVRAIFAUXFAUXVRAI",BDD!$Z$2:$Z$3) -> 0
B125: Suivi du correctif et du préventif par banc
B126: Janvier | H126: Février | N126: Mars | T126: Avril | Z126: Mai | AF126: Juin | AL126: Juillet | AR126: Août | AX126: Septembre | BD126: Octobre | BJ126: Novembre | BP126: Décembre
B127: Préparation essais | E127: Amélioration | H127: Préparation essais | K127: Amélioration | N127: Préparation essais | Q127: Amélioration | T127: Préparation essais | W127: Amélioration | Z127: Préparation essais | AC127: Amélioration | AF127: Préparation essais | AI127: Amélioration | AL127: Préparation essais | AO127: Amélioration | AR127: Préparation essais | AU127: Amélioration | AX127: Préparation essais | BA127: Amélioration | BD127: Préparation essais | BG127: Amélioration | BJ127: Préparation essais | BM127: Amélioration | BP127: Préparation essais | BS127: Amélioration
A128: Banc zone 5 | B128: Electrique | C128: Mécanique | D128: Hydraulique | E128: Electrique | F128: Mécanique | G128: Hydraulique | H128: Electrique | I128: Mécanique | J128: Hydraulique | K128: Electrique | L128: Mécanique | M128: Hydraulique | N128: Electrique | O128: Mécanique | P128: Hydraulique | Q128: Electrique | R128: Mécanique | S128: Hydraulique | T128: Electrique | U128: Mécanique | V128: Hydraulique | W128: Electrique | X128: Mécanique | Y128: Hydraulique | Z128: Electrique | AA128: Mécanique | AB128: Hydraulique | AC128: Electrique | AD128: Mécanique | AE128: Hydraulique | AF128: Electrique | AG128: Mécanique | AH128: Hydraulique | AI128: Electrique | AJ128: Mécanique | AK128: Hydraulique | AL128: Electrique | AM128: Mécanique | AN128: Hydraulique | AO128: Electrique | AP128: Mécanique | AQ128: Hydraulique | AR128: Electrique | AS128: Mécanique | AT128: Hydraulique | AU128: Electrique | AV128: Mécanique | AW128: Hydraulique | AX128: Electrique | AY128: Mécanique | AZ128: Hydraulique | BA128: Electrique | BB128: Mécanique | BC128: Hydraulique | BD128: Electrique | BE128: Mécanique | BF128: Hydraulique | BG128: Electrique | BH128: Mécanique | BI128: Hydraulique | BJ128: Electrique | BK128: Mécanique | BL128: Hydraulique | BM128: Electrique | BN128: Mécanique | BO128: Hydraulique | BP128: Electrique | BQ128: Mécanique | BR128: Hydraulique | BS128: Electrique | BT128: Mécanique | BU128: Hydraulique
A129: Banc 124 | B129: =SUMIF(BDD!$BI$2:$BI$3,"Banc 124FAUXFAUXVRAIFAUXVRAIFAUXFAUX",BDD!$Z$2:$Z$3) -> 0 | C129: =SUMIF(BDD!$BI$2:$BI$3,"Banc 124FAUXFAUXVRAIFAUXFAUXVRAIFAUX",BDD!$Z$2:$Z$3) -> 0 | D129: =SUMIF(BDD!$BI$2:$BI$3,"Banc 124FAUXFAUXVRAIFAUXFAUXFAUXVRAI",BDD!$Z$2:$Z$3) -> 0 | E129: =SUMIF(BDD!$BI$2:$BI$3,"Banc 124FAUXFAUXFAUXVRAIVRAIFAUXFAUX",BDD!$Z$2:$Z$3) -> 0 | F129: =SUMIF(BDD!$BI$2:$BI$3,"Banc 124FAUXFAUXFAUXVRAIFAUXVRAIFAUX",BDD!$Z$2:$Z$3) -> 0 | G129: =SUMIF(BDD!$BI$2:$BI$3,"Banc 124FAUXFAUXFAUXVRAIFAUXFAUXVRAI",BDD!$Z$2:$Z$3) -> 0 | H129: =SUMIF(BDD!$BI$2:$BI$3,"Banc 124FAUXFAUXVRAIFAUXVRAIFAUXFAUX",BDD!$Z$2:$Z$3) -> 0 | I129: =SUMIF(BDD!$BI$2:$BI$3,"Banc 124FAUXFAUXVRAIFAUXFAUXVRAIFAUX",BDD!$Z$2:$Z$3) -> 0 | J129: =SUMIF(BDD!$BI$2:$BI$3,"Banc 124FAUXFAUXVRAIFAUXFAUXFAUXVRAI",BDD!$Z$2:$Z$3) -> 0 | K129: =SUMIF(BDD!$BI$2:$BI$3,"Banc 124FAUXFAUXFAUXVRAIVRAIFAUXFAUX",BDD!$Z$2:$Z$3) -> 0 | L129: =SUMIF(BDD!$BI$2:$BI$3,"Banc 124FAUXFAUXFAUXVRAIFAUXVRAIFAUX",BDD!$Z$2:$Z$3) -> 0 | M129: =SUMIF(BDD!$BI$2:$BI$3,"Banc 124FAUXFAUXFAUXVRAIFAUXFAUXVRAI",BDD!$Z$2:$Z$3) -> 0 | N129: =SUMIF(BDD!$BI$2:$BI$24,"Banc 124FAUXFAUXVRAIFAUXVRAIFAUXFAUX",BDD!$Z$2:$Z$24) -> 0 | O129: =SUMIF(BDD!$BI$2:$BI$24,"Banc 124FAUXFAUXVRAIFAUXFAUXVRAIFAUX",BDD!$Z$2:$Z$24) -> 0 | P129: =SUMIF(BDD!$BI$2:$BI$24,"Banc 124FAUXFAUXVRAIFAUXFAUXFAUXVRAI",BDD!$Z$2:$Z$24) -> 0 | Q129: =SUMIF(BDD!$BI$2:$BI$24,"Banc 124FAUXFAUXFAUXVRAIVRAIFAUXFAUX",BDD!$Z$2:$Z$24) -> 0 | R129: =SUMIF(BDD!$BI$2:$BI$24,"Banc 124FAUXFAUXFAUXVRAIFAUXVRAIFAUX",BDD!$Z$2:$Z$24) -> 0 | S129: =SUMIF(BDD!$BI$2:$BI$24,"Banc 124FAUXFAUXFAUXVRAIFAUXFAUXVRAI",BDD!$Z$2:$Z$24) -> 0 | T129: =SUMIF(BDD!$BI$26:$BI$599,"Banc 124VRAIFAUXVRAIFAUXFAUX",BDD!$Z$26:$Z$599) -> 0 | U129: =SUMIF(BDD!$BI$26:$BI$599,"Banc 124VRAIFAUXFAUXVRAIFAUX",BDD!$Z$26:$Z$599) -> 0 | V129: =SUMIF(BDD!$BI$26:$BI$599,"Banc 124VRAIFAUXFAUXFAUXVRAI",BDD!$Z$26:$Z$60) -> 0 | W129: =SUMIF(BDD!$BI$26:$BI$599,"Banc 124FAUXVRAIVRAIFAUXFAUX",BDD!$Z$26:$Z$599) -> 0 | X129: =SUMIF(BDD!$BI$26:$BI$599,"Banc 124FAUXVRAIFAUXVRAIFAUX",BDD!$Z$26:$Z$599) -> 0 | Y129: =SUMIF(BDD!$BI$26:$BI$599,"Banc 124FAUXVRAIFAUXFAUXVRAI",BDD!$Z$26:$Z$60) -> 0 | Z129: =SUMIF(BDD!$BI$2:$BI$3,"Banc 124FAUXFAUXVRAIFAUXVRAIFAUXFAUX",BDD!$Z$2:$Z$3) -> 0 | AA129: =SUMIF(BDD!$BI$2:$BI$3,"Banc 124FAUXFAUXVRAIFAUXFAUXVRAIFAUX",BDD!$Z$2:$Z$3) -> 0 | AB129: =SUMIF(BDD!$BI$2:$BI$3,"Banc 124FAUXFAUXVRAIFAUXFAUXFAUXVRAI",BDD!$Z$2:$Z$3) -> 0 | AC129: =SUMIF(BDD!$BI$2:$BI$3,"Banc 124FAUXFAUXFAUXVRAIVRAIFAUXFAUX",BDD!$Z$2:$Z$3) -> 0 | AD129: =SUMIF(BDD!$BI$2:$BI$3,"Banc 124FAUXFAUXFAUXVRAIFAUXVRAIFAUX",BDD!$Z$2:$Z$3) -> 0 | AE129: =SUMIF(BDD!$BI$2:$BI$3,"Banc 124FAUXFAUXFAUXVRAIFAUXFAUXVRAI",BDD!$Z$2:$Z$3) -> 0 | AF129: =SUMIF(BDD!$BI$2:$BI$3,"Banc 124FAUXFAUXVRAIFAUXVRAIFAUXFAUX",BDD!$Z$2:$Z$3) -> 0 | AG129: =SUMIF(BDD!$BI$2:$BI$3,"Banc 124FAUXFAUXVRAIFAUXFAUXVRAIFAUX",BDD!$Z$2:$Z$3) -> 0 | AH129: =SUMIF(BDD!$BI$2:$BI$3,"Banc 124FAUXFAUXVRAIFAUXFAUXFAUXVRAI",BDD!$Z$2:$Z$3) -> 0 | AI129: =SUMIF(BDD!$BI$2:$BI$3,"Banc 124FAUXFAUXFAUXVRAIVRAIFAUXFAUX",BDD!$Z$2:$Z$3) -> 0 | AJ129: =SUMIF(BDD!$BI$2:$BI$3,"Banc 124FAUXFAUXFAUXVRAIFAUXVRAIFAUX",BDD!$Z$2:$Z$3) -> 0 | AK129: =SUMIF(BDD!$BI$2:$BI$3,"Banc 124FAUXFAUXFAUXVRAIFAUXFAUXVRAI",BDD!$Z$2:$Z$3) -> 0 | AL129: =SUMIF(BDD!$BI$2:$BI$3,"Banc 124FAUXFAUXVRAIFAUXVRAIFAUXFAUX",BDD!$Z$2:$Z$3) -> 0 | AM129: =SUMIF(BDD!$BI$2:$BI$3,"Banc 124FAUXFAUXVRAIFAUXFAUXVRAIFAUX",BDD!$Z$2:$Z$3) -> 0 | AN129: =SUMIF(BDD!$BI$2:$BI$3,"Banc 124FAUXFAUXVRAIFAUXFAUXFAUXVRAI",BDD!$Z$2:$Z$3) -> 0 | AO129: =SUMIF(BDD!$BI$2:$BI$3,"Banc 124FAUXFAUXFAUXVRAIVRAIFAUXFAUX",BDD!$Z$2:$Z$3) -> 0 | AP129: =SUMIF(BDD!$BI$2:$BI$3,"Banc 124FAUXFAUXFAUXVRAIFAUXVRAIFAUX",BDD!$Z$2:$Z$3) -> 0 | AQ129: =SUMIF(BDD!$BI$2:$BI$3,"Banc 124FAUXFAUXFAUXVRAIFAUXFAUXVRAI",BDD!$Z$2:$Z$3) -> 0 | AR129: =SUMIF(BDD!$BI$2:$BI$3,"Banc 124FAUXFAUXVRAIFAUXVRAIFAUXFAUX",BDD!$Z$2:$Z$3) -> 0 | AS129: =SUMIF(BDD!$BI$2:$BI$3,"Banc 124FAUXFAUXVRAIFAUXFAUXVRAIFAUX",BDD!$Z$2:$Z$3) -> 0 | AT129: =SUMIF(BDD!$BI$2:$BI$3,"Banc 124FAUXFAUXVRAIFAUXFAUXFAUXVRAI",BDD!$Z$2:$Z$3) -> 0 | AU129: =SUMIF(BDD!$BI$2:$BI$3,"Banc 124FAUXFAUXFAUXVRAIVRAIFAUXFAUX",BDD!$Z$2:$Z$3) -> 0 | AV129: =SUMIF(BDD!$BI$2:$BI$3,"Banc 124FAUXFAUXFAUXVRAIFAUXVRAIFAUX",BDD!$Z$2:$Z$3) -> 0 | AW129: =SUMIF(BDD!$BI$2:$BI$3,"Banc 124FAUXFAUXFAUXVRAIFAUXFAUXVRAI",BDD!$Z$2:$Z$3) -> 0 | AX129: =SUMIF(BDD!$BI$2:$BI$3,"Banc 124FAUXFAUXVRAIFAUXVRAIFAUXFAUX",BDD!$Z$2:$Z$3) -> 0 | AY129: =SUMIF(BDD!$BI$2:$BI$3,"Banc 124FAUXFAUXVRAIFAUXFAUXVRAIFAUX",BDD!$Z$2:$Z$3) -> 0 | AZ129: =SUMIF(BDD!$BI$2:$BI$3,"Banc 124FAUXFAUXVRAIFAUXFAUXFAUXVRAI",BDD!$Z$2:$Z$3) -> 0 | BA129: =SUMIF(BDD!$BI$2:$BI$3,"Banc 124FAUXFAUXFAUXVRAIVRAIFAUXFAUX",BDD!$Z$2:$Z$3) -> 0 | BB129: =SUMIF(BDD!$BI$2:$BI$3,"Banc 124FAUXFAUXFAUXVRAIFAUXVRAIFAUX",BDD!$Z$2:$Z$3) -> 0 | BC129: =SUMIF(BDD!$BI$2:$BI$3,"Banc 124FAUXFAUXFAUXVRAIFAUXFAUXVRAI",BDD!$Z$2:$Z$3) -> 0 | BD129: =SUMIF(BDD!$BI$2:$BI$3,"Banc 124FAUXFAUXVRAIFAUXVRAIFAUXFAUX",BDD!$Z$2:$Z$3) -> 0 | BE129: =SUMIF(BDD!$BI$2:$BI$3,"Banc 124FAUXFAUXVRAIFAUXFAUXVRAIFAUX",BDD!$Z$2:$Z$3) -> 0 | BF129: =SUMIF(BDD!$BI$2:$BI$3,"Banc 124FAUXFAUXVRAIFAUXFAUXFAUXVRAI",BDD!$Z$2:$Z$3) -> 0 | BG129: =SUMIF(BDD!$BI$2:$BI$3,"Banc 124FAUXFAUXFAUXVRAIVRAIFAUXFAUX",BDD!$Z$2:$Z$3) -> 0 | BH129: =SUMIF(BDD!$BI$2:$BI$3,"Banc 124FAUXFAUXFAUXVRAIFAUXVRAIFAUX",BDD!$Z$2:$Z$3) -> 0 | BI129: =SUMIF(BDD!$BI$2:$BI$3,"Banc 124FAUXFAUXFAUXVRAIFAUXFAUXVRAI",BDD!$Z$2:$Z$3) -> 0 | BJ129: =SUMIF(BDD!$BI$2:$BI$3,"Banc 124FAUXFAUXVRAIFAUXVRAIFAUXFAUX",BDD!$Z$2:$Z$3) -> 0 | BK129: =SUMIF(BDD!$BI$2:$BI$3,"Banc 124FAUXFAUXVRAIFAUXFAUXVRAIFAUX",BDD!$Z$2:$Z$3) -> 0 | BL129: =SUMIF(BDD!$BI$2:$BI$3,"Banc 124FAUXFAUXVRAIFAUXFAUXFAUXVRAI",BDD!$Z$2:$Z$3) -> 0 | BM129: =SUMIF(BDD!$BI$2:$BI$3,"Banc 124FAUXFAUXFAUXVRAIVRAIFAUXFAUX",BDD!$Z$2:$Z$3) -> 0 | BN129: =SUMIF(BDD!$BI$2:$BI$3,"Banc 124FAUXFAUXFAUXVRAIFAUXVRAIFAUX",BDD!$Z$2:$Z$3) -> 0 | BO129: =SUMIF(BDD!$BI$2:$BI$3,"Banc 124FAUXFAUXFAUXVRAIFAUXFAUXVRAI",BDD!$Z$2:$Z$3) -> 0 | BP129: =SUMIF(BDD!$BI$2:$BI$3,"Banc 124FAUXFAUXVRAIFAUXVRAIFAUXFAUX",BDD!$Z$2:$Z$3) -> 0 | BQ129: =SUMIF(BDD!$BI$2:$BI$3,"Banc 124FAUXFAUXVRAIFAUXFAUXVRAIFAUX",BDD!$Z$2:$Z$3) -> 0 | BR129: =SUMIF(BDD!$BI$2:$BI$3,"Banc 124FAUXFAUXVRAIFAUXFAUXFAUXVRAI",BDD!$Z$2:$Z$3) -> 0 | BS129: =SUMIF(BDD!$BI$2:$BI$3,"Banc 124FAUXFAUXFAUXVRAIVRAIFAUXFAUX",BDD!$Z$2:$Z$3) -> 0 | BT129: =SUMIF(BDD!$BI$2:$BI$3,"Banc 124FAUXFAUXFAUXVRAIFAUXVRAIFAUX",BDD!$Z$2:$Z$3) -> 0 | BU129: =SUMIF(BDD!$BI$2:$BI$3,"Banc 124FAUXFAUXFAUXVRAIFAUXFAUXVRAI",BDD!$Z$2:$Z$3) -> 0
A130: Banc 124 bis | B130: =SUMIF(BDD!$BI$2:$BI$3,"Banc 124 bis bis bisFAUXFAUXVRAIFAUXVRAIFAUXFAUX",BDD!$Z$2:$Z$3) -> 0 | C130: =SUMIF(BDD!$BI$2:$BI$3,"Banc 124 bis bis bisFAUXFAUXVRAIFAUXFAUXVRAIFAUX",BDD!$Z$2:$Z$3) -> 0 | D130: =SUMIF(BDD!$BI$2:$BI$3,"Banc 124 bis bisFAUXFAUXVRAIFAUXFAUXFAUXVRAI",BDD!$Z$2:$Z$3) -> 0 | E130: =SUMIF(BDD!$BI$2:$BI$3,"Banc 124 bis bisFAUXFAUXFAUXVRAIVRAIFAUXFAUX",BDD!$Z$2:$Z$3) -> 0 | F130: =SUMIF(BDD!$BI$2:$BI$3,"Banc 124 bis bisFAUXFAUXFAUXVRAIFAUXVRAIFAUX",BDD!$Z$2:$Z$3) -> 0 | G130: =SUMIF(BDD!$BI$2:$BI$3,"Banc 124 bis bisFAUXFAUXFAUXVRAIFAUXFAUXVRAI",BDD!$Z$2:$Z$3) -> 0 | H130: =SUMIF(BDD!$BI$2:$BI$3,"Banc 124 bis bisFAUXFAUXVRAIFAUXVRAIFAUXFAUX",BDD!$Z$2:$Z$3) -> 0 | I130: =SUMIF(BDD!$BI$2:$BI$3,"Banc 124 bis bisFAUXFAUXVRAIFAUXFAUXVRAIFAUX",BDD!$Z$2:$Z$3) -> 0 | J130: =SUMIF(BDD!$BI$2:$BI$3,"Banc 124 bis bisFAUXFAUXVRAIFAUXFAUXFAUXVRAI",BDD!$Z$2:$Z$3) -> 0 | K130: =SUMIF(BDD!$BI$2:$BI$3,"Banc 124 bis bisFAUXFAUXFAUXVRAIVRAIFAUXFAUX",BDD!$Z$2:$Z$3) -> 0 | L130: =SUMIF(BDD!$BI$2:$BI$3,"Banc 124 bis bisFAUXFAUXFAUXVRAIFAUXVRAIFAUX",BDD!$Z$2:$Z$3) -> 0 | M130: =SUMIF(BDD!$BI$2:$BI$3,"Banc 124 bis bisFAUXFAUXFAUXVRAIFAUXFAUXVRAI",BDD!$Z$2:$Z$3) -> 0 | N130: =SUMIF(BDD!$BI$2:$BI$24,"Banc 124 bis bisFAUXFAUXVRAIFAUXVRAIFAUXFAUX",BDD!$Z$2:$Z$24) -> 0 | O130: =SUMIF(BDD!$BI$2:$BI$24,"Banc 124 bis bisFAUXFAUXVRAIFAUXFAUXVRAIFAUX",BDD!$Z$2:$Z$24) -> 0 | P130: =SUMIF(BDD!$BI$2:$BI$24,"Banc 124 bis bisFAUXFAUXVRAIFAUXFAUXFAUXVRAI",BDD!$Z$2:$Z$24) -> 0 | Q130: =SUMIF(BDD!$BI$2:$BI$24,"Banc 124 bis bisFAUXFAUXFAUXVRAIVRAIFAUXFAUX",BDD!$Z$2:$Z$24) -> 0 | R130: =SUMIF(BDD!$BI$2:$BI$24,"Banc 124 bis bisFAUXFAUXFAUXVRAIFAUXVRAIFAUX",BDD!$Z$2:$Z$24) -> 0 | S130: =SUMIF(BDD!$BI$2:$BI$24,"Banc 124 bis bisFAUXFAUXFAUXVRAIFAUXFAUXVRAI",BDD!$Z$2:$Z$24) -> 0 | T130: =SUMIF(BDD!$BI$26:$BI$599,"Banc 124 bis bis bisVRAIFAUXVRAIFAUXFAUX",BDD!$Z$26:$Z$599) -> 0 | U130: =SUMIF(BDD!$BI$26:$BI$599,"Banc 124 bis bis bisVRAIFAUXFAUXVRAIFAUX",BDD!$Z$26:$Z$599) -> 0 | V130: =SUMIF(BDD!$BI$26:$BI$599,"Banc 124 bis bis bisVRAIFAUXFAUXFAUXVRAI",BDD!$Z$26:$Z$599) -> 0 | W130: =SUMIF(BDD!$BI$26:$BI$599,"Banc 124 bis bis bisFAUXVRAIVRAIFAUXFAUX",BDD!$Z$26:$Z$599) -> 0 | X130: =SUMIF(BDD!$BI$26:$BI$599,"Banc 124 bis bis bisFAUXVRAIFAUXVRAIFAUX",BDD!$Z$26:$Z$599) -> 0 | Y130: =SUMIF(BDD!$BI$26:$BI$6005,"Banc 124 bis bis bisFAUXVRAIFAUXFAUXVRAI",BDD!$Z$26:$Z$599) -> 0 | Z130: =SUMIF(BDD!$BI$2:$BI$3,"Banc 124 bis bisFAUXFAUXVRAIFAUXVRAIFAUXFAUX",BDD!$Z$2:$Z$3) -> 0 | AA130: =SUMIF(BDD!$BI$2:$BI$3,"Banc 124 bis bisFAUXFAUXVRAIFAUXFAUXVRAIFAUX",BDD!$Z$2:$Z$3) -> 0 | AB130: =SUMIF(BDD!$BI$2:$BI$3,"Banc 124 bis bisFAUXFAUXVRAIFAUXFAUXFAUXVRAI",BDD!$Z$2:$Z$3) -> 0 | AC130: =SUMIF(BDD!$BI$2:$BI$3,"Banc 124 bis bisFAUXFAUXFAUXVRAIVRAIFAUXFAUX",BDD!$Z$2:$Z$3) -> 0 | AD130: =SUMIF(BDD!$BI$2:$BI$3,"Banc 124 bis bisFAUXFAUXFAUXVRAIFAUXVRAIFAUX",BDD!$Z$2:$Z$3) -> 0 | AE130: =SUMIF(BDD!$BI$2:$BI$3,"Banc 124 bis bisFAUXFAUXFAUXVRAIFAUXFAUXVRAI",BDD!$Z$2:$Z$3) -> 0 | AF130: =SUMIF(BDD!$BI$2:$BI$3,"Banc 124 bis bisFAUXFAUXVRAIFAUXVRAIFAUXFAUX",BDD!$Z$2:$Z$3) -> 0 | AG130: =SUMIF(BDD!$BI$2:$BI$3,"Banc 124 bis bisFAUXFAUXVRAIFAUXFAUXVRAIFAUX",BDD!$Z$2:$Z$3) -> 0 | AH130: =SUMIF(BDD!$BI$2:$BI$3,"Banc 124 bis bisFAUXFAUXVRAIFAUXFAUXFAUXVRAI",BDD!$Z$2:$Z$3) -> 0 | AI130: =SUMIF(BDD!$BI$2:$BI$3,"Banc 124 bis bisFAUXFAUXFAUXVRAIVRAIFAUXFAUX",BDD!$Z$2:$Z$3) -> 0 | AJ130: =SUMIF(BDD!$BI$2:$BI$3,"Banc 124 bis bisFAUXFAUXFAUXVRAIFAUXVRAIFAUX",BDD!$Z$2:$Z$3) -> 0 | AK130: =SUMIF(BDD!$BI$2:$BI$3,"Banc 124 bis bisFAUXFAUXFAUXVRAIFAUXFAUXVRAI",BDD!$Z$2:$Z$3) -> 0 | AL130: =SUMIF(BDD!$BI$2:$BI$3,"Banc 124 bis bisFAUXFAUXVRAIFAUXVRAIFAUXFAUX",BDD!$Z$2:$Z$3) -> 0 | AM130: =SUMIF(BDD!$BI$2:$BI$3,"Banc 124 bis bisFAUXFAUXVRAIFAUXFAUXVRAIFAUX",BDD!$Z$2:$Z$3) -> 0 | AN130: =SUMIF(BDD!$BI$2:$BI$3,"Banc 124 bis bisFAUXFAUXVRAIFAUXFAUXFAUXVRAI",BDD!$Z$2:$Z$3) -> 0 | AO130: =SUMIF(BDD!$BI$2:$BI$3,"Banc 124 bis bisFAUXFAUXFAUXVRAIVRAIFAUXFAUX",BDD!$Z$2:$Z$3) -> 0 | AP130: =SUMIF(BDD!$BI$2:$BI$3,"Banc 124 bis bisFAUXFAUXFAUXVRAIFAUXVRAIFAUX",BDD!$Z$2:$Z$3) -> 0 | AQ130: =SUMIF(BDD!$BI$2:$BI$3,"Banc 124 bis bisFAUXFAUXFAUXVRAIFAUXFAUXVRAI",BDD!$Z$2:$Z$3) -> 0 | AR130: =SUMIF(BDD!$BI$2:$BI$3,"Banc 124 bis bisFAUXFAUXVRAIFAUXVRAIFAUXFAUX",BDD!$Z$2:$Z$3) -> 0 | AS130: =SUMIF(BDD!$BI$2:$BI$3,"Banc 124 bis bisFAUXFAUXVRAIFAUXFAUXVRAIFAUX",BDD!$Z$2:$Z$3) -> 0 | AT130: =SUMIF(BDD!$BI$2:$BI$3,"Banc 124 bis bisFAUXFAUXVRAIFAUXFAUXFAUXVRAI",BDD!$Z$2:$Z$3) -> 0 | AU130: =SUMIF(BDD!$BI$2:$BI$3,"Banc 124 bis bisFAUXFAUXFAUXVRAIVRAIFAUXFAUX",BDD!$Z$2:$Z$3) -> 0 | AV130: =SUMIF(BDD!$BI$2:$BI$3,"Banc 124 bis bisFAUXFAUXFAUXVRAIFAUXVRAIFAUX",BDD!$Z$2:$Z$3) -> 0 | AW130: =SUMIF(BDD!$BI$2:$BI$3,"Banc 124 bis bisFAUXFAUXFAUXVRAIFAUXFAUXVRAI",BDD!$Z$2:$Z$3) -> 0 | AX130: =SUMIF(BDD!$BI$2:$BI$3,"Banc 124 bis bisFAUXFAUXVRAIFAUXVRAIFAUXFAUX",BDD!$Z$2:$Z$3) -> 0 | AY130: =SUMIF(BDD!$BI$2:$BI$3,"Banc 124 bis bisFAUXFAUXVRAIFAUXFAUXVRAIFAUX",BDD!$Z$2:$Z$3) -> 0 | AZ130: =SUMIF(BDD!$BI$2:$BI$3,"Banc 124 bis bisFAUXFAUXVRAIFAUXFAUXFAUXVRAI",BDD!$Z$2:$Z$3) -> 0 | BA130: =SUMIF(BDD!$BI$2:$BI$3,"Banc 124 bis bisFAUXFAUXFAUXVRAIVRAIFAUXFAUX",BDD!$Z$2:$Z$3) -> 0 | BB130: =SUMIF(BDD!$BI$2:$BI$3,"Banc 124 bis bisFAUXFAUXFAUXVRAIFAUXVRAIFAUX",BDD!$Z$2:$Z$3) -> 0 | BC130: =SUMIF(BDD!$BI$2:$BI$3,"Banc 124 bis bisFAUXFAUXFAUXVRAIFAUXFAUXVRAI",BDD!$Z$2:$Z$3) -> 0 | BD130: =SUMIF(BDD!$BI$2:$BI$3,"Banc 124 bis bisFAUXFAUXVRAIFAUXVRAIFAUXFAUX",BDD!$Z$2:$Z$3) -> 0 | BE130: =SUMIF(BDD!$BI$2:$BI$3,"Banc 124 bis bisFAUXFAUXVRAIFAUXFAUXVRAIFAUX",BDD!$Z$2:$Z$3) -> 0 | BF130: =SUMIF(BDD!$BI$2:$BI$3,"Banc 124 bis bisFAUXFAUXVRAIFAUXFAUXFAUXVRAI",BDD!$Z$2:$Z$3) -> 0 | BG130: =SUMIF(BDD!$BI$2:$BI$3,"Banc 124 bis bisFAUXFAUXFAUXVRAIVRAIFAUXFAUX",BDD!$Z$2:$Z$3) -> 0 | BH130: =SUMIF(BDD!$BI$2:$BI$3,"Banc 124 bis bisFAUXFAUXFAUXVRAIFAUXVRAIFAUX",BDD!$Z$2:$Z$3) -> 0 | BI130: =SUMIF(BDD!$BI$2:$BI$3,"Banc 124 bis bisFAUXFAUXFAUXVRAIFAUXFAUXVRAI",BDD!$Z$2:$Z$3) -> 0 | BJ130: =SUMIF(BDD!$BI$2:$BI$3,"Banc 124 bis bisFAUXFAUXVRAIFAUXVRAIFAUXFAUX",BDD!$Z$2:$Z$3) -> 0 | BK130: =SUMIF(BDD!$BI$2:$BI$3,"Banc 124 bisFAUXFAUXVRAIFAUXFAUXVRAIFAUX",BDD!$Z$2:$Z$3) -> 0 | BL130: =SUMIF(BDD!$BI$2:$BI$3,"Banc 124 bisFAUXFAUXVRAIFAUXFAUXFAUXVRAI",BDD!$Z$2:$Z$3) -> 0 | BM130: =SUMIF(BDD!$BI$2:$BI$3,"Banc 124 bisFAUXFAUXFAUXVRAIVRAIFAUXFAUX",BDD!$Z$2:$Z$3) -> 0 | BN130: =SUMIF(BDD!$BI$2:$BI$3,"Banc 124 bisFAUXFAUXFAUXVRAIFAUXVRAIFAUX",BDD!$Z$2:$Z$3) -> 0 | BO130: =SUMIF(BDD!$BI$2:$BI$3,"Banc 124 bisFAUXFAUXFAUXVRAIFAUXFAUXVRAI",BDD!$Z$2:$Z$3) -> 0 | BP130: =SUMIF(BDD!$BI$2:$BI$3,"Banc 124 bisFAUXFAUXVRAIFAUXVRAIFAUXFAUX",BDD!$Z$2:$Z$3) -> 0 | BQ130: =SUMIF(BDD!$BI$2:$BI$3,"Banc 124 bisFAUXFAUXVRAIFAUXFAUXVRAIFAUX",BDD!$Z$2:$Z$3) -> 0 | BR130: =SUMIF(BDD!$BI$2:$BI$3,"Banc 124 bisFAUXFAUXVRAIFAUXFAUXFAUXVRAI",BDD!$Z$2:$Z$3) -> 0 | BS130: =SUMIF(BDD!$BI$2:$BI$3,"Banc 124 bisFAUXFAUXFAUXVRAIVRAIFAUXFAUX",BDD!$Z$2:$Z$3) -> 0 | BT130: =SUMIF(BDD!$BI$2:$BI$3,"Banc 124 bisFAUXFAUXFAUXVRAIFAUXVRAIFAUX",BDD!$Z$2:$Z$3) -> 0 | BU130: =SUMIF(BDD!$BI$2:$BI$3,"Banc 124 bisFAUXFAUXFAUXVRAIFAUXFAUXVRAI",BDD!$Z$2:$Z$3) -> 0
A131: Banc 145 | B131: =SUMIF(BDD!$BI$2:$BI$3,"Banc 124FAUXFAUXVRAIFAUXVRAIFAUXFAUX",BDD!$Z$2:$Z$3) -> 0 | C131: =SUMIF(BDD!$BI$2:$BI$3,"Banc 124FAUXFAUXVRAIFAUXFAUXVRAIFAUX",BDD!$Z$2:$Z$3) -> 0 | D131: =SUMIF(BDD!$BI$2:$BI$3,"Banc 124FAUXFAUXVRAIFAUXFAUXFAUXVRAI",BDD!$Z$2:$Z$3) -> 0 | E131: =SUMIF(BDD!$BI$2:$BI$3,"Banc 124FAUXFAUXFAUXVRAIVRAIFAUXFAUX",BDD!$Z$2:$Z$3) -> 0 | F131: =SUMIF(BDD!$BI$2:$BI$3,"Banc 124FAUXFAUXFAUXVRAIFAUXVRAIFAUX",BDD!$Z$2:$Z$3) -> 0 | G131: =SUMIF(BDD!$BI$2:$BI$3,"Banc 124FAUXFAUXFAUXVRAIFAUXFAUXVRAI",BDD!$Z$2:$Z$3) -> 0 | H131: =SUMIF(BDD!$BI$2:$BI$3,"Banc 124FAUXFAUXVRAIFAUXVRAIFAUXFAUX",BDD!$Z$2:$Z$3) -> 0 | I131: =SUMIF(BDD!$BI$2:$BI$3,"Banc 124FAUXFAUXVRAIFAUXFAUXVRAIFAUX",BDD!$Z$2:$Z$3) -> 0 | J131: =SUMIF(BDD!$BI$2:$BI$3,"Banc 124FAUXFAUXVRAIFAUXFAUXFAUXVRAI",BDD!$Z$2:$Z$3) -> 0 | K131: =SUMIF(BDD!$BI$2:$BI$3,"Banc 124FAUXFAUXFAUXVRAIVRAIFAUXFAUX",BDD!$Z$2:$Z$3) -> 0 | L131: =SUMIF(BDD!$BI$2:$BI$3,"Banc 124FAUXFAUXFAUXVRAIFAUXVRAIFAUX",BDD!$Z$2:$Z$3) -> 0 | M131: =SUMIF(BDD!$BI$2:$BI$3,"Banc 124FAUXFAUXFAUXVRAIFAUXFAUXVRAI",BDD!$Z$2:$Z$3) -> 0 | N131: =SUMIF(BDD!$BI$2:$BI$24,"Banc 124FAUXFAUXVRAIFAUXVRAIFAUXFAUX",BDD!$Z$2:$Z$24) -> 0 | O131: =SUMIF(BDD!$BI$2:$BI$24,"Banc 124FAUXFAUXVRAIFAUXFAUXVRAIFAUX",BDD!$Z$2:$Z$24) -> 0 | P131: =SUMIF(BDD!$BI$2:$BI$24,"Banc 124FAUXFAUXVRAIFAUXFAUXFAUXVRAI",BDD!$Z$2:$Z$24) -> 0 | Q131: =SUMIF(BDD!$BI$2:$BI$24,"Banc 124FAUXFAUXFAUXVRAIVRAIFAUXFAUX",BDD!$Z$2:$Z$24) -> 0 | R131: =SUMIF(BDD!$BI$2:$BI$24,"Banc 124FAUXFAUXFAUXVRAIFAUXVRAIFAUX",BDD!$Z$2:$Z$24) -> 0 | S131: =SUMIF(BDD!$BI$2:$BI$24,"Banc 124FAUXFAUXFAUXVRAIFAUXFAUXVRAI",BDD!$Z$2:$Z$24) -> 0 | T131: =SUMIF(BDD!$BI$26:$BI$599,"Banc 145VRAIFAUXVRAIFAUXFAUX",BDD!$Z$26:$Z$599) -> 1.3 | U131: =SUMIF(BDD!$BI$26:$BI$599,"Banc 145VRAIFAUXFAUXVRAIFAUX",BDD!$Z$26:$Z$599) -> 0 | V131: =SUMIF(BDD!$BI$26:$BI$599,"Banc 145VRAIFAUXFAUXFAUXVRAI",BDD!$Z$26:$Z$599) -> 0 | W131: =SUMIF(BDD!$BI$26:$BI$599,"Banc 145FAUXVRAIVRAIFAUXFAUX",BDD!$Z$26:$Z$599) -> 0 | X131: =SUMIF(BDD!$BI$26:$BI$599,"Banc 145FAUXVRAIFAUXVRAIFAUX",BDD!$Z$26:$Z$599) -> 0 | Y131: =SUMIF(BDD!$BI$26:$BI$599,"Banc 145FAUXVRAIFAUXFAUXVRAI",BDD!$Z$26:$Z$599) -> 0 | Z131: =SUMIF(BDD!$BI$2:$BI$3,"Banc 124FAUXFAUXVRAIFAUXVRAIFAUXFAUX",BDD!$Z$2:$Z$3) -> 0 | AA131: =SUMIF(BDD!$BI$2:$BI$3,"Banc 124FAUXFAUXVRAIFAUXFAUXVRAIFAUX",BDD!$Z$2:$Z$3) -> 0 | AB131: =SUMIF(BDD!$BI$2:$BI$3,"Banc 124FAUXFAUXVRAIFAUXFAUXFAUXVRAI",BDD!$Z$2:$Z$3) -> 0 | AC131: =SUMIF(BDD!$BI$2:$BI$3,"Banc 124FAUXFAUXFAUXVRAIVRAIFAUXFAUX",BDD!$Z$2:$Z$3) -> 0 | AD131: =SUMIF(BDD!$BI$2:$BI$3,"Banc 124FAUXFAUXFAUXVRAIFAUXVRAIFAUX",BDD!$Z$2:$Z$3) -> 0 | AE131: =SUMIF(BDD!$BI$2:$BI$3,"Banc 124FAUXFAUXFAUXVRAIFAUXFAUXVRAI",BDD!$Z$2:$Z$3) -> 0 | AF131: =SUMIF(BDD!$BI$2:$BI$3,"Banc 124FAUXFAUXVRAIFAUXVRAIFAUXFAUX",BDD!$Z$2:$Z$3) -> 0 | AG131: =SUMIF(BDD!$BI$2:$BI$3,"Banc 124FAUXFAUXVRAIFAUXFAUXVRAIFAUX",BDD!$Z$2:$Z$3) -> 0 | AH131: =SUMIF(BDD!$BI$2:$BI$3,"Banc 124FAUXFAUXVRAIFAUXFAUXFAUXVRAI",BDD!$Z$2:$Z$3) -> 0 | AI131: =SUMIF(BDD!$BI$2:$BI$3,"Banc 124FAUXFAUXFAUXVRAIVRAIFAUXFAUX",BDD!$Z$2:$Z$3) -> 0 | AJ131: =SUMIF(BDD!$BI$2:$BI$3,"Banc 124FAUXFAUXFAUXVRAIFAUXVRAIFAUX",BDD!$Z$2:$Z$3) -> 0 | AK131: =SUMIF(BDD!$BI$2:$BI$3,"Banc 124FAUXFAUXFAUXVRAIFAUXFAUXVRAI",BDD!$Z$2:$Z$3) -> 0 | AL131: =SUMIF(BDD!$BI$2:$BI$3,"Banc 124FAUXFAUXVRAIFAUXVRAIFAUXFAUX",BDD!$Z$2:$Z$3) -> 0 | AM131: =SUMIF(BDD!$BI$2:$BI$3,"Banc 124FAUXFAUXVRAIFAUXFAUXVRAIFAUX",BDD!$Z$2:$Z$3) -> 0 | AN131: =SUMIF(BDD!$BI$2:$BI$3,"Banc 124FAUXFAUXVRAIFAUXFAUXFAUXVRAI",BDD!$Z$2:$Z$3) -> 0 | AO131: =SUMIF(BDD!$BI$2:$BI$3,"Banc 124FAUXFAUXFAUXVRAIVRAIFAUXFAUX",BDD!$Z$2:$Z$3) -> 0 | AP131: =SUMIF(BDD!$BI$2:$BI$3,"Banc 124FAUXFAUXFAUXVRAIFAUXVRAIFAUX",BDD!$Z$2:$Z$3) -> 0 | AQ131: =SUMIF(BDD!$BI$2:$BI$3,"Banc 124FAUXFAUXFAUXVRAIFAUXFAUXVRAI",BDD!$Z$2:$Z$3) -> 0 | AR131: =SUMIF(BDD!$BI$2:$BI$3,"Banc 124FAUXFAUXVRAIFAUXVRAIFAUXFAUX",BDD!$Z$2:$Z$3) -> 0 | AS131: =SUMIF(BDD!$BI$2:$BI$3,"Banc 124FAUXFAUXVRAIFAUXFAUXVRAIFAUX",BDD!$Z$2:$Z$3) -> 0 | AT131: =SUMIF(BDD!$BI$2:$BI$3,"Banc 124FAUXFAUXVRAIFAUXFAUXFAUXVRAI",BDD!$Z$2:$Z$3) -> 0 | AU131: =SUMIF(BDD!$BI$2:$BI$3,"Banc 124FAUXFAUXFAUXVRAIVRAIFAUXFAUX",BDD!$Z$2:$Z$3) -> 0 | AV131: =SUMIF(BDD!$BI$2:$BI$3,"Banc 124FAUXFAUXFAUXVRAIFAUXVRAIFAUX",BDD!$Z$2:$Z$3) -> 0 | AW131: =SUMIF(BDD!$BI$2:$BI$3,"Banc 124FAUXFAUXFAUXVRAIFAUXFAUXVRAI",BDD!$Z$2:$Z$3) -> 0 | AX131: =SUMIF(BDD!$BI$2:$BI$3,"Banc 124FAUXFAUXVRAIFAUXVRAIFAUXFAUX",BDD!$Z$2:$Z$3) -> 0 | AY131: =SUMIF(BDD!$BI$2:$BI$3,"Banc 124FAUXFAUXVRAIFAUXFAUXVRAIFAUX",BDD!$Z$2:$Z$3) -> 0 | AZ131: =SUMIF(BDD!$BI$2:$BI$3,"Banc 124FAUXFAUXVRAIFAUXFAUXFAUXVRAI",BDD!$Z$2:$Z$3) -> 0 | BA131: =SUMIF(BDD!$BI$2:$BI$3,"Banc 124FAUXFAUXFAUXVRAIVRAIFAUXFAUX",BDD!$Z$2:$Z$3) -> 0 | BB131: =SUMIF(BDD!$BI$2:$BI$3,"Banc 124FAUXFAUXFAUXVRAIFAUXVRAIFAUX",BDD!$Z$2:$Z$3) -> 0 | BC131: =SUMIF(BDD!$BI$2:$BI$3,"Banc 124FAUXFAUXFAUXVRAIFAUXFAUXVRAI",BDD!$Z$2:$Z$3) -> 0 | BD131: =SUMIF(BDD!$BI$2:$BI$3,"Banc 124FAUXFAUXVRAIFAUXVRAIFAUXFAUX",BDD!$Z$2:$Z$3) -> 0 | BE131: =SUMIF(BDD!$BI$2:$BI$3,"Banc 124FAUXFAUXVRAIFAUXFAUXVRAIFAUX",BDD!$Z$2:$Z$3) -> 0 | BF131: =SUMIF(BDD!$BI$2:$BI$3,"Banc 124FAUXFAUXVRAIFAUXFAUXFAUXVRAI",BDD!$Z$2:$Z$3) -> 0 | BG131: =SUMIF(BDD!$BI$2:$BI$3,"Banc 124FAUXFAUXFAUXVRAIVRAIFAUXFAUX",BDD!$Z$2:$Z$3) -> 0 | BH131: =SUMIF(BDD!$BI$2:$BI$3,"Banc 124FAUXFAUXFAUXVRAIFAUXVRAIFAUX",BDD!$Z$2:$Z$3) -> 0 | BI131: =SUMIF(BDD!$BI$2:$BI$3,"Banc 124FAUXFAUXFAUXVRAIFAUXFAUXVRAI",BDD!$Z$2:$Z$3) -> 0 | BJ131: =SUMIF(BDD!$BI$2:$BI$3,"Banc 124FAUXFAUXVRAIFAUXVRAIFAUXFAUX",BDD!$Z$2:$Z$3) -> 0 | BK131: =SUMIF(BDD!$BI$2:$BI$3,"Banc 124FAUXFAUXVRAIFAUXFAUXVRAIFAUX",BDD!$Z$2:$Z$3) -> 0 | BL131: =SUMIF(BDD!$BI$2:$BI$3,"Banc 124FAUXFAUXVRAIFAUXFAUXFAUXVRAI",BDD!$Z$2:$Z$3) -> 0 | BM131: =SUMIF(BDD!$BI$2:$BI$3,"Banc 124FAUXFAUXFAUXVRAIVRAIFAUXFAUX",BDD!$Z$2:$Z$3) -> 0 | BN131: =SUMIF(BDD!$BI$2:$BI$3,"Banc 124FAUXFAUXFAUXVRAIFAUXVRAIFAUX",BDD!$Z$2:$Z$3) -> 0 | BO131: =SUMIF(BDD!$BI$2:$BI$3,"Banc 124FAUXFAUXFAUXVRAIFAUXFAUXVRAI",BDD!$Z$2:$Z$3) -> 0 | BP131: =SUMIF(BDD!$BI$2:$BI$3,"Banc 124FAUXFAUXVRAIFAUXVRAIFAUXFAUX",BDD!$Z$2:$Z$3) -> 0 | BQ131: =SUMIF(BDD!$BI$2:$BI$3,"Banc 124FAUXFAUXVRAIFAUXFAUXVRAIFAUX",BDD!$Z$2:$Z$3) -> 0 | BR131: =SUMIF(BDD!$BI$2:$BI$3,"Banc 124FAUXFAUXVRAIFAUXFAUXFAUXVRAI",BDD!$Z$2:$Z$3) -> 0 | BS131: =SUMIF(BDD!$BI$2:$BI$3,"Banc 124FAUXFAUXFAUXVRAIVRAIFAUXFAUX",BDD!$Z$2:$Z$3) -> 0 | BT131: =SUMIF(BDD!$BI$2:$BI$3,"Banc 124FAUXFAUXFAUXVRAIFAUXVRAIFAUX",BDD!$Z$2:$Z$3) -> 0 | BU131: =SUMIF(BDD!$BI$2:$BI$3,"Banc 124FAUXFAUXFAUXVRAIFAUXFAUXVRAI",BDD!$Z$2:$Z$3) -> 0
A132: Banc cisaillement | B132: =SUMIF(BDD!$BI$2:$BI$3,"Banc 124FAUXFAUXVRAIFAUXVRAIFAUXFAUX",BDD!$Z$2:$Z$3) -> 0 | C132: =SUMIF(BDD!$BI$2:$BI$3,"Banc 124FAUXFAUXVRAIFAUXFAUXVRAIFAUX",BDD!$Z$2:$Z$3) -> 0 | D132: =SUMIF(BDD!$BI$2:$BI$3,"Banc 124FAUXFAUXVRAIFAUXFAUXFAUXVRAI",BDD!$Z$2:$Z$3) -> 0 | E132: =SUMIF(BDD!$BI$2:$BI$3,"Banc 124FAUXFAUXFAUXVRAIVRAIFAUXFAUX",BDD!$Z$2:$Z$3) -> 0 | F132: =SUMIF(BDD!$BI$2:$BI$3,"Banc 124FAUXFAUXFAUXVRAIFAUXVRAIFAUX",BDD!$Z$2:$Z$3) -> 0 | G132: =SUMIF(BDD!$BI$2:$BI$3,"Banc 124FAUXFAUXFAUXVRAIFAUXFAUXVRAI",BDD!$Z$2:$Z$3) -> 0 | H132: =SUMIF(BDD!$BI$2:$BI$3,"Banc 124FAUXFAUXVRAIFAUXVRAIFAUXFAUX",BDD!$Z$2:$Z$3) -> 0 | I132: =SUMIF(BDD!$BI$2:$BI$3,"Banc 124FAUXFAUXVRAIFAUXFAUXVRAIFAUX",BDD!$Z$2:$Z$3) -> 0 | J132: =SUMIF(BDD!$BI$2:$BI$3,"Banc 124FAUXFAUXVRAIFAUXFAUXFAUXVRAI",BDD!$Z$2:$Z$3) -> 0 | K132: =SUMIF(BDD!$BI$2:$BI$3,"Banc 124FAUXFAUXFAUXVRAIVRAIFAUXFAUX",BDD!$Z$2:$Z$3) -> 0 | L132: =SUMIF(BDD!$BI$2:$BI$3,"Banc 124FAUXFAUXFAUXVRAIFAUXVRAIFAUX",BDD!$Z$2:$Z$3) -> 0 | M132: =SUMIF(BDD!$BI$2:$BI$3,"Banc 124FAUXFAUXFAUXVRAIFAUXFAUXVRAI",BDD!$Z$2:$Z$3) -> 0 | N132: =SUMIF(BDD!$BI$2:$BI$24,"Banc 124FAUXFAUXVRAIFAUXVRAIFAUXFAUX",BDD!$Z$2:$Z$24) -> 0 | O132: =SUMIF(BDD!$BI$2:$BI$24,"Banc 124FAUXFAUXVRAIFAUXFAUXVRAIFAUX",BDD!$Z$2:$Z$24) -> 0 | P132: =SUMIF(BDD!$BI$2:$BI$24,"Banc 124FAUXFAUXVRAIFAUXFAUXFAUXVRAI",BDD!$Z$2:$Z$24) -> 0 | Q132: =SUMIF(BDD!$BI$2:$BI$24,"Banc 124FAUXFAUXFAUXVRAIVRAIFAUXFAUX",BDD!$Z$2:$Z$24) -> 0 | R132: =SUMIF(BDD!$BI$2:$BI$24,"Banc 124FAUXFAUXFAUXVRAIFAUXVRAIFAUX",BDD!$Z$2:$Z$24) -> 0 | S132: =SUMIF(BDD!$BI$2:$BI$24,"Banc 124FAUXFAUXFAUXVRAIFAUXFAUXVRAI",BDD!$Z$2:$Z$24) -> 0 | T132: =SUMIF(BDD!$BI$26:$BI$599,"Banc cisaillementVRAIFAUXVRAIFAUXFAUX",BDD!$Z$26:$Z$599) -> 0 | U132: =SUMIF(BDD!$BI$26:$BI$599,"Banc cisaillementVRAIFAUXFAUXVRAIFAUX",BDD!$Z$26:$Z$599) -> 0 | V132: =SUMIF(BDD!$BI$26:$BI$599,"Banc cisaillementVRAIFAUXFAUXFAUXVRAI",BDD!$Z$26:$Z$599) -> 0 | W132: =SUMIF(BDD!$BI$26:$BI$599,"Banc cisaillementFAUXVRAIVRAIFAUXFAUX",BDD!$Z$26:$Z$599) -> 0 | X132: =SUMIF(BDD!$BI$26:$BI$599,"Banc cisaillementFAUXVRAIFAUXVRAIFAUX",BDD!$Z$26:$Z$599) -> 0 | Y132: =SUMIF(BDD!$BI$26:$BI$599,"Banc cisaillementFAUXVRAIFAUXFAUXVRAI",BDD!$Z$26:$Z$599) -> 0 | Z132: =SUMIF(BDD!$BI$2:$BI$3,"Banc 124FAUXFAUXVRAIFAUXVRAIFAUXFAUX",BDD!$Z$2:$Z$3) -> 0 | AA132: =SUMIF(BDD!$BI$2:$BI$3,"Banc 124FAUXFAUXVRAIFAUXFAUXVRAIFAUX",BDD!$Z$2:$Z$3) -> 0 | AB132: =SUMIF(BDD!$BI$2:$BI$3,"Banc 124FAUXFAUXVRAIFAUXFAUXFAUXVRAI",BDD!$Z$2:$Z$3) -> 0 | AC132: =SUMIF(BDD!$BI$2:$BI$3,"Banc 124FAUXFAUXFAUXVRAIVRAIFAUXFAUX",BDD!$Z$2:$Z$3) -> 0 | AD132: =SUMIF(BDD!$BI$2:$BI$3,"Banc 124FAUXFAUXFAUXVRAIFAUXVRAIFAUX",BDD!$Z$2:$Z$3) -> 0 | AE132: =SUMIF(BDD!$BI$2:$BI$3,"Banc 124FAUXFAUXFAUXVRAIFAUXFAUXVRAI",BDD!$Z$2:$Z$3) -> 0 | AF132: =SUMIF(BDD!$BI$2:$BI$3,"Banc 124FAUXFAUXVRAIFAUXVRAIFAUXFAUX",BDD!$Z$2:$Z$3) -> 0 | AG132: =SUMIF(BDD!$BI$2:$BI$3,"Banc 124FAUXFAUXVRAIFAUXFAUXVRAIFAUX",BDD!$Z$2:$Z$3) -> 0 | AH132: =SUMIF(BDD!$BI$2:$BI$3,"Banc 124FAUXFAUXVRAIFAUXFAUXFAUXVRAI",BDD!$Z$2:$Z$3) -> 0 | AI132: =SUMIF(BDD!$BI$2:$BI$3,"Banc 124FAUXFAUXFAUXVRAIVRAIFAUXFAUX",BDD!$Z$2:$Z$3) -> 0 | AJ132: =SUMIF(BDD!$BI$2:$BI$3,"Banc 124FAUXFAUXFAUXVRAIFAUXVRAIFAUX",BDD!$Z$2:$Z$3) -> 0 | AK132: =SUMIF(BDD!$BI$2:$BI$3,"Banc 124FAUXFAUXFAUXVRAIFAUXFAUXVRAI",BDD!$Z$2:$Z$3) -> 0 | AL132: =SUMIF(BDD!$BI$2:$BI$3,"Banc 124FAUXFAUXVRAIFAUXVRAIFAUXFAUX",BDD!$Z$2:$Z$3) -> 0 | AM132: =SUMIF(BDD!$BI$2:$BI$3,"Banc 124FAUXFAUXVRAIFAUXFAUXVRAIFAUX",BDD!$Z$2:$Z$3) -> 0 | AN132: =SUMIF(BDD!$BI$2:$BI$3,"Banc 124FAUXFAUXVRAIFAUXFAUXFAUXVRAI",BDD!$Z$2:$Z$3) -> 0 | AO132: =SUMIF(BDD!$BI$2:$BI$3,"Banc 124FAUXFAUXFAUXVRAIVRAIFAUXFAUX",BDD!$Z$2:$Z$3) -> 0 | AP132: =SUMIF(BDD!$BI$2:$BI$3,"Banc 124FAUXFAUXFAUXVRAIFAUXVRAIFAUX",BDD!$Z$2:$Z$3) -> 0 | AQ132: =SUMIF(BDD!$BI$2:$BI$3,"Banc 124FAUXFAUXFAUXVRAIFAUXFAUXVRAI",BDD!$Z$2:$Z$3) -> 0 | AR132: =SUMIF(BDD!$BI$2:$BI$3,"Banc 124FAUXFAUXVRAIFAUXVRAIFAUXFAUX",BDD!$Z$2:$Z$3) -> 0 | AS132: =SUMIF(BDD!$BI$2:$BI$3,"Banc 124FAUXFAUXVRAIFAUXFAUXVRAIFAUX",BDD!$Z$2:$Z$3) -> 0 | AT132: =SUMIF(BDD!$BI$2:$BI$3,"Banc 124FAUXFAUXVRAIFAUXFAUXFAUXVRAI",BDD!$Z$2:$Z$3) -> 0 | AU132: =SUMIF(BDD!$BI$2:$BI$3,"Banc 124FAUXFAUXFAUXVRAIVRAIFAUXFAUX",BDD!$Z$2:$Z$3) -> 0 | AV132: =SUMIF(BDD!$BI$2:$BI$3,"Banc 124FAUXFAUXFAUXVRAIFAUXVRAIFAUX",BDD!$Z$2:$Z$3) -> 0 | AW132: =SUMIF(BDD!$BI$2:$BI$3,"Banc 124FAUXFAUXFAUXVRAIFAUXFAUXVRAI",BDD!$Z$2:$Z$3) -> 0 | AX132: =SUMIF(BDD!$BI$2:$BI$3,"Banc 124FAUXFAUXVRAIFAUXVRAIFAUXFAUX",BDD!$Z$2:$Z$3) -> 0 | AY132: =SUMIF(BDD!$BI$2:$BI$3,"Banc 124FAUXFAUXVRAIFAUXFAUXVRAIFAUX",BDD!$Z$2:$Z$3) -> 0 | AZ132: =SUMIF(BDD!$BI$2:$BI$3,"Banc 124FAUXFAUXVRAIFAUXFAUXFAUXVRAI",BDD!$Z$2:$Z$3) -> 0 | BA132: =SUMIF(BDD!$BI$2:$BI$3,"Banc 124FAUXFAUXFAUXVRAIVRAIFAUXFAUX",BDD!$Z$2:$Z$3) -> 0 | BB132: =SUMIF(BDD!$BI$2:$BI$3,"Banc 124FAUXFAUXFAUXVRAIFAUXVRAIFAUX",BDD!$Z$2:$Z$3) -> 0 | BC132: =SUMIF(BDD!$BI$2:$BI$3,"Banc 124FAUXFAUXFAUXVRAIFAUXFAUXVRAI",BDD!$Z$2:$Z$3) -> 0 | BD132: =SUMIF(BDD!$BI$2:$BI$3,"Banc 124FAUXFAUXVRAIFAUXVRAIFAUXFAUX",BDD!$Z$2:$Z$3) -> 0 | BE132: =SUMIF(BDD!$BI$2:$BI$3,"Banc 124FAUXFAUXVRAIFAUXFAUXVRAIFAUX",BDD!$Z$2:$Z$3) -> 0 | BF132: =SUMIF(BDD!$BI$2:$BI$3,"Banc 124FAUXFAUXVRAIFAUXFAUXFAUXVRAI",BDD!$Z$2:$Z$3) -> 0 | BG132: =SUMIF(BDD!$BI$2:$BI$3,"Banc 124FAUXFAUXFAUXVRAIVRAIFAUXFAUX",BDD!$Z$2:$Z$3) -> 0 | BH132: =SUMIF(BDD!$BI$2:$BI$3,"Banc 124FAUXFAUXFAUXVRAIFAUXVRAIFAUX",BDD!$Z$2:$Z$3) -> 0 | BI132: =SUMIF(BDD!$BI$2:$BI$3,"Banc 124FAUXFAUXFAUXVRAIFAUXFAUXVRAI",BDD!$Z$2:$Z$3) -> 0 | BJ132: =SUMIF(BDD!$BI$2:$BI$3,"Banc 124FAUXFAUXVRAIFAUXVRAIFAUXFAUX",BDD!$Z$2:$Z$3) -> 0 | BK132: =SUMIF(BDD!$BI$2:$BI$3,"Banc 124FAUXFAUXVRAIFAUXFAUXVRAIFAUX",BDD!$Z$2:$Z$3) -> 0 | BL132: =SUMIF(BDD!$BI$2:$BI$3,"Banc 124FAUXFAUXVRAIFAUXFAUXFAUXVRAI",BDD!$Z$2:$Z$3) -> 0 | BM132: =SUMIF(BDD!$BI$2:$BI$3,"Banc 124FAUXFAUXFAUXVRAIVRAIFAUXFAUX",BDD!$Z$2:$Z$3) -> 0 | BN132: =SUMIF(BDD!$BI$2:$BI$3,"Banc 124FAUXFAUXFAUXVRAIFAUXVRAIFAUX",BDD!$Z$2:$Z$3) -> 0 | BO132: =SUMIF(BDD!$BI$2:$BI$3,"Banc 124FAUXFAUXFAUXVRAIFAUXFAUXVRAI",BDD!$Z$2:$Z$3) -> 0 | BP132: =SUMIF(BDD!$BI$2:$BI$3,"Banc 124FAUXFAUXVRAIFAUXVRAIFAUXFAUX",BDD!$Z$2:$Z$3) -> 0 | BQ132: =SUMIF(BDD!$BI$2:$BI$3,"Banc 124FAUXFAUXVRAIFAUXFAUXVRAIFAUX",BDD!$Z$2:$Z$3) -> 0 | BR132: =SUMIF(BDD!$BI$2:$BI$3,"Banc 124FAUXFAUXVRAIFAUXFAUXFAUXVRAI",BDD!$Z$2:$Z$3) -> 0 | BS132: =SUMIF(BDD!$BI$2:$BI$3,"Banc 124FAUXFAUXFAUXVRAIVRAIFAUXFAUX",BDD!$Z$2:$Z$3) -> 0 | BT132: =SUMIF(BDD!$BI$2:$BI$3,"Banc 124FAUXFAUXFAUXVRAIFAUXVRAIFAUX",BDD!$Z$2:$Z$3) -> 0 | BU132: =SUMIF(BDD!$BI$2:$BI$3,"Banc 124FAUXFAUXFAUXVRAIFAUXFAUXVRAI",BDD!$Z$2:$Z$3) -> 0
A133: Banc HP | B133: =SUMIF(BDD!$BI$2:$BI$3,"Banc 124FAUXFAUXVRAIFAUXVRAIFAUXFAUX",BDD!$Z$2:$Z$3) -> 0 | C133: =SUMIF(BDD!$BI$2:$BI$3,"Banc 124FAUXFAUXVRAIFAUXFAUXVRAIFAUX",BDD!$Z$2:$Z$3) -> 0 | D133: =SUMIF(BDD!$BI$2:$BI$3,"Banc 124FAUXFAUXVRAIFAUXFAUXFAUXVRAI",BDD!$Z$2:$Z$3) -> 0 | E133: =SUMIF(BDD!$BI$2:$BI$3,"Banc 124FAUXFAUXFAUXVRAIVRAIFAUXFAUX",BDD!$Z$2:$Z$3) -> 0 | F133: =SUMIF(BDD!$BI$2:$BI$3,"Banc 124FAUXFAUXFAUXVRAIFAUXVRAIFAUX",BDD!$Z$2:$Z$3) -> 0 | G133: =SUMIF(BDD!$BI$2:$BI$3,"Banc 124FAUXFAUXFAUXVRAIFAUXFAUXVRAI",BDD!$Z$2:$Z$3) -> 0 | H133: =SUMIF(BDD!$BI$2:$BI$3,"Banc 124FAUXFAUXVRAIFAUXVRAIFAUXFAUX",BDD!$Z$2:$Z$3) -> 0 | I133: =SUMIF(BDD!$BI$2:$BI$3,"Banc 124FAUXFAUXVRAIFAUXFAUXVRAIFAUX",BDD!$Z$2:$Z$3) -> 0 | J133: =SUMIF(BDD!$BI$2:$BI$3,"Banc 124FAUXFAUXVRAIFAUXFAUXFAUXVRAI",BDD!$Z$2:$Z$3) -> 0 | K133: =SUMIF(BDD!$BI$2:$BI$3,"Banc 124FAUXFAUXFAUXVRAIVRAIFAUXFAUX",BDD!$Z$2:$Z$3) -> 0 | L133: =SUMIF(BDD!$BI$2:$BI$3,"Banc 124FAUXFAUXFAUXVRAIFAUXVRAIFAUX",BDD!$Z$2:$Z$3) -> 0 | M133: =SUMIF(BDD!$BI$2:$BI$3,"Banc 124FAUXFAUXFAUXVRAIFAUXFAUXVRAI",BDD!$Z$2:$Z$3) -> 0 | N133: =SUMIF(BDD!$BI$2:$BI$24,"Banc 124FAUXFAUXVRAIFAUXVRAIFAUXFAUX",BDD!$Z$2:$Z$24) -> 0 | O133: =SUMIF(BDD!$BI$2:$BI$24,"Banc 124FAUXFAUXVRAIFAUXFAUXVRAIFAUX",BDD!$Z$2:$Z$24) -> 0 | P133: =SUMIF(BDD!$BI$2:$BI$24,"Banc 124FAUXFAUXVRAIFAUXFAUXFAUXVRAI",BDD!$Z$2:$Z$24) -> 0 | Q133: =SUMIF(BDD!$BI$2:$BI$24,"Banc 124FAUXFAUXFAUXVRAIVRAIFAUXFAUX",BDD!$Z$2:$Z$24) -> 0 | R133: =SUMIF(BDD!$BI$2:$BI$24,"Banc 124FAUXFAUXFAUXVRAIFAUXVRAIFAUX",BDD!$Z$2:$Z$24) -> 0 | S133: =SUMIF(BDD!$BI$2:$BI$24,"Banc 124FAUXFAUXFAUXVRAIFAUXFAUXVRAI",BDD!$Z$2:$Z$24) -> 0 | T133: =SUMIF(BDD!$BI$26:$BI$599,"Banc HPVRAIFAUXVRAIFAUXFAUX",BDD!$Z$26:$Z$599) -> 1 | U133: =SUMIF(BDD!$BI$26:$BI$599,"Banc HPVRAIFAUXFAUXVRAIFAUX",BDD!$Z$26:$Z$599) -> 0 | V133: =SUMIF(BDD!$BI$26:$BI$599,"Banc HPVRAIFAUXFAUXFAUXVRAI",BDD!$Z$26:$Z$599) -> 0 | W133: =SUMIF(BDD!$BI$26:$BI$599,"Banc HPFAUXVRAIVRAIFAUXFAUX",BDD!$Z$26:$Z$599) -> 0 | X133: =SUMIF(BDD!$BI$26:$BI$599,"Banc HPFAUXVRAIFAUXVRAIFAUX",BDD!$Z$26:$Z$599) -> 0 | Y133: =SUMIF(BDD!$BI$26:$BI$599,"Banc HPFAUXVRAIFAUXFAUXVRAI",BDD!$Z$26:$Z$599) -> 0 | Z133: =SUMIF(BDD!$BI$2:$BI$3,"Banc 124FAUXFAUXVRAIFAUXVRAIFAUXFAUX",BDD!$Z$2:$Z$3) -> 0 | AA133: =SUMIF(BDD!$BI$2:$BI$3,"Banc 124FAUXFAUXVRAIFAUXFAUXVRAIFAUX",BDD!$Z$2:$Z$3) -> 0 | AB133: =SUMIF(BDD!$BI$2:$BI$3,"Banc 124FAUXFAUXVRAIFAUXFAUXFAUXVRAI",BDD!$Z$2:$Z$3) -> 0 | AC133: =SUMIF(BDD!$BI$2:$BI$3,"Banc 124FAUXFAUXFAUXVRAIVRAIFAUXFAUX",BDD!$Z$2:$Z$3) -> 0 | AD133: =SUMIF(BDD!$BI$2:$BI$3,"Banc 124FAUXFAUXFAUXVRAIFAUXVRAIFAUX",BDD!$Z$2:$Z$3) -> 0 | AE133: =SUMIF(BDD!$BI$2:$BI$3,"Banc 124FAUXFAUXFAUXVRAIFAUXFAUXVRAI",BDD!$Z$2:$Z$3) -> 0 | AF133: =SUMIF(BDD!$BI$2:$BI$3,"Banc 124FAUXFAUXVRAIFAUXVRAIFAUXFAUX",BDD!$Z$2:$Z$3) -> 0 | AG133: =SUMIF(BDD!$BI$2:$BI$3,"Banc 124FAUXFAUXVRAIFAUXFAUXVRAIFAUX",BDD!$Z$2:$Z$3) -> 0 | AH133: =SUMIF(BDD!$BI$2:$BI$3,"Banc 124FAUXFAUXVRAIFAUXFAUXFAUXVRAI",BDD!$Z$2:$Z$3) -> 0 | AI133: =SUMIF(BDD!$BI$2:$BI$3,"Banc 124FAUXFAUXFAUXVRAIVRAIFAUXFAUX",BDD!$Z$2:$Z$3) -> 0 | AJ133: =SUMIF(BDD!$BI$2:$BI$3,"Banc 124FAUXFAUXFAUXVRAIFAUXVRAIFAUX",BDD!$Z$2:$Z$3) -> 0 | AK133: =SUMIF(BDD!$BI$2:$BI$3,"Banc 124FAUXFAUXFAUXVRAIFAUXFAUXVRAI",BDD!$Z$2:$Z$3) -> 0 | AL133: =SUMIF(BDD!$BI$2:$BI$3,"Banc 124FAUXFAUXVRAIFAUXVRAIFAUXFAUX",BDD!$Z$2:$Z$3) -> 0 | AM133: =SUMIF(BDD!$BI$2:$BI$3,"Banc 124FAUXFAUXVRAIFAUXFAUXVRAIFAUX",BDD!$Z$2:$Z$3) -> 0 | AN133: =SUMIF(BDD!$BI$2:$BI$3,"Banc 124FAUXFAUXVRAIFAUXFAUXFAUXVRAI",BDD!$Z$2:$Z$3) -> 0 | AO133: =SUMIF(BDD!$BI$2:$BI$3,"Banc 124FAUXFAUXFAUXVRAIVRAIFAUXFAUX",BDD!$Z$2:$Z$3) -> 0 | AP133: =SUMIF(BDD!$BI$2:$BI$3,"Banc 124FAUXFAUXFAUXVRAIFAUXVRAIFAUX",BDD!$Z$2:$Z$3) -> 0 | AQ133: =SUMIF(BDD!$BI$2:$BI$3,"Banc 124FAUXFAUXFAUXVRAIFAUXFAUXVRAI",BDD!$Z$2:$Z$3) -> 0 | AR133: =SUMIF(BDD!$BI$2:$BI$3,"Banc 124FAUXFAUXVRAIFAUXVRAIFAUXFAUX",BDD!$Z$2:$Z$3) -> 0 | AS133: =SUMIF(BDD!$BI$2:$BI$3,"Banc 124FAUXFAUXVRAIFAUXFAUXVRAIFAUX",BDD!$Z$2:$Z$3) -> 0 | AT133: =SUMIF(BDD!$BI$2:$BI$3,"Banc 124FAUXFAUXVRAIFAUXFAUXFAUXVRAI",BDD!$Z$2:$Z$3) -> 0 | AU133: =SUMIF(BDD!$BI$2:$BI$3,"Banc 124FAUXFAUXFAUXVRAIVRAIFAUXFAUX",BDD!$Z$2:$Z$3) -> 0 | AV133: =SUMIF(BDD!$BI$2:$BI$3,"Banc 124FAUXFAUXFAUXVRAIFAUXVRAIFAUX",BDD!$Z$2:$Z$3) -> 0 | AW133: =SUMIF(BDD!$BI$2:$BI$3,"Banc 124FAUXFAUXFAUXVRAIFAUXFAUXVRAI",BDD!$Z$2:$Z$3) -> 0 | AX133: =SUMIF(BDD!$BI$2:$BI$3,"Banc 124FAUXFAUXVRAIFAUXVRAIFAUXFAUX",BDD!$Z$2:$Z$3) -> 0 | AY133: =SUMIF(BDD!$BI$2:$BI$3,"Banc 124FAUXFAUXVRAIFAUXFAUXVRAIFAUX",BDD!$Z$2:$Z$3) -> 0 | AZ133: =SUMIF(BDD!$BI$2:$BI$3,"Banc 124FAUXFAUXVRAIFAUXFAUXFAUXVRAI",BDD!$Z$2:$Z$3) -> 0 | BA133: =SUMIF(BDD!$BI$2:$BI$3,"Banc 124FAUXFAUXFAUXVRAIVRAIFAUXFAUX",BDD!$Z$2:$Z$3) -> 0 | BB133: =SUMIF(BDD!$BI$2:$BI$3,"Banc 124FAUXFAUXFAUXVRAIFAUXVRAIFAUX",BDD!$Z$2:$Z$3) -> 0 | BC133: =SUMIF(BDD!$BI$2:$BI$3,"Banc 124FAUXFAUXFAUXVRAIFAUXFAUXVRAI",BDD!$Z$2:$Z$3) -> 0 | BD133: =SUMIF(BDD!$BI$2:$BI$3,"Banc 124FAUXFAUXVRAIFAUXVRAIFAUXFAUX",BDD!$Z$2:$Z$3) -> 0 | BE133: =SUMIF(BDD!$BI$2:$BI$3,"Banc 124FAUXFAUXVRAIFAUXFAUXVRAIFAUX",BDD!$Z$2:$Z$3) -> 0 | BF133: =SUMIF(BDD!$BI$2:$BI$3,"Banc 124FAUXFAUXVRAIFAUXFAUXFAUXVRAI",BDD!$Z$2:$Z$3) -> 0 | BG133: =SUMIF(BDD!$BI$2:$BI$3,"Banc 124FAUXFAUXFAUXVRAIVRAIFAUXFAUX",BDD!$Z$2:$Z$3) -> 0 | BH133: =SUMIF(BDD!$BI$2:$BI$3,"Banc 124FAUXFAUXFAUXVRAIFAUXVRAIFAUX",BDD!$Z$2:$Z$3) -> 0 | BI133: =SUMIF(BDD!$BI$2:$BI$3,"Banc 124FAUXFAUXFAUXVRAIFAUXFAUXVRAI",BDD!$Z$2:$Z$3) -> 0 | BJ133: =SUMIF(BDD!$BI$2:$BI$3,"Banc 124FAUXFAUXVRAIFAUXVRAIFAUXFAUX",BDD!$Z$2:$Z$3) -> 0 | BK133: =SUMIF(BDD!$BI$2:$BI$3,"Banc 124FAUXFAUXVRAIFAUXFAUXVRAIFAUX",BDD!$Z$2:$Z$3) -> 0 | BL133: =SUMIF(BDD!$BI$2:$BI$3,"Banc 124FAUXFAUXVRAIFAUXFAUXFAUXVRAI",BDD!$Z$2:$Z$3) -> 0 | BM133: =SUMIF(BDD!$BI$2:$BI$3,"Banc 124FAUXFAUXFAUXVRAIVRAIFAUXFAUX",BDD!$Z$2:$Z$3) -> 0 | BN133: =SUMIF(BDD!$BI$2:$BI$3,"Banc 124FAUXFAUXFAUXVRAIFAUXVRAIFAUX",BDD!$Z$2:$Z$3) -> 0 | BO133: =SUMIF(BDD!$BI$2:$BI$3,"Banc 124FAUXFAUXFAUXVRAIFAUXFAUXVRAI",BDD!$Z$2:$Z$3) -> 0 | BP133: =SUMIF(BDD!$BI$2:$BI$3,"Banc 124FAUXFAUXVRAIFAUXVRAIFAUXFAUX",BDD!$Z$2:$Z$3) -> 0 | BQ133: =SUMIF(BDD!$BI$2:$BI$3,"Banc 124FAUXFAUXVRAIFAUXFAUXVRAIFAUX",BDD!$Z$2:$Z$3) -> 0 | BR133: =SUMIF(BDD!$BI$2:$BI$3,"Banc 124FAUXFAUXVRAIFAUXFAUXFAUXVRAI",BDD!$Z$2:$Z$3) -> 0 | BS133: =SUMIF(BDD!$BI$2:$BI$3,"Banc 124FAUXFAUXFAUXVRAIVRAIFAUXFAUX",BDD!$Z$2:$Z$3) -> 0 | BT133: =SUMIF(BDD!$BI$2:$BI$3,"Banc 124FAUXFAUXFAUXVRAIFAUXVRAIFAUX",BDD!$Z$2:$Z$3) -> 0 | BU133: =SUMIF(BDD!$BI$2:$BI$3,"Banc 124FAUXFAUXFAUXVRAIFAUXFAUXVRAI",BDD!$Z$2:$Z$3) -> 0
A134: Banc W+B | B134: =SUMIF(BDD!$BI$2:$BI$3,"Banc 124FAUXFAUXVRAIFAUXVRAIFAUXFAUX",BDD!$Z$2:$Z$3) -> 0 | C134: =SUMIF(BDD!$BI$2:$BI$3,"Banc 124FAUXFAUXVRAIFAUXFAUXVRAIFAUX",BDD!$Z$2:$Z$3) -> 0 | D134: =SUMIF(BDD!$BI$2:$BI$3,"Banc 124FAUXFAUXVRAIFAUXFAUXFAUXVRAI",BDD!$Z$2:$Z$3) -> 0 | E134: =SUMIF(BDD!$BI$2:$BI$3,"Banc 124FAUXFAUXFAUXVRAIVRAIFAUXFAUX",BDD!$Z$2:$Z$3) -> 0 | F134: =SUMIF(BDD!$BI$2:$BI$3,"Banc 124FAUXFAUXFAUXVRAIFAUXVRAIFAUX",BDD!$Z$2:$Z$3) -> 0 | G134: =SUMIF(BDD!$BI$2:$BI$3,"Banc 124FAUXFAUXFAUXVRAIFAUXFAUXVRAI",BDD!$Z$2:$Z$3) -> 0 | H134: =SUMIF(BDD!$BI$2:$BI$3,"Banc 124FAUXFAUXVRAIFAUXVRAIFAUXFAUX",BDD!$Z$2:$Z$3) -> 0 | I134: =SUMIF(BDD!$BI$2:$BI$3,"Banc 124FAUXFAUXVRAIFAUXFAUXVRAIFAUX",BDD!$Z$2:$Z$3) -> 0 | J134: =SUMIF(BDD!$BI$2:$BI$3,"Banc 124FAUXFAUXVRAIFAUXFAUXFAUXVRAI",BDD!$Z$2:$Z$3) -> 0 | K134: =SUMIF(BDD!$BI$2:$BI$3,"Banc 124FAUXFAUXFAUXVRAIVRAIFAUXFAUX",BDD!$Z$2:$Z$3) -> 0 | L134: =SUMIF(BDD!$BI$2:$BI$3,"Banc 124FAUXFAUXFAUXVRAIFAUXVRAIFAUX",BDD!$Z$2:$Z$3) -> 0 | M134: =SUMIF(BDD!$BI$2:$BI$3,"Banc 124FAUXFAUXFAUXVRAIFAUXFAUXVRAI",BDD!$Z$2:$Z$3) -> 0 | N134: =SUMIF(BDD!$BI$2:$BI$24,"Banc 124FAUXFAUXVRAIFAUXVRAIFAUXFAUX",BDD!$Z$2:$Z$24) -> 0 | O134: =SUMIF(BDD!$BI$2:$BI$24,"Banc 124FAUXFAUXVRAIFAUXFAUXVRAIFAUX",BDD!$Z$2:$Z$24) -> 0 | P134: =SUMIF(BDD!$BI$2:$BI$24,"Banc 124FAUXFAUXVRAIFAUXFAUXFAUXVRAI",BDD!$Z$2:$Z$24) -> 0 | Q134: =SUMIF(BDD!$BI$2:$BI$24,"Banc 124FAUXFAUXFAUXVRAIVRAIFAUXFAUX",BDD!$Z$2:$Z$24) -> 0 | R134: =SUMIF(BDD!$BI$2:$BI$24,"Banc 124FAUXFAUXFAUXVRAIFAUXVRAIFAUX",BDD!$Z$2:$Z$24) -> 0 | S134: =SUMIF(BDD!$BI$2:$BI$24,"Banc 124FAUXFAUXFAUXVRAIFAUXFAUXVRAI",BDD!$Z$2:$Z$24) -> 0 | T134: =SUMIF(BDD!$BI$26:$BI$599,"Banc W+BVRAIFAUXVRAIFAUXFAUX",BDD!$Z$26:$Z$599) -> 0 | U134: =SUMIF(BDD!$BI$26:$BI$599,"Banc W+BVRAIFAUXFAUXVRAIFAUX",BDD!$Z$26:$Z$599) -> 0 | V134: =SUMIF(BDD!$BI$26:$BI$599,"Banc W+BVRAIFAUXFAUXFAUXVRAI",BDD!$Z$26:$Z$599) -> 0 | W134: =SUMIF(BDD!$BI$26:$BI$599,"Banc W+BFAUXVRAIVRAIFAUXFAUX",BDD!$Z$26:$Z$599) -> 0 | X134: =SUMIF(BDD!$BI$26:$BI$599,"Banc W+BFAUXVRAIFAUXVRAIFAUX",BDD!$Z$26:$Z$599) -> 0 | Y134: =SUMIF(BDD!$BI$26:$BI$599,"Banc W+BFAUXVRAIFAUXFAUXVRAI",BDD!$Z$26:$Z$599) -> 0 | Z134: =SUMIF(BDD!$BI$2:$BI$3,"Banc 124FAUXFAUXVRAIFAUXVRAIFAUXFAUX",BDD!$Z$2:$Z$3) -> 0 | AA134: =SUMIF(BDD!$BI$2:$BI$3,"Banc 124FAUXFAUXVRAIFAUXFAUXVRAIFAUX",BDD!$Z$2:$Z$3) -> 0 | AB134: =SUMIF(BDD!$BI$2:$BI$3,"Banc 124FAUXFAUXVRAIFAUXFAUXFAUXVRAI",BDD!$Z$2:$Z$3) -> 0 | AC134: =SUMIF(BDD!$BI$2:$BI$3,"Banc 124FAUXFAUXFAUXVRAIVRAIFAUXFAUX",BDD!$Z$2:$Z$3) -> 0 | AD134: =SUMIF(BDD!$BI$2:$BI$3,"Banc 124FAUXFAUXFAUXVRAIFAUXVRAIFAUX",BDD!$Z$2:$Z$3) -> 0 | AE134: =SUMIF(BDD!$BI$2:$BI$3,"Banc 124FAUXFAUXFAUXVRAIFAUXFAUXVRAI",BDD!$Z$2:$Z$3) -> 0 | AF134: =SUMIF(BDD!$BI$2:$BI$3,"Banc 124FAUXFAUXVRAIFAUXVRAIFAUXFAUX",BDD!$Z$2:$Z$3) -> 0 | AG134: =SUMIF(BDD!$BI$2:$BI$3,"Banc 124FAUXFAUXVRAIFAUXFAUXVRAIFAUX",BDD!$Z$2:$Z$3) -> 0 | AH134: =SUMIF(BDD!$BI$2:$BI$3,"Banc 124FAUXFAUXVRAIFAUXFAUXFAUXVRAI",BDD!$Z$2:$Z$3) -> 0 | AI134: =SUMIF(BDD!$BI$2:$BI$3,"Banc 124FAUXFAUXFAUXVRAIVRAIFAUXFAUX",BDD!$Z$2:$Z$3) -> 0 | AJ134: =SUMIF(BDD!$BI$2:$BI$3,"Banc 124FAUXFAUXFAUXVRAIFAUXVRAIFAUX",BDD!$Z$2:$Z$3) -> 0 | AK134: =SUMIF(BDD!$BI$2:$BI$3,"Banc 124FAUXFAUXFAUXVRAIFAUXFAUXVRAI",BDD!$Z$2:$Z$3) -> 0 | AL134: =SUMIF(BDD!$BI$2:$BI$3,"Banc 124FAUXFAUXVRAIFAUXVRAIFAUXFAUX",BDD!$Z$2:$Z$3) -> 0 | AM134: =SUMIF(BDD!$BI$2:$BI$3,"Banc 124FAUXFAUXVRAIFAUXFAUXVRAIFAUX",BDD!$Z$2:$Z$3) -> 0 | AN134: =SUMIF(BDD!$BI$2:$BI$3,"Banc 124FAUXFAUXVRAIFAUXFAUXFAUXVRAI",BDD!$Z$2:$Z$3) -> 0 | AO134: =SUMIF(BDD!$BI$2:$BI$3,"Banc 124FAUXFAUXFAUXVRAIVRAIFAUXFAUX",BDD!$Z$2:$Z$3) -> 0 | AP134: =SUMIF(BDD!$BI$2:$BI$3,"Banc 124FAUXFAUXFAUXVRAIFAUXVRAIFAUX",BDD!$Z$2:$Z$3) -> 0 | AQ134: =SUMIF(BDD!$BI$2:$BI$3,"Banc 124FAUXFAUXFAUXVRAIFAUXFAUXVRAI",BDD!$Z$2:$Z$3) -> 0 | AR134: =SUMIF(BDD!$BI$2:$BI$3,"Banc 124FAUXFAUXVRAIFAUXVRAIFAUXFAUX",BDD!$Z$2:$Z$3) -> 0 | AS134: =SUMIF(BDD!$BI$2:$BI$3,"Banc 124FAUXFAUXVRAIFAUXFAUXVRAIFAUX",BDD!$Z$2:$Z$3) -> 0 | AT134: =SUMIF(BDD!$BI$2:$BI$3,"Banc 124FAUXFAUXVRAIFAUXFAUXFAUXVRAI",BDD!$Z$2:$Z$3) -> 0 | AU134: =SUMIF(BDD!$BI$2:$BI$3,"Banc 124FAUXFAUXFAUXVRAIVRAIFAUXFAUX",BDD!$Z$2:$Z$3) -> 0 | AV134: =SUMIF(BDD!$BI$2:$BI$3,"Banc 124FAUXFAUXFAUXVRAIFAUXVRAIFAUX",BDD!$Z$2:$Z$3) -> 0 | AW134: =SUMIF(BDD!$BI$2:$BI$3,"Banc 124FAUXFAUXFAUXVRAIFAUXFAUXVRAI",BDD!$Z$2:$Z$3) -> 0 | AX134: =SUMIF(BDD!$BI$2:$BI$3,"Banc 124FAUXFAUXVRAIFAUXVRAIFAUXFAUX",BDD!$Z$2:$Z$3) -> 0 | AY134: =SUMIF(BDD!$BI$2:$BI$3,"Banc 124FAUXFAUXVRAIFAUXFAUXVRAIFAUX",BDD!$Z$2:$Z$3) -> 0 | AZ134: =SUMIF(BDD!$BI$2:$BI$3,"Banc 124FAUXFAUXVRAIFAUXFAUXFAUXVRAI",BDD!$Z$2:$Z$3) -> 0 | BA134: =SUMIF(BDD!$BI$2:$BI$3,"Banc 124FAUXFAUXFAUXVRAIVRAIFAUXFAUX",BDD!$Z$2:$Z$3) -> 0 | BB134: =SUMIF(BDD!$BI$2:$BI$3,"Banc 124FAUXFAUXFAUXVRAIFAUXVRAIFAUX",BDD!$Z$2:$Z$3) -> 0 | BC134: =SUMIF(BDD!$BI$2:$BI$3,"Banc 124FAUXFAUXFAUXVRAIFAUXFAUXVRAI",BDD!$Z$2:$Z$3) -> 0 | BD134: =SUMIF(BDD!$BI$2:$BI$3,"Banc 124FAUXFAUXVRAIFAUXVRAIFAUXFAUX",BDD!$Z$2:$Z$3) -> 0 | BE134: =SUMIF(BDD!$BI$2:$BI$3,"Banc 124FAUXFAUXVRAIFAUXFAUXVRAIFAUX",BDD!$Z$2:$Z$3) -> 0 | BF134: =SUMIF(BDD!$BI$2:$BI$3,"Banc 124FAUXFAUXVRAIFAUXFAUXFAUXVRAI",BDD!$Z$2:$Z$3) -> 0 | BG134: =SUMIF(BDD!$BI$2:$BI$3,"Banc 124FAUXFAUXFAUXVRAIVRAIFAUXFAUX",BDD!$Z$2:$Z$3) -> 0 | BH134: =SUMIF(BDD!$BI$2:$BI$3,"Banc 124FAUXFAUXFAUXVRAIFAUXVRAIFAUX",BDD!$Z$2:$Z$3) -> 0 | BI134: =SUMIF(BDD!$BI$2:$BI$3,"Banc 124FAUXFAUXFAUXVRAIFAUXFAUXVRAI",BDD!$Z$2:$Z$3) -> 0 | BJ134: =SUMIF(BDD!$BI$2:$BI$3,"Banc 124FAUXFAUXVRAIFAUXVRAIFAUXFAUX",BDD!$Z$2:$Z$3) -> 0 | BK134: =SUMIF(BDD!$BI$2:$BI$3,"Banc 124FAUXFAUXVRAIFAUXFAUXVRAIFAUX",BDD!$Z$2:$Z$3) -> 0 | BL134: =SUMIF(BDD!$BI$2:$BI$3,"Banc 124FAUXFAUXVRAIFAUXFAUXFAUXVRAI",BDD!$Z$2:$Z$3) -> 0 | BM134: =SUMIF(BDD!$BI$2:$BI$3,"Banc 124FAUXFAUXFAUXVRAIVRAIFAUXFAUX",BDD!$Z$2:$Z$3) -> 0 | BN134: =SUMIF(BDD!$BI$2:$BI$3,"Banc 124FAUXFAUXFAUXVRAIFAUXVRAIFAUX",BDD!$Z$2:$Z$3) -> 0 | BO134: =SUMIF(BDD!$BI$2:$BI$3,"Banc 124FAUXFAUXFAUXVRAIFAUXFAUXVRAI",BDD!$Z$2:$Z$3) -> 0 | BP134: =SUMIF(BDD!$BI$2:$BI$3,"Banc 124FAUXFAUXVRAIFAUXVRAIFAUXFAUX",BDD!$Z$2:$Z$3) -> 0 | BQ134: =SUMIF(BDD!$BI$2:$BI$3,"Banc 124FAUXFAUXVRAIFAUXFAUXVRAIFAUX",BDD!$Z$2:$Z$3) -> 0 | BR134: =SUMIF(BDD!$BI$2:$BI$3,"Banc 124FAUXFAUXVRAIFAUXFAUXFAUXVRAI",BDD!$Z$2:$Z$3) -> 0 | BS134: =SUMIF(BDD!$BI$2:$BI$3,"Banc 124FAUXFAUXFAUXVRAIVRAIFAUXFAUX",BDD!$Z$2:$Z$3) -> 0 | BT134: =SUMIF(BDD!$BI$2:$BI$3,"Banc 124FAUXFAUXFAUXVRAIFAUXVRAIFAUX",BDD!$Z$2:$Z$3) -> 0 | BU134: =SUMIF(BDD!$BI$2:$BI$3,"Banc 124FAUXFAUXFAUXVRAIFAUXFAUXVRAI",BDD!$Z$2:$Z$3) -> 0
A135: Ressort verticale | B135: =SUMIF(BDD!$BI$2:$BI$3,"Banc 124FAUXFAUXVRAIFAUXVRAIFAUXFAUX",BDD!$Z$2:$Z$3) -> 0 | C135: =SUMIF(BDD!$BI$2:$BI$3,"Banc 124FAUXFAUXVRAIFAUXFAUXVRAIFAUX",BDD!$Z$2:$Z$3) -> 0 | D135: =SUMIF(BDD!$BI$2:$BI$3,"Banc 124FAUXFAUXVRAIFAUXFAUXFAUXVRAI",BDD!$Z$2:$Z$3) -> 0 | E135: =SUMIF(BDD!$BI$2:$BI$3,"Banc 124FAUXFAUXFAUXVRAIVRAIFAUXFAUX",BDD!$Z$2:$Z$3) -> 0 | F135: =SUMIF(BDD!$BI$2:$BI$3,"Banc 124FAUXFAUXFAUXVRAIFAUXVRAIFAUX",BDD!$Z$2:$Z$3) -> 0 | G135: =SUMIF(BDD!$BI$2:$BI$3,"Banc 124FAUXFAUXFAUXVRAIFAUXFAUXVRAI",BDD!$Z$2:$Z$3) -> 0 | H135: =SUMIF(BDD!$BI$2:$BI$3,"Banc 124FAUXFAUXVRAIFAUXVRAIFAUXFAUX",BDD!$Z$2:$Z$3) -> 0 | I135: =SUMIF(BDD!$BI$2:$BI$3,"Banc 124FAUXFAUXVRAIFAUXFAUXVRAIFAUX",BDD!$Z$2:$Z$3) -> 0 | J135: =SUMIF(BDD!$BI$2:$BI$3,"Banc 124FAUXFAUXVRAIFAUXFAUXFAUXVRAI",BDD!$Z$2:$Z$3) -> 0 | K135: =SUMIF(BDD!$BI$2:$BI$3,"Banc 124FAUXFAUXFAUXVRAIVRAIFAUXFAUX",BDD!$Z$2:$Z$3) -> 0 | L135: =SUMIF(BDD!$BI$2:$BI$3,"Banc 124FAUXFAUXFAUXVRAIFAUXVRAIFAUX",BDD!$Z$2:$Z$3) -> 0 | M135: =SUMIF(BDD!$BI$2:$BI$3,"Banc 124FAUXFAUXFAUXVRAIFAUXFAUXVRAI",BDD!$Z$2:$Z$3) -> 0 | N135: =SUMIF(BDD!$BI$2:$BI$24,"Banc 124FAUXFAUXVRAIFAUXVRAIFAUXFAUX",BDD!$Z$2:$Z$24) -> 0 | O135: =SUMIF(BDD!$BI$2:$BI$24,"Banc 124FAUXFAUXVRAIFAUXFAUXVRAIFAUX",BDD!$Z$2:$Z$24) -> 0 | P135: =SUMIF(BDD!$BI$2:$BI$24,"Banc 124FAUXFAUXVRAIFAUXFAUXFAUXVRAI",BDD!$Z$2:$Z$24) -> 0 | Q135: =SUMIF(BDD!$BI$2:$BI$24,"Banc 124FAUXFAUXFAUXVRAIVRAIFAUXFAUX",BDD!$Z$2:$Z$24) -> 0 | R135: =SUMIF(BDD!$BI$2:$BI$24,"Banc 124FAUXFAUXFAUXVRAIFAUXVRAIFAUX",BDD!$Z$2:$Z$24) -> 0 | S135: =SUMIF(BDD!$BI$2:$BI$24,"Banc 124FAUXFAUXFAUXVRAIFAUXFAUXVRAI",BDD!$Z$2:$Z$24) -> 0 | T135: =SUMIF(BDD!$BI$26:$BI$599,"Ressort verticaleVRAIFAUXVRAIFAUXFAUX",BDD!$Z$26:$Z$599) -> 0 | U135: =SUMIF(BDD!$BI$26:$BI$599,"Ressort verticaleVRAIFAUXFAUXVRAIFAUX",BDD!$Z$26:$Z$599) -> 0 | V135: =SUMIF(BDD!$BI$26:$BI$599,"Ressort verticaleVRAIFAUXFAUXFAUXVRAI",BDD!$Z$26:$Z$599) -> 0 | W135: =SUMIF(BDD!$BI$26:$BI$599,"Ressort verticaleFAUXVRAIVRAIFAUXFAUX",BDD!$Z$26:$Z$599) -> 0 | X135: =SUMIF(BDD!$BI$26:$BI$599,"Ressort verticaleFAUXVRAIFAUXVRAIFAUX",BDD!$Z$26:$Z$599) -> 0 | Y135: =SUMIF(BDD!$BI$26:$BI$599,"Ressort verticaleFAUXVRAIFAUXFAUXVRAI",BDD!$Z$26:$Z$599) -> 0 | Z135: =SUMIF(BDD!$BI$2:$BI$3,"Banc 124FAUXFAUXVRAIFAUXVRAIFAUXFAUX",BDD!$Z$2:$Z$3) -> 0 | AA135: =SUMIF(BDD!$BI$2:$BI$3,"Banc 124FAUXFAUXVRAIFAUXFAUXVRAIFAUX",BDD!$Z$2:$Z$3) -> 0 | AB135: =SUMIF(BDD!$BI$2:$BI$3,"Banc 124FAUXFAUXVRAIFAUXFAUXFAUXVRAI",BDD!$Z$2:$Z$3) -> 0 | AC135: =SUMIF(BDD!$BI$2:$BI$3,"Banc 124FAUXFAUXFAUXVRAIVRAIFAUXFAUX",BDD!$Z$2:$Z$3) -> 0 | AD135: =SUMIF(BDD!$BI$2:$BI$3,"Banc 124FAUXFAUXFAUXVRAIFAUXVRAIFAUX",BDD!$Z$2:$Z$3) -> 0 | AE135: =SUMIF(BDD!$BI$2:$BI$3,"Banc 124FAUXFAUXFAUXVRAIFAUXFAUXVRAI",BDD!$Z$2:$Z$3) -> 0 | AF135: =SUMIF(BDD!$BI$2:$BI$3,"Banc 124FAUXFAUXVRAIFAUXVRAIFAUXFAUX",BDD!$Z$2:$Z$3) -> 0 | AG135: =SUMIF(BDD!$BI$2:$BI$3,"Banc 124FAUXFAUXVRAIFAUXFAUXVRAIFAUX",BDD!$Z$2:$Z$3) -> 0 | AH135: =SUMIF(BDD!$BI$2:$BI$3,"Banc 124FAUXFAUXVRAIFAUXFAUXFAUXVRAI",BDD!$Z$2:$Z$3) -> 0 | AI135: =SUMIF(BDD!$BI$2:$BI$3,"Banc 124FAUXFAUXFAUXVRAIVRAIFAUXFAUX",BDD!$Z$2:$Z$3) -> 0 | AJ135: =SUMIF(BDD!$BI$2:$BI$3,"Banc 124FAUXFAUXFAUXVRAIFAUXVRAIFAUX",BDD!$Z$2:$Z$3) -> 0 | AK135: =SUMIF(BDD!$BI$2:$BI$3,"Banc 124FAUXFAUXFAUXVRAIFAUXFAUXVRAI",BDD!$Z$2:$Z$3) -> 0 | AL135: =SUMIF(BDD!$BI$2:$BI$3,"Banc 124FAUXFAUXVRAIFAUXVRAIFAUXFAUX",BDD!$Z$2:$Z$3) -> 0 | AM135: =SUMIF(BDD!$BI$2:$BI$3,"Banc 124FAUXFAUXVRAIFAUXFAUXVRAIFAUX",BDD!$Z$2:$Z$3) -> 0 | AN135: =SUMIF(BDD!$BI$2:$BI$3,"Banc 124FAUXFAUXVRAIFAUXFAUXFAUXVRAI",BDD!$Z$2:$Z$3) -> 0 | AO135: =SUMIF(BDD!$BI$2:$BI$3,"Banc 124FAUXFAUXFAUXVRAIVRAIFAUXFAUX",BDD!$Z$2:$Z$3) -> 0 | AP135: =SUMIF(BDD!$BI$2:$BI$3,"Banc 124FAUXFAUXFAUXVRAIFAUXVRAIFAUX",BDD!$Z$2:$Z$3) -> 0 | AQ135: =SUMIF(BDD!$BI$2:$BI$3,"Banc 124FAUXFAUXFAUXVRAIFAUXFAUXVRAI",BDD!$Z$2:$Z$3) -> 0 | AR135: =SUMIF(BDD!$BI$2:$BI$3,"Banc 124FAUXFAUXVRAIFAUXVRAIFAUXFAUX",BDD!$Z$2:$Z$3) -> 0 | AS135: =SUMIF(BDD!$BI$2:$BI$3,"Banc 124FAUXFAUXVRAIFAUXFAUXVRAIFAUX",BDD!$Z$2:$Z$3) -> 0 | AT135: =SUMIF(BDD!$BI$2:$BI$3,"Banc 124FAUXFAUXVRAIFAUXFAUXFAUXVRAI",BDD!$Z$2:$Z$3) -> 0 | AU135: =SUMIF(BDD!$BI$2:$BI$3,"Banc 124FAUXFAUXFAUXVRAIVRAIFAUXFAUX",BDD!$Z$2:$Z$3) -> 0 | AV135: =SUMIF(BDD!$BI$2:$BI$3,"Banc 124FAUXFAUXFAUXVRAIFAUXVRAIFAUX",BDD!$Z$2:$Z$3) -> 0 | AW135: =SUMIF(BDD!$BI$2:$BI$3,"Banc 124FAUXFAUXFAUXVRAIFAUXFAUXVRAI",BDD!$Z$2:$Z$3) -> 0 | AX135: =SUMIF(BDD!$BI$2:$BI$3,"Banc 124FAUXFAUXVRAIFAUXVRAIFAUXFAUX",BDD!$Z$2:$Z$3) -> 0 | AY135: =SUMIF(BDD!$BI$2:$BI$3,"Banc 124FAUXFAUXVRAIFAUXFAUXVRAIFAUX",BDD!$Z$2:$Z$3) -> 0 | AZ135: =SUMIF(BDD!$BI$2:$BI$3,"Banc 124FAUXFAUXVRAIFAUXFAUXFAUXVRAI",BDD!$Z$2:$Z$3) -> 0 | BA135: =SUMIF(BDD!$BI$2:$BI$3,"Banc 124FAUXFAUXFAUXVRAIVRAIFAUXFAUX",BDD!$Z$2:$Z$3) -> 0 | BB135: =SUMIF(BDD!$BI$2:$BI$3,"Banc 124FAUXFAUXFAUXVRAIFAUXVRAIFAUX",BDD!$Z$2:$Z$3) -> 0 | BC135: =SUMIF(BDD!$BI$2:$BI$3,"Banc 124FAUXFAUXFAUXVRAIFAUXFAUXVRAI",BDD!$Z$2:$Z$3) -> 0 | BD135: =SUMIF(BDD!$BI$2:$BI$3,"Banc 124FAUXFAUXVRAIFAUXVRAIFAUXFAUX",BDD!$Z$2:$Z$3) -> 0 | BE135: =SUMIF(BDD!$BI$2:$BI$3,"Banc 124FAUXFAUXVRAIFAUXFAUXVRAIFAUX",BDD!$Z$2:$Z$3) -> 0 | BF135: =SUMIF(BDD!$BI$2:$BI$3,"Banc 124FAUXFAUXVRAIFAUXFAUXFAUXVRAI",BDD!$Z$2:$Z$3) -> 0 | BG135: =SUMIF(BDD!$BI$2:$BI$3,"Banc 124FAUXFAUXFAUXVRAIVRAIFAUXFAUX",BDD!$Z$2:$Z$3) -> 0 | BH135: =SUMIF(BDD!$BI$2:$BI$3,"Banc 124FAUXFAUXFAUXVRAIFAUXVRAIFAUX",BDD!$Z$2:$Z$3) -> 0 | BI135: =SUMIF(BDD!$BI$2:$BI$3,"Banc 124FAUXFAUXFAUXVRAIFAUXFAUXVRAI",BDD!$Z$2:$Z$3) -> 0 | BJ135: =SUMIF(BDD!$BI$2:$BI$3,"Banc 124FAUXFAUXVRAIFAUXVRAIFAUXFAUX",BDD!$Z$2:$Z$3) -> 0 | BK135: =SUMIF(BDD!$BI$2:$BI$3,"Banc 124FAUXFAUXVRAIFAUXFAUXVRAIFAUX",BDD!$Z$2:$Z$3) -> 0 | BL135: =SUMIF(BDD!$BI$2:$BI$3,"Banc 124FAUXFAUXVRAIFAUXFAUXFAUXVRAI",BDD!$Z$2:$Z$3) -> 0 | BM135: =SUMIF(BDD!$BI$2:$BI$3,"Banc 124FAUXFAUXFAUXVRAIVRAIFAUXFAUX",BDD!$Z$2:$Z$3) -> 0 | BN135: =SUMIF(BDD!$BI$2:$BI$3,"Banc 124FAUXFAUXFAUXVRAIFAUXVRAIFAUX",BDD!$Z$2:$Z$3) -> 0 | BO135: =SUMIF(BDD!$BI$2:$BI$3,"Banc 124FAUXFAUXFAUXVRAIFAUXFAUXVRAI",BDD!$Z$2:$Z$3) -> 0 | BP135: =SUMIF(BDD!$BI$2:$BI$3,"Banc 124FAUXFAUXVRAIFAUXVRAIFAUXFAUX",BDD!$Z$2:$Z$3) -> 0 | BQ135: =SUMIF(BDD!$BI$2:$BI$3,"Banc 124FAUXFAUXVRAIFAUXFAUXVRAIFAUX",BDD!$Z$2:$Z$3) -> 0 | BR135: =SUMIF(BDD!$BI$2:$BI$3,"Banc 124FAUXFAUXVRAIFAUXFAUXFAUXVRAI",BDD!$Z$2:$Z$3) -> 0 | BS135: =SUMIF(BDD!$BI$2:$BI$3,"Banc 124FAUXFAUXFAUXVRAIVRAIFAUXFAUX",BDD!$Z$2:$Z$3) -> 0 | BT135: =SUMIF(BDD!$BI$2:$BI$3,"Banc 124FAUXFAUXFAUXVRAIFAUXVRAIFAUX",BDD!$Z$2:$Z$3) -> 0 | BU135: =SUMIF(BDD!$BI$2:$BI$3,"Banc 124FAUXFAUXFAUXVRAIFAUXFAUXVRAI",BDD!$Z$2:$Z$3) -> 0

Sheet Indicateur Zone6
B2: Suivi des arrêts par banc
A3: Banc zone 6 | B3: Janvier | C3: Février | D3: Mars | E3: Avril | F3: Mai | G3: Juin | H3: Juillet | I3: Août | J3: Septembre | K3: Octobre | L3: Novembre | M3: Décembre
A4: M73001 (Banc new P9) | B4: =SUMIF(BDD!$H$2:$H$3,'Indicateur Zone6'!$A4,BDD!$Z$2:$Z$3) -> 0 | C4: =SUMIF(BDD!$H$2:$H$3,'Indicateur Zone6'!$A4,BDD!$Z$2:$Z$3) -> 0 | D4: =SUMIF(BDD!$H$2:$H$25,'Indicateur Zone6'!$A$4,BDD!$Z$2:$Z$25) -> 0 | E4: =SUMIF(BDD!$H$26:$H$199,'Indicateur Zone6'!$A4,BDD!$Z$26:$Z$199) -> 3.15 | F4: =SUMIF(BDD!$H$2:$H$3,'Indicateur Zone6'!$A4,BDD!$Z$2:$Z$3) -> 0 | G4: =SUMIF(BDD!$H$2:$H$3,'Indicateur Zone6'!$A4,BDD!$Z$2:$Z$3) -> 0 | H4: =SUMIF(BDD!$H$2:$H$3,'Indicateur Zone6'!$A4,BDD!$Z$2:$Z$3) -> 0 | I4: =SUMIF(BDD!$H$2:$H$3,'Indicateur Zone6'!$A4,BDD!$Z$2:$Z$3) -> 0 | J4: =SUMIF(BDD!$H$2:$H$3,'Indicateur Zone6'!$A4,BDD!$Z$2:$Z$3) -> 0 | K4: =SUMIF(BDD!$H$2:$H$3,'Indicateur Zone6'!$A4,BDD!$Z$2:$Z$3) -> 0 | L4: =SUMIF(BDD!$H$2:$H$3,'Indicateur Zone6'!$A4,BDD!$Z$2:$Z$3) -> 0 | M4: =SUMIF(BDD!$H$2:$H$3,'Indicateur Zone6'!$A4,BDD!$Z$2:$Z$3) -> 0
A5: Banc P1 | B5: =SUMIF(BDD!$H$2:$H$3,'Indicateur Zone6'!$A5,BDD!$Z$2:$Z$3) -> 0 | C5: =SUMIF(BDD!$H$2:$H$3,'Indicateur Zone6'!$A5,BDD!$Z$2:$Z$3) -> 0 | D5: =SUMIF(BDD!$H$2:$H$25,'Indicateur Zone6'!$A5,BDD!$Z$2:$Z$25) -> 0.02 | E5: =SUMIF(BDD!$H$26:$H$199,'Indicateur Zone6'!$A5,BDD!$Z$26:$Z$199) -> 0.12 | F5: =SUMIF(BDD!$H$2:$H$3,'Indicateur Zone6'!$A5,BDD!$Z$2:$Z$3) -> 0 | G5: =SUMIF(BDD!$H$2:$H$3,'Indicateur Zone6'!$A5,BDD!$Z$2:$Z$3) -> 0 | H5: =SUMIF(BDD!$H$2:$H$3,'Indicateur Zone6'!$A5,BDD!$Z$2:$Z$3) -> 0 | I5: =SUMIF(BDD!$H$2:$H$3,'Indicateur Zone6'!$A5,BDD!$Z$2:$Z$3) -> 0 | J5: =SUMIF(BDD!$H$2:$H$3,'Indicateur Zone6'!$A5,BDD!$Z$2:$Z$3) -> 0 | K5: =SUMIF(BDD!$H$2:$H$3,'Indicateur Zone6'!$A5,BDD!$Z$2:$Z$3) -> 0 | L5: =SUMIF(BDD!$H$2:$H$3,'Indicateur Zone6'!$A5,BDD!$Z$2:$Z$3) -> 0 | M5: =SUMIF(BDD!$H$2:$H$3,'Indicateur Zone6'!$A5,BDD!$Z$2:$Z$3) -> 0
A6: Banc P2 | B6: =SUMIF(BDD!$H$2:$H$3,'Indicateur Zone6'!$A6,BDD!$Z$2:$Z$3) -> 0 | C6: =SUMIF(BDD!$H$2:$H$3,'Indicateur Zone6'!$A6,BDD!$Z$2:$Z$3) -> 0 | D6: =SUMIF(BDD!$H$2:$H$25,'Indicateur Zone6'!$A6,BDD!$Z$2:$Z$25) -> 0 | E6: =SUMIF(BDD!$H$26:$H$199,'Indicateur Zone6'!$A6,BDD!$Z$26:$Z$199) -> 5 | F6: =SUMIF(BDD!$H$2:$H$3,'Indicateur Zone6'!$A6,BDD!$Z$2:$Z$3) -> 0 | G6: =SUMIF(BDD!$H$2:$H$3,'Indicateur Zone6'!$A6,BDD!$Z$2:$Z$3) -> 0 | H6: =SUMIF(BDD!$H$2:$H$3,'Indicateur Zone6'!$A6,BDD!$Z$2:$Z$3) -> 0 | I6: =SUMIF(BDD!$H$2:$H$3,'Indicateur Zone6'!$A6,BDD!$Z$2:$Z$3) -> 0 | J6: =SUMIF(BDD!$H$2:$H$3,'Indicateur Zone6'!$A6,BDD!$Z$2:$Z$3) -> 0 | K6: =SUMIF(BDD!$H$2:$H$3,'Indicateur Zone6'!$A6,BDD!$Z$2:$Z$3) -> 0 | L6: =SUMIF(BDD!$H$2:$H$3,'Indicateur Zone6'!$A6,BDD!$Z$2:$Z$3) -> 0 | M6: =SUMIF(BDD!$H$2:$H$3,'Indicateur Zone6'!$A6,BDD!$Z$2:$Z$3) -> 0
A7: Banc 156 | B7: =SUMIF(BDD!$H$2:$H$3,'Indicateur Zone6'!$A7,BDD!$Z$2:$Z$3) -> 0 | C7: =SUMIF(BDD!$H$2:$H$3,'Indicateur Zone6'!$A7,BDD!$Z$2:$Z$3) -> 0 | D7: =SUMIF(BDD!$H$2:$H$25,'Indicateur Zone6'!$A7,BDD!$Z$2:$Z$25) -> 0 | E7: =SUMIF(BDD!$H$26:$H$199,'Indicateur Zone6'!$A7,BDD!$Z$26:$Z$199) -> 0 | F7: =SUMIF(BDD!$H$2:$H$3,'Indicateur Zone6'!$A7,BDD!$Z$2:$Z$3) -> 0 | G7: =SUMIF(BDD!$H$2:$H$3,'Indicateur Zone6'!$A7,BDD!$Z$2:$Z$3) -> 0 | H7: =SUMIF(BDD!$H$2:$H$3,'Indicateur Zone6'!$A7,BDD!$Z$2:$Z$3) -> 0 | I7: =SUMIF(BDD!$H$2:$H$3,'Indicateur Zone6'!$A7,BDD!$Z$2:$Z$3) -> 0 | J7: =SUMIF(BDD!$H$2:$H$3,'Indicateur Zone6'!$A7,BDD!$Z$2:$Z$3) -> 0 | K7: =SUMIF(BDD!$H$2:$H$3,'Indicateur Zone6'!$A7,BDD!$Z$2:$Z$3) -> 0 | L7: =SUMIF(BDD!$H$2:$H$3,'Indicateur Zone6'!$A7,BDD!$Z$2:$Z$3) -> 0 | M7: =SUMIF(BDD!$H$2:$H$3,'Indicateur Zone6'!$A7,BDD!$Z$2:$Z$3) -> 0
A8: Chambre Froide | B8: =SUMIF(BDD!$H$2:$H$3,'Indicateur Zone6'!$A8,BDD!$Z$2:$Z$3) -> 0 | C8: =SUMIF(BDD!$H$2:$H$3,'Indicateur Zone6'!$A8,BDD!$Z$2:$Z$3) -> 0 | D8: =SUMIF(BDD!$H$2:$H$25,'Indicateur Zone6'!$A8,BDD!$Z$2:$Z$25) -> 0.3 | E8: =SUMIF(BDD!$H$26:$H$199,'Indicateur Zone6'!$A8,BDD!$Z$26:$Z$199) -> 0 | F8: =SUMIF(BDD!$H$2:$H$3,'Indicateur Zone6'!$A8,BDD!$Z$2:$Z$3) -> 0 | G8: =SUMIF(BDD!$H$2:$H$3,'Indicateur Zone6'!$A8,BDD!$Z$2:$Z$3) -> 0 | H8: =SUMIF(BDD!$H$2:$H$3,'Indicateur Zone6'!$A8,BDD!$Z$2:$Z$3) -> 0 | I8: =SUMIF(BDD!$H$2:$H$3,'Indicateur Zone6'!$A8,BDD!$Z$2:$Z$3) -> 0 | J8: =SUMIF(BDD!$H$2:$H$3,'Indicateur Zone6'!$A8,BDD!$Z$2:$Z$3) -> 0 | K8: =SUMIF(BDD!$H$2:$H$3,'Indicateur Zone6'!$A8,BDD!$Z$2:$Z$3) -> 0 | L8: =SUMIF(BDD!$H$2:$H$3,'Indicateur Zone6'!$A8,BDD!$Z$2:$Z$3) -> 0 | M8: =SUMIF(BDD!$H$2:$H$3,'Indicateur Zone6'!$A8,BDD!$Z$2:$Z$3) -> 0
A9: Chambre Sourde | B9: =SUMIF(BDD!$H$2:$H$3,'Indicateur Zone6'!$A9,BDD!$Z$2:$Z$3) -> 0 | C9: =SUMIF(BDD!$H$2:$H$3,'Indicateur Zone6'!$A9,BDD!$Z$2:$Z$3) -> 0 | D9: =SUMIF(BDD!$H$2:$H$25,'Indicateur Zone6'!$A9,BDD!$Z$2:$Z$25) -> 0 | E9: =SUMIF(BDD!$H$26:$H$199,'Indicateur Zone6'!$A9,BDD!$Z$26:$Z$199) -> 1.5 | F9: =SUMIF(BDD!$H$2:$H$3,'Indicateur Zone6'!$A9,BDD!$Z$2:$Z$3) -> 0 | G9: =SUMIF(BDD!$H$2:$H$3,'Indicateur Zone6'!$A9,BDD!$Z$2:$Z$3) -> 0 | H9: =SUMIF(BDD!$H$2:$H$3,'Indicateur Zone6'!$A9,BDD!$Z$2:$Z$3) -> 0 | I9: =SUMIF(BDD!$H$2:$H$3,'Indicateur Zone6'!$A9,BDD!$Z$2:$Z$3) -> 0 | J9: =SUMIF(BDD!$H$2:$H$3,'Indicateur Zone6'!$A9,BDD!$Z$2:$Z$3) -> 0 | K9: =SUMIF(BDD!$H$2:$H$3,'Indicateur Zone6'!$A9,BDD!$Z$2:$Z$3) -> 0 | L9: =SUMIF(BDD!$H$2:$H$3,'Indicateur Zone6'!$A9,BDD!$Z$2:$Z$3) -> 0 | M9: =SUMIF(BDD!$H$2:$H$3,'Indicateur Zone6'!$A9,BDD!$Z$2:$Z$3) -> 0
B32: Suivi du correctif et du préventif
A33: Type de maintenance | B33: Janvier | C33: Février | D33: Mars | E33: Avril | F33: Mai | G33: Juin | H33: Juillet | I33: Août | J33: Septembre | K33: Octobre | L33: Novembre | M33: Décembre
A34: Préventive | B34: =SUM(C59:C64) -> 0 | C34: =SUM(E59:E64) -> 0 | D34: =SUM(G59:G64) -> 0.3 | E34: =SUM(I59:I64) -> 0 | F34: =SUM(K59:K64) -> 0 | G34: =SUM(M59:M64) -> 0 | H34: =SUM(O59:O64) -> 0 | I34: =SUM(Q59:Q64) -> 0 | J34: =SUM(S59:S64) -> 0 | K34: =SUM(U59:U64) -> 0 | L34: =SUM(W59:W64) -> 0 | M34: =SUM(Y59:Y64) -> 0
A35: Corrective | B35: =SUM(B59:B64) -> 0 | C35: =SUM(D59:D64) -> 0 | D35: =SUM(F59:F64) -> 0.19 | E35: =SUM(H59:H64) -> 2.17 | F35: =SUM(J59:J64) -> 0 | G35: =SUM(L59:L64) -> 0 | H35: =SUM(N59:N64) -> 0 | I35: =SUM(N59:N64) -> 0 | J35: =SUM(R59:R64) -> 0 | K35: =SUM(T59:T64) -> 0 | L35: =SUM(V59:V64) -> 0 | M35: =SUM(X59:X64) -> 0
B56: Suivi du correctif et du préventif par banc
B57: Janvier | D57: Février | F57: Mars | H57: Avril | J57: Mai | L57: Juin | N57: Juillet | P57: Août | R57: Septembre | T57: Octobre | V57: Novembre | X57: Décembre
A58: Banc zone 6 | B58: Corrective | C58: Préventive | D58: Corrective | E58: Préventive | F58: Corrective | G58: Préventive | H58: Corrective | I58: Préventive | J58: Corrective | K58: Préventive | L58: Corrective | M58: Préventive | N58: Corrective | O58: Préventive | P58: Corrective | Q58: Préventive | R58: Corrective | S58: Préventive | T58: Corrective | U58: Préventive | V58: Corrective | W58: Préventive | X58: Corrective | Y58: Préventive
A59: M73001 (Banc new P9) | B59: =SUMIF(BDD!$BG$2:$BG$3,"M73001 (Banc new P9)VRAIFAUX",BDD!$Z$2:$Z$3) -> 0 | C59: =SUMIF(BDD!$BG$2:$BG$3,"M73001 (Banc new P9)FAUXVRAI",BDD!$Z$2:$Z$3) -> 0 | D59: =SUMIF(BDD!$BG$2:$BG$3,"M73001 (Banc new P9)VRAIFAUX",BDD!$Z$2:$Z$3) -> 0 | E59: =SUMIF(BDD!$BG$2:$BG$3,"M73001 (Banc new P9)FAUXVRAI",BDD!$Z$2:$Z$3) -> 0 | F59: =SUMIF(BDD!$BG$2:$BG$682,"M73001 (Banc new P9)VRAIFAUX",BDD!$Z$2:$Z$682) -> 0.15 | G59: =SUMIF(BDD!$BG$2:$BG$682,"M73001 (Banc new P9)FAUXvrai",BDD!$Z$2:$Z$682) -> 0 | H59: =SUMIF(BDD!$BG$26:$BG$199,"M73001 (Banc new P9)VRAIFAUX",BDD!$Z$26:$Z$199) -> 0.15 | I59: =SUMIF(BDD!$BG$26:$BG$199,"M73001 (Banc new P9)FAUXVRAI",BDD!$Z$26:$Z$199) -> 0 | J59: =SUMIF(BDD!$BG$2:$BG$3,"M73001 (Banc new P9)VRAIFAUX",BDD!$Z$2:$Z$3) -> 0 | K59: =SUMIF(BDD!$BG$2:$BG$3,"M73001 (Banc new P9)FAUXVRAI",BDD!$Z$2:$Z$3) -> 0 | L59: =SUMIF(BDD!$BG$2:$BG$3,"M73001 (Banc new P9)VRAIFAUX",BDD!$Z$2:$Z$3) -> 0 | M59: =SUMIF(BDD!$BG$2:$BG$3,"M73001 (Banc new P9)FAUXVRAI",BDD!$Z$2:$Z$3) -> 0 | N59: =SUMIF(BDD!$BG$2:$BG$3,"M73001 (Banc new P9)VRAIFAUX",BDD!$Z$2:$Z$3) -> 0 | O59: =SUMIF(BDD!$BG$2:$BG$3,"M73001 (Banc new P9)FAUXVRAI",BDD!$Z$2:$Z$3) -> 0 | P59: =SUMIF(BDD!$BG$2:$BG$3,"M73001 (Banc new P9)VRAIFAUX",BDD!$Z$2:$Z$3) -> 0 | Q59: =SUMIF(BDD!$BG$2:$BG$3,"M73001 (Banc new P9)FAUXVRAI",BDD!$Z$2:$Z$3) -> 0 | R59: =SUMIF(BDD!$BG$2:$BG$3,"M73001 (Banc new P9)VRAIFAUX",BDD!$Z$2:$Z$3) -> 0 | S59: =SUMIF(BDD!$BG$2:$BG$3,"M73001 (Banc new P9)FAUXVRAI",BDD!$Z$2:$Z$3) -> 0 | T59: =SUMIF(BDD!$BG$2:$BG$3,"M73001 (Banc new P9)VRAIFAUX",BDD!$Z$2:$Z$3) -> 0 | U59: =SUMIF(BDD!$BG$2:$BG$3,"M73001 (Banc new P9)FAUXVRAI",BDD!$Z$2:$Z$3) -> 0 | V59: =SUMIF(BDD!$BG$2:$BG$3,"M73001 (Banc new P9)VRAIFAUX",BDD!$Z$2:$Z$3) -> 0 | W59: =SUMIF(BDD!$BG$2:$BG$3,"M73001 (Banc new P9)FAUXVRAI",BDD!$Z$2:$Z$3) -> 0 | X59: =SUMIF(BDD!$BG$2:$BG$3,"M73001 (Banc new P9)VRAIFAUX",BDD!$Z$2:$Z$3) -> 0 | Y59: =SUMIF(BDD!$BG$2:$BG$3,"M73001 (Banc new P9)FAUXVRAI",BDD!$Z$2:$Z$3) -> 0
A60: Banc P1 | B60: =SUMIF(BDD!$BG$2:$BG$3,"Banc P1VRAIFAUX",BDD!$Z$2:$Z$3) -> 0 | C60: =SUMIF(BDD!$BG$2:$BG$3,"Banc P1FAUXVRAI",BDD!$Z$2:$Z$3) -> 0 | D60: =SUMIF(BDD!$BG$2:$BG$3,"Banc P1VRAIFAUX",BDD!$Z$2:$Z$3) -> 0 | E60: =SUMIF(BDD!$BG$2:$BG$3,"Banc P1FAUXVRAI",BDD!$Z$2:$Z$3) -> 0 | F60: =SUMIF(BDD!$BG$2:$BG$682,"Banc P1VRAIFAUX",BDD!$Z$2:$Z$682) -> 0.04 | G60: =SUMIF(BDD!$BG$2:$BG$682,"Banc P1FAUXVRAI",BDD!$Z$2:$Z$682) -> 0 | H60: =SUMIF(BDD!$BG$26:$BG$199,"Banc P1VRAIFAUX",BDD!$Z$26:$Z$199) -> 0.02 | I60: =SUMIF(BDD!$BG$26:$BG$199,"Banc P1FAUXVRAI",BDD!$Z$26:$Z$199) -> 0 | J60: =SUMIF(BDD!$BG$2:$BG$3,"Banc P1VRAIFAUX",BDD!$Z$2:$Z$3) -> 0 | K60: =SUMIF(BDD!$BG$2:$BG$3,"Banc P1FAUXVRAI",BDD!$Z$2:$Z$3) -> 0 | L60: =SUMIF(BDD!$BG$2:$BG$3,"Banc P1VRAIFAUX",BDD!$Z$2:$Z$3) -> 0 | M60: =SUMIF(BDD!$BG$2:$BG$3,"Banc P1FAUXVRAI",BDD!$Z$2:$Z$3) -> 0 | N60: =SUMIF(BDD!$BG$2:$BG$3,"Banc P1VRAIFAUX",BDD!$Z$2:$Z$3) -> 0 | O60: =SUMIF(BDD!$BG$2:$BG$3,"Banc P1FAUXVRAI",BDD!$Z$2:$Z$3) -> 0 | P60: =SUMIF(BDD!$BG$2:$BG$3,"Banc P1VRAIFAUX",BDD!$Z$2:$Z$3) -> 0 | Q60: =SUMIF(BDD!$BG$2:$BG$3,"Banc P1FAUXVRAI",BDD!$Z$2:$Z$3) -> 0 | R60: =SUMIF(BDD!$BG$2:$BG$3,"Banc P1VRAIFAUX",BDD!$Z$2:$Z$3) -> 0 | S60: =SUMIF(BDD!$BG$2:$BG$3,"Banc P1FAUXVRAI",BDD!$Z$2:$Z$3) -> 0 | T60: =SUMIF(BDD!$BG$2:$BG$3,"Banc P1VRAIFAUX",BDD!$Z$2:$Z$3) -> 0 | U60: =SUMIF(BDD!$BG$2:$BG$3,"Banc P1FAUXVRAI",BDD!$Z$2:$Z$3) -> 0 | V60: =SUMIF(BDD!$BG$2:$BG$3,"Banc P1VRAIFAUX",BDD!$Z$2:$Z$3) -> 0 | W60: =SUMIF(BDD!$BG$2:$BG$3,"Banc P1FAUXVRAI",BDD!$Z$2:$Z$3) -> 0 | X60: =SUMIF(BDD!$BG$2:$BG$3,"Banc P1VRAIFAUX",BDD!$Z$2:$Z$3) -> 0 | Y60: =SUMIF(BDD!$BG$2:$BG$3,"Banc P1FAUXVRAI",BDD!$Z$2:$Z$3) -> 0
A61: Banc P2 | B61: =SUMIF(BDD!$BG$2:$BG$3,"Banc P2VRAIFAUX",BDD!$Z$2:$Z$3) -> 0 | C61: =SUMIF(BDD!$BG$2:$BG$3,"Banc P2FAUXVRAI",BDD!$Z$2:$Z$3) -> 0 | D61: =SUMIF(BDD!$BG$2:$BG$3,"Banc P2VRAIFAUX",BDD!$Z$2:$Z$3) -> 0 | E61: =SUMIF(BDD!$BG$2:$BG$3,"Banc P2FAUXVRAI",BDD!$Z$2:$Z$3) -> 0 | F61: =SUMIF(BDD!$BG$2:$BG$25,"Banc P2VRAIFAUX",BDD!$Z$2:$Z$25) -> 0 | G61: =SUMIF(BDD!$BG$2:$BG$25,"Banc P2FAUXVRAI",BDD!$Z$2:$Z$25) -> 0 | H61: =SUMIF(BDD!$BG$26:$BG$199,"Banc P2VRAIFAUX",BDD!$Z$26:$Z$199) -> 2 | I61: =SUMIF(BDD!$BG$26:$BG$199,"Banc P2FAUXVRAI",BDD!$Z$26:$Z$199) -> 0 | J61: =SUMIF(BDD!$BG$2:$BG$3,"Banc P2VRAIFAUX",BDD!$Z$2:$Z$3) -> 0 | K61: =SUMIF(BDD!$BG$2:$BG$3,"Banc P2FAUXVRAI",BDD!$Z$2:$Z$3) -> 0 | L61: =SUMIF(BDD!$BG$2:$BG$3,"Banc P2VRAIFAUX",BDD!$Z$2:$Z$3) -> 0 | M61: =SUMIF(BDD!$BG$2:$BG$3,"Banc P2FAUXVRAI",BDD!$Z$2:$Z$3) -> 0 | N61: =SUMIF(BDD!$BG$2:$BG$3,"Banc P2VRAIFAUX",BDD!$Z$2:$Z$3) -> 0 | O61: =SUMIF(BDD!$BG$2:$BG$3,"Banc P2FAUXVRAI",BDD!$Z$2:$Z$3) -> 0 | P61: =SUMIF(BDD!$BG$2:$BG$3,"Banc P2VRAIFAUX",BDD!$Z$2:$Z$3) -> 0 | Q61: =SUMIF(BDD!$BG$2:$BG$3,"Banc P2FAUXVRAI",BDD!$Z$2:$Z$3) -> 0 | R61: =SUMIF(BDD!$BG$2:$BG$3,"Banc P2VRAIFAUX",BDD!$Z$2:$Z$3) -> 0 | S61: =SUMIF(BDD!$BG$2:$BG$3,"Banc P2FAUXVRAI",BDD!$Z$2:$Z$3) -> 0 | T61: =SUMIF(BDD!$BG$2:$BG$3,"Banc P2VRAIFAUX",BDD!$Z$2:$Z$3) -> 0 | U61: =SUMIF(BDD!$BG$2:$BG$3,"Banc P2FAUXVRAI",BDD!$Z$2:$Z$3) -> 0 | V61: =SUMIF(BDD!$BG$2:$BG$3,"Banc P2VRAIFAUX",BDD!$Z$2:$Z$3) -> 0 | W61: =SUMIF(BDD!$BG$2:$BG$3,"Banc P2FAUXVRAI",BDD!$Z$2:$Z$3) -> 0 | X61: =SUMIF(BDD!$BG$2:$BG$3,"Banc P2VRAIFAUX",BDD!$Z$2:$Z$3) -> 0 | Y61: =SUMIF(BDD!$BG$2:$BG$3,"Banc P2FAUXVRAI",BDD!$Z$2:$Z$3) -> 0
A62: Banc 156 | B62: =SUMIF(BDD!$BG$2:$BG$3,"Banc 156VRAIFAUX",BDD!$Z$2:$Z$3) -> 0 | C62: =SUMIF(BDD!$BG$2:$BG$3,"Banc 156FAUXVRAI",BDD!$Z$2:$Z$3) -> 0 | D62: =SUMIF(BDD!$BG$2:$BG$3,"Banc 156VRAIFAUX",BDD!$Z$2:$Z$3) -> 0 | E62: =SUMIF(BDD!$BG$2:$BG$3,"Banc 156FAUXVRAI",BDD!$Z$2:$Z$3) -> 0 | F62: =SUMIF(BDD!$BG$2:$BG$682,"Banc 156VRAIFAUX",BDD!$Z$2:$Z$682) -> 0 | G62: =SUMIF(BDD!$BG$2:$BG$682,"Banc 156FAUXVRAI",BDD!$Z$2:$Z$682) -> 0 | H62: =SUMIF(BDD!$BG$26:$BG$199,"Banc 156VRAIFAUX",BDD!$Z$26:$Z$199) -> 0 | I62: =SUMIF(BDD!$BG$26:$BG$199,"Banc 156FAUXVRAI",BDD!$Z$26:$Z$199) -> 0 | J62: =SUMIF(BDD!$BG$2:$BG$3,"Banc 156VRAIFAUX",BDD!$Z$2:$Z$3) -> 0 | K62: =SUMIF(BDD!$BG$2:$BG$3,"Banc 156FAUXVRAI",BDD!$Z$2:$Z$3) -> 0 | L62: =SUMIF(BDD!$BG$2:$BG$3,"Banc 156VRAIFAUX",BDD!$Z$2:$Z$3) -> 0 | M62: =SUMIF(BDD!$BG$2:$BG$3,"Banc 156FAUXVRAI",BDD!$Z$2:$Z$3) -> 0 | N62: =SUMIF(BDD!$BG$2:$BG$3,"Banc 156VRAIFAUX",BDD!$Z$2:$Z$3) -> 0 | O62: =SUMIF(BDD!$BG$2:$BG$3,"Banc 156FAUXVRAI",BDD!$Z$2:$Z$3) -> 0 | P62: =SUMIF(BDD!$BG$2:$BG$3,"Banc 156VRAIFAUX",BDD!$Z$2:$Z$3) -> 0 | Q62: =SUMIF(BDD!$BG$2:$BG$3,"Banc 156FAUXVRAI",BDD!$Z$2:$Z$3) -> 0 | R62: =SUMIF(BDD!$BG$2:$BG$3,"Banc 156VRAIFAUX",BDD!$Z$2:$Z$3) -> 0 | S62: =SUMIF(BDD!$BG$2:$BG$3,"Banc 156FAUXVRAI",BDD!$Z$2:$Z$3) -> 0 | T62: =SUMIF(BDD!$BG$2:$BG$3,"Banc 156VRAIFAUX",BDD!$Z$2:$Z$3) -> 0 | U62: =SUMIF(BDD!$BG$2:$BG$3,"Banc 156FAUXVRAI",BDD!$Z$2:$Z$3) -> 0 | V62: =SUMIF(BDD!$BG$2:$BG$3,"Banc 156VRAIFAUX",BDD!$Z$2:$Z$3) -> 0 | W62: =SUMIF(BDD!$BG$2:$BG$3,"Banc 156FAUXVRAI",BDD!$Z$2:$Z$3) -> 0 | X62: =SUMIF(BDD!$BG$2:$BG$3,"Banc 156VRAIFAUX",BDD!$Z$2:$Z$3) -> 0 | Y62: =SUMIF(BDD!$BG$2:$BG$3,"Banc 156FAUXVRAI",BDD!$Z$2:$Z$3) -> 0
A63: Chambre Froide | B63: =SUMIF(BDD!$BG$2:$BG$3,"Chambre FroideVRAIFAUX",BDD!$Z$2:$Z$3) -> 0 | C63: =SUMIF(BDD!$BG$2:$BG$3,"Chambre FroideFAUXVRAI",BDD!$Z$2:$Z$3) -> 0 | D63: =SUMIF(BDD!$BG$2:$BG$3,"Chambre FroideVRAIFAUX",BDD!$Z$2:$Z$3) -> 0 | E63: =SUMIF(BDD!$BG$2:$BG$3,"Chambre FroideFAUXVRAI",BDD!$Z$2:$Z$3) -> 0 | F63: =SUMIF(BDD!$BG$2:$BG$682,"Chambre FroideVRAIFAUX",BDD!$Z$2:$Z$682) -> 0 | G63: =SUMIF(BDD!$BG$2:$BG$682,"Chambre FroideFAUXVRAI",BDD!$Z$2:$Z$682) -> 0.3 | H63: =SUMIF(BDD!$BG$26:$BG$199,"Chambre FroideVRAIFAUX",BDD!$Z$26:$Z$199) -> 0 | I63: =SUMIF(BDD!$BG$26:$BG$199,"Chambre FroideFAUXVRAI",BDD!$Z$26:$Z$199) -> 0 | J63: =SUMIF(BDD!$BG$2:$BG$3,"Chambre FroideVRAIFAUX",BDD!$Z$2:$Z$3) -> 0 | K63: =SUMIF(BDD!$BG$2:$BG$3,"Chambre FroideFAUXVRAI",BDD!$Z$2:$Z$3) -> 0 | L63: =SUMIF(BDD!$BG$2:$BG$3,"Chambre FroideVRAIFAUX",BDD!$Z$2:$Z$3) -> 0 | M63: =SUMIF(BDD!$BG$2:$BG$3,"Chambre FroideFAUXVRAI",BDD!$Z$2:$Z$3) -> 0 | N63: =SUMIF(BDD!$BG$2:$BG$3,"Chambre FroideVRAIFAUX",BDD!$Z$2:$Z$3) -> 0 | O63: =SUMIF(BDD!$BG$2:$BG$3,"Chambre FroideFAUXVRAI",BDD!$Z$2:$Z$3) -> 0 | P63: =SUMIF(BDD!$BG$2:$BG$3,"Chambre FroideVRAIFAUX",BDD!$Z$2:$Z$3) -> 0 | Q63: =SUMIF(BDD!$BG$2:$BG$3,"Chambre FroideFAUXVRAI",BDD!$Z$2:$Z$3) -> 0 | R63: =SUMIF(BDD!$BG$2:$BG$3,"Chambre FroideVRAIFAUX",BDD!$Z$2:$Z$3) -> 0 | S63: =SUMIF(BDD!$BG$2:$BG$3,"Chambre FroideFAUXVRAI",BDD!$Z$2:$Z$3) -> 0 | T63: =SUMIF(BDD!$BG$2:$BG$3,"Chambre FroideVRAIFAUX",BDD!$Z$2:$Z$3) -> 0 | U63: =SUMIF(BDD!$BG$2:$BG$3,"Chambre FroideFAUXVRAI",BDD!$Z$2:$Z$3) -> 0 | V63: =SUMIF(BDD!$BG$2:$BG$3,"Chambre FroideVRAIFAUX",BDD!$Z$2:$Z$3) -> 0 | W63: =SUMIF(BDD!$BG$2:$BG$3,"Chambre FroideFAUXVRAI",BDD!$Z$2:$Z$3) -> 0 | X63: =SUMIF(BDD!$BG$2:$BG$3,"Chambre FroideVRAIFAUX",BDD!$Z$2:$Z$3) -> 0 | Y63: =SUMIF(BDD!$BG$2:$BG$3,"Chambre FroideFAUXVRAI",BDD!$Z$2:$Z$3) -> 0
A64: Chambre Sourde | B64: =SUMIF(BDD!$BG$2:$BG$3,"Chambre SourdeVRAIFAUX",BDD!$Z$2:$Z$3) -> 0 | C64: =SUMIF(BDD!$BG$2:$BG$3,"Chambre SourdeFAUXVRAI",BDD!$Z$2:$Z$3) -> 0 | D64: =SUMIF(BDD!$BG$2:$BG$3,"Chambre SourdeVRAIFAUX",BDD!$Z$2:$Z$3) -> 0 | E64: =SUMIF(BDD!$BG$2:$BG$3,"Chambre SourdeFAUXVRAI",BDD!$Z$2:$Z$3) -> 0 | F64: =SUMIF(BDD!$BG$2:$BG$682,"Chambre SourdeVRAIFAUX",BDD!$Z$2:$Z$682) -> 0 | G64: =SUMIF(BDD!$BG$2:$BG$682,"Chambre SourdeFAUXVRAI",BDD!$Z$2:$Z$682) -> 0 | H64: =SUMIF(BDD!$BG$26:$BG$199,"Chambre SourdeVRAIFAUX",BDD!$Z$26:$Z$199) -> 0 | I64: =SUMIF(BDD!$BG$26:$BG$199,"Chambre SourdeFAUXVRAI",BDD!$Z$26:$Z$199) -> 0 | J64: =SUMIF(BDD!$BG$2:$BG$3,"Chambre SourdeVRAIFAUX",BDD!$Z$2:$Z$3) -> 0 | K64: =SUMIF(BDD!$BG$2:$BG$3,"Chambre SourdeFAUXVRAI",BDD!$Z$2:$Z$3) -> 0 | L64: =SUMIF(BDD!$BG$2:$BG$3,"Chambre SourdeVRAIFAUX",BDD!$Z$2:$Z$3) -> 0 | M64: =SUMIF(BDD!$BG$2:$BG$3,"Chambre SourdeFAUXVRAI",BDD!$Z$2:$Z$3) -> 0 | N64: =SUMIF(BDD!$BG$2:$BG$3,"Chambre SourdeVRAIFAUX",BDD!$Z$2:$Z$3) -> 0 | O64: =SUMIF(BDD!$BG$2:$BG$3,"Chambre SourdeFAUXVRAI",BDD!$Z$2:$Z$3) -> 0 | P64: =SUMIF(BDD!$BG$2:$BG$3,"Chambre SourdeVRAIFAUX",BDD!$Z$2:$Z$3) -> 0 | Q64: =SUMIF(BDD!$BG$2:$BG$3,"Chambre SourdeFAUXVRAI",BDD!$Z$2:$Z$3) -> 0 | R64: =SUMIF(BDD!$BG$2:$BG$3,"Chambre SourdeVRAIFAUX",BDD!$Z$2:$Z$3) -> 0 | S64: =SUMIF(BDD!$BG$2:$BG$3,"Chambre SourdeFAUXVRAI",BDD!$Z$2:$Z$3) -> 0 | T64: =SUMIF(BDD!$BG$2:$BG$3,"Chambre SourdeVRAIFAUX",BDD!$Z$2:$Z$3) -> 0 | U64: =SUMIF(BDD!$BG$2:$BG$3,"Chambre SourdeFAUXVRAI",BDD!$Z$2:$Z$3) -> 0 | V64: =SUMIF(BDD!$BG$2:$BG$3,"Chambre SourdeVRAIFAUX",BDD!$Z$2:$Z$3) -> 0 | W64: =SUMIF(BDD!$BG$2:$BG$3,"Chambre SourdeFAUXVRAI",BDD!$Z$2:$Z$3) -> 0 | X64: =SUMIF(BDD!$BG$2:$BG$3,"Chambre SourdeVRAIFAUX",BDD!$Z$2:$Z$3) -> 0 | Y64: =SUMIF(BDD!$BG$2:$BG$3,"Chambre SourdeFAUXVRAI",BDD!$Z$2:$Z$3) -> 0
B87: Suivi du correctif et du préventif par banc
B88: Janvier | H88: Février | N88: Mars | T88: Avril | Z88: Mai | AF88: Juin | AL88: Juillet | AR88: Août | AX88: Septembre | BD88: Octobre | BJ88: Novembre | BP88: Décembre
B89: Corrective | E89: Préventive | H89: Corrective | K89: Préventive | N89: Corrective | Q89: Préventive | T89: Corrective | W89: Préventive | Z89: Corrective | AC89: Préventive | AF89: Corrective | AI89: Préventive | AL89: Corrective | AO89: Préventive | AR89: Corrective | AU89: Préventive | AX89: Corrective | BA89: Préventive | BD89: Corrective | BG89: Préventive | BJ89: Corrective | BM89: Préventive | BP89: Corrective | BS89: Préventive
A90: Banc zone 6 | B90: Electrique | C90: Mécanique | D90: Hydraulique | E90: Electrique | F90: Mécanique | G90: Hydraulique | H90: Electrique | I90: Mécanique | J90: Hydraulique | K90: Electrique | L90: Mécanique | M90: Hydraulique | N90: Electrique | O90: Mécanique | P90: Hydraulique | Q90: Electrique | R90: Mécanique | S90: Hydraulique | T90: Electrique | U90: Mécanique | V90: Hydraulique | W90: Electrique | X90: Mécanique | Y90: Hydraulique | Z90: Electrique | AA90: Mécanique | AB90: Hydraulique | AC90: Electrique | AD90: Mécanique | AE90: Hydraulique | AF90: Electrique | AG90: Mécanique | AH90: Hydraulique | AI90: Electrique | AJ90: Mécanique | AK90: Hydraulique | AL90: Electrique | AM90: Mécanique | AN90: Hydraulique | AO90: Electrique | AP90: Mécanique | AQ90: Hydraulique | AR90: Electrique | AS90: Mécanique | AT90: Hydraulique | AU90: Electrique | AV90: Mécanique | AW90: Hydraulique | AX90: Electrique | AY90: Mécanique | AZ90: Hydraulique | BA90: Electrique | BB90: Mécanique | BC90: Hydraulique | BD90: Electrique | BE90: Mécanique | BF90: Hydraulique | BG90: Electrique | BH90: Mécanique | BI90: Hydraulique | BJ90: Electrique | BK90: Mécanique | BL90: Hydraulique | BM90: Electrique | BN90: Mécanique | BO90: Hydraulique | BP90: Electrique | BQ90: Mécanique | BR90: Hydraulique | BS90: Electrique | BT90: Mécanique | BU90: Hydraulique
A91: M73001 (Banc new P9) | B91: =SUMIF(BDD!$BH$2:$BH$3,"M73001 (Banc new P9)VRAIFAUXVRAIFAUXFAUX",BDD!$Z$2:$Z$3) -> 0 | C91: =SUMIF(BDD!$BH$2:$BH$3,"M73001 (Banc new P9)VRAIFAUXFAUXVRAIFAUX",BDD!$Z$2:$Z$3) -> 0 | D91: =SUMIF(BDD!$BH$2:$BH$3,"M73001 (Banc new P9)VRAIFAUXFAUXFAUXVRAI",BDD!$Z$2:$Z$3) -> 0 | E91: =SUMIF(BDD!$BH$2:$BH$3,"M73001 (Banc new P9)FAUXVRAIVRAIFAUXFAUX",BDD!$Z$2:$Z$3) -> 0 | F91: =SUMIF(BDD!$BH$2:$BH$3,"M73001 (Banc new P9)FAUXVRAIFAUXVRAIFAUX",BDD!$Z$2:$Z$3) -> 0 | G91: =SUMIF(BDD!$BH$2:$BH$3,"M73001 (Banc new P9)FAUXVRAIFAUXFAUXVRAI",BDD!$Z$2:$Z$3) -> 0 | H91: =SUMIF(BDD!$BH$2:$BH$3,"M73001 (Banc new P9)VRAIFAUXVRAIFAUXFAUX",BDD!$Z$2:$Z$3) -> 0 | I91: =SUMIF(BDD!$BH$2:$BH$3,"M73001 (Banc new P9)VRAIFAUXFAUXVRAIFAUX",BDD!$Z$2:$Z$3) -> 0 | J91: =SUMIF(BDD!$BH$2:$BH$3,"M73001 (Banc new P9)VRAIFAUXFAUXFAUXVRAI",BDD!$Z$2:$Z$3) -> 0 | K91: =SUMIF(BDD!$BH$2:$BH$3,"M73001 (Banc new P9)FAUXVRAIVRAIFAUXFAUX",BDD!$Z$2:$Z$3) -> 0 | L91: =SUMIF(BDD!$BH$2:$BH$3,"M73001 (Banc new P9)FAUXVRAIFAUXVRAIFAUX",BDD!$Z$2:$Z$3) -> 0 | M91: =SUMIF(BDD!$BH$2:$BH$3,"M73001 (Banc new P9)FAUXVRAIFAUXFAUXVRAI",BDD!$Z$2:$Z$3) -> 0 | N91: =SUMIF(BDD!$BH$2:$BH$25,"M73001 (Banc new P9)VRAIFAUXVRAIFAUXFAUX",BDD!$Z$2:$Z$25) -> 0 | O91: =SUMIF(BDD!$BH$2:$BH$25,"M73001 (Banc new P9)VRAIFAUXFAUXVRAIFAUX",BDD!$Z$2:$Z$25) -> 0 | P91: =SUMIF(BDD!$BH$2:$BH$25,"M73001 (Banc new P9)VRAIFAUXFAUXFAUXVRAI",BDD!$Z$2:$Z$25) -> 0 | Q91: =SUMIF(BDD!$BH$2:$BH$25,"M73001 (Banc new P9)FAUXVRAIVRAIFAUXFAUX",BDD!$Z$2:$Z$25) -> 0 | R91: =SUMIF(BDD!$BH$2:$BH$25,"M73001 (Banc new P9)FAUXVRAIFAUXVRAIFAUX",BDD!$Z$2:$Z$25) -> 0 | S91: =SUMIF(BDD!$BH$2:$BH$25,"M73001 (Banc new P9)FAUXVRAIFAUXFAUXVRAI",BDD!$Z$2:$Z$25) -> 0 | T91: =SUMIF(BDD!$BH$26:$BH$149,"M73001 (Banc new P9)VRAIFAUXVRAIFAUXFAUX",BDD!$Z$26:$Z$149) -> 0 | U91: =SUMIF(BDD!$BH$26:$BH$149,"M72600001 (Banc new P9)VRAIFAUXFAUXVRAIFAUX",BDD!$Z$26:$Z$149) -> 0 | V91: =SUMIF(BDD!$BH$26:$BH$149,"M72600001 (Banc new P9)VRAIFAUXFAUXFAUXVRAI",BDD!$Z$26:$Z$149) -> 0 | W91: =SUMIF(BDD!$BH$26:$BH$149,"M72600001 (Banc new P9)FAUXVRAIVRAIFAUXFAUX",BDD!$Z$26:$Z$149) -> 0 | X91: =SUMIF(BDD!$BH$26:$BH$149,"M72600001 (Banc new P9)FAUXVRAIFAUXVRAIFAUX",BDD!$Z$26:$Z$149) -> 0 | Y91: =SUMIF(BDD!$BH$26:$BH$149,"M72600001 (Banc new P9)FAUXVRAIFAUXFAUXVRAI",BDD!$Z$26:$Z$149) -> 0 | Z91: =SUMIF(BDD!$BH$2:$BH$3,"M73001 (Banc new P9)VRAIFAUXVRAIFAUXFAUX",BDD!$Z$2:$Z$3) -> 0 | AA91: =SUMIF(BDD!$BH$2:$BH$3,"M73001 (Banc new P9)VRAIFAUXFAUXVRAIFAUX",BDD!$Z$2:$Z$3) -> 0 | AB91: =SUMIF(BDD!$BH$2:$BH$3,"M73001 (Banc new P9)VRAIFAUXFAUXFAUXVRAI",BDD!$Z$2:$Z$3) -> 0 | AC91: =SUMIF(BDD!$BH$2:$BH$3,"M73001 (Banc new P9)FAUXVRAIVRAIFAUXFAUX",BDD!$Z$2:$Z$3) -> 0 | AD91: =SUMIF(BDD!$BH$2:$BH$3,"M73001 (Banc new P9)FAUXVRAIFAUXVRAIFAUX",BDD!$Z$2:$Z$3) -> 0 | AE91: =SUMIF(BDD!$BH$2:$BH$3,"M73001 (Banc new P9)FAUXVRAIFAUXFAUXVRAI",BDD!$Z$2:$Z$3) -> 0 | AF91: =SUMIF(BDD!$BH$2:$BH$3,"M73001 (Banc new P9)VRAIFAUXVRAIFAUXFAUX",BDD!$Z$2:$Z$3) -> 0 | AG91: =SUMIF(BDD!$BH$2:$BH$3,"M73001 (Banc new P9)VRAIFAUXFAUXVRAIFAUX",BDD!$Z$2:$Z$3) -> 0 | AH91: =SUMIF(BDD!$BH$2:$BH$3,"M73001 (Banc new P9)VRAIFAUXFAUXFAUXVRAI",BDD!$Z$2:$Z$3) -> 0 | AI91: =SUMIF(BDD!$BH$2:$BH$3,"M73001 (Banc new P9)FAUXVRAIVRAIFAUXFAUX",BDD!$Z$2:$Z$3) -> 0 | AJ91: =SUMIF(BDD!$BH$2:$BH$3,"M73001 (Banc new P9)FAUXVRAIFAUXVRAIFAUX",BDD!$Z$2:$Z$3) -> 0 | AK91: =SUMIF(BDD!$BH$2:$BH$3,"M73001 (Banc new P9)FAUXVRAIFAUXFAUXVRAI",BDD!$Z$2:$Z$3) -> 0 | AL91: =SUMIF(BDD!$BH$2:$BH$3,"M73001 (Banc new P9)VRAIFAUXVRAIFAUXFAUX",BDD!$Z$2:$Z$3) -> 0 | AM91: =SUMIF(BDD!$BH$2:$BH$3,"M73001 (Banc new P9)VRAIFAUXFAUXVRAIFAUX",BDD!$Z$2:$Z$3) -> 0 | AN91: =SUMIF(BDD!$BH$2:$BH$3,"M73001 (Banc new P9)VRAIFAUXFAUXFAUXVRAI",BDD!$Z$2:$Z$3) -> 0 | AO91: =SUMIF(BDD!$BH$2:$BH$3,"M73001 (Banc new P9)FAUXVRAIVRAIFAUXFAUX",BDD!$Z$2:$Z$3) -> 0 | AP91: =SUMIF(BDD!$BH$2:$BH$3,"M73001 (Banc new P9)FAUXVRAIFAUXVRAIFAUX",BDD!$Z$2:$Z$3) -> 0 | AQ91: =SUMIF(BDD!$BH$2:$BH$3,"M73001 (Banc new P9)FAUXVRAIFAUXFAUXVRAI",BDD!$Z$2:$Z$3) -> 0 | AR91: =SUMIF(BDD!$BH$2:$BH$3,"M73001 (Banc new P9)VRAIFAUXVRAIFAUXFAUX",BDD!$Z$2:$Z$3) -> 0 | AS91: =SUMIF(BDD!$BH$2:$BH$3,"M73001 (Banc new P9)VRAIFAUXFAUXVRAIFAUX",BDD!$Z$2:$Z$3) -> 0 | AT91: =SUMIF(BDD!$BH$2:$BH$3,"M73001 (Banc new P9)VRAIFAUXFAUXFAUXVRAI",BDD!$Z$2:$Z$3) -> 0 | AU91: =SUMIF(BDD!$BH$2:$BH$3,"M73001 (Banc new P9)FAUXVRAIVRAIFAUXFAUX",BDD!$Z$2:$Z$3) -> 0 | AV91: =SUMIF(BDD!$BH$2:$BH$3,"M73001 (Banc new P9)FAUXVRAIFAUXVRAIFAUX",BDD!$Z$2:$Z$3) -> 0 | AW91: =SUMIF(BDD!$BH$2:$BH$3,"M73001 (Banc new P9)FAUXVRAIFAUXFAUXVRAI",BDD!$Z$2:$Z$3) -> 0 | AX91: =SUMIF(BDD!$BH$2:$BH$3,"M73001 (Banc new P9)VRAIFAUXVRAIFAUXFAUX",BDD!$Z$2:$Z$3) -> 0 | AY91: =SUMIF(BDD!$BH$2:$BH$3,"M73001 (Banc new P9)VRAIFAUXFAUXVRAIFAUX",BDD!$Z$2:$Z$3) -> 0 | AZ91: =SUMIF(BDD!$BH$2:$BH$3,"M73001 (Banc new P9)VRAIFAUXFAUXFAUXVRAI",BDD!$Z$2:$Z$3) -> 0 | BA91: =SUMIF(BDD!$BH$2:$BH$3,"M73001 (Banc new P9)FAUXVRAIVRAIFAUXFAUX",BDD!$Z$2:$Z$3) -> 0 | BB91: =SUMIF(BDD!$BH$2:$BH$3,"M73001 (Banc new P9)FAUXVRAIFAUXVRAIFAUX",BDD!$Z$2:$Z$3) -> 0 | BC91: =SUMIF(BDD!$BH$2:$BH$3,"M73001 (Banc new P9)FAUXVRAIFAUXFAUXVRAI",BDD!$Z$2:$Z$3) -> 0 | BD91: =SUMIF(BDD!$BH$2:$BH$3,"M73001 (Banc new P9)VRAIFAUXVRAIFAUXFAUX",BDD!$Z$2:$Z$3) -> 0 | BE91: =SUMIF(BDD!$BH$2:$BH$3,"M73001 (Banc new P9)VRAIFAUXFAUXVRAIFAUX",BDD!$Z$2:$Z$3) -> 0 | BF91: =SUMIF(BDD!$BH$2:$BH$3,"M73001 (Banc new P9)VRAIFAUXFAUXFAUXVRAI",BDD!$Z$2:$Z$3) -> 0 | BG91: =SUMIF(BDD!$BH$2:$BH$3,"M73001 (Banc new P9)FAUXVRAIVRAIFAUXFAUX",BDD!$Z$2:$Z$3) -> 0 | BH91: =SUMIF(BDD!$BH$2:$BH$3,"M73001 (Banc new P9)FAUXVRAIFAUXVRAIFAUX",BDD!$Z$2:$Z$3) -> 0 | BI91: =SUMIF(BDD!$BH$2:$BH$3,"M73001 (Banc new P9)FAUXVRAIFAUXFAUXVRAI",BDD!$Z$2:$Z$3) -> 0 | BJ91: =SUMIF(BDD!$BH$2:$BH$3,"M73001 (Banc new P9)VRAIFAUXVRAIFAUXFAUX",BDD!$Z$2:$Z$3) -> 0 | BK91: =SUMIF(BDD!$BH$2:$BH$3,"M73001 (Banc new P9)VRAIFAUXFAUXVRAIFAUX",BDD!$Z$2:$Z$3) -> 0 | BL91: =SUMIF(BDD!$BH$2:$BH$3,"M73001 (Banc new P9)VRAIFAUXFAUXFAUXVRAI",BDD!$Z$2:$Z$3) -> 0 | BM91: =SUMIF(BDD!$BH$2:$BH$3,"M73001 (Banc new P9)FAUXVRAIVRAIFAUXFAUX",BDD!$Z$2:$Z$3) -> 0 | BN91: =SUMIF(BDD!$BH$2:$BH$3,"M73001 (Banc new P9)FAUXVRAIFAUXVRAIFAUX",BDD!$Z$2:$Z$3) -> 0 | BO91: =SUMIF(BDD!$BH$2:$BH$3,"M73001 (Banc new P9)FAUXVRAIFAUXFAUXVRAI",BDD!$Z$2:$Z$3) -> 0 | BP91: =SUMIF(BDD!$BH$2:$BH$3,"M73001 (Banc new P9)VRAIFAUXVRAIFAUXFAUX",BDD!$Z$2:$Z$3) -> 0 | BQ91: =SUMIF(BDD!$BH$2:$BH$3,"M73001 (Banc new P9)VRAIFAUXFAUXVRAIFAUX",BDD!$Z$2:$Z$3) -> 0 | BR91: =SUMIF(BDD!$BH$2:$BH$3,"M73001 (Banc new P9)VRAIFAUXFAUXFAUXVRAI",BDD!$Z$2:$Z$3) -> 0 | BS91: =SUMIF(BDD!$BH$2:$BH$3,"M73001 (Banc new P9)FAUXVRAIVRAIFAUXFAUX",BDD!$Z$2:$Z$3) -> 0 | BT91: =SUMIF(BDD!$BH$2:$BH$3,"M73001 (Banc new P9)FAUXVRAIFAUXVRAIFAUX",BDD!$Z$2:$Z$3) -> 0 | BU91: =SUMIF(BDD!$BH$2:$BH$3,"M73001 (Banc new P9)FAUXVRAIFAUXFAUXVRAI",BDD!$Z$2:$Z$3) -> 0
A92: Banc P1 | B92: =SUMIF(BDD!$BH$2:$BH$3,"Banc P1VRAIFAUXVRAIFAUXFAUX",BDD!$Z$2:$Z$3) -> 0 | C92: =SUMIF(BDD!$BH$2:$BH$3,"Banc P1VRAIFAUXFAUXVRAIFAUX",BDD!$Z$2:$Z$3) -> 0 | D92: =SUMIF(BDD!$BH$2:$BH$3,"Banc P1VRAIFAUXFAUXFAUXVRAI",BDD!$Z$2:$Z$3) -> 0 | E92: =SUMIF(BDD!$BH$2:$BH$3,"Banc P1FAUXVRAIVRAIFAUXFAUX",BDD!$Z$2:$Z$3) -> 0 | F92: =SUMIF(BDD!$BH$2:$BH$3,"Banc P1FAUXVRAIFAUXVRAIFAUX",BDD!$Z$2:$Z$3) -> 0 | G92: =SUMIF(BDD!$BH$2:$BH$3,"Banc P1FAUXVRAIFAUXFAUXVRAI",BDD!$Z$2:$Z$3) -> 0 | H92: =SUMIF(BDD!$BH$2:$BH$3,"Banc P1VRAIFAUXVRAIFAUXFAUX",BDD!$Z$2:$Z$3) -> 0 | I92: =SUMIF(BDD!$BH$2:$BH$3,"Banc P1VRAIFAUXFAUXVRAIFAUX",BDD!$Z$2:$Z$3) -> 0 | J92: =SUMIF(BDD!$BH$2:$BH$3,"Banc P1VRAIFAUXFAUXFAUXVRAI",BDD!$Z$2:$Z$3) -> 0 | K92: =SUMIF(BDD!$BH$2:$BH$3,"Banc P1FAUXVRAIVRAIFAUXFAUX",BDD!$Z$2:$Z$3) -> 0 | L92: =SUMIF(BDD!$BH$2:$BH$3,"Banc P1FAUXVRAIFAUXVRAIFAUX",BDD!$Z$2:$Z$3) -> 0 | M92: =SUMIF(BDD!$BH$2:$BH$3,"Banc P1FAUXVRAIFAUXFAUXVRAI",BDD!$Z$2:$Z$3) -> 0 | N92: =SUMIF(BDD!$BH$2:$BH$25,"Banc P1VRAIFAUXVRAIFAUXFAUX",BDD!$Z$2:$Z$25) -> 0.02 | O92: =SUMIF(BDD!$BH$2:$BH$25,"Banc P1VRAIFAUXFAUXVRAIFAUX",BDD!$Z$2:$Z$25) -> 0 | P92: =SUMIF(BDD!$BH$2:$BH$25,"Banc P1VRAIFAUXFAUXFAUXVRAI",BDD!$Z$2:$Z$25) -> 0 | Q92: =SUMIF(BDD!$BH$2:$BH$25,"Banc P1FAUXVRAIVRAIFAUXFAUX",BDD!$Z$2:$Z$25) -> 0 | R92: =SUMIF(BDD!$BH$2:$BH$25,"Banc P1FAUXVRAIFAUXVRAIFAUX",BDD!$Z$2:$Z$25) -> 0 | S92: =SUMIF(BDD!$BH$2:$BH$25,"Banc P1FAUXVRAIFAUXFAUXVRAI",BDD!$Z$2:$Z$25) -> 0 | T92: =SUMIF(BDD!$BH$26:$BH$149,"Banc P1VRAIFAUXVRAIFAUXFAUX",BDD!$Z$26:$Z$149) -> 0.02 | U92: =SUMIF(BDD!$BH$26:$BH$149,"Banc P1VRAIFAUXFAUXVRAIFAUX",BDD!$Z$26:$Z$149) -> 0 | V92: =SUMIF(BDD!$BH$26:$BH$149,"Banc P1VRAIFAUXFAUXFAUXVRAI",BDD!$Z$26:$Z$149) -> 0 | W92: =SUMIF(BDD!$BH$26:$BH$149,"Banc P1FAUXVRAIVRAIFAUXFAUX",BDD!$Z$26:$Z$149) -> 0 | X92: =SUMIF(BDD!$BH$26:$BH$149,"Banc P1FAUXVRAIFAUXVRAIFAUX",BDD!$Z$26:$Z$149) -> 0 | Y92: =SUMIF(BDD!$BH$26:$BH$149,"Banc P1FAUXVRAIFAUXFAUXVRAI",BDD!$Z$26:$Z$149) -> 0 | Z92: =SUMIF(BDD!$BH$2:$BH$3,"Banc P1VRAIFAUXVRAIFAUXFAUX",BDD!$Z$2:$Z$3) -> 0 | AA92: =SUMIF(BDD!$BH$2:$BH$3,"Banc P1VRAIFAUXFAUXVRAIFAUX",BDD!$Z$2:$Z$3) -> 0 | AB92: =SUMIF(BDD!$BH$2:$BH$3,"Banc P1VRAIFAUXFAUXFAUXVRAI",BDD!$Z$2:$Z$3) -> 0 | AC92: =SUMIF(BDD!$BH$2:$BH$3,"Banc P1FAUXVRAIVRAIFAUXFAUX",BDD!$Z$2:$Z$3) -> 0 | AD92: =SUMIF(BDD!$BH$2:$BH$3,"Banc P1FAUXVRAIFAUXVRAIFAUX",BDD!$Z$2:$Z$3) -> 0 | AE92: =SUMIF(BDD!$BH$2:$BH$3,"Banc P1FAUXVRAIFAUXFAUXVRAI",BDD!$Z$2:$Z$3) -> 0 | AF92: =SUMIF(BDD!$BH$2:$BH$3,"Banc P1VRAIFAUXVRAIFAUXFAUX",BDD!$Z$2:$Z$3) -> 0 | AG92: =SUMIF(BDD!$BH$2:$BH$3,"Banc P1VRAIFAUXFAUXVRAIFAUX",BDD!$Z$2:$Z$3) -> 0 | AH92: =SUMIF(BDD!$BH$2:$BH$3,"Banc P1VRAIFAUXFAUXFAUXVRAI",BDD!$Z$2:$Z$3) -> 0 | AI92: =SUMIF(BDD!$BH$2:$BH$3,"Banc P1FAUXVRAIVRAIFAUXFAUX",BDD!$Z$2:$Z$3) -> 0 | AJ92: =SUMIF(BDD!$BH$2:$BH$3,"Banc P1FAUXVRAIFAUXVRAIFAUX",BDD!$Z$2:$Z$3) -> 0 | AK92: =SUMIF(BDD!$BH$2:$BH$3,"Banc P1FAUXVRAIFAUXFAUXVRAI",BDD!$Z$2:$Z$3) -> 0 | AL92: =SUMIF(BDD!$BH$2:$BH$3,"Banc P1VRAIFAUXVRAIFAUXFAUX",BDD!$Z$2:$Z$3) -> 0 | AM92: =SUMIF(BDD!$BH$2:$BH$3,"Banc P1VRAIFAUXFAUXVRAIFAUX",BDD!$Z$2:$Z$3) -> 0 | AN92: =SUMIF(BDD!$BH$2:$BH$3,"Banc P1VRAIFAUXFAUXFAUXVRAI",BDD!$Z$2:$Z$3) -> 0 | AO92: =SUMIF(BDD!$BH$2:$BH$3,"Banc P1FAUXVRAIVRAIFAUXFAUX",BDD!$Z$2:$Z$3) -> 0 | AP92: =SUMIF(BDD!$BH$2:$BH$3,"Banc P1FAUXVRAIFAUXVRAIFAUX",BDD!$Z$2:$Z$3) -> 0 | AQ92: =SUMIF(BDD!$BH$2:$BH$3,"Banc P1FAUXVRAIFAUXFAUXVRAI",BDD!$Z$2:$Z$3) -> 0 | AR92: =SUMIF(BDD!$BH$2:$BH$3,"Banc P1VRAIFAUXVRAIFAUXFAUX",BDD!$Z$2:$Z$3) -> 0 | AS92: =SUMIF(BDD!$BH$2:$BH$3,"Banc P1VRAIFAUXFAUXVRAIFAUX",BDD!$Z$2:$Z$3) -> 0 | AT92: =SUMIF(BDD!$BH$2:$BH$3,"Banc P1VRAIFAUXFAUXFAUXVRAI",BDD!$Z$2:$Z$3) -> 0 | AU92: =SUMIF(BDD!$BH$2:$BH$3,"Banc P1FAUXVRAIVRAIFAUXFAUX",BDD!$Z$2:$Z$3) -> 0 | AV92: =SUMIF(BDD!$BH$2:$BH$3,"Banc P1FAUXVRAIFAUXVRAIFAUX",BDD!$Z$2:$Z$3) -> 0 | AW92: =SUMIF(BDD!$BH$2:$BH$3,"Banc P1FAUXVRAIFAUXFAUXVRAI",BDD!$Z$2:$Z$3) -> 0 | AX92: =SUMIF(BDD!$BH$2:$BH$3,"Banc P1VRAIFAUXVRAIFAUXFAUX",BDD!$Z$2:$Z$3) -> 0 | AY92: =SUMIF(BDD!$BH$2:$BH$3,"Banc P1VRAIFAUXFAUXVRAIFAUX",BDD!$Z$2:$Z$3) -> 0 | AZ92: =SUMIF(BDD!$BH$2:$BH$3,"Banc P1VRAIFAUXFAUXFAUXVRAI",BDD!$Z$2:$Z$3) -> 0 | BA92: =SUMIF(BDD!$BH$2:$BH$3,"Banc P1FAUXVRAIVRAIFAUXFAUX",BDD!$Z$2:$Z$3) -> 0 | BB92: =SUMIF(BDD!$BH$2:$BH$3,"Banc P1FAUXVRAIFAUXVRAIFAUX",BDD!$Z$2:$Z$3) -> 0 | BC92: =SUMIF(BDD!$BH$2:$BH$3,"Banc P1FAUXVRAIFAUXFAUXVRAI",BDD!$Z$2:$Z$3) -> 0 | BD92: =SUMIF(BDD!$BH$2:$BH$3,"Banc P1VRAIFAUXVRAIFAUXFAUX",BDD!$Z$2:$Z$3) -> 0 | BE92: =SUMIF(BDD!$BH$2:$BH$3,"Banc P1VRAIFAUXFAUXVRAIFAUX",BDD!$Z$2:$Z$3) -> 0 | BF92: =SUMIF(BDD!$BH$2:$BH$3,"Banc P1VRAIFAUXFAUXFAUXVRAI",BDD!$Z$2:$Z$3) -> 0 | BG92: =SUMIF(BDD!$BH$2:$BH$3,"Banc P1FAUXVRAIVRAIFAUXFAUX",BDD!$Z$2:$Z$3) -> 0 | BH92: =SUMIF(BDD!$BH$2:$BH$3,"Banc P1FAUXVRAIFAUXVRAIFAUX",BDD!$Z$2:$Z$3) -> 0 | BI92: =SUMIF(BDD!$BH$2:$BH$3,"Banc P1FAUXVRAIFAUXFAUXVRAI",BDD!$Z$2:$Z$3) -> 0 | BJ92: =SUMIF(BDD!$BH$2:$BH$3,"Banc P1VRAIFAUXVRAIFAUXFAUX",BDD!$Z$2:$Z$3) -> 0 | BK92: =SUMIF(BDD!$BH$2:$BH$3,"Banc P1VRAIFAUXFAUXVRAIFAUX",BDD!$Z$2:$Z$3) -> 0 | BL92: =SUMIF(BDD!$BH$2:$BH$3,"Banc P1VRAIFAUXFAUXFAUXVRAI",BDD!$Z$2:$Z$3) -> 0 | BM92: =SUMIF(BDD!$BH$2:$BH$3,"Banc P1FAUXVRAIVRAIFAUXFAUX",BDD!$Z$2:$Z$3) -> 0 | BN92: =SUMIF(BDD!$BH$2:$BH$3,"Banc P1FAUXVRAIFAUXVRAIFAUX",BDD!$Z$2:$Z$3) -> 0 | BO92: =SUMIF(BDD!$BH$2:$BH$3,"Banc P1FAUXVRAIFAUXFAUXVRAI",BDD!$Z$2:$Z$3) -> 0 | BP92: =SUMIF(BDD!$BH$2:$BH$3,"Banc P1VRAIFAUXVRAIFAUXFAUX",BDD!$Z$2:$Z$3) -> 0 | BQ92: =SUMIF(BDD!$BH$2:$BH$3,"Banc P1VRAIFAUXFAUXVRAIFAUX",BDD!$Z$2:$Z$3) -> 0 | BR92: =SUMIF(BDD!$BH$2:$BH$3,"Banc P1VRAIFAUXFAUXFAUXVRAI",BDD!$Z$2:$Z$3) -> 0 | BS92: =SUMIF(BDD!$BH$2:$BH$3,"Banc P1FAUXVRAIVRAIFAUXFAUX",BDD!$Z$2:$Z$3) -> 0 | BT92: =SUMIF(BDD!$BH$2:$BH$3,"Banc P1FAUXVRAIFAUXVRAIFAUX",BDD!$Z$2:$Z$3) -> 0 | BU92: =SUMIF(BDD!$BH$2:$BH$3,"Banc P1FAUXVRAIFAUXFAUXVRAI",BDD!$Z$2:$Z$3) -> 0
A93: Banc P2 | B93: =SUMIF(BDD!$BH$2:$BH$3,"Banc P2VRAIFAUXVRAIFAUXFAUX",BDD!$Z$2:$Z$3) -> 0 | C93: =SUMIF(BDD!$BH$2:$BH$3,"Banc P2VRAIFAUXFAUXVRAIFAUX",BDD!$Z$2:$Z$3) -> 0 | D93: =SUMIF(BDD!$BH$2:$BH$3,"Banc P2VRAIFAUXFAUXFAUXVRAI",BDD!$Z$2:$Z$3) -> 0 | E93: =SUMIF(BDD!$BH$2:$BH$3,"Banc P2FAUXVRAIVRAIFAUXFAUX",BDD!$Z$2:$Z$3) -> 0 | F93: =SUMIF(BDD!$BH$2:$BH$3,"Banc P2FAUXVRAIFAUXVRAIFAUX",BDD!$Z$2:$Z$3) -> 0 | G93: =SUMIF(BDD!$BH$2:$BH$3,"Banc P2FAUXVRAIFAUXFAUXVRAI",BDD!$Z$2:$Z$3) -> 0 | H93: =SUMIF(BDD!$BH$2:$BH$3,"Banc P2VRAIFAUXVRAIFAUXFAUX",BDD!$Z$2:$Z$3) -> 0 | I93: =SUMIF(BDD!$BH$2:$BH$3,"Banc P2VRAIFAUXFAUXVRAIFAUX",BDD!$Z$2:$Z$3) -> 0 | J93: =SUMIF(BDD!$BH$2:$BH$3,"Banc P2VRAIFAUXFAUXFAUXVRAI",BDD!$Z$2:$Z$3) -> 0 | K93: =SUMIF(BDD!$BH$2:$BH$3,"Banc P2FAUXVRAIVRAIFAUXFAUX",BDD!$Z$2:$Z$3) -> 0 | L93: =SUMIF(BDD!$BH$2:$BH$3,"Banc P2FAUXVRAIFAUXVRAIFAUX",BDD!$Z$2:$Z$3) -> 0 | M93: =SUMIF(BDD!$BH$2:$BH$3,"Banc P2FAUXVRAIFAUXFAUXVRAI",BDD!$Z$2:$Z$3) -> 0 | N93: =SUMIF(BDD!$BH$2:$BH$25,"Banc P2VRAIFAUXVRAIFAUXFAUX",BDD!$Z$2:$Z$25) -> 0 | O93: =SUMIF(BDD!$BH$2:$BH$25,"Banc P2VRAIFAUXFAUXVRAIFAUX",BDD!$Z$2:$Z$25) -> 0 | P93: =SUMIF(BDD!$BH$2:$BH$25,"Banc P2VRAIFAUXFAUXFAUXVRAI",BDD!$Z$2:$Z$25) -> 0 | Q93: =SUMIF(BDD!$BH$2:$BH$25,"Banc P2FAUXVRAIVRAIFAUXFAUX",BDD!$Z$2:$Z$25) -> 0 | R93: =SUMIF(BDD!$BH$2:$BH$25,"Banc P2FAUXVRAIFAUXVRAIFAUX",BDD!$Z$2:$Z$25) -> 0 | S93: =SUMIF(BDD!$BH$2:$BH$25,"Banc P2FAUXVRAIFAUXFAUXVRAI",BDD!$Z$2:$Z$25) -> 0 | T93: =SUMIF(BDD!$BH$26:$BH$149,"Banc P2VRAIFAUXVRAIFAUXFAUX",BDD!$Z$26:$Z$149) -> 0 | U93: =SUMIF(BDD!$BH$26:$BH$149,"Banc P2VRAIFAUXFAUXVRAIFAUX",BDD!$Z$26:$Z$149) -> 0 | V93: =SUMIF(BDD!$BH$26:$BH$149,"Banc P2VRAIFAUXFAUXFAUXVRAI",BDD!$Z$26:$Z$149) -> 2 | W93: =SUMIF(BDD!$BH$26:$BH$149,"Banc P2FAUXVRAIVRAIFAUXFAUX",BDD!$Z$26:$Z$149) -> 0 | X93: =SUMIF(BDD!$BH$26:$BH$149,"Banc P26FAUXVRAIFAUXVRAIFAUX",BDD!$Z$26:$Z$149) -> 0 | Y93: =SUMIF(BDD!$BH$26:$BH$149,"Banc P2FAUXVRAIFAUXFAUXVRAI",BDD!$Z$26:$Z$149) -> 0 | Z93: =SUMIF(BDD!$BH$2:$BH$3,"Banc P2VRAIFAUXVRAIFAUXFAUX",BDD!$Z$2:$Z$3) -> 0 | AA93: =SUMIF(BDD!$BH$2:$BH$3,"Banc P2VRAIFAUXFAUXVRAIFAUX",BDD!$Z$2:$Z$3) -> 0 | AB93: =SUMIF(BDD!$BH$2:$BH$3,"Banc P2VRAIFAUXFAUXFAUXVRAI",BDD!$Z$2:$Z$3) -> 0 | AC93: =SUMIF(BDD!$BH$2:$BH$3,"Banc P2FAUXVRAIVRAIFAUXFAUX",BDD!$Z$2:$Z$3) -> 0 | AD93: =SUMIF(BDD!$BH$2:$BH$3,"Banc P2FAUXVRAIFAUXVRAIFAUX",BDD!$Z$2:$Z$3) -> 0 | AE93: =SUMIF(BDD!$BH$2:$BH$3,"Banc P2FAUXVRAIFAUXFAUXVRAI",BDD!$Z$2:$Z$3) -> 0 | AF93: =SUMIF(BDD!$BH$2:$BH$3,"Banc P2VRAIFAUXVRAIFAUXFAUX",BDD!$Z$2:$Z$3) -> 0 | AG93: =SUMIF(BDD!$BH$2:$BH$3,"Banc P2VRAIFAUXFAUXVRAIFAUX",BDD!$Z$2:$Z$3) -> 0 | AH93: =SUMIF(BDD!$BH$2:$BH$3,"Banc P2VRAIFAUXFAUXFAUXVRAI",BDD!$Z$2:$Z$3) -> 0 | AI93: =SUMIF(BDD!$BH$2:$BH$3,"Banc P2FAUXVRAIVRAIFAUXFAUX",BDD!$Z$2:$Z$3) -> 0 | AJ93: =SUMIF(BDD!$BH$2:$BH$3,"Banc P2FAUXVRAIFAUXVRAIFAUX",BDD!$Z$2:$Z$3) -> 0 | AK93: =SUMIF(BDD!$BH$2:$BH$3,"Banc P2FAUXVRAIFAUXFAUXVRAI",BDD!$Z$2:$Z$3) -> 0 | AL93: =SUMIF(BDD!$BH$2:$BH$3,"Banc P2VRAIFAUXVRAIFAUXFAUX",BDD!$Z$2:$Z$3) -> 0 | AM93: =SUMIF(BDD!$BH$2:$BH$3,"Banc P2VRAIFAUXFAUXVRAIFAUX",BDD!$Z$2:$Z$3) -> 0 | AN93: =SUMIF(BDD!$BH$2:$BH$3,"Banc P2VRAIFAUXFAUXFAUXVRAI",BDD!$Z$2:$Z$3) -> 0 | AO93: =SUMIF(BDD!$BH$2:$BH$3,"Banc P2FAUXVRAIVRAIFAUXFAUX",BDD!$Z$2:$Z$3) -> 0 | AP93: =SUMIF(BDD!$BH$2:$BH$3,"Banc P2FAUXVRAIFAUXVRAIFAUX",BDD!$Z$2:$Z$3) -> 0 | AQ93: =SUMIF(BDD!$BH$2:$BH$3,"Banc P2FAUXVRAIFAUXFAUXVRAI",BDD!$Z$2:$Z$3) -> 0 | AR93: =SUMIF(BDD!$BH$2:$BH$3,"Banc P2VRAIFAUXVRAIFAUXFAUX",BDD!$Z$2:$Z$3) -> 0 | AS93: =SUMIF(BDD!$BH$2:$BH$3,"Banc P2VRAIFAUXFAUXVRAIFAUX",BDD!$Z$2:$Z$3) -> 0 | AT93: =SUMIF(BDD!$BH$2:$BH$3,"Banc P2VRAIFAUXFAUXFAUXVRAI",BDD!$Z$2:$Z$3) -> 0 | AU93: =SUMIF(BDD!$BH$2:$BH$3,"Banc P2FAUXVRAIVRAIFAUXFAUX",BDD!$Z$2:$Z$3) -> 0 | AV93: =SUMIF(BDD!$BH$2:$BH$3,"Banc P2FAUXVRAIFAUXVRAIFAUX",BDD!$Z$2:$Z$3) -> 0 | AW93: =SUMIF(BDD!$BH$2:$BH$3,"Banc P2FAUXVRAIFAUXFAUXVRAI",BDD!$Z$2:$Z$3) -> 0 | AX93: =SUMIF(BDD!$BH$2:$BH$3,"Banc P2VRAIFAUXVRAIFAUXFAUX",BDD!$Z$2:$Z$3) -> 0 | AY93: =SUMIF(BDD!$BH$2:$BH$3,"Banc P2VRAIFAUXFAUXVRAIFAUX",BDD!$Z$2:$Z$3) -> 0 | AZ93: =SUMIF(BDD!$BH$2:$BH$3,"Banc P2VRAIFAUXFAUXFAUXVRAI",BDD!$Z$2:$Z$3) -> 0 | BA93: =SUMIF(BDD!$BH$2:$BH$3,"Banc P2FAUXVRAIVRAIFAUXFAUX",BDD!$Z$2:$Z$3) -> 0 | BB93: =SUMIF(BDD!$BH$2:$BH$3,"Banc P2FAUXVRAIFAUXVRAIFAUX",BDD!$Z$2:$Z$3) -> 0 | BC93: =SUMIF(BDD!$BH$2:$BH$3,"Banc P2FAUXVRAIFAUXFAUXVRAI",BDD!$Z$2:$Z$3) -> 0 | BD93: =SUMIF(BDD!$BH$2:$BH$3,"Banc P2VRAIFAUXVRAIFAUXFAUX",BDD!$Z$2:$Z$3) -> 0 | BE93: =SUMIF(BDD!$BH$2:$BH$3,"Banc P2VRAIFAUXFAUXVRAIFAUX",BDD!$Z$2:$Z$3) -> 0 | BF93: =SUMIF(BDD!$BH$2:$BH$3,"Banc P2VRAIFAUXFAUXFAUXVRAI",BDD!$Z$2:$Z$3) -> 0 | BG93: =SUMIF(BDD!$BH$2:$BH$3,"Banc P2FAUXVRAIVRAIFAUXFAUX",BDD!$Z$2:$Z$3) -> 0 | BH93: =SUMIF(BDD!$BH$2:$BH$3,"Banc P2FAUXVRAIFAUXVRAIFAUX",BDD!$Z$2:$Z$3) -> 0 | BI93: =SUMIF(BDD!$BH$2:$BH$3,"Banc P2FAUXVRAIFAUXFAUXVRAI",BDD!$Z$2:$Z$3) -> 0 | BJ93: =SUMIF(BDD!$BH$2:$BH$3,"Banc P2VRAIFAUXVRAIFAUXFAUX",BDD!$Z$2:$Z$3) -> 0 | BK93: =SUMIF(BDD!$BH$2:$BH$3,"Banc P2VRAIFAUXFAUXVRAIFAUX",BDD!$Z$2:$Z$3) -> 0 | BL93: =SUMIF(BDD!$BH$2:$BH$3,"Banc P2VRAIFAUXFAUXFAUXVRAI",BDD!$Z$2:$Z$3) -> 0 | BM93: =SUMIF(BDD!$BH$2:$BH$3,"Banc P2FAUXVRAIVRAIFAUXFAUX",BDD!$Z$2:$Z$3) -> 0 | BN93: =SUMIF(BDD!$BH$2:$BH$3,"Banc P2FAUXVRAIFAUXVRAIFAUX",BDD!$Z$2:$Z$3) -> 0 | BO93: =SUMIF(BDD!$BH$2:$BH$3,"Banc P2FAUXVRAIFAUXFAUXVRAI",BDD!$Z$2:$Z$3) -> 0 | BP93: =SUMIF(BDD!$BH$2:$BH$3,"Banc P2VRAIFAUXVRAIFAUXFAUX",BDD!$Z$2:$Z$3) -> 0 | BQ93: =SUMIF(BDD!$BH$2:$BH$3,"Banc P2VRAIFAUXFAUXVRAIFAUX",BDD!$Z$2:$Z$3) -> 0 | BR93: =SUMIF(BDD!$BH$2:$BH$3,"Banc P2VRAIFAUXFAUXFAUXVRAI",BDD!$Z$2:$Z$3) -> 0 | BS93: =SUMIF(BDD!$BH$2:$BH$3,"Banc P2FAUXVRAIVRAIFAUXFAUX",BDD!$Z$2:$Z$3) -> 0 | BT93: =SUMIF(BDD!$BH$2:$BH$3,"Banc P2FAUXVRAIFAUXVRAIFAUX",BDD!$Z$2:$Z$3) -> 0 | BU93: =SUMIF(BDD!$BH$2:$BH$3,"Banc P2FAUXVRAIFAUXFAUXVRAI",BDD!$Z$2:$Z$3) -> 0
A94: Banc 156 | B94: =SUMIF(BDD!$BH$2:$BH$3,"Banc 156VRAIFAUXVRAIFAUXFAUX",BDD!$Z$2:$Z$3) -> 0 | C94: =SUMIF(BDD!$BH$2:$BH$3,"Banc 156VRAIFAUXFAUXVRAIFAUX",BDD!$Z$2:$Z$3) -> 0 | D94: =SUMIF(BDD!$BH$2:$BH$3,"Banc 156VRAIFAUXFAUXFAUXVRAI",BDD!$Z$2:$Z$3) -> 0 | E94: =SUMIF(BDD!$BH$2:$BH$3,"Banc 156FAUXVRAIVRAIFAUXFAUX",BDD!$Z$2:$Z$3) -> 0 | F94: =SUMIF(BDD!$BH$2:$BH$3,"Banc 156FAUXVRAIFAUXVRAIFAUX",BDD!$Z$2:$Z$3) -> 0 | G94: =SUMIF(BDD!$BH$2:$BH$3,"Banc 156FAUXVRAIFAUXFAUXVRAI",BDD!$Z$2:$Z$3) -> 0 | H94: =SUMIF(BDD!$BH$2:$BH$3,"Banc 156VRAIFAUXVRAIFAUXFAUX",BDD!$Z$2:$Z$3) -> 0 | I94: =SUMIF(BDD!$BH$2:$BH$3,"Banc 156VRAIFAUXFAUXVRAIFAUX",BDD!$Z$2:$Z$3) -> 0 | J94: =SUMIF(BDD!$BH$2:$BH$3,"Banc 156VRAIFAUXFAUXFAUXVRAI",BDD!$Z$2:$Z$3) -> 0 | K94: =SUMIF(BDD!$BH$2:$BH$3,"Banc 156FAUXVRAIVRAIFAUXFAUX",BDD!$Z$2:$Z$3) -> 0 | L94: =SUMIF(BDD!$BH$2:$BH$3,"Banc 156FAUXVRAIFAUXVRAIFAUX",BDD!$Z$2:$Z$3) -> 0 | M94: =SUMIF(BDD!$BH$2:$BH$3,"Banc 156FAUXVRAIFAUXFAUXVRAI",BDD!$Z$2:$Z$3) -> 0 | N94: =SUMIF(BDD!$BH$2:$BH$25,"Banc 156VRAIFAUXVRAIFAUXFAUX",BDD!$Z$2:$Z$25) -> 0 | O94: =SUMIF(BDD!$BH$2:$BH$25,"Banc 156VRAIFAUXFAUXVRAIFAUX",BDD!$Z$2:$Z$25) -> 0 | P94: =SUMIF(BDD!$BH$2:$BH$25,"Banc 156VRAIFAUXFAUXFAUXVRAI",BDD!$Z$2:$Z$25) -> 0 | Q94: =SUMIF(BDD!$BH$2:$BH$25,"Banc 156FAUXVRAIVRAIFAUXFAUX",BDD!$Z$2:$Z$25) -> 0 | R94: =SUMIF(BDD!$BH$2:$BH$25,"Banc 156FAUXVRAIFAUXVRAIFAUX",BDD!$Z$2:$Z$25) -> 0 | S94: =SUMIF(BDD!$BH$2:$BH$25,"Banc 156FAUXVRAIFAUXFAUXVRAI",BDD!$Z$2:$Z$25) -> 0 | T94: =SUMIF(BDD!$BH$26:$BH$149,"Banc 156VRAIFAUXVRAIFAUXFAUX",BDD!$Z$26:$Z$149) -> 0 | U94: =SUMIF(BDD!$BH$26:$BH$149,"Banc 156VRAIFAUXFAUXVRAIFAUX",BDD!$Z$26:$Z$149) -> 0 | V94: =SUMIF(BDD!$BH$26:$BH$149,"Banc 156VRAIFAUXFAUXFAUXVRAI",BDD!$Z$26:$Z$149) -> 0 | W94: =SUMIF(BDD!$BH$26:$BH$149,"Banc 156FAUXVRAIVRAIFAUXFAUX",BDD!$Z$26:$Z$149) -> 0 | X94: =SUMIF(BDD!$BH$26:$BH$149,"Banc 156FAUXVRAIFAUXVRAIFAUX",BDD!$Z$26:$Z$149) -> 0 | Y94: =SUMIF(BDD!$BH$26:$BH$149,"Banc 156FAUXVRAIFAUXFAUXVRAI",BDD!$Z$26:$Z$149) -> 0 | Z94: =SUMIF(BDD!$BH$2:$BH$3,"Banc 156VRAIFAUXVRAIFAUXFAUX",BDD!$Z$2:$Z$3) -> 0 | AA94: =SUMIF(BDD!$BH$2:$BH$3,"Banc 156VRAIFAUXFAUXVRAIFAUX",BDD!$Z$2:$Z$3) -> 0 | AB94: =SUMIF(BDD!$BH$2:$BH$3,"Banc 156VRAIFAUXFAUXFAUXVRAI",BDD!$Z$2:$Z$3) -> 0 | AC94: =SUMIF(BDD!$BH$2:$BH$3,"Banc 156FAUXVRAIVRAIFAUXFAUX",BDD!$Z$2:$Z$3) -> 0 | AD94: =SUMIF(BDD!$BH$2:$BH$3,"Banc 156FAUXVRAIFAUXVRAIFAUX",BDD!$Z$2:$Z$3) -> 0 | AE94: =SUMIF(BDD!$BH$2:$BH$3,"Banc 156FAUXVRAIFAUXFAUXVRAI",BDD!$Z$2:$Z$3) -> 0 | AF94: =SUMIF(BDD!$BH$2:$BH$3,"Banc 156VRAIFAUXVRAIFAUXFAUX",BDD!$Z$2:$Z$3) -> 0 | AG94: =SUMIF(BDD!$BH$2:$BH$3,"Banc 156VRAIFAUXFAUXVRAIFAUX",BDD!$Z$2:$Z$3) -> 0 | AH94: =SUMIF(BDD!$BH$2:$BH$3,"Banc 156VRAIFAUXFAUXFAUXVRAI",BDD!$Z$2:$Z$3) -> 0 | AI94: =SUMIF(BDD!$BH$2:$BH$3,"Banc 156FAUXVRAIVRAIFAUXFAUX",BDD!$Z$2:$Z$3) -> 0 | AJ94: =SUMIF(BDD!$BH$2:$BH$3,"Banc 156FAUXVRAIFAUXVRAIFAUX",BDD!$Z$2:$Z$3) -> 0 | AK94: =SUMIF(BDD!$BH$2:$BH$3,"Banc 156FAUXVRAIFAUXFAUXVRAI",BDD!$Z$2:$Z$3) -> 0 | AL94: =SUMIF(BDD!$BH$2:$BH$3,"Banc 156VRAIFAUXVRAIFAUXFAUX",BDD!$Z$2:$Z$3) -> 0 | AM94: =SUMIF(BDD!$BH$2:$BH$3,"Banc 156VRAIFAUXFAUXVRAIFAUX",BDD!$Z$2:$Z$3) -> 0 | AN94: =SUMIF(BDD!$BH$2:$BH$3,"Banc 156VRAIFAUXFAUXFAUXVRAI",BDD!$Z$2:$Z$3) -> 0 | AO94: =SUMIF(BDD!$BH$2:$BH$3,"Banc 156FAUXVRAIVRAIFAUXFAUX",BDD!$Z$2:$Z$3) -> 0 | AP94: =SUMIF(BDD!$BH$2:$BH$3,"Banc 156FAUXVRAIFAUXVRAIFAUX",BDD!$Z$2:$Z$3) -> 0 | AQ94: =SUMIF(BDD!$BH$2:$BH$3,"Banc 156FAUXVRAIFAUXFAUXVRAI",BDD!$Z$2:$Z$3) -> 0 | AR94: =SUMIF(BDD!$BH$2:$BH$3,"Banc 156VRAIFAUXVRAIFAUXFAUX",BDD!$Z$2:$Z$3) -> 0 | AS94: =SUMIF(BDD!$BH$2:$BH$3,"Banc 156VRAIFAUXFAUXVRAIFAUX",BDD!$Z$2:$Z$3) -> 0 | AT94: =SUMIF(BDD!$BH$2:$BH$3,"Banc 156VRAIFAUXFAUXFAUXVRAI",BDD!$Z$2:$Z$3) -> 0 | AU94: =SUMIF(BDD!$BH$2:$BH$3,"Banc 156FAUXVRAIVRAIFAUXFAUX",BDD!$Z$2:$Z$3) -> 0 | AV94: =SUMIF(BDD!$BH$2:$BH$3,"Banc 156FAUXVRAIFAUXVRAIFAUX",BDD!$Z$2:$Z$3) -> 0 | AW94: =SUMIF(BDD!$BH$2:$BH$3,"Banc 156FAUXVRAIFAUXFAUXVRAI",BDD!$Z$2:$Z$3) -> 0 | AX94: =SUMIF(BDD!$BH$2:$BH$3,"Banc 156VRAIFAUXVRAIFAUXFAUX",BDD!$Z$2:$Z$3) -> 0 | AY94: =SUMIF(BDD!$BH$2:$BH$3,"Banc 156VRAIFAUXFAUXVRAIFAUX",BDD!$Z$2:$Z$3) -> 0 | AZ94: =SUMIF(BDD!$BH$2:$BH$3,"Banc 156VRAIFAUXFAUXFAUXVRAI",BDD!$Z$2:$Z$3) -> 0 | BA94: =SUMIF(BDD!$BH$2:$BH$3,"Banc 156FAUXVRAIVRAIFAUXFAUX",BDD!$Z$2:$Z$3) -> 0 | BB94: =SUMIF(BDD!$BH$2:$BH$3,"Banc 156FAUXVRAIFAUXVRAIFAUX",BDD!$Z$2:$Z$3) -> 0 | BC94: =SUMIF(BDD!$BH$2:$BH$3,"Banc 156FAUXVRAIFAUXFAUXVRAI",BDD!$Z$2:$Z$3) -> 0 | BD94: =SUMIF(BDD!$BH$2:$BH$3,"Banc 156VRAIFAUXVRAIFAUXFAUX",BDD!$Z$2:$Z$3) -> 0 | BE94: =SUMIF(BDD!$BH$2:$BH$3,"Banc 156VRAIFAUXFAUXVRAIFAUX",BDD!$Z$2:$Z$3) -> 0 | BF94: =SUMIF(BDD!$BH$2:$BH$3,"Banc 156VRAIFAUXFAUXFAUXVRAI",BDD!$Z$2:$Z$3) -> 0 | BG94: =SUMIF(BDD!$BH$2:$BH$3,"Banc 156FAUXVRAIVRAIFAUXFAUX",BDD!$Z$2:$Z$3) -> 0 | BH94: =SUMIF(BDD!$BH$2:$BH$3,"Banc 156FAUXVRAIFAUXVRAIFAUX",BDD!$Z$2:$Z$3) -> 0 | BI94: =SUMIF(BDD!$BH$2:$BH$3,"Banc 156FAUXVRAIFAUXFAUXVRAI",BDD!$Z$2:$Z$3) -> 0 | BJ94: =SUMIF(BDD!$BH$2:$BH$3,"Banc 156VRAIFAUXVRAIFAUXFAUX",BDD!$Z$2:$Z$3) -> 0 | BK94: =SUMIF(BDD!$BH$2:$BH$3,"Banc 156VRAIFAUXFAUXVRAIFAUX",BDD!$Z$2:$Z$3) -> 0 | BL94: =SUMIF(BDD!$BH$2:$BH$3,"Banc 156VRAIFAUXFAUXFAUXVRAI",BDD!$Z$2:$Z$3) -> 0 | BM94: =SUMIF(BDD!$BH$2:$BH$3,"Banc 156FAUXVRAIVRAIFAUXFAUX",BDD!$Z$2:$Z$3) -> 0 | BN94: =SUMIF(BDD!$BH$2:$BH$3,"Banc 156FAUXVRAIFAUXVRAIFAUX",BDD!$Z$2:$Z$3) -> 0 | BO94: =SUMIF(BDD!$BH$2:$BH$3,"Banc 156FAUXVRAIFAUXFAUXVRAI",BDD!$Z$2:$Z$3) -> 0 | BP94: =SUMIF(BDD!$BH$2:$BH$3,"Banc 156VRAIFAUXVRAIFAUXFAUX",BDD!$Z$2:$Z$3) -> 0 | BQ94: =SUMIF(BDD!$BH$2:$BH$3,"Banc 156VRAIFAUXFAUXVRAIFAUX",BDD!$Z$2:$Z$3) -> 0 | BR94: =SUMIF(BDD!$BH$2:$BH$3,"Banc 156VRAIFAUXFAUXFAUXVRAI",BDD!$Z$2:$Z$3) -> 0 | BS94: =SUMIF(BDD!$BH$2:$BH$3,"Banc 156FAUXVRAIVRAIFAUXFAUX",BDD!$Z$2:$Z$3) -> 0 | BT94: =SUMIF(BDD!$BH$2:$BH$3,"Banc 156FAUXVRAIFAUXVRAIFAUX",BDD!$Z$2:$Z$3) -> 0 | BU94: =SUMIF(BDD!$BH$2:$BH$3,"Banc 156FAUXVRAIFAUXFAUXVRAI",BDD!$Z$2:$Z$3) -> 0
A95: Chambre Froide | B95: =SUMIF(BDD!$BH$2:$BH$3,"Chambre FroideVRAIFAUXVRAIFAUXFAUX",BDD!$Z$2:$Z$3) -> 0 | C95: =SUMIF(BDD!$BH$2:$BH$3,"Chambre FroideVRAIFAUXFAUXVRAIFAUX",BDD!$Z$2:$Z$3) -> 0 | D95: =SUMIF(BDD!$BH$2:$BH$3,"Chambre FroideVRAIFAUXFAUXFAUXVRAI",BDD!$Z$2:$Z$3) -> 0 | E95: =SUMIF(BDD!$BH$2:$BH$3,"Chambre FroideFAUXVRAIVRAIFAUXFAUX",BDD!$Z$2:$Z$3) -> 0 | F95: =SUMIF(BDD!$BH$2:$BH$3,"Chambre FroideFAUXVRAIFAUXVRAIFAUX",BDD!$Z$2:$Z$3) -> 0 | G95: =SUMIF(BDD!$BH$2:$BH$3,"Chambre FroideFAUXVRAIFAUXFAUXVRAI",BDD!$Z$2:$Z$3) -> 0 | H95: =SUMIF(BDD!$BH$2:$BH$3,"Chambre FroideVRAIFAUXVRAIFAUXFAUX",BDD!$Z$2:$Z$3) -> 0 | I95: =SUMIF(BDD!$BH$2:$BH$3,"Chambre FroideVRAIFAUXFAUXVRAIFAUX",BDD!$Z$2:$Z$3) -> 0 | J95: =SUMIF(BDD!$BH$2:$BH$3,"Chambre FroideVRAIFAUXFAUXFAUXVRAI",BDD!$Z$2:$Z$3) -> 0 | K95: =SUMIF(BDD!$BH$2:$BH$3,"Chambre FroideFAUXVRAIVRAIFAUXFAUX",BDD!$Z$2:$Z$3) -> 0 | L95: =SUMIF(BDD!$BH$2:$BH$3,"Chambre FroideFAUXVRAIFAUXVRAIFAUX",BDD!$Z$2:$Z$3) -> 0 | M95: =SUMIF(BDD!$BH$2:$BH$3,"Chambre FroideFAUXVRAIFAUXFAUXVRAI",BDD!$Z$2:$Z$3) -> 0 | N95: =SUMIF(BDD!$BH$2:$BH$25,"Chambre FroideVRAIFAUXVRAIFAUXFAUX",BDD!$Z$2:$Z$25) -> 0 | O95: =SUMIF(BDD!$BH$2:$BH$25,"Chambre FroideVRAIFAUXFAUXVRAIFAUX",BDD!$Z$2:$Z$25) -> 0 | P95: =SUMIF(BDD!$BH$2:$BH$25,"Chambre FroideVRAIFAUXFAUXFAUXVRAI",BDD!$Z$2:$Z$25) -> 0 | Q95: =SUMIF(BDD!$BH$2:$BH$25,"Chambre FroideFAUXVRAIVRAIFAUXFAUX",BDD!$Z$2:$Z$25) -> 0.3 | R95: =SUMIF(BDD!$BH$2:$BH$25,"Chambre FroideFAUXVRAIFAUXVRAIFAUX",BDD!$Z$2:$Z$25) -> 0 | S95: =SUMIF(BDD!$BH$2:$BH$25,"Chambre FroideFAUXVRAIFAUXFAUXVRAI",BDD!$Z$2:$Z$25) -> 0 | T95: =SUMIF(BDD!$BH$26:$BH$149,"Chambre FroideVRAIFAUXVRAIFAUXFAUX",BDD!$Z$26:$Z$149) -> 0 | U95: =SUMIF(BDD!$BH$26:$BH$149,"Chambre FroideVRAIFAUXFAUXVRAIFAUX",BDD!$Z$26:$Z$149) -> 0 | V95: =SUMIF(BDD!$BH$26:$BH$149,"Chambre FroideVRAIFAUXFAUXFAUXVRAI",BDD!$Z$26:$Z$149) -> 0 | W95: =SUMIF(BDD!$BH$26:$BH$149,"Chambre FroideFAUXVRAIVRAIFAUXFAUX",BDD!$Z$26:$Z$149) -> 0 | X95: =SUMIF(BDD!$BH$26:$BH$149,"Chambre FroideFAUXVRAIFAUXVRAIFAUX",BDD!$Z$26:$Z$149) -> 0 | Y95: =SUMIF(BDD!$BH$26:$BH$149,"Chambre FroideFAUXVRAIFAUXFAUXVRAI",BDD!$Z$26:$Z$149) -> 0 | Z95: =SUMIF(BDD!$BH$2:$BH$3,"Chambre FroideVRAIFAUXVRAIFAUXFAUX",BDD!$Z$2:$Z$3) -> 0 | AA95: =SUMIF(BDD!$BH$2:$BH$3,"Chambre FroideVRAIFAUXFAUXVRAIFAUX",BDD!$Z$2:$Z$3) -> 0 | AB95: =SUMIF(BDD!$BH$2:$BH$3,"Chambre FroideVRAIFAUXFAUXFAUXVRAI",BDD!$Z$2:$Z$3) -> 0 | AC95: =SUMIF(BDD!$BH$2:$BH$3,"Chambre FroideFAUXVRAIVRAIFAUXFAUX",BDD!$Z$2:$Z$3) -> 0 | AD95: =SUMIF(BDD!$BH$2:$BH$3,"Chambre FroideFAUXVRAIFAUXVRAIFAUX",BDD!$Z$2:$Z$3) -> 0 | AE95: =SUMIF(BDD!$BH$2:$BH$3,"Chambre FroideFAUXVRAIFAUXFAUXVRAI",BDD!$Z$2:$Z$3) -> 0 | AF95: =SUMIF(BDD!$BH$2:$BH$3,"Chambre FroideVRAIFAUXVRAIFAUXFAUX",BDD!$Z$2:$Z$3) -> 0 | AG95: =SUMIF(BDD!$BH$2:$BH$3,"Chambre FroideVRAIFAUXFAUXVRAIFAUX",BDD!$Z$2:$Z$3) -> 0 | AH95: =SUMIF(BDD!$BH$2:$BH$3,"Chambre FroideVRAIFAUXFAUXFAUXVRAI",BDD!$Z$2:$Z$3) -> 0 | AI95: =SUMIF(BDD!$BH$2:$BH$3,"Chambre FroideFAUXVRAIVRAIFAUXFAUX",BDD!$Z$2:$Z$3) -> 0 | AJ95: =SUMIF(BDD!$BH$2:$BH$3,"Chambre FroideFAUXVRAIFAUXVRAIFAUX",BDD!$Z$2:$Z$3) -> 0 | AK95: =SUMIF(BDD!$BH$2:$BH$3,"Chambre FroideFAUXVRAIFAUXFAUXVRAI",BDD!$Z$2:$Z$3) -> 0 | AL95: =SUMIF(BDD!$BH$2:$BH$3,"Chambre FroideVRAIFAUXVRAIFAUXFAUX",BDD!$Z$2:$Z$3) -> 0 | AM95: =SUMIF(BDD!$BH$2:$BH$3,"Chambre FroideVRAIFAUXFAUXVRAIFAUX",BDD!$Z$2:$Z$3) -> 0 | AN95: =SUMIF(BDD!$BH$2:$BH$3,"Chambre FroideVRAIFAUXFAUXFAUXVRAI",BDD!$Z$2:$Z$3) -> 0 | AO95: =SUMIF(BDD!$BH$2:$BH$3,"Chambre FroideFAUXVRAIVRAIFAUXFAUX",BDD!$Z$2:$Z$3) -> 0 | AP95: =SUMIF(BDD!$BH$2:$BH$3,"Chambre FroideFAUXVRAIFAUXVRAIFAUX",BDD!$Z$2:$Z$3) -> 0 | AQ95: =SUMIF(BDD!$BH$2:$BH$3,"Chambre FroideFAUXVRAIFAUXFAUXVRAI",BDD!$Z$2:$Z$3) -> 0 | AR95: =SUMIF(BDD!$BH$2:$BH$3,"Chambre FroideVRAIFAUXVRAIFAUXFAUX",BDD!$Z$2:$Z$3) -> 0 | AS95: =SUMIF(BDD!$BH$2:$BH$3,"Chambre FroideVRAIFAUXFAUXVRAIFAUX",BDD!$Z$2:$Z$3) -> 0 | AT95: =SUMIF(BDD!$BH$2:$BH$3,"Chambre FroideVRAIFAUXFAUXFAUXVRAI",BDD!$Z$2:$Z$3) -> 0 | AU95: =SUMIF(BDD!$BH$2:$BH$3,"Chambre FroideFAUXVRAIVRAIFAUXFAUX",BDD!$Z$2:$Z$3) -> 0 | AV95: =SUMIF(BDD!$BH$2:$BH$3,"Chambre FroideFAUXVRAIFAUXVRAIFAUX",BDD!$Z$2:$Z$3) -> 0 | AW95: =SUMIF(BDD!$BH$2:$BH$3,"Chambre FroideFAUXVRAIFAUXFAUXVRAI",BDD!$Z$2:$Z$3) -> 0 | AX95: =SUMIF(BDD!$BH$2:$BH$3,"Chambre FroideVRAIFAUXVRAIFAUXFAUX",BDD!$Z$2:$Z$3) -> 0 | AY95: =SUMIF(BDD!$BH$2:$BH$3,"Chambre FroideVRAIFAUXFAUXVRAIFAUX",BDD!$Z$2:$Z$3) -> 0 | AZ95: =SUMIF(BDD!$BH$2:$BH$3,"Chambre FroideVRAIFAUXFAUXFAUXVRAI",BDD!$Z$2:$Z$3) -> 0 | BA95: =SUMIF(BDD!$BH$2:$BH$3,"Chambre FroideFAUXVRAIVRAIFAUXFAUX",BDD!$Z$2:$Z$3) -> 0 | BB95: =SUMIF(BDD!$BH$2:$BH$3,"Chambre FroideFAUXVRAIFAUXVRAIFAUX",BDD!$Z$2:$Z$3) -> 0 | BC95: =SUMIF(BDD!$BH$2:$BH$3,"Chambre FroideFAUXVRAIFAUXFAUXVRAI",BDD!$Z$2:$Z$3) -> 0 | BD95: =SUMIF(BDD!$BH$2:$BH$3,"Chambre FroideVRAIFAUXVRAIFAUXFAUX",BDD!$Z$2:$Z$3) -> 0 | BE95: =SUMIF(BDD!$BH$2:$BH$3,"Chambre FroideVRAIFAUXFAUXVRAIFAUX",BDD!$Z$2:$Z$3) -> 0 | BF95: =SUMIF(BDD!$BH$2:$BH$3,"Chambre FroideVRAIFAUXFAUXFAUXVRAI",BDD!$Z$2:$Z$3) -> 0 | BG95: =SUMIF(BDD!$BH$2:$BH$3,"Chambre FroideFAUXVRAIVRAIFAUXFAUX",BDD!$Z$2:$Z$3) -> 0 | BH95: =SUMIF(BDD!$BH$2:$BH$3,"Chambre FroideFAUXVRAIFAUXVRAIFAUX",BDD!$Z$2:$Z$3) -> 0 | BI95: =SUMIF(BDD!$BH$2:$BH$3,"Chambre FroideFAUXVRAIFAUXFAUXVRAI",BDD!$Z$2:$Z$3) -> 0 | BJ95: =SUMIF(BDD!$BH$2:$BH$3,"Chambre FroideVRAIFAUXVRAIFAUXFAUX",BDD!$Z$2:$Z$3) -> 0 | BK95: =SUMIF(BDD!$BH$2:$BH$3,"Chambre FroideVRAIFAUXFAUXVRAIFAUX",BDD!$Z$2:$Z$3) -> 0 | BL95: =SUMIF(BDD!$BH$2:$BH$3,"Chambre FroideVRAIFAUXFAUXFAUXVRAI",BDD!$Z$2:$Z$3) -> 0 | BM95: =SUMIF(BDD!$BH$2:$BH$3,"Chambre FroideFAUXVRAIVRAIFAUXFAUX",BDD!$Z$2:$Z$3) -> 0 | BN95: =SUMIF(BDD!$BH$2:$BH$3,"Chambre FroideFAUXVRAIFAUXVRAIFAUX",BDD!$Z$2:$Z$3) -> 0 | BO95: =SUMIF(BDD!$BH$2:$BH$3,"Chambre FroideFAUXVRAIFAUXFAUXVRAI",BDD!$Z$2:$Z$3) -> 0 | BP95: =SUMIF(BDD!$BH$2:$BH$3,"Chambre FroideVRAIFAUXVRAIFAUXFAUX",BDD!$Z$2:$Z$3) -> 0 | BQ95: =SUMIF(BDD!$BH$2:$BH$3,"Chambre FroideVRAIFAUXFAUXVRAIFAUX",BDD!$Z$2:$Z$3) -> 0 | BR95: =SUMIF(BDD!$BH$2:$BH$3,"Chambre FroideVRAIFAUXFAUXFAUXVRAI",BDD!$Z$2:$Z$3) -> 0 | BS95: =SUMIF(BDD!$BH$2:$BH$3,"Chambre FroideFAUXVRAIVRAIFAUXFAUX",BDD!$Z$2:$Z$3) -> 0 | BT95: =SUMIF(BDD!$BH$2:$BH$3,"Chambre FroideFAUXVRAIFAUXVRAIFAUX",BDD!$Z$2:$Z$3) -> 0 | BU95: =SUMIF(BDD!$BH$2:$BH$3,"Chambre FroideFAUXVRAIFAUXFAUXVRAI",BDD!$Z$2:$Z$3) -> 0
A96: Chambre Sourde | B96: =SUMIF(BDD!$BH$2:$BH$3,"Chambre SourdeVRAIFAUXVRAIFAUXFAUX",BDD!$Z$2:$Z$3) -> 0 | C96: =SUMIF(BDD!$BH$2:$BH$3,"Chambre SourdeVRAIFAUXFAUXVRAIFAUX",BDD!$Z$2:$Z$3) -> 0 | D96: =SUMIF(BDD!$BH$2:$BH$3,"Chambre SourdeVRAIFAUXFAUXFAUXVRAI",BDD!$Z$2:$Z$3) -> 0 | E96: =SUMIF(BDD!$BH$2:$BH$3,"Chambre SourdeFAUXVRAIVRAIFAUXFAUX",BDD!$Z$2:$Z$3) -> 0 | F96: =SUMIF(BDD!$BH$2:$BH$3,"Chambre SourdeFAUXVRAIFAUXVRAIFAUX",BDD!$Z$2:$Z$3) -> 0 | G96: =SUMIF(BDD!$BH$2:$BH$3,"Chambre SourdeFAUXVRAIFAUXFAUXVRAI",BDD!$Z$2:$Z$3) -> 0 | H96: =SUMIF(BDD!$BH$2:$BH$3,"Chambre SourdeVRAIFAUXVRAIFAUXFAUX",BDD!$Z$2:$Z$3) -> 0 | I96: =SUMIF(BDD!$BH$2:$BH$3,"Chambre SourdeVRAIFAUXFAUXVRAIFAUX",BDD!$Z$2:$Z$3) -> 0 | J96: =SUMIF(BDD!$BH$2:$BH$3,"Chambre SourdeVRAIFAUXFAUXFAUXVRAI",BDD!$Z$2:$Z$3) -> 0 | K96: =SUMIF(BDD!$BH$2:$BH$3,"Chambre SourdeFAUXVRAIVRAIFAUXFAUX",BDD!$Z$2:$Z$3) -> 0 | L96: =SUMIF(BDD!$BH$2:$BH$3,"Chambre SourdeFAUXVRAIFAUXVRAIFAUX",BDD!$Z$2:$Z$3) -> 0 | M96: =SUMIF(BDD!$BH$2:$BH$3,"Chambre SourdeFAUXVRAIFAUXFAUXVRAI",BDD!$Z$2:$Z$3) -> 0 | N96: =SUMIF(BDD!$BH$2:$BH$25,"Chambre SourdeVRAIFAUXVRAIFAUXFAUX",BDD!$Z$2:$Z$25) -> 0 | O96: =SUMIF(BDD!$BH$2:$BH$25,"Chambre SourdeVRAIFAUXFAUXVRAIFAUX",BDD!$Z$2:$Z$25) -> 0 | P96: =SUMIF(BDD!$BH$2:$BH$25,"Chambre SourdeVRAIFAUXFAUXFAUXVRAI",BDD!$Z$2:$Z$25) -> 0 | Q96: =SUMIF(BDD!$BH$2:$BH$25,"Chambre SourdeFAUXVRAIVRAIFAUXFAUX",BDD!$Z$2:$Z$25) -> 0 | R96: =SUMIF(BDD!$BH$2:$BH$25,"Chambre SourdeFAUXVRAIFAUXVRAIFAUX",BDD!$Z$2:$Z$25) -> 0 | S96: =SUMIF(BDD!$BH$2:$BH$25,"Chambre SourdeFAUXVRAIFAUXFAUXVRAI",BDD!$Z$2:$Z$25) -> 0 | T96: =SUMIF(BDD!$BH$26:$BH$149,"Chambre SourdeVRAIFAUXVRAIFAUXFAUX",BDD!$Z$26:$Z$149) -> 0 | U96: =SUMIF(BDD!$BH$26:$BH$149,"Chambre SourdeVRAIFAUXFAUXVRAIFAUX",BDD!$Z$26:$Z$149) -> 0 | V96: =SUMIF(BDD!$BH$26:$BH$149,"Chambre SourdeVRAIFAUXFAUXFAUXVRAI",BDD!$Z$26:$Z$149) -> 0 | W96: =SUMIF(BDD!$BH$26:$BH$149,"Chambre SourdeFAUXVRAIVRAIFAUXFAUX",BDD!$Z$26:$Z$149) -> 0 | X96: =SUMIF(BDD!$BH$26:$BH$149,"Chambre SourdeFAUXVRAIFAUXVRAIFAUX",BDD!$Z$26:$Z$149) -> 0 | Y96: =SUMIF(BDD!$BH$26:$BH$149,"Chambre SourdeFAUXVRAIFAUXFAUXVRAI",BDD!$Z$26:$Z$149) -> 0 | Z96: =SUMIF(BDD!$BH$2:$BH$3,"Chambre SourdeVRAIFAUXVRAIFAUXFAUX",BDD!$Z$2:$Z$3) -> 0 | AA96: =SUMIF(BDD!$BH$2:$BH$3,"Chambre SourdeVRAIFAUXFAUXVRAIFAUX",BDD!$Z$2:$Z$3) -> 0 | AB96: =SUMIF(BDD!$BH$2:$BH$3,"Chambre SourdeVRAIFAUXFAUXFAUXVRAI",BDD!$Z$2:$Z$3) -> 0 | AC96: =SUMIF(BDD!$BH$2:$BH$3,"Chambre SourdeFAUXVRAIVRAIFAUXFAUX",BDD!$Z$2:$Z$3) -> 0 | AD96: =SUMIF(BDD!$BH$2:$BH$3,"Chambre SourdeFAUXVRAIFAUXVRAIFAUX",BDD!$Z$2:$Z$3) -> 0 | AE96: =SUMIF(BDD!$BH$2:$BH$3,"Chambre SourdeFAUXVRAIFAUXFAUXVRAI",BDD!$Z$2:$Z$3) -> 0 | AF96: =SUMIF(BDD!$BH$2:$BH$3,"Chambre SourdeVRAIFAUXVRAIFAUXFAUX",BDD!$Z$2:$Z$3) -> 0 | AG96: =SUMIF(BDD!$BH$2:$BH$3,"Chambre SourdeVRAIFAUXFAUXVRAIFAUX",BDD!$Z$2:$Z$3) -> 0 | AH96: =SUMIF(BDD!$BH$2:$BH$3,"Chambre SourdeVRAIFAUXFAUXFAUXVRAI",BDD!$Z$2:$Z$3) -> 0 | AI96: =SUMIF(BDD!$BH$2:$BH$3,"Chambre SourdeFAUXVRAIVRAIFAUXFAUX",BDD!$Z$2:$Z$3) -> 0 | AJ96: =SUMIF(BDD!$BH$2:$BH$3,"Chambre SourdeFAUXVRAIFAUXVRAIFAUX",BDD!$Z$2:$Z$3) -> 0 | AK96: =SUMIF(BDD!$BH$2:$BH$3,"Chambre SourdeFAUXVRAIFAUXFAUXVRAI",BDD!$Z$2:$Z$3) -> 0 | AL96: =SUMIF(BDD!$BH$2:$BH$3,"Chambre SourdeVRAIFAUXVRAIFAUXFAUX",BDD!$Z$2:$Z$3) -> 0 | AM96: =SUMIF(BDD!$BH$2:$BH$3,"Chambre SourdeVRAIFAUXFAUXVRAIFAUX",BDD!$Z$2:$Z$3) -> 0 | AN96: =SUMIF(BDD!$BH$2:$BH$3,"Chambre SourdeVRAIFAUXFAUXFAUXVRAI",BDD!$Z$2:$Z$3) -> 0 | AO96: =SUMIF(BDD!$BH$2:$BH$3,"Chambre SourdeFAUXVRAIVRAIFAUXFAUX",BDD!$Z$2:$Z$3) -> 0 | AP96: =SUMIF(BDD!$BH$2:$BH$3,"Chambre SourdeFAUXVRAIFAUXVRAIFAUX",BDD!$Z$2:$Z$3) -> 0 | AQ96: =SUMIF(BDD!$BH$2:$BH$3,"Chambre SourdeFAUXVRAIFAUXFAUXVRAI",BDD!$Z$2:$Z$3) -> 0 | AR96: =SUMIF(BDD!$BH$2:$BH$3,"Chambre SourdeVRAIFAUXVRAIFAUXFAUX",BDD!$Z$2:$Z$3) -> 0 | AS96: =SUMIF(BDD!$BH$2:$BH$3,"Chambre SourdeVRAIFAUXFAUXVRAIFAUX",BDD!$Z$2:$Z$3) -> 0 | AT96: =SUMIF(BDD!$BH$2:$BH$3,"Chambre SourdeVRAIFAUXFAUXFAUXVRAI",BDD!$Z$2:$Z$3) -> 0 | AU96: =SUMIF(BDD!$BH$2:$BH$3,"Chambre SourdeFAUXVRAIVRAIFAUXFAUX",BDD!$Z$2:$Z$3) -> 0 | AV96: =SUMIF(BDD!$BH$2:$BH$3,"Chambre SourdeFAUXVRAIFAUXVRAIFAUX",BDD!$Z$2:$Z$3) -> 0 | AW96: =SUMIF(BDD!$BH$2:$BH$3,"Chambre SourdeFAUXVRAIFAUXFAUXVRAI",BDD!$Z$2:$Z$3) -> 0 | AX96: =SUMIF(BDD!$BH$2:$BH$3,"Chambre SourdeVRAIFAUXVRAIFAUXFAUX",BDD!$Z$2:$Z$3) -> 0 | AY96: =SUMIF(BDD!$BH$2:$BH$3,"Chambre SourdeVRAIFAUXFAUXVRAIFAUX",BDD!$Z$2:$Z$3) -> 0 | AZ96: =SUMIF(BDD!$BH$2:$BH$3,"Chambre SourdeVRAIFAUXFAUXFAUXVRAI",BDD!$Z$2:$Z$3) -> 0 | BA96: =SUMIF(BDD!$BH$2:$BH$3,"Chambre SourdeFAUXVRAIVRAIFAUXFAUX",BDD!$Z$2:$Z$3) -> 0 | BB96: =SUMIF(BDD!$BH$2:$BH$3,"Chambre SourdeFAUXVRAIFAUXVRAIFAUX",BDD!$Z$2:$Z$3) -> 0 | BC96: =SUMIF(BDD!$BH$2:$BH$3,"Chambre SourdeFAUXVRAIFAUXFAUXVRAI",BDD!$Z$2:$Z$3) -> 0 | BD96: =SUMIF(BDD!$BH$2:$BH$3,"Chambre SourdeVRAIFAUXVRAIFAUXFAUX",BDD!$Z$2:$Z$3) -> 0 | BE96: =SUMIF(BDD!$BH$2:$BH$3,"Chambre SourdeVRAIFAUXFAUXVRAIFAUX",BDD!$Z$2:$Z$3) -> 0 | BF96: =SUMIF(BDD!$BH$2:$BH$3,"Chambre SourdeVRAIFAUXFAUXFAUXVRAI",BDD!$Z$2:$Z$3) -> 0 | BG96: =SUMIF(BDD!$BH$2:$BH$3,"Chambre SourdeFAUXVRAIVRAIFAUXFAUX",BDD!$Z$2:$Z$3) -> 0 | BH96: =SUMIF(BDD!$BH$2:$BH$3,"Chambre SourdeFAUXVRAIFAUXVRAIFAUX",BDD!$Z$2:$Z$3) -> 0 | BI96: =SUMIF(BDD!$BH$2:$BH$3,"Chambre SourdeFAUXVRAIFAUXFAUXVRAI",BDD!$Z$2:$Z$3) -> 0 | BJ96: =SUMIF(BDD!$BH$2:$BH$3,"Chambre SourdeVRAIFAUXVRAIFAUXFAUX",BDD!$Z$2:$Z$3) -> 0 | BK96: =SUMIF(BDD!$BH$2:$BH$3,"Chambre SourdeVRAIFAUXFAUXVRAIFAUX",BDD!$Z$2:$Z$3) -> 0 | BL96: =SUMIF(BDD!$BH$2:$BH$3,"Chambre SourdeVRAIFAUXFAUXFAUXVRAI",BDD!$Z$2:$Z$3) -> 0 | BM96: =SUMIF(BDD!$BH$2:$BH$3,"Chambre SourdeFAUXVRAIVRAIFAUXFAUX",BDD!$Z$2:$Z$3) -> 0 | BN96: =SUMIF(BDD!$BH$2:$BH$3,"Chambre SourdeFAUXVRAIFAUXVRAIFAUX",BDD!$Z$2:$Z$3) -> 0 | BO96: =SUMIF(BDD!$BH$2:$BH$3,"Chambre SourdeFAUXVRAIFAUXFAUXVRAI",BDD!$Z$2:$Z$3) -> 0 | BP96: =SUMIF(BDD!$BH$2:$BH$3,"Chambre SourdeVRAIFAUXVRAIFAUXFAUX",BDD!$Z$2:$Z$3) -> 0 | BQ96: =SUMIF(BDD!$BH$2:$BH$3,"Chambre SourdeVRAIFAUXFAUXVRAIFAUX",BDD!$Z$2:$Z$3) -> 0 | BR96: =SUMIF(BDD!$BH$2:$BH$3,"Chambre SourdeVRAIFAUXFAUXFAUXVRAI",BDD!$Z$2:$Z$3) -> 0 | BS96: =SUMIF(BDD!$BH$2:$BH$3,"Chambre SourdeFAUXVRAIVRAIFAUXFAUX",BDD!$Z$2:$Z$3) -> 0 | BT96: =SUMIF(BDD!$BH$2:$BH$3,"Chambre SourdeFAUXVRAIFAUXVRAIFAUX",BDD!$Z$2:$Z$3) -> 0 | BU96: =SUMIF(BDD!$BH$2:$BH$3,"Chambre SourdeFAUXVRAIFAUXFAUXVRAI",BDD!$Z$2:$Z$3) -> 0
B122: Suivi du correctif et du préventif par banc
B123: Janvier | H123: Février | N123: Mars | T123: Avril | Z123: Mai | AF123: Juin | AL123: Juillet | AR123: Août | AX123: Septembre | BD123: Octobre | BJ123: Novembre | BP123: Décembre
B124: Préparation essais | E124: Amélioration | H124: Préparation essais | K124: Amélioration | N124: Préparation essais | Q124: Amélioration | T124: Préparation essais | W124: Amélioration | Z124: Préparation essais | AC124: Amélioration | AF124: Préparation essais | AI124: Amélioration | AL124: Préparation essais | AO124: Amélioration | AR124: Préparation essais | AU124: Amélioration | AX124: Préparation essais | BA124: Amélioration | BD124: Préparation essais | BG124: Amélioration | BJ124: Préparation essais | BM124: Amélioration | BP124: Préparation essais | BS124: Amélioration
A125: Banc zone 6 | B125: Electrique | C125: Mécanique | D125: Hydraulique | E125: Electrique | F125: Mécanique | G125: Hydraulique | H125: Electrique | I125: Mécanique | J125: Hydraulique | K125: Electrique | L125: Mécanique | M125: Hydraulique | N125: Electrique | O125: Mécanique | P125: Hydraulique | Q125: Electrique | R125: Mécanique | S125: Hydraulique | T125: Electrique | U125: Mécanique | V125: Hydraulique | W125: Electrique | X125: Mécanique | Y125: Hydraulique | Z125: Electrique | AA125: Mécanique | AB125: Hydraulique | AC125: Electrique | AD125: Mécanique | AE125: Hydraulique | AF125: Electrique | AG125: Mécanique | AH125: Hydraulique | AI125: Electrique | AJ125: Mécanique | AK125: Hydraulique | AL125: Electrique | AM125: Mécanique | AN125: Hydraulique | AO125: Electrique | AP125: Mécanique | AQ125: Hydraulique | AR125: Electrique | AS125: Mécanique | AT125: Hydraulique | AU125: Electrique | AV125: Mécanique | AW125: Hydraulique | AX125: Electrique | AY125: Mécanique | AZ125: Hydraulique | BA125: Electrique | BB125: Mécanique | BC125: Hydraulique | BD125: Electrique | BE125: Mécanique | BF125: Hydraulique | BG125: Electrique | BH125: Mécanique | BI125: Hydraulique | BJ125: Electrique | BK125: Mécanique | BL125: Hydraulique | BM125: Electrique | BN125: Mécanique | BO125: Hydraulique | BP125: Electrique | BQ125: Mécanique | BR125: Hydraulique | BS125: Electrique | BT125: Mécanique | BU125: Hydraulique
A126: M73001 (Banc new P9) | B126: =SUMIF(BDD!$BI$2:$BI$3,"M73001 (Banc new P9)FAUXFAUXVRAIFAUXVRAIFAUXFAUX",BDD!$Z$2:$Z$3) -> 0 | C126: =SUMIF(BDD!$BI$2:$BI$3,"M73001 (Banc new P9)FAUXFAUXVRAIFAUXFAUXVRAIFAUX",BDD!$Z$2:$Z$3) -> 0 | D126: =SUMIF(BDD!$BI$2:$BI$3,"M73001 (Banc new P9)FAUXFAUXVRAIFAUXFAUXFAUXVRAI",BDD!$Z$2:$Z$3) -> 0 | E126: =SUMIF(BDD!$BI$2:$BI$3,"M73001 (Banc new P9)FAUXFAUXFAUXVRAIVRAIFAUXFAUX",BDD!$Z$2:$Z$3) -> 0 | F126: =SUMIF(BDD!$BI$2:$BI$3,"M73001 (Banc new P9)FAUXFAUXFAUXVRAIFAUXVRAIFAUX",BDD!$Z$2:$Z$3) -> 0 | G126: =SUMIF(BDD!$BI$2:$BI$3,"M73001 (Banc new P9)FAUXFAUXFAUXVRAIFAUXFAUXVRAI",BDD!$Z$2:$Z$3) -> 0 | H126: =SUMIF(BDD!$BI$2:$BI$3,"M73001 (Banc new P9)FAUXFAUXVRAIFAUXVRAIFAUXFAUX",BDD!$Z$2:$Z$3) -> 0 | I126: =SUMIF(BDD!$BI$2:$BI$3,"M73001 (Banc new P9)FAUXFAUXVRAIFAUXFAUXVRAIFAUX",BDD!$Z$2:$Z$3) -> 0 | J126: =SUMIF(BDD!$BI$2:$BI$3,"M73001 (Banc new P9)FAUXFAUXVRAIFAUXFAUXFAUXVRAI",BDD!$Z$2:$Z$3) -> 0 | K126: =SUMIF(BDD!$BI$2:$BI$3,"M73001 (Banc new P9)FAUXFAUXFAUXVRAIVRAIFAUXFAUX",BDD!$Z$2:$Z$3) -> 0 | L126: =SUMIF(BDD!$BI$2:$BI$3,"M73001 (Banc new P9)FAUXFAUXFAUXVRAIFAUXVRAIFAUX",BDD!$Z$2:$Z$3) -> 0 | M126: =SUMIF(BDD!$BI$2:$BI$3,"M73001 (Banc new P9)FAUXFAUXFAUXVRAIFAUXFAUXVRAI",BDD!$Z$2:$Z$3) -> 0 | N126: =SUMIF(BDD!$BI$2:$BI$24,"M73001 (Banc new P9)FAUXFAUXVRAIFAUXVRAIFAUXFAUX",BDD!$Z$2:$Z$24) -> 0 | O126: =SUMIF(BDD!$BI$2:$BI$24,"M73001 (Banc new P9)FAUXFAUXVRAIFAUXFAUXVRAIFAUX",BDD!$Z$2:$Z$24) -> 0 | P126: =SUMIF(BDD!$BI$2:$BI$24,"M73001 (Banc new P9)FAUXFAUXVRAIFAUXFAUXFAUXVRAI",BDD!$Z$2:$Z$24) -> 0 | Q126: =SUMIF(BDD!$BI$2:$BI$24,"M73001 (Banc new P9)FAUXFAUXFAUXVRAIVRAIFAUXFAUX",BDD!$Z$2:$Z$24) -> 0 | R126: =SUMIF(BDD!$BI$2:$BI$24,"M73001 (Banc new P9)FAUXFAUXFAUXVRAIFAUXVRAIFAUX",BDD!$Z$2:$Z$24) -> 0 | S126: =SUMIF(BDD!$BI$2:$BI$24,"M73001 (Banc new P9)FAUXFAUXFAUXVRAIFAUXFAUXVRAI",BDD!$Z$2:$Z$24) -> 0 | T126: =SUMIF(BDD!$BI$26:$BI$599,"M73001 (Banc new P9)VRAIFAUXVRAIFAUXFAUX",BDD!$Z$26:$Z$599) -> 3 | U126: =SUMIF(BDD!$BI$26:$BI$599,"M73001 (Banc new P9)VRAIFAUXFAUXVRAIFAUX",BDD!$Z$26:$Z$599) -> 0 | V126: =SUMIF(BDD!$BI$26:$BI$599,"M73001 (Banc new P9)VRAIFAUXFAUXFAUXVRAI",BDD!$Z$26:$Z$60) -> 0 | W126: =SUMIF(BDD!$BI$26:$BI$599,"M73001 (Banc new P9)FAUXVRAIVRAIFAUXFAUX",BDD!$Z$26:$Z$599) -> 0 | X126: =SUMIF(BDD!$BI$26:$BI$599,"M73001 (Banc new P9)FAUXVRAIFAUXVRAIFAUX",BDD!$Z$26:$Z$599) -> 0 | Y126: =SUMIF(BDD!$BI$26:$BI$599,"M73001 (Banc new P9)FAUXVRAIFAUXFAUXVRAI",BDD!$Z$26:$Z$60) -> 0 | Z126: =SUMIF(BDD!$BI$2:$BI$3,"M73001 (Banc new P9)FAUXFAUXVRAIFAUXVRAIFAUXFAUX",BDD!$Z$2:$Z$3) -> 0 | AA126: =SUMIF(BDD!$BI$2:$BI$3,"M73001 (Banc new P9)FAUXFAUXVRAIFAUXFAUXVRAIFAUX",BDD!$Z$2:$Z$3) -> 0 | AB126: =SUMIF(BDD!$BI$2:$BI$3,"M73001 (Banc new P9)FAUXFAUXVRAIFAUXFAUXFAUXVRAI",BDD!$Z$2:$Z$3) -> 0 | AC126: =SUMIF(BDD!$BI$2:$BI$3,"M73001 (Banc new P9)FAUXFAUXFAUXVRAIVRAIFAUXFAUX",BDD!$Z$2:$Z$3) -> 0 | AD126: =SUMIF(BDD!$BI$2:$BI$3,"M73001 (Banc new P9)FAUXFAUXFAUXVRAIFAUXVRAIFAUX",BDD!$Z$2:$Z$3) -> 0 | AE126: =SUMIF(BDD!$BI$2:$BI$3,"M73001 (Banc new P9)FAUXFAUXFAUXVRAIFAUXFAUXVRAI",BDD!$Z$2:$Z$3) -> 0 | AF126: =SUMIF(BDD!$BI$2:$BI$3,"M73001 (Banc new P9)FAUXFAUXVRAIFAUXVRAIFAUXFAUX",BDD!$Z$2:$Z$3) -> 0 | AG126: =SUMIF(BDD!$BI$2:$BI$3,"M73001 (Banc new P9)FAUXFAUXVRAIFAUXFAUXVRAIFAUX",BDD!$Z$2:$Z$3) -> 0 | AH126: =SUMIF(BDD!$BI$2:$BI$3,"M73001 (Banc new P9)FAUXFAUXVRAIFAUXFAUXFAUXVRAI",BDD!$Z$2:$Z$3) -> 0 | AI126: =SUMIF(BDD!$BI$2:$BI$3,"M73001 (Banc new P9)FAUXFAUXFAUXVRAIVRAIFAUXFAUX",BDD!$Z$2:$Z$3) -> 0 | AJ126: =SUMIF(BDD!$BI$2:$BI$3,"M73001 (Banc new P9)FAUXFAUXFAUXVRAIFAUXVRAIFAUX",BDD!$Z$2:$Z$3) -> 0 | AK126: =SUMIF(BDD!$BI$2:$BI$3,"M73001 (Banc new P9)FAUXFAUXFAUXVRAIFAUXFAUXVRAI",BDD!$Z$2:$Z$3) -> 0 | AL126: =SUMIF(BDD!$BI$2:$BI$3,"M73001 (Banc new P9)FAUXFAUXVRAIFAUXVRAIFAUXFAUX",BDD!$Z$2:$Z$3) -> 0 | AM126: =SUMIF(BDD!$BI$2:$BI$3,"M73001 (Banc new P9)FAUXFAUXVRAIFAUXFAUXVRAIFAUX",BDD!$Z$2:$Z$3) -> 0 | AN126: =SUMIF(BDD!$BI$2:$BI$3,"M73001 (Banc new P9)FAUXFAUXVRAIFAUXFAUXFAUXVRAI",BDD!$Z$2:$Z$3) -> 0 | AO126: =SUMIF(BDD!$BI$2:$BI$3,"M73001 (Banc new P9)FAUXFAUXFAUXVRAIVRAIFAUXFAUX",BDD!$Z$2:$Z$3) -> 0 | AP126: =SUMIF(BDD!$BI$2:$BI$3,"M73001 (Banc new P9)FAUXFAUXFAUXVRAIFAUXVRAIFAUX",BDD!$Z$2:$Z$3) -> 0 | AQ126: =SUMIF(BDD!$BI$2:$BI$3,"M73001 (Banc new P9)FAUXFAUXFAUXVRAIFAUXFAUXVRAI",BDD!$Z$2:$Z$3) -> 0 | AR126: =SUMIF(BDD!$BI$2:$BI$3,"M73001 (Banc new P9)FAUXFAUXVRAIFAUXVRAIFAUXFAUX",BDD!$Z$2:$Z$3) -> 0 | AS126: =SUMIF(BDD!$BI$2:$BI$3,"M73001 (Banc new P9)FAUXFAUXVRAIFAUXFAUXVRAIFAUX",BDD!$Z$2:$Z$3) -> 0 | AT126: =SUMIF(BDD!$BI$2:$BI$3,"M73001 (Banc new P9)FAUXFAUXVRAIFAUXFAUXFAUXVRAI",BDD!$Z$2:$Z$3) -> 0 | AU126: =SUMIF(BDD!$BI$2:$BI$3,"M73001 (Banc new P9)FAUXFAUXFAUXVRAIVRAIFAUXFAUX",BDD!$Z$2:$Z$3) -> 0 | AV126: =SUMIF(BDD!$BI$2:$BI$3,"M73001 (Banc new P9)FAUXFAUXFAUXVRAIFAUXVRAIFAUX",BDD!$Z$2:$Z$3) -> 0 | AW126: =SUMIF(BDD!$BI$2:$BI$3,"M73001 (Banc new P9)FAUXFAUXFAUXVRAIFAUXFAUXVRAI",BDD!$Z$2:$Z$3) -> 0 | AX126: =SUMIF(BDD!$BI$2:$BI$3,"M73001 (Banc new P9)FAUXFAUXVRAIFAUXVRAIFAUXFAUX",BDD!$Z$2:$Z$3) -> 0 | AY126: =SUMIF(BDD!$BI$2:$BI$3,"M73001 (Banc new P9)FAUXFAUXVRAIFAUXFAUXVRAIFAUX",BDD!$Z$2:$Z$3) -> 0 | AZ126: =SUMIF(BDD!$BI$2:$BI$3,"M73001 (Banc new P9)FAUXFAUXVRAIFAUXFAUXFAUXVRAI",BDD!$Z$2:$Z$3) -> 0 | BA126: =SUMIF(BDD!$BI$2:$BI$3,"M73001 (Banc new P9)FAUXFAUXFAUXVRAIVRAIFAUXFAUX",BDD!$Z$2:$Z$3) -> 0 | BB126: =SUMIF(BDD!$BI$2:$BI$3,"M73001 (Banc new P9)FAUXFAUXFAUXVRAIFAUXVRAIFAUX",BDD!$Z$2:$Z$3) -> 0 | BC126: =SUMIF(BDD!$BI$2:$BI$3,"M73001 (Banc new P9)FAUXFAUXFAUXVRAIFAUXFAUXVRAI",BDD!$Z$2:$Z$3) -> 0 | BD126: =SUMIF(BDD!$BI$2:$BI$3,"M73001 (Banc new P9)FAUXFAUXVRAIFAUXVRAIFAUXFAUX",BDD!$Z$2:$Z$3) -> 0 | BE126: =SUMIF(BDD!$BI$2:$BI$3,"M73001 (Banc new P9)FAUXFAUXVRAIFAUXFAUXVRAIFAUX",BDD!$Z$2:$Z$3) -> 0 | BF126: =SUMIF(BDD!$BI$2:$BI$3,"M73001 (Banc new P9)FAUXFAUXVRAIFAUXFAUXFAUXVRAI",BDD!$Z$2:$Z$3) -> 0 | BG126: =SUMIF(BDD!$BI$2:$BI$3,"M73001 (Banc new P9)FAUXFAUXFAUXVRAIVRAIFAUXFAUX",BDD!$Z$2:$Z$3) -> 0 | BH126: =SUMIF(BDD!$BI$2:$BI$3,"M73001 (Banc new P9)FAUXFAUXFAUXVRAIFAUXVRAIFAUX",BDD!$Z$2:$Z$3) -> 0 | BI126: =SUMIF(BDD!$BI$2:$BI$3,"M73001 (Banc new P9)FAUXFAUXFAUXVRAIFAUXFAUXVRAI",BDD!$Z$2:$Z$3) -> 0 | BJ126: =SUMIF(BDD!$BI$2:$BI$3,"M73001 (Banc new P9)FAUXFAUXVRAIFAUXVRAIFAUXFAUX",BDD!$Z$2:$Z$3) -> 0 | BK126: =SUMIF(BDD!$BI$2:$BI$3,"M73001 (Banc new P9)FAUXFAUXVRAIFAUXFAUXVRAIFAUX",BDD!$Z$2:$Z$3) -> 0 | BL126: =SUMIF(BDD!$BI$2:$BI$3,"M73001 (Banc new P9)FAUXFAUXVRAIFAUXFAUXFAUXVRAI",BDD!$Z$2:$Z$3) -> 0 | BM126: =SUMIF(BDD!$BI$2:$BI$3,"M73001 (Banc new P9)FAUXFAUXFAUXVRAIVRAIFAUXFAUX",BDD!$Z$2:$Z$3) -> 0 | BN126: =SUMIF(BDD!$BI$2:$BI$3,"M73001 (Banc new P9)FAUXFAUXFAUXVRAIFAUXVRAIFAUX",BDD!$Z$2:$Z$3) -> 0 | BO126: =SUMIF(BDD!$BI$2:$BI$3,"M73001 (Banc new P9)FAUXFAUXFAUXVRAIFAUXFAUXVRAI",BDD!$Z$2:$Z$3) -> 0 | BP126: =SUMIF(BDD!$BI$2:$BI$3,"M73001 (Banc new P9)FAUXFAUXVRAIFAUXVRAIFAUXFAUX",BDD!$Z$2:$Z$3) -> 0 | BQ126: =SUMIF(BDD!$BI$2:$BI$3,"M73001 (Banc new P9)FAUXFAUXVRAIFAUXFAUXVRAIFAUX",BDD!$Z$2:$Z$3) -> 0 | BR126: =SUMIF(BDD!$BI$2:$BI$3,"M73001 (Banc new P9)FAUXFAUXVRAIFAUXFAUXFAUXVRAI",BDD!$Z$2:$Z$3) -> 0 | BS126: =SUMIF(BDD!$BI$2:$BI$3,"M73001 (Banc new P9)FAUXFAUXFAUXVRAIVRAIFAUXFAUX",BDD!$Z$2:$Z$3) -> 0 | BT126: =SUMIF(BDD!$BI$2:$BI$3,"M73001 (Banc new P9)FAUXFAUXFAUXVRAIFAUXVRAIFAUX",BDD!$Z$2:$Z$3) -> 0 | BU126: =SUMIF(BDD!$BI$2:$BI$3,"M73001 (Banc new P9)FAUXFAUXFAUXVRAIFAUXFAUXVRAI",BDD!$Z$2:$Z$3) -> 0
A127: Banc P1 | B127: =SUMIF(BDD!$BI$2:$BI$3,"Banc P1FAUXFAUXVRAIFAUXVRAIFAUXFAUX",BDD!$Z$2:$Z$3) -> 0 | C127: =SUMIF(BDD!$BI$2:$BI$3,"Banc P1FAUXFAUXVRAIFAUXFAUXVRAIFAUX",BDD!$Z$2:$Z$3) -> 0 | D127: =SUMIF(BDD!$BI$2:$BI$3,"Banc P1FAUXFAUXVRAIFAUXFAUXFAUXVRAI",BDD!$Z$2:$Z$3) -> 0 | E127: =SUMIF(BDD!$BI$2:$BI$3,"Banc P1FAUXFAUXFAUXVRAIVRAIFAUXFAUX",BDD!$Z$2:$Z$3) -> 0 | F127: =SUMIF(BDD!$BI$2:$BI$3,"Banc P1FAUXFAUXFAUXVRAIFAUXVRAIFAUX",BDD!$Z$2:$Z$3) -> 0 | G127: =SUMIF(BDD!$BI$2:$BI$3,"Banc P1FAUXFAUXFAUXVRAIFAUXFAUXVRAI",BDD!$Z$2:$Z$3) -> 0 | H127: =SUMIF(BDD!$BI$2:$BI$3,"Banc P1FAUXFAUXVRAIFAUXVRAIFAUXFAUX",BDD!$Z$2:$Z$3) -> 0 | I127: =SUMIF(BDD!$BI$2:$BI$3,"Banc P1FAUXFAUXVRAIFAUXFAUXVRAIFAUX",BDD!$Z$2:$Z$3) -> 0 | J127: =SUMIF(BDD!$BI$2:$BI$3,"Banc P1FAUXFAUXVRAIFAUXFAUXFAUXVRAI",BDD!$Z$2:$Z$3) -> 0 | K127: =SUMIF(BDD!$BI$2:$BI$3,"Banc P1FAUXFAUXFAUXVRAIVRAIFAUXFAUX",BDD!$Z$2:$Z$3) -> 0 | L127: =SUMIF(BDD!$BI$2:$BI$3,"Banc P1FAUXFAUXFAUXVRAIFAUXVRAIFAUX",BDD!$Z$2:$Z$3) -> 0 | M127: =SUMIF(BDD!$BI$2:$BI$3,"Banc P1FAUXFAUXFAUXVRAIFAUXFAUXVRAI",BDD!$Z$2:$Z$3) -> 0 | N127: =SUMIF(BDD!$BI$2:$BI$24,"Banc P1FAUXFAUXVRAIFAUXVRAIFAUXFAUX",BDD!$Z$2:$Z$24) -> 0 | O127: =SUMIF(BDD!$BI$2:$BI$24,"Banc P1FAUXFAUXVRAIFAUXFAUXVRAIFAUX",BDD!$Z$2:$Z$24) -> 0 | P127: =SUMIF(BDD!$BI$2:$BI$24,"Banc P1FAUXFAUXVRAIFAUXFAUXFAUXVRAI",BDD!$Z$2:$Z$24) -> 0 | Q127: =SUMIF(BDD!$BI$2:$BI$24,"Banc P1FAUXFAUXFAUXVRAIVRAIFAUXFAUX",BDD!$Z$2:$Z$24) -> 0 | R127: =SUMIF(BDD!$BI$2:$BI$24,"Banc P1FAUXFAUXFAUXVRAIFAUXVRAIFAUX",BDD!$Z$2:$Z$24) -> 0 | S127: =SUMIF(BDD!$BI$2:$BI$24,"Banc P1FAUXFAUXFAUXVRAIFAUXFAUXVRAI",BDD!$Z$2:$Z$24) -> 0 | T127: =SUMIF(BDD!$BI$26:$BI$599,"Banc P1VRAIFAUXVRAIFAUXFAUX",BDD!$Z$26:$Z$599) -> 0 | U127: =SUMIF(BDD!$BI$26:$BI$599,"Banc P1VRAIFAUXFAUXVRAIFAUX",BDD!$Z$26:$Z$599) -> 0 | V127: =SUMIF(BDD!$BI$26:$BI$599,"Banc P1VRAIFAUXFAUXFAUXVRAI",BDD!$Z$26:$Z$599) -> 0 | W127: =SUMIF(BDD!$BI$26:$BI$599,"Banc P1FAUXVRAIVRAIFAUXFAUX",BDD!$Z$26:$Z$599) -> 0 | X127: =SUMIF(BDD!$BI$26:$BI$599,"Banc P1FAUXVRAIFAUXVRAIFAUX",BDD!$Z$26:$Z$599) -> 0 | Y127: =SUMIF(BDD!$BI$26:$BI$6005,"Banc P1FAUXVRAIFAUXFAUXVRAI",BDD!$Z$26:$Z$599) -> 0 | Z127: =SUMIF(BDD!$BI$2:$BI$3,"Banc P1FAUXFAUXVRAIFAUXVRAIFAUXFAUX",BDD!$Z$2:$Z$3) -> 0 | AA127: =SUMIF(BDD!$BI$2:$BI$3,"Banc P1FAUXFAUXVRAIFAUXFAUXVRAIFAUX",BDD!$Z$2:$Z$3) -> 0 | AB127: =SUMIF(BDD!$BI$2:$BI$3,"Banc P1FAUXFAUXVRAIFAUXFAUXFAUXVRAI",BDD!$Z$2:$Z$3) -> 0 | AC127: =SUMIF(BDD!$BI$2:$BI$3,"Banc P1FAUXFAUXFAUXVRAIVRAIFAUXFAUX",BDD!$Z$2:$Z$3) -> 0 | AD127: =SUMIF(BDD!$BI$2:$BI$3,"Banc P1FAUXFAUXFAUXVRAIFAUXVRAIFAUX",BDD!$Z$2:$Z$3) -> 0 | AE127: =SUMIF(BDD!$BI$2:$BI$3,"Banc P1FAUXFAUXFAUXVRAIFAUXFAUXVRAI",BDD!$Z$2:$Z$3) -> 0 | AF127: =SUMIF(BDD!$BI$2:$BI$3,"Banc P1FAUXFAUXVRAIFAUXVRAIFAUXFAUX",BDD!$Z$2:$Z$3) -> 0 | AG127: =SUMIF(BDD!$BI$2:$BI$3,"Banc P1FAUXFAUXVRAIFAUXFAUXVRAIFAUX",BDD!$Z$2:$Z$3) -> 0 | AH127: =SUMIF(BDD!$BI$2:$BI$3,"Banc P1FAUXFAUXVRAIFAUXFAUXFAUXVRAI",BDD!$Z$2:$Z$3) -> 0 | AI127: =SUMIF(BDD!$BI$2:$BI$3,"Banc P1FAUXFAUXFAUXVRAIVRAIFAUXFAUX",BDD!$Z$2:$Z$3) -> 0 | AJ127: =SUMIF(BDD!$BI$2:$BI$3,"Banc P1FAUXFAUXFAUXVRAIFAUXVRAIFAUX",BDD!$Z$2:$Z$3) -> 0 | AK127: =SUMIF(BDD!$BI$2:$BI$3,"Banc P1FAUXFAUXFAUXVRAIFAUXFAUXVRAI",BDD!$Z$2:$Z$3) -> 0 | AL127: =SUMIF(BDD!$BI$2:$BI$3,"Banc P1FAUXFAUXVRAIFAUXVRAIFAUXFAUX",BDD!$Z$2:$Z$3) -> 0 | AM127: =SUMIF(BDD!$BI$2:$BI$3,"Banc P1FAUXFAUXVRAIFAUXFAUXVRAIFAUX",BDD!$Z$2:$Z$3) -> 0 | AN127: =SUMIF(BDD!$BI$2:$BI$3,"Banc P1FAUXFAUXVRAIFAUXFAUXFAUXVRAI",BDD!$Z$2:$Z$3) -> 0 | AO127: =SUMIF(BDD!$BI$2:$BI$3,"Banc P1FAUXFAUXFAUXVRAIVRAIFAUXFAUX",BDD!$Z$2:$Z$3) -> 0 | AP127: =SUMIF(BDD!$BI$2:$BI$3,"Banc P1FAUXFAUXFAUXVRAIFAUXVRAIFAUX",BDD!$Z$2:$Z$3) -> 0 | AQ127: =SUMIF(BDD!$BI$2:$BI$3,"Banc P1FAUXFAUXFAUXVRAIFAUXFAUXVRAI",BDD!$Z$2:$Z$3) -> 0 | AR127: =SUMIF(BDD!$BI$2:$BI$3,"Banc P1FAUXFAUXVRAIFAUXVRAIFAUXFAUX",BDD!$Z$2:$Z$3) -> 0 | AS127: =SUMIF(BDD!$BI$2:$BI$3,"Banc P1FAUXFAUXVRAIFAUXFAUXVRAIFAUX",BDD!$Z$2:$Z$3) -> 0 | AT127: =SUMIF(BDD!$BI$2:$BI$3,"Banc P1FAUXFAUXVRAIFAUXFAUXFAUXVRAI",BDD!$Z$2:$Z$3) -> 0 | AU127: =SUMIF(BDD!$BI$2:$BI$3,"Banc P1FAUXFAUXFAUXVRAIVRAIFAUXFAUX",BDD!$Z$2:$Z$3) -> 0 | AV127: =SUMIF(BDD!$BI$2:$BI$3,"Banc P1FAUXFAUXFAUXVRAIFAUXVRAIFAUX",BDD!$Z$2:$Z$3) -> 0 | AW127: =SUMIF(BDD!$BI$2:$BI$3,"Banc P1FAUXFAUXFAUXVRAIFAUXFAUXVRAI",BDD!$Z$2:$Z$3) -> 0 | AX127: =SUMIF(BDD!$BI$2:$BI$3,"Banc P1FAUXFAUXVRAIFAUXVRAIFAUXFAUX",BDD!$Z$2:$Z$3) -> 0 | AY127: =SUMIF(BDD!$BI$2:$BI$3,"Banc P1FAUXFAUXVRAIFAUXFAUXVRAIFAUX",BDD!$Z$2:$Z$3) -> 0 | AZ127: =SUMIF(BDD!$BI$2:$BI$3,"Banc P1FAUXFAUXVRAIFAUXFAUXFAUXVRAI",BDD!$Z$2:$Z$3) -> 0 | BA127: =SUMIF(BDD!$BI$2:$BI$3,"Banc P1FAUXFAUXFAUXVRAIVRAIFAUXFAUX",BDD!$Z$2:$Z$3) -> 0 | BB127: =SUMIF(BDD!$BI$2:$BI$3,"Banc P1FAUXFAUXFAUXVRAIFAUXVRAIFAUX",BDD!$Z$2:$Z$3) -> 0 | BC127: =SUMIF(BDD!$BI$2:$BI$3,"Banc P1FAUXFAUXFAUXVRAIFAUXFAUXVRAI",BDD!$Z$2:$Z$3) -> 0 | BD127: =SUMIF(BDD!$BI$2:$BI$3,"Banc P1FAUXFAUXVRAIFAUXVRAIFAUXFAUX",BDD!$Z$2:$Z$3) -> 0 | BE127: =SUMIF(BDD!$BI$2:$BI$3,"Banc P1FAUXFAUXVRAIFAUXFAUXVRAIFAUX",BDD!$Z$2:$Z$3) -> 0 | BF127: =SUMIF(BDD!$BI$2:$BI$3,"Banc P1FAUXFAUXVRAIFAUXFAUXFAUXVRAI",BDD!$Z$2:$Z$3) -> 0 | BG127: =SUMIF(BDD!$BI$2:$BI$3,"Banc P1FAUXFAUXFAUXVRAIVRAIFAUXFAUX",BDD!$Z$2:$Z$3) -> 0 | BH127: =SUMIF(BDD!$BI$2:$BI$3,"Banc P1FAUXFAUXFAUXVRAIFAUXVRAIFAUX",BDD!$Z$2:$Z$3) -> 0 | BI127: =SUMIF(BDD!$BI$2:$BI$3,"Banc P1FAUXFAUXFAUXVRAIFAUXFAUXVRAI",BDD!$Z$2:$Z$3) -> 0 | BJ127: =SUMIF(BDD!$BI$2:$BI$3,"Banc P1FAUXFAUXVRAIFAUXVRAIFAUXFAUX",BDD!$Z$2:$Z$3) -> 0 | BK127: =SUMIF(BDD!$BI$2:$BI$3,"Banc P1FAUXFAUXVRAIFAUXFAUXVRAIFAUX",BDD!$Z$2:$Z$3) -> 0 | BL127: =SUMIF(BDD!$BI$2:$BI$3,"Banc P1FAUXFAUXVRAIFAUXFAUXFAUXVRAI",BDD!$Z$2:$Z$3) -> 0 | BM127: =SUMIF(BDD!$BI$2:$BI$3,"Banc P1FAUXFAUXFAUXVRAIVRAIFAUXFAUX",BDD!$Z$2:$Z$3) -> 0 | BN127: =SUMIF(BDD!$BI$2:$BI$3,"Banc P1FAUXFAUXFAUXVRAIFAUXVRAIFAUX",BDD!$Z$2:$Z$3) -> 0 | BO127: =SUMIF(BDD!$BI$2:$BI$3,"Banc P1FAUXFAUXFAUXVRAIFAUXFAUXVRAI",BDD!$Z$2:$Z$3) -> 0 | BP127: =SUMIF(BDD!$BI$2:$BI$3,"Banc P1FAUXFAUXVRAIFAUXVRAIFAUXFAUX",BDD!$Z$2:$Z$3) -> 0 | BQ127: =SUMIF(BDD!$BI$2:$BI$3,"Banc P1FAUXFAUXVRAIFAUXFAUXVRAIFAUX",BDD!$Z$2:$Z$3) -> 0 | BR127: =SUMIF(BDD!$BI$2:$BI$3,"Banc P1FAUXFAUXVRAIFAUXFAUXFAUXVRAI",BDD!$Z$2:$Z$3) -> 0 | BS127: =SUMIF(BDD!$BI$2:$BI$3,"Banc P1FAUXFAUXFAUXVRAIVRAIFAUXFAUX",BDD!$Z$2:$Z$3) -> 0 | BT127: =SUMIF(BDD!$BI$2:$BI$3,"Banc P1FAUXFAUXFAUXVRAIFAUXVRAIFAUX",BDD!$Z$2:$Z$3) -> 0 | BU127: =SUMIF(BDD!$BI$2:$BI$3,"Banc P1FAUXFAUXFAUXVRAIFAUXFAUXVRAI",BDD!$Z$2:$Z$3) -> 0
A128: Banc P2 | B128: =SUMIF(BDD!$BI$2:$BI$3,"Banc P2FAUXFAUXVRAIFAUXVRAIFAUXFAUX",BDD!$Z$2:$Z$3) -> 0 | C128: =SUMIF(BDD!$BI$2:$BI$3,"Banc P2FAUXFAUXVRAIFAUXFAUXVRAIFAUX",BDD!$Z$2:$Z$3) -> 0 | D128: =SUMIF(BDD!$BI$2:$BI$3,"Banc P2FAUXFAUXVRAIFAUXFAUXFAUXVRAI",BDD!$Z$2:$Z$3) -> 0 | E128: =SUMIF(BDD!$BI$2:$BI$3,"Banc P2FAUXFAUXFAUXVRAIVRAIFAUXFAUX",BDD!$Z$2:$Z$3) -> 0 | F128: =SUMIF(BDD!$BI$2:$BI$3,"Banc P2FAUXFAUXFAUXVRAIFAUXVRAIFAUX",BDD!$Z$2:$Z$3) -> 0 | G128: =SUMIF(BDD!$BI$2:$BI$3,"Banc P2FAUXFAUXFAUXVRAIFAUXFAUXVRAI",BDD!$Z$2:$Z$3) -> 0 | H128: =SUMIF(BDD!$BI$2:$BI$3,"Banc P2FAUXFAUXVRAIFAUXVRAIFAUXFAUX",BDD!$Z$2:$Z$3) -> 0 | I128: =SUMIF(BDD!$BI$2:$BI$3,"Banc P2FAUXFAUXVRAIFAUXFAUXVRAIFAUX",BDD!$Z$2:$Z$3) -> 0 | J128: =SUMIF(BDD!$BI$2:$BI$3,"Banc P2FAUXFAUXVRAIFAUXFAUXFAUXVRAI",BDD!$Z$2:$Z$3) -> 0 | K128: =SUMIF(BDD!$BI$2:$BI$3,"Banc P2FAUXFAUXFAUXVRAIVRAIFAUXFAUX",BDD!$Z$2:$Z$3) -> 0 | L128: =SUMIF(BDD!$BI$2:$BI$3,"Banc P2FAUXFAUXFAUXVRAIFAUXVRAIFAUX",BDD!$Z$2:$Z$3) -> 0 | M128: =SUMIF(BDD!$BI$2:$BI$3,"Banc P2FAUXFAUXFAUXVRAIFAUXFAUXVRAI",BDD!$Z$2:$Z$3) -> 0 | N128: =SUMIF(BDD!$BI$2:$BI$24,"Banc P2FAUXFAUXVRAIFAUXVRAIFAUXFAUX",BDD!$Z$2:$Z$24) -> 0 | O128: =SUMIF(BDD!$BI$2:$BI$24,"Banc P2FAUXFAUXVRAIFAUXFAUXVRAIFAUX",BDD!$Z$2:$Z$24) -> 0 | P128: =SUMIF(BDD!$BI$2:$BI$24,"Banc P2FAUXFAUXVRAIFAUXFAUXFAUXVRAI",BDD!$Z$2:$Z$24) -> 0 | Q128: =SUMIF(BDD!$BI$2:$BI$24,"Banc P2FAUXFAUXFAUXVRAIVRAIFAUXFAUX",BDD!$Z$2:$Z$24) -> 0 | R128: =SUMIF(BDD!$BI$2:$BI$24,"Banc P2FAUXFAUXFAUXVRAIFAUXVRAIFAUX",BDD!$Z$2:$Z$24) -> 0 | S128: =SUMIF(BDD!$BI$2:$BI$24,"Banc P2FAUXFAUXFAUXVRAIFAUXFAUXVRAI",BDD!$Z$2:$Z$24) -> 0 | T128: =SUMIF(BDD!$BI$26:$BI$599,"Banc P2VRAIFAUXVRAIFAUXFAUX",BDD!$Z$26:$Z$599) -> 0 | U128: =SUMIF(BDD!$BI$26:$BI$599,"Banc P2VRAIFAUXFAUXVRAIFAUX",BDD!$Z$26:$Z$599) -> 0 | V128: =SUMIF(BDD!$BI$26:$BI$599,"Banc P2VRAIFAUXFAUXFAUXVRAI",BDD!$Z$26:$Z$599) -> 0 | W128: =SUMIF(BDD!$BI$26:$BI$599,"Banc P2FAUXVRAIVRAIFAUXFAUX",BDD!$Z$26:$Z$599) -> 0 | X128: =SUMIF(BDD!$BI$26:$BI$599,"Banc P2FAUXVRAIFAUXVRAIFAUX",BDD!$Z$26:$Z$599) -> 0 | Y128: =SUMIF(BDD!$BI$26:$BI$599,"Banc P2FAUXVRAIFAUXFAUXVRAI",BDD!$Z$26:$Z$599) -> 0 | Z128: =SUMIF(BDD!$BI$2:$BI$3,"Banc P2FAUXFAUXVRAIFAUXVRAIFAUXFAUX",BDD!$Z$2:$Z$3) -> 0 | AA128: =SUMIF(BDD!$BI$2:$BI$3,"Banc P2FAUXFAUXVRAIFAUXFAUXVRAIFAUX",BDD!$Z$2:$Z$3) -> 0 | AB128: =SUMIF(BDD!$BI$2:$BI$3,"Banc P2FAUXFAUXVRAIFAUXFAUXFAUXVRAI",BDD!$Z$2:$Z$3) -> 0 | AC128: =SUMIF(BDD!$BI$2:$BI$3,"Banc P2FAUXFAUXFAUXVRAIVRAIFAUXFAUX",BDD!$Z$2:$Z$3) -> 0 | AD128: =SUMIF(BDD!$BI$2:$BI$3,"Banc P2FAUXFAUXFAUXVRAIFAUXVRAIFAUX",BDD!$Z$2:$Z$3) -> 0 | AE128: =SUMIF(BDD!$BI$2:$BI$3,"Banc P2FAUXFAUXFAUXVRAIFAUXFAUXVRAI",BDD!$Z$2:$Z$3) -> 0 | AF128: =SUMIF(BDD!$BI$2:$BI$3,"Banc P2FAUXFAUXVRAIFAUXVRAIFAUXFAUX",BDD!$Z$2:$Z$3) -> 0 | AG128: =SUMIF(BDD!$BI$2:$BI$3,"Banc P2FAUXFAUXVRAIFAUXFAUXVRAIFAUX",BDD!$Z$2:$Z$3) -> 0 | AH128: =SUMIF(BDD!$BI$2:$BI$3,"Banc P2FAUXFAUXVRAIFAUXFAUXFAUXVRAI",BDD!$Z$2:$Z$3) -> 0 | AI128: =SUMIF(BDD!$BI$2:$BI$3,"Banc P2FAUXFAUXFAUXVRAIVRAIFAUXFAUX",BDD!$Z$2:$Z$3) -> 0 | AJ128: =SUMIF(BDD!$BI$2:$BI$3,"Banc P2FAUXFAUXFAUXVRAIFAUXVRAIFAUX",BDD!$Z$2:$Z$3) -> 0 | AK128: =SUMIF(BDD!$BI$2:$BI$3,"Banc P2FAUXFAUXFAUXVRAIFAUXFAUXVRAI",BDD!$Z$2:$Z$3) -> 0 | AL128: =SUMIF(BDD!$BI$2:$BI$3,"Banc P2FAUXFAUXVRAIFAUXVRAIFAUXFAUX",BDD!$Z$2:$Z$3) -> 0 | AM128: =SUMIF(BDD!$BI$2:$BI$3,"Banc P2FAUXFAUXVRAIFAUXFAUXVRAIFAUX",BDD!$Z$2:$Z$3) -> 0 | AN128: =SUMIF(BDD!$BI$2:$BI$3,"Banc P2FAUXFAUXVRAIFAUXFAUXFAUXVRAI",BDD!$Z$2:$Z$3) -> 0 | AO128: =SUMIF(BDD!$BI$2:$BI$3,"Banc P2FAUXFAUXFAUXVRAIVRAIFAUXFAUX",BDD!$Z$2:$Z$3) -> 0 | AP128: =SUMIF(BDD!$BI$2:$BI$3,"Banc P2FAUXFAUXFAUXVRAIFAUXVRAIFAUX",BDD!$Z$2:$Z$3) -> 0 | AQ128: =SUMIF(BDD!$BI$2:$BI$3,"Banc P2FAUXFAUXFAUXVRAIFAUXFAUXVRAI",BDD!$Z$2:$Z$3) -> 0 | AR128: =SUMIF(BDD!$BI$2:$BI$3,"Banc P2FAUXFAUXVRAIFAUXVRAIFAUXFAUX",BDD!$Z$2:$Z$3) -> 0 | AS128: =SUMIF(BDD!$BI$2:$BI$3,"Banc P2FAUXFAUXVRAIFAUXFAUXVRAIFAUX",BDD!$Z$2:$Z$3) -> 0 | AT128: =SUMIF(BDD!$BI$2:$BI$3,"Banc P2FAUXFAUXVRAIFAUXFAUXFAUXVRAI",BDD!$Z$2:$Z$3) -> 0 | AU128: =SUMIF(BDD!$BI$2:$BI$3,"Banc P2FAUXFAUXFAUXVRAIVRAIFAUXFAUX",BDD!$Z$2:$Z$3) -> 0 | AV128: =SUMIF(BDD!$BI$2:$BI$3,"Banc P2FAUXFAUXFAUXVRAIFAUXVRAIFAUX",BDD!$Z$2:$Z$3) -> 0 | AW128: =SUMIF(BDD!$BI$2:$BI$3,"Banc P2FAUXFAUXFAUXVRAIFAUXFAUXVRAI",BDD!$Z$2:$Z$3) -> 0 | AX128: =SUMIF(BDD!$BI$2:$BI$3,"Banc P2FAUXFAUXVRAIFAUXVRAIFAUXFAUX",BDD!$Z$2:$Z$3) -> 0 | AY128: =SUMIF(BDD!$BI$2:$BI$3,"Banc P2FAUXFAUXVRAIFAUXFAUXVRAIFAUX",BDD!$Z$2:$Z$3) -> 0 | AZ128: =SUMIF(BDD!$BI$2:$BI$3,"Banc P2FAUXFAUXVRAIFAUXFAUXFAUXVRAI",BDD!$Z$2:$Z$3) -> 0 | BA128: =SUMIF(BDD!$BI$2:$BI$3,"Banc P2FAUXFAUXFAUXVRAIVRAIFAUXFAUX",BDD!$Z$2:$Z$3) -> 0 | BB128: =SUMIF(BDD!$BI$2:$BI$3,"Banc P2FAUXFAUXFAUXVRAIFAUXVRAIFAUX",BDD!$Z$2:$Z$3) -> 0 | BC128: =SUMIF(BDD!$BI$2:$BI$3,"Banc P2FAUXFAUXFAUXVRAIFAUXFAUXVRAI",BDD!$Z$2:$Z$3) -> 0 | BD128: =SUMIF(BDD!$BI$2:$BI$3,"Banc P2FAUXFAUXVRAIFAUXVRAIFAUXFAUX",BDD!$Z$2:$Z$3) -> 0 | BE128: =SUMIF(BDD!$BI$2:$BI$3,"Banc P2FAUXFAUXVRAIFAUXFAUXVRAIFAUX",BDD!$Z$2:$Z$3) -> 0 | BF128: =SUMIF(BDD!$BI$2:$BI$3,"Banc P2FAUXFAUXVRAIFAUXFAUXFAUXVRAI",BDD!$Z$2:$Z$3) -> 0 | BG128: =SUMIF(BDD!$BI$2:$BI$3,"Banc P2FAUXFAUXFAUXVRAIVRAIFAUXFAUX",BDD!$Z$2:$Z$3) -> 0 | BH128: =SUMIF(BDD!$BI$2:$BI$3,"Banc P2FAUXFAUXFAUXVRAIFAUXVRAIFAUX",BDD!$Z$2:$Z$3) -> 0 | BI128: =SUMIF(BDD!$BI$2:$BI$3,"Banc P2FAUXFAUXFAUXVRAIFAUXFAUXVRAI",BDD!$Z$2:$Z$3) -> 0 | BJ128: =SUMIF(BDD!$BI$2:$BI$3,"Banc P2FAUXFAUXVRAIFAUXVRAIFAUXFAUX",BDD!$Z$2:$Z$3) -> 0 | BK128: =SUMIF(BDD!$BI$2:$BI$3,"Banc P2FAUXFAUXVRAIFAUXFAUXVRAIFAUX",BDD!$Z$2:$Z$3) -> 0 | BL128: =SUMIF(BDD!$BI$2:$BI$3,"Banc P2FAUXFAUXVRAIFAUXFAUXFAUXVRAI",BDD!$Z$2:$Z$3) -> 0 | BM128: =SUMIF(BDD!$BI$2:$BI$3,"Banc P2FAUXFAUXFAUXVRAIVRAIFAUXFAUX",BDD!$Z$2:$Z$3) -> 0 | BN128: =SUMIF(BDD!$BI$2:$BI$3,"Banc P2FAUXFAUXFAUXVRAIFAUXVRAIFAUX",BDD!$Z$2:$Z$3) -> 0 | BO128: =SUMIF(BDD!$BI$2:$BI$3,"Banc P2FAUXFAUXFAUXVRAIFAUXFAUXVRAI",BDD!$Z$2:$Z$3) -> 0 | BP128: =SUMIF(BDD!$BI$2:$BI$3,"Banc P2FAUXFAUXVRAIFAUXVRAIFAUXFAUX",BDD!$Z$2:$Z$3) -> 0 | BQ128: =SUMIF(BDD!$BI$2:$BI$3,"Banc P2FAUXFAUXVRAIFAUXFAUXVRAIFAUX",BDD!$Z$2:$Z$3) -> 0 | BR128: =SUMIF(BDD!$BI$2:$BI$3,"Banc P2FAUXFAUXVRAIFAUXFAUXFAUXVRAI",BDD!$Z$2:$Z$3) -> 0 | BS128: =SUMIF(BDD!$BI$2:$BI$3,"Banc P2FAUXFAUXFAUXVRAIVRAIFAUXFAUX",BDD!$Z$2:$Z$3) -> 0 | BT128: =SUMIF(BDD!$BI$2:$BI$3,"Banc P2FAUXFAUXFAUXVRAIFAUXVRAIFAUX",BDD!$Z$2:$Z$3) -> 0 | BU128: =SUMIF(BDD!$BI$2:$BI$3,"Banc P2FAUXFAUXFAUXVRAIFAUXFAUXVRAI",BDD!$Z$2:$Z$3) -> 0
A129: Banc 156 | B129: =SUMIF(BDD!$BI$2:$BI$3,"Banc 156FAUXFAUXVRAIFAUXVRAIFAUXFAUX",BDD!$Z$2:$Z$3) -> 0 | C129: =SUMIF(BDD!$BI$2:$BI$3,"Banc 156FAUXFAUXVRAIFAUXFAUXVRAIFAUX",BDD!$Z$2:$Z$3) -> 0 | D129: =SUMIF(BDD!$BI$2:$BI$3,"Banc 156FAUXFAUXVRAIFAUXFAUXFAUXVRAI",BDD!$Z$2:$Z$3) -> 0 | E129: =SUMIF(BDD!$BI$2:$BI$3,"Banc 156FAUXFAUXFAUXVRAIVRAIFAUXFAUX",BDD!$Z$2:$Z$3) -> 0 | F129: =SUMIF(BDD!$BI$2:$BI$3,"Banc 156FAUXFAUXFAUXVRAIFAUXVRAIFAUX",BDD!$Z$2:$Z$3) -> 0 | G129: =SUMIF(BDD!$BI$2:$BI$3,"Banc 156FAUXFAUXFAUXVRAIFAUXFAUXVRAI",BDD!$Z$2:$Z$3) -> 0 | H129: =SUMIF(BDD!$BI$2:$BI$3,"Banc 156FAUXFAUXVRAIFAUXVRAIFAUXFAUX",BDD!$Z$2:$Z$3) -> 0 | I129: =SUMIF(BDD!$BI$2:$BI$3,"Banc 156FAUXFAUXVRAIFAUXFAUXVRAIFAUX",BDD!$Z$2:$Z$3) -> 0 | J129: =SUMIF(BDD!$BI$2:$BI$3,"Banc 156FAUXFAUXVRAIFAUXFAUXFAUXVRAI",BDD!$Z$2:$Z$3) -> 0 | K129: =SUMIF(BDD!$BI$2:$BI$3,"Banc 156FAUXFAUXFAUXVRAIVRAIFAUXFAUX",BDD!$Z$2:$Z$3) -> 0 | L129: =SUMIF(BDD!$BI$2:$BI$3,"Banc 156FAUXFAUXFAUXVRAIFAUXVRAIFAUX",BDD!$Z$2:$Z$3) -> 0 | M129: =SUMIF(BDD!$BI$2:$BI$3,"Banc 156FAUXFAUXFAUXVRAIFAUXFAUXVRAI",BDD!$Z$2:$Z$3) -> 0 | N129: =SUMIF(BDD!$BI$2:$BI$24,"Banc 156FAUXFAUXVRAIFAUXVRAIFAUXFAUX",BDD!$Z$2:$Z$24) -> 0 | O129: =SUMIF(BDD!$BI$2:$BI$24,"Banc 156FAUXFAUXVRAIFAUXFAUXVRAIFAUX",BDD!$Z$2:$Z$24) -> 0 | P129: =SUMIF(BDD!$BI$2:$BI$24,"Banc 156FAUXFAUXVRAIFAUXFAUXFAUXVRAI",BDD!$Z$2:$Z$24) -> 0 | Q129: =SUMIF(BDD!$BI$2:$BI$24,"Banc 156FAUXFAUXFAUXVRAIVRAIFAUXFAUX",BDD!$Z$2:$Z$24) -> 0 | R129: =SUMIF(BDD!$BI$2:$BI$24,"Banc 156FAUXFAUXFAUXVRAIFAUXVRAIFAUX",BDD!$Z$2:$Z$24) -> 0 | S129: =SUMIF(BDD!$BI$2:$BI$24,"Banc 156FAUXFAUXFAUXVRAIFAUXFAUXVRAI",BDD!$Z$2:$Z$24) -> 0 | T129: =SUMIF(BDD!$BI$26:$BI$599,"Banc 156VRAIFAUXVRAIFAUXFAUX",BDD!$Z$26:$Z$599) -> 0 | U129: =SUMIF(BDD!$BI$26:$BI$599,"Banc 156VRAIFAUXFAUXVRAIFAUX",BDD!$Z$26:$Z$599) -> 0 | V129: =SUMIF(BDD!$BI$26:$BI$599,"Banc 156VRAIFAUXFAUXFAUXVRAI",BDD!$Z$26:$Z$599) -> 0 | W129: =SUMIF(BDD!$BI$26:$BI$599,"Banc 156FAUXVRAIVRAIFAUXFAUX",BDD!$Z$26:$Z$599) -> 0 | X129: =SUMIF(BDD!$BI$26:$BI$599,"Banc 156FAUXVRAIFAUXVRAIFAUX",BDD!$Z$26:$Z$599) -> 0 | Y129: =SUMIF(BDD!$BI$26:$BI$599,"Banc 156FAUXVRAIFAUXFAUXVRAI",BDD!$Z$26:$Z$599) -> 0 | Z129: =SUMIF(BDD!$BI$2:$BI$3,"Banc 156FAUXFAUXVRAIFAUXVRAIFAUXFAUX",BDD!$Z$2:$Z$3) -> 0 | AA129: =SUMIF(BDD!$BI$2:$BI$3,"Banc 156FAUXFAUXVRAIFAUXFAUXVRAIFAUX",BDD!$Z$2:$Z$3) -> 0 | AB129: =SUMIF(BDD!$BI$2:$BI$3,"Banc 156FAUXFAUXVRAIFAUXFAUXFAUXVRAI",BDD!$Z$2:$Z$3) -> 0 | AC129: =SUMIF(BDD!$BI$2:$BI$3,"Banc 156FAUXFAUXFAUXVRAIVRAIFAUXFAUX",BDD!$Z$2:$Z$3) -> 0 | AD129: =SUMIF(BDD!$BI$2:$BI$3,"Banc 156FAUXFAUXFAUXVRAIFAUXVRAIFAUX",BDD!$Z$2:$Z$3) -> 0 | AE129: =SUMIF(BDD!$BI$2:$BI$3,"Banc 156FAUXFAUXFAUXVRAIFAUXFAUXVRAI",BDD!$Z$2:$Z$3) -> 0 | AF129: =SUMIF(BDD!$BI$2:$BI$3,"Banc 156FAUXFAUXVRAIFAUXVRAIFAUXFAUX",BDD!$Z$2:$Z$3) -> 0 | AG129: =SUMIF(BDD!$BI$2:$BI$3,"Banc 156FAUXFAUXVRAIFAUXFAUXVRAIFAUX",BDD!$Z$2:$Z$3) -> 0 | AH129: =SUMIF(BDD!$BI$2:$BI$3,"Banc 156FAUXFAUXVRAIFAUXFAUXFAUXVRAI",BDD!$Z$2:$Z$3) -> 0 | AI129: =SUMIF(BDD!$BI$2:$BI$3,"Banc 156FAUXFAUXFAUXVRAIVRAIFAUXFAUX",BDD!$Z$2:$Z$3) -> 0 | AJ129: =SUMIF(BDD!$BI$2:$BI$3,"Banc 156FAUXFAUXFAUXVRAIFAUXVRAIFAUX",BDD!$Z$2:$Z$3) -> 0 | AK129: =SUMIF(BDD!$BI$2:$BI$3,"Banc 156FAUXFAUXFAUXVRAIFAUXFAUXVRAI",BDD!$Z$2:$Z$3) -> 0 | AL129: =SUMIF(BDD!$BI$2:$BI$3,"Banc 156FAUXFAUXVRAIFAUXVRAIFAUXFAUX",BDD!$Z$2:$Z$3) -> 0 | AM129: =SUMIF(BDD!$BI$2:$BI$3,"Banc 156FAUXFAUXVRAIFAUXFAUXVRAIFAUX",BDD!$Z$2:$Z$3) -> 0 | AN129: =SUMIF(BDD!$BI$2:$BI$3,"Banc 156FAUXFAUXVRAIFAUXFAUXFAUXVRAI",BDD!$Z$2:$Z$3) -> 0 | AO129: =SUMIF(BDD!$BI$2:$BI$3,"Banc 156FAUXFAUXFAUXVRAIVRAIFAUXFAUX",BDD!$Z$2:$Z$3) -> 0 | AP129: =SUMIF(BDD!$BI$2:$BI$3,"Banc 156FAUXFAUXFAUXVRAIFAUXVRAIFAUX",BDD!$Z$2:$Z$3) -> 0 | AQ129: =SUMIF(BDD!$BI$2:$BI$3,"Banc 156FAUXFAUXFAUXVRAIFAUXFAUXVRAI",BDD!$Z$2:$Z$3) -> 0 | AR129: =SUMIF(BDD!$BI$2:$BI$3,"Banc 156FAUXFAUXVRAIFAUXVRAIFAUXFAUX",BDD!$Z$2:$Z$3) -> 0 | AS129: =SUMIF(BDD!$BI$2:$BI$3,"Banc 156FAUXFAUXVRAIFAUXFAUXVRAIFAUX",BDD!$Z$2:$Z$3) -> 0 | AT129: =SUMIF(BDD!$BI$2:$BI$3,"Banc 156FAUXFAUXVRAIFAUXFAUXFAUXVRAI",BDD!$Z$2:$Z$3) -> 0 | AU129: =SUMIF(BDD!$BI$2:$BI$3,"Banc 156FAUXFAUXFAUXVRAIVRAIFAUXFAUX",BDD!$Z$2:$Z$3) -> 0 | AV129: =SUMIF(BDD!$BI$2:$BI$3,"Banc 156FAUXFAUXFAUXVRAIFAUXVRAIFAUX",BDD!$Z$2:$Z$3) -> 0 | AW129: =SUMIF(BDD!$BI$2:$BI$3,"Banc 156FAUXFAUXFAUXVRAIFAUXFAUXVRAI",BDD!$Z$2:$Z$3) -> 0 | AX129: =SUMIF(BDD!$BI$2:$BI$3,"Banc 156FAUXFAUXVRAIFAUXVRAIFAUXFAUX",BDD!$Z$2:$Z$3) -> 0 | AY129: =SUMIF(BDD!$BI$2:$BI$3,"Banc 156FAUXFAUXVRAIFAUXFAUXVRAIFAUX",BDD!$Z$2:$Z$3) -> 0 | AZ129: =SUMIF(BDD!$BI$2:$BI$3,"Banc 156FAUXFAUXVRAIFAUXFAUXFAUXVRAI",BDD!$Z$2:$Z$3) -> 0 | BA129: =SUMIF(BDD!$BI$2:$BI$3,"Banc 156FAUXFAUXFAUXVRAIVRAIFAUXFAUX",BDD!$Z$2:$Z$3) -> 0 | BB129: =SUMIF(BDD!$BI$2:$BI$3,"Banc 156FAUXFAUXFAUXVRAIFAUXVRAIFAUX",BDD!$Z$2:$Z$3) -> 0 | BC129: =SUMIF(BDD!$BI$2:$BI$3,"Banc 156FAUXFAUXFAUXVRAIFAUXFAUXVRAI",BDD!$Z$2:$Z$3) -> 0 | BD129: =SUMIF(BDD!$BI$2:$BI$3,"Banc 156FAUXFAUXVRAIFAUXVRAIFAUXFAUX",BDD!$Z$2:$Z$3) -> 0 | BE129: =SUMIF(BDD!$BI$2:$BI$3,"Banc 156FAUXFAUXVRAIFAUXFAUXVRAIFAUX",BDD!$Z$2:$Z$3) -> 0 | BF129: =SUMIF(BDD!$BI$2:$BI$3,"Banc 156FAUXFAUXVRAIFAUXFAUXFAUXVRAI",BDD!$Z$2:$Z$3) -> 0 | BG129: =SUMIF(BDD!$BI$2:$BI$3,"Banc 156FAUXFAUXFAUXVRAIVRAIFAUXFAUX",BDD!$Z$2:$Z$3) -> 0 | BH129: =SUMIF(BDD!$BI$2:$BI$3,"Banc 156FAUXFAUXFAUXVRAIFAUXVRAIFAUX",BDD!$Z$2:$Z$3) -> 0 | BI129: =SUMIF(BDD!$BI$2:$BI$3,"Banc 156FAUXFAUXFAUXVRAIFAUXFAUXVRAI",BDD!$Z$2:$Z$3) -> 0 | BJ129: =SUMIF(BDD!$BI$2:$BI$3,"Banc 156FAUXFAUXVRAIFAUXVRAIFAUXFAUX",BDD!$Z$2:$Z$3) -> 0 | BK129: =SUMIF(BDD!$BI$2:$BI$3,"Banc 156FAUXFAUXVRAIFAUXFAUXVRAIFAUX",BDD!$Z$2:$Z$3) -> 0 | BL129: =SUMIF(BDD!$BI$2:$BI$3,"Banc 156FAUXFAUXVRAIFAUXFAUXFAUXVRAI",BDD!$Z$2:$Z$3) -> 0 | BM129: =SUMIF(BDD!$BI$2:$BI$3,"Banc 156FAUXFAUXFAUXVRAIVRAIFAUXFAUX",BDD!$Z$2:$Z$3) -> 0 | BN129: =SUMIF(BDD!$BI$2:$BI$3,"Banc 156FAUXFAUXFAUXVRAIFAUXVRAIFAUX",BDD!$Z$2:$Z$3) -> 0 | BO129: =SUMIF(BDD!$BI$2:$BI$3,"Banc 156FAUXFAUXFAUXVRAIFAUXFAUXVRAI",BDD!$Z$2:$Z$3) -> 0 | BP129: =SUMIF(BDD!$BI$2:$BI$3,"Banc 156FAUXFAUXVRAIFAUXVRAIFAUXFAUX",BDD!$Z$2:$Z$3) -> 0 | BQ129: =SUMIF(BDD!$BI$2:$BI$3,"Banc 156FAUXFAUXVRAIFAUXFAUXVRAIFAUX",BDD!$Z$2:$Z$3) -> 0 | BR129: =SUMIF(BDD!$BI$2:$BI$3,"Banc 156FAUXFAUXVRAIFAUXFAUXFAUXVRAI",BDD!$Z$2:$Z$3) -> 0 | BS129: =SUMIF(BDD!$BI$2:$BI$3,"Banc 156FAUXFAUXFAUXVRAIVRAIFAUXFAUX",BDD!$Z$2:$Z$3) -> 0 | BT129: =SUMIF(BDD!$BI$2:$BI$3,"Banc 156FAUXFAUXFAUXVRAIFAUXVRAIFAUX",BDD!$Z$2:$Z$3) -> 0 | BU129: =SUMIF(BDD!$BI$2:$BI$3,"Banc 156FAUXFAUXFAUXVRAIFAUXFAUXVRAI",BDD!$Z$2:$Z$3) -> 0
A130: Chambre Froide | B130: =SUMIF(BDD!$BI$2:$BI$3,"Chambre FroideFAUXFAUXVRAIFAUXVRAIFAUXFAUX",BDD!$Z$2:$Z$3) -> 0 | C130: =SUMIF(BDD!$BI$2:$BI$3,"Chambre FroideFAUXFAUXVRAIFAUXFAUXVRAIFAUX",BDD!$Z$2:$Z$3) -> 0 | D130: =SUMIF(BDD!$BI$2:$BI$3,"Chambre FroideFAUXFAUXVRAIFAUXFAUXFAUXVRAI",BDD!$Z$2:$Z$3) -> 0 | E130: =SUMIF(BDD!$BI$2:$BI$3,"Chambre FroideFAUXFAUXFAUXVRAIVRAIFAUXFAUX",BDD!$Z$2:$Z$3) -> 0 | F130: =SUMIF(BDD!$BI$2:$BI$3,"Chambre FroideFAUXFAUXFAUXVRAIFAUXVRAIFAUX",BDD!$Z$2:$Z$3) -> 0 | G130: =SUMIF(BDD!$BI$2:$BI$3,"Chambre FroideFAUXFAUXFAUXVRAIFAUXFAUXVRAI",BDD!$Z$2:$Z$3) -> 0 | H130: =SUMIF(BDD!$BI$2:$BI$3,"Chambre FroideFAUXFAUXVRAIFAUXVRAIFAUXFAUX",BDD!$Z$2:$Z$3) -> 0 | I130: =SUMIF(BDD!$BI$2:$BI$3,"Chambre FroideFAUXFAUXVRAIFAUXFAUXVRAIFAUX",BDD!$Z$2:$Z$3) -> 0 | J130: =SUMIF(BDD!$BI$2:$BI$3,"Chambre FroideFAUXFAUXVRAIFAUXFAUXFAUXVRAI",BDD!$Z$2:$Z$3) -> 0 | K130: =SUMIF(BDD!$BI$2:$BI$3,"Chambre FroideFAUXFAUXFAUXVRAIVRAIFAUXFAUX",BDD!$Z$2:$Z$3) -> 0 | L130: =SUMIF(BDD!$BI$2:$BI$3,"Chambre FroideFAUXFAUXFAUXVRAIFAUXVRAIFAUX",BDD!$Z$2:$Z$3) -> 0 | M130: =SUMIF(BDD!$BI$2:$BI$3,"Chambre FroideFAUXFAUXFAUXVRAIFAUXFAUXVRAI",BDD!$Z$2:$Z$3) -> 0 | N130: =SUMIF(BDD!$BI$2:$BI$24,"Chambre FroideFAUXFAUXVRAIFAUXVRAIFAUXFAUX",BDD!$Z$2:$Z$24) -> 0 | O130: =SUMIF(BDD!$BI$2:$BI$24,"Chambre FroideFAUXFAUXVRAIFAUXFAUXVRAIFAUX",BDD!$Z$2:$Z$24) -> 0 | P130: =SUMIF(BDD!$BI$2:$BI$24,"Chambre FroideFAUXFAUXVRAIFAUXFAUXFAUXVRAI",BDD!$Z$2:$Z$24) -> 0 | Q130: =SUMIF(BDD!$BI$2:$BI$24,"Chambre FroideFAUXFAUXFAUXVRAIVRAIFAUXFAUX",BDD!$Z$2:$Z$24) -> 0 | R130: =SUMIF(BDD!$BI$2:$BI$24,"Chambre FroideFAUXFAUXFAUXVRAIFAUXVRAIFAUX",BDD!$Z$2:$Z$24) -> 0 | S130: =SUMIF(BDD!$BI$2:$BI$24,"Chambre FroideFAUXFAUXFAUXVRAIFAUXFAUXVRAI",BDD!$Z$2:$Z$24) -> 0 | T130: =SUMIF(BDD!$BI$26:$BI$599,"Chambre FroideVRAIFAUXVRAIFAUXFAUX",BDD!$Z$26:$Z$599) -> 0 | U130: =SUMIF(BDD!$BI$26:$BI$599,"Chambre FroideVRAIFAUXFAUXVRAIFAUX",BDD!$Z$26:$Z$599) -> 0 | V130: =SUMIF(BDD!$BI$26:$BI$599,"Chambre FroideVRAIFAUXFAUXFAUXVRAI",BDD!$Z$26:$Z$599) -> 0 | W130: =SUMIF(BDD!$BI$26:$BI$599,"Chambre FroideFAUXVRAIVRAIFAUXFAUX",BDD!$Z$26:$Z$599) -> 0 | X130: =SUMIF(BDD!$BI$26:$BI$599,"Chambre FroideFAUXVRAIFAUXVRAIFAUX",BDD!$Z$26:$Z$599) -> 0 | Y130: =SUMIF(BDD!$BI$26:$BI$599,"Chambre FroideFAUXVRAIFAUXFAUXVRAI",BDD!$Z$26:$Z$599) -> 0 | Z130: =SUMIF(BDD!$BI$2:$BI$3,"Chambre FroideFAUXFAUXVRAIFAUXVRAIFAUXFAUX",BDD!$Z$2:$Z$3) -> 0 | AA130: =SUMIF(BDD!$BI$2:$BI$3,"Chambre FroideFAUXFAUXVRAIFAUXFAUXVRAIFAUX",BDD!$Z$2:$Z$3) -> 0 | AB130: =SUMIF(BDD!$BI$2:$BI$3,"Chambre FroideFAUXFAUXVRAIFAUXFAUXFAUXVRAI",BDD!$Z$2:$Z$3) -> 0 | AC130: =SUMIF(BDD!$BI$2:$BI$3,"Chambre FroideFAUXFAUXFAUXVRAIVRAIFAUXFAUX",BDD!$Z$2:$Z$3) -> 0 | AD130: =SUMIF(BDD!$BI$2:$BI$3,"Chambre FroideFAUXFAUXFAUXVRAIFAUXVRAIFAUX",BDD!$Z$2:$Z$3) -> 0 | AE130: =SUMIF(BDD!$BI$2:$BI$3,"Chambre FroideFAUXFAUXFAUXVRAIFAUXFAUXVRAI",BDD!$Z$2:$Z$3) -> 0 | AF130: =SUMIF(BDD!$BI$2:$BI$3,"Chambre FroideFAUXFAUXVRAIFAUXVRAIFAUXFAUX",BDD!$Z$2:$Z$3) -> 0 | AG130: =SUMIF(BDD!$BI$2:$BI$3,"Chambre FroideFAUXFAUXVRAIFAUXFAUXVRAIFAUX",BDD!$Z$2:$Z$3) -> 0 | AH130: =SUMIF(BDD!$BI$2:$BI$3,"Chambre FroideFAUXFAUXVRAIFAUXFAUXFAUXVRAI",BDD!$Z$2:$Z$3) -> 0 | AI130: =SUMIF(BDD!$BI$2:$BI$3,"Chambre FroideFAUXFAUXFAUXVRAIVRAIFAUXFAUX",BDD!$Z$2:$Z$3) -> 0 | AJ130: =SUMIF(BDD!$BI$2:$BI$3,"Chambre FroideFAUXFAUXFAUXVRAIFAUXVRAIFAUX",BDD!$Z$2:$Z$3) -> 0 | AK130: =SUMIF(BDD!$BI$2:$BI$3,"Chambre FroideFAUXFAUXFAUXVRAIFAUXFAUXVRAI",BDD!$Z$2:$Z$3) -> 0 | AL130: =SUMIF(BDD!$BI$2:$BI$3,"Chambre FroideFAUXFAUXVRAIFAUXVRAIFAUXFAUX",BDD!$Z$2:$Z$3) -> 0 | AM130: =SUMIF(BDD!$BI$2:$BI$3,"Chambre FroideFAUXFAUXVRAIFAUXFAUXVRAIFAUX",BDD!$Z$2:$Z$3) -> 0 | AN130: =SUMIF(BDD!$BI$2:$BI$3,"Chambre FroideFAUXFAUXVRAIFAUXFAUXFAUXVRAI",BDD!$Z$2:$Z$3) -> 0 | AO130: =SUMIF(BDD!$BI$2:$BI$3,"Chambre FroideFAUXFAUXFAUXVRAIVRAIFAUXFAUX",BDD!$Z$2:$Z$3) -> 0 | AP130: =SUMIF(BDD!$BI$2:$BI$3,"Chambre FroideFAUXFAUXFAUXVRAIFAUXVRAIFAUX",BDD!$Z$2:$Z$3) -> 0 | AQ130: =SUMIF(BDD!$BI$2:$BI$3,"Chambre FroideFAUXFAUXFAUXVRAIFAUXFAUXVRAI",BDD!$Z$2:$Z$3) -> 0 | AR130: =SUMIF(BDD!$BI$2:$BI$3,"Chambre FroideFAUXFAUXVRAIFAUXVRAIFAUXFAUX",BDD!$Z$2:$Z$3) -> 0 | AS130: =SUMIF(BDD!$BI$2:$BI$3,"Chambre FroideFAUXFAUXVRAIFAUXFAUXVRAIFAUX",BDD!$Z$2:$Z$3) -> 0 | AT130: =SUMIF(BDD!$BI$2:$BI$3,"Chambre FroideFAUXFAUXVRAIFAUXFAUXFAUXVRAI",BDD!$Z$2:$Z$3) -> 0 | AU130: =SUMIF(BDD!$BI$2:$BI$3,"Chambre FroideFAUXFAUXFAUXVRAIVRAIFAUXFAUX",BDD!$Z$2:$Z$3) -> 0 | AV130: =SUMIF(BDD!$BI$2:$BI$3,"Chambre FroideFAUXFAUXFAUXVRAIFAUXVRAIFAUX",BDD!$Z$2:$Z$3) -> 0 | AW130: =SUMIF(BDD!$BI$2:$BI$3,"Chambre FroideFAUXFAUXFAUXVRAIFAUXFAUXVRAI",BDD!$Z$2:$Z$3) -> 0 | AX130: =SUMIF(BDD!$BI$2:$BI$3,"Chambre FroideFAUXFAUXVRAIFAUXVRAIFAUXFAUX",BDD!$Z$2:$Z$3) -> 0 | AY130: =SUMIF(BDD!$BI$2:$BI$3,"Chambre FroideFAUXFAUXVRAIFAUXFAUXVRAIFAUX",BDD!$Z$2:$Z$3) -> 0 | AZ130: =SUMIF(BDD!$BI$2:$BI$3,"Chambre FroideFAUXFAUXVRAIFAUXFAUXFAUXVRAI",BDD!$Z$2:$Z$3) -> 0 | BA130: =SUMIF(BDD!$BI$2:$BI$3,"Chambre FroideFAUXFAUXFAUXVRAIVRAIFAUXFAUX",BDD!$Z$2:$Z$3) -> 0 | BB130: =SUMIF(BDD!$BI$2:$BI$3,"Chambre FroideFAUXFAUXFAUXVRAIFAUXVRAIFAUX",BDD!$Z$2:$Z$3) -> 0 | BC130: =SUMIF(BDD!$BI$2:$BI$3,"Chambre FroideFAUXFAUXFAUXVRAIFAUXFAUXVRAI",BDD!$Z$2:$Z$3) -> 0 | BD130: =SUMIF(BDD!$BI$2:$BI$3,"Chambre FroideFAUXFAUXVRAIFAUXVRAIFAUXFAUX",BDD!$Z$2:$Z$3) -> 0 | BE130: =SUMIF(BDD!$BI$2:$BI$3,"Chambre FroideFAUXFAUXVRAIFAUXFAUXVRAIFAUX",BDD!$Z$2:$Z$3) -> 0 | BF130: =SUMIF(BDD!$BI$2:$BI$3,"Chambre FroideFAUXFAUXVRAIFAUXFAUXFAUXVRAI",BDD!$Z$2:$Z$3) -> 0 | BG130: =SUMIF(BDD!$BI$2:$BI$3,"Chambre FroideFAUXFAUXFAUXVRAIVRAIFAUXFAUX",BDD!$Z$2:$Z$3) -> 0 | BH130: =SUMIF(BDD!$BI$2:$BI$3,"Chambre FroideFAUXFAUXFAUXVRAIFAUXVRAIFAUX",BDD!$Z$2:$Z$3) -> 0 | BI130: =SUMIF(BDD!$BI$2:$BI$3,"Chambre FroideFAUXFAUXFAUXVRAIFAUXFAUXVRAI",BDD!$Z$2:$Z$3) -> 0 | BJ130: =SUMIF(BDD!$BI$2:$BI$3,"Chambre FroideFAUXFAUXVRAIFAUXVRAIFAUXFAUX",BDD!$Z$2:$Z$3) -> 0 | BK130: =SUMIF(BDD!$BI$2:$BI$3,"Chambre FroideFAUXFAUXVRAIFAUXFAUXVRAIFAUX",BDD!$Z$2:$Z$3) -> 0 | BL130: =SUMIF(BDD!$BI$2:$BI$3,"Chambre FroideFAUXFAUXVRAIFAUXFAUXFAUXVRAI",BDD!$Z$2:$Z$3) -> 0 | BM130: =SUMIF(BDD!$BI$2:$BI$3,"Chambre FroideFAUXFAUXFAUXVRAIVRAIFAUXFAUX",BDD!$Z$2:$Z$3) -> 0 | BN130: =SUMIF(BDD!$BI$2:$BI$3,"Chambre FroideFAUXFAUXFAUXVRAIFAUXVRAIFAUX",BDD!$Z$2:$Z$3) -> 0 | BO130: =SUMIF(BDD!$BI$2:$BI$3,"Chambre FroideFAUXFAUXFAUXVRAIFAUXFAUXVRAI",BDD!$Z$2:$Z$3) -> 0 | BP130: =SUMIF(BDD!$BI$2:$BI$3,"Chambre FroideFAUXFAUXVRAIFAUXVRAIFAUXFAUX",BDD!$Z$2:$Z$3) -> 0 | BQ130: =SUMIF(BDD!$BI$2:$BI$3,"Chambre FroideFAUXFAUXVRAIFAUXFAUXVRAIFAUX",BDD!$Z$2:$Z$3) -> 0 | BR130: =SUMIF(BDD!$BI$2:$BI$3,"Chambre FroideFAUXFAUXVRAIFAUXFAUXFAUXVRAI",BDD!$Z$2:$Z$3) -> 0 | BS130: =SUMIF(BDD!$BI$2:$BI$3,"Chambre FroideFAUXFAUXFAUXVRAIVRAIFAUXFAUX",BDD!$Z$2:$Z$3) -> 0 | BT130: =SUMIF(BDD!$BI$2:$BI$3,"Chambre FroideFAUXFAUXFAUXVRAIFAUXVRAIFAUX",BDD!$Z$2:$Z$3) -> 0 | BU130: =SUMIF(BDD!$BI$2:$BI$3,"Chambre FroideFAUXFAUXFAUXVRAIFAUXFAUXVRAI",BDD!$Z$2:$Z$3) -> 0
A131: Chambre Sourde | B131: =SUMIF(BDD!$BI$2:$BI$3,"Chambre SourdeFAUXFAUXVRAIFAUXVRAIFAUXFAUX",BDD!$Z$2:$Z$3) -> 0 | C131: =SUMIF(BDD!$BI$2:$BI$3,"Chambre SourdeFAUXFAUXVRAIFAUXFAUXVRAIFAUX",BDD!$Z$2:$Z$3) -> 0 | D131: =SUMIF(BDD!$BI$2:$BI$3,"Chambre SourdeFAUXFAUXVRAIFAUXFAUXFAUXVRAI",BDD!$Z$2:$Z$3) -> 0 | E131: =SUMIF(BDD!$BI$2:$BI$3,"Chambre SourdeFAUXFAUXFAUXVRAIVRAIFAUXFAUX",BDD!$Z$2:$Z$3) -> 0 | F131: =SUMIF(BDD!$BI$2:$BI$3,"Chambre SourdeFAUXFAUXFAUXVRAIFAUXVRAIFAUX",BDD!$Z$2:$Z$3) -> 0 | G131: =SUMIF(BDD!$BI$2:$BI$3,"Chambre SourdeFAUXFAUXFAUXVRAIFAUXFAUXVRAI",BDD!$Z$2:$Z$3) -> 0 | H131: =SUMIF(BDD!$BI$2:$BI$3,"Chambre SourdeFAUXFAUXVRAIFAUXVRAIFAUXFAUX",BDD!$Z$2:$Z$3) -> 0 | I131: =SUMIF(BDD!$BI$2:$BI$3,"Chambre SourdeFAUXFAUXVRAIFAUXFAUXVRAIFAUX",BDD!$Z$2:$Z$3) -> 0 | J131: =SUMIF(BDD!$BI$2:$BI$3,"Chambre SourdeFAUXFAUXVRAIFAUXFAUXFAUXVRAI",BDD!$Z$2:$Z$3) -> 0 | K131: =SUMIF(BDD!$BI$2:$BI$3,"Chambre SourdeFAUXFAUXFAUXVRAIVRAIFAUXFAUX",BDD!$Z$2:$Z$3) -> 0 | L131: =SUMIF(BDD!$BI$2:$BI$3,"Chambre SourdeFAUXFAUXFAUXVRAIFAUXVRAIFAUX",BDD!$Z$2:$Z$3) -> 0 | M131: =SUMIF(BDD!$BI$2:$BI$3,"Chambre SourdeFAUXFAUXFAUXVRAIFAUXFAUXVRAI",BDD!$Z$2:$Z$3) -> 0 | N131: =SUMIF(BDD!$BI$2:$BI$24,"Chambre SourdeFAUXFAUXVRAIFAUXVRAIFAUXFAUX",BDD!$Z$2:$Z$24) -> 0 | O131: =SUMIF(BDD!$BI$2:$BI$24,"Chambre SourdeFAUXFAUXVRAIFAUXFAUXVRAIFAUX",BDD!$Z$2:$Z$24) -> 0 | P131: =SUMIF(BDD!$BI$2:$BI$24,"Chambre SourdeFAUXFAUXVRAIFAUXFAUXFAUXVRAI",BDD!$Z$2:$Z$24) -> 0 | Q131: =SUMIF(BDD!$BI$2:$BI$24,"Chambre SourdeFAUXFAUXFAUXVRAIVRAIFAUXFAUX",BDD!$Z$2:$Z$24) -> 0 | R131: =SUMIF(BDD!$BI$2:$BI$24,"Chambre SourdeFAUXFAUXFAUXVRAIFAUXVRAIFAUX",BDD!$Z$2:$Z$24) -> 0 | S131: =SUMIF(BDD!$BI$2:$BI$24,"Chambre SourdeFAUXFAUXFAUXVRAIFAUXFAUXVRAI",BDD!$Z$2:$Z$24) -> 0 | T131: =SUMIF(BDD!$BI$26:$BI$599,"Chambre SourdeVRAIFAUXVRAIFAUXFAUX",BDD!$Z$26:$Z$599) -> 0 | U131: =SUMIF(BDD!$BI$26:$BI$599,"Chambre SourdeVRAIFAUXFAUXVRAIFAUX",BDD!$Z$26:$Z$599) -> 1.5 | V131: =SUMIF(BDD!$BI$26:$BI$599,"Chambre SourdeVRAIFAUXFAUXFAUXVRAI",BDD!$Z$26:$Z$599) -> 0 | W131: =SUMIF(BDD!$BI$26:$BI$599,"Chambre SourdeFAUXVRAIVRAIFAUXFAUX",BDD!$Z$26:$Z$599) -> 0 | X131: =SUMIF(BDD!$BI$26:$BI$599,"Chambre SourdeFAUXVRAIFAUXVRAIFAUX",BDD!$Z$26:$Z$599) -> 0 | Y131: =SUMIF(BDD!$BI$26:$BI$599,"Chambre SourdeFAUXVRAIFAUXFAUXVRAI",BDD!$Z$26:$Z$599) -> 0 | Z131: =SUMIF(BDD!$BI$2:$BI$3,"Chambre SourdeFAUXFAUXVRAIFAUXVRAIFAUXFAUX",BDD!$Z$2:$Z$3) -> 0 | AA131: =SUMIF(BDD!$BI$2:$BI$3,"Chambre SourdeFAUXFAUXVRAIFAUXFAUXVRAIFAUX",BDD!$Z$2:$Z$3) -> 0 | AB131: =SUMIF(BDD!$BI$2:$BI$3,"Chambre SourdeFAUXFAUXVRAIFAUXFAUXFAUXVRAI",BDD!$Z$2:$Z$3) -> 0 | AC131: =SUMIF(BDD!$BI$2:$BI$3,"Chambre SourdeFAUXFAUXFAUXVRAIVRAIFAUXFAUX",BDD!$Z$2:$Z$3) -> 0 | AD131: =SUMIF(BDD!$BI$2:$BI$3,"Chambre SourdeFAUXFAUXFAUXVRAIFAUXVRAIFAUX",BDD!$Z$2:$Z$3) -> 0 | AE131: =SUMIF(BDD!$BI$2:$BI$3,"Chambre SourdeFAUXFAUXFAUXVRAIFAUXFAUXVRAI",BDD!$Z$2:$Z$3) -> 0 | AF131: =SUMIF(BDD!$BI$2:$BI$3,"Chambre SourdeFAUXFAUXVRAIFAUXVRAIFAUXFAUX",BDD!$Z$2:$Z$3) -> 0 | AG131: =SUMIF(BDD!$BI$2:$BI$3,"Chambre SourdeFAUXFAUXVRAIFAUXFAUXVRAIFAUX",BDD!$Z$2:$Z$3) -> 0 | AH131: =SUMIF(BDD!$BI$2:$BI$3,"Chambre SourdeFAUXFAUXVRAIFAUXFAUXFAUXVRAI",BDD!$Z$2:$Z$3) -> 0 | AI131: =SUMIF(BDD!$BI$2:$BI$3,"Chambre SourdeFAUXFAUXFAUXVRAIVRAIFAUXFAUX",BDD!$Z$2:$Z$3) -> 0 | AJ131: =SUMIF(BDD!$BI$2:$BI$3,"Chambre SourdeFAUXFAUXFAUXVRAIFAUXVRAIFAUX",BDD!$Z$2:$Z$3) -> 0 | AK131: =SUMIF(BDD!$BI$2:$BI$3,"Chambre SourdeFAUXFAUXFAUXVRAIFAUXFAUXVRAI",BDD!$Z$2:$Z$3) -> 0 | AL131: =SUMIF(BDD!$BI$2:$BI$3,"Chambre SourdeFAUXFAUXVRAIFAUXVRAIFAUXFAUX",BDD!$Z$2:$Z$3) -> 0 | AM131: =SUMIF(BDD!$BI$2:$BI$3,"Chambre SourdeFAUXFAUXVRAIFAUXFAUXVRAIFAUX",BDD!$Z$2:$Z$3) -> 0 | AN131: =SUMIF(BDD!$BI$2:$BI$3,"Chambre SourdeFAUXFAUXVRAIFAUXFAUXFAUXVRAI",BDD!$Z$2:$Z$3) -> 0 | AO131: =SUMIF(BDD!$BI$2:$BI$3,"Chambre SourdeFAUXFAUXFAUXVRAIVRAIFAUXFAUX",BDD!$Z$2:$Z$3) -> 0 | AP131: =SUMIF(BDD!$BI$2:$BI$3,"Chambre SourdeFAUXFAUXFAUXVRAIFAUXVRAIFAUX",BDD!$Z$2:$Z$3) -> 0 | AQ131: =SUMIF(BDD!$BI$2:$BI$3,"Chambre SourdeFAUXFAUXFAUXVRAIFAUXFAUXVRAI",BDD!$Z$2:$Z$3) -> 0 | AR131: =SUMIF(BDD!$BI$2:$BI$3,"Chambre SourdeFAUXFAUXVRAIFAUXVRAIFAUXFAUX",BDD!$Z$2:$Z$3) -> 0 | AS131: =SUMIF(BDD!$BI$2:$BI$3,"Chambre SourdeFAUXFAUXVRAIFAUXFAUXVRAIFAUX",BDD!$Z$2:$Z$3) -> 0 | AT131: =SUMIF(BDD!$BI$2:$BI$3,"Chambre SourdeFAUXFAUXVRAIFAUXFAUXFAUXVRAI",BDD!$Z$2:$Z$3) -> 0 | AU131: =SUMIF(BDD!$BI$2:$BI$3,"Chambre SourdeFAUXFAUXFAUXVRAIVRAIFAUXFAUX",BDD!$Z$2:$Z$3) -> 0 | AV131: =SUMIF(BDD!$BI$2:$BI$3,"Chambre SourdeFAUXFAUXFAUXVRAIFAUXVRAIFAUX",BDD!$Z$2:$Z$3) -> 0 | AW131: =SUMIF(BDD!$BI$2:$BI$3,"Chambre SourdeFAUXFAUXFAUXVRAIFAUXFAUXVRAI",BDD!$Z$2:$Z$3) -> 0 | AX131: =SUMIF(BDD!$BI$2:$BI$3,"Chambre SourdeFAUXFAUXVRAIFAUXVRAIFAUXFAUX",BDD!$Z$2:$Z$3) -> 0 | AY131: =SUMIF(BDD!$BI$2:$BI$3,"Chambre SourdeFAUXFAUXVRAIFAUXFAUXVRAIFAUX",BDD!$Z$2:$Z$3) -> 0 | AZ131: =SUMIF(BDD!$BI$2:$BI$3,"Chambre SourdeFAUXFAUXVRAIFAUXFAUXFAUXVRAI",BDD!$Z$2:$Z$3) -> 0 | BA131: =SUMIF(BDD!$BI$2:$BI$3,"Chambre SourdeFAUXFAUXFAUXVRAIVRAIFAUXFAUX",BDD!$Z$2:$Z$3) -> 0 | BB131: =SUMIF(BDD!$BI$2:$BI$3,"Chambre SourdeFAUXFAUXFAUXVRAIFAUXVRAIFAUX",BDD!$Z$2:$Z$3) -> 0 | BC131: =SUMIF(BDD!$BI$2:$BI$3,"Chambre SourdeFAUXFAUXFAUXVRAIFAUXFAUXVRAI",BDD!$Z$2:$Z$3) -> 0 | BD131: =SUMIF(BDD!$BI$2:$BI$3,"Chambre SourdeFAUXFAUXVRAIFAUXVRAIFAUXFAUX",BDD!$Z$2:$Z$3) -> 0 | BE131: =SUMIF(BDD!$BI$2:$BI$3,"Chambre SourdeFAUXFAUXVRAIFAUXFAUXVRAIFAUX",BDD!$Z$2:$Z$3) -> 0 | BF131: =SUMIF(BDD!$BI$2:$BI$3,"Chambre SourdeFAUXFAUXVRAIFAUXFAUXFAUXVRAI",BDD!$Z$2:$Z$3) -> 0 | BG131: =SUMIF(BDD!$BI$2:$BI$3,"Chambre SourdeFAUXFAUXFAUXVRAIVRAIFAUXFAUX",BDD!$Z$2:$Z$3) -> 0 | BH131: =SUMIF(BDD!$BI$2:$BI$3,"Chambre SourdeFAUXFAUXFAUXVRAIFAUXVRAIFAUX",BDD!$Z$2:$Z$3) -> 0 | BI131: =SUMIF(BDD!$BI$2:$BI$3,"Chambre SourdeFAUXFAUXFAUXVRAIFAUXFAUXVRAI",BDD!$Z$2:$Z$3) -> 0 | BJ131: =SUMIF(BDD!$BI$2:$BI$3,"Chambre SourdeFAUXFAUXVRAIFAUXVRAIFAUXFAUX",BDD!$Z$2:$Z$3) -> 0 | BK131: =SUMIF(BDD!$BI$2:$BI$3,"Chambre SourdeFAUXFAUXVRAIFAUXFAUXVRAIFAUX",BDD!$Z$2:$Z$3) -> 0 | BL131: =SUMIF(BDD!$BI$2:$BI$3,"Chambre SourdeFAUXFAUXVRAIFAUXFAUXFAUXVRAI",BDD!$Z$2:$Z$3) -> 0 | BM131: =SUMIF(BDD!$BI$2:$BI$3,"Chambre SourdeFAUXFAUXFAUXVRAIVRAIFAUXFAUX",BDD!$Z$2:$Z$3) -> 0 | BN131: =SUMIF(BDD!$BI$2:$BI$3,"Chambre SourdeFAUXFAUXFAUXVRAIFAUXVRAIFAUX",BDD!$Z$2:$Z$3) -> 0 | BO131: =SUMIF(BDD!$BI$2:$BI$3,"Chambre SourdeFAUXFAUXFAUXVRAIFAUXFAUXVRAI",BDD!$Z$2:$Z$3) -> 0 | BP131: =SUMIF(BDD!$BI$2:$BI$3,"Chambre SourdeFAUXFAUXVRAIFAUXVRAIFAUXFAUX",BDD!$Z$2:$Z$3) -> 0 | BQ131: =SUMIF(BDD!$BI$2:$BI$3,"Chambre SourdeFAUXFAUXVRAIFAUXFAUXVRAIFAUX",BDD!$Z$2:$Z$3) -> 0 | BR131: =SUMIF(BDD!$BI$2:$BI$3,"Chambre SourdeFAUXFAUXVRAIFAUXFAUXFAUXVRAI",BDD!$Z$2:$Z$3) -> 0 | BS131: =SUMIF(BDD!$BI$2:$BI$3,"Chambre SourdeFAUXFAUXFAUXVRAIVRAIFAUXFAUX",BDD!$Z$2:$Z$3) -> 0 | BT131: =SUMIF(BDD!$BI$2:$BI$3,"Chambre SourdeFAUXFAUXFAUXVRAIFAUXVRAIFAUX",BDD!$Z$2:$Z$3) -> 0 | BU131: =SUMIF(BDD!$BI$2:$BI$3,"Chambre SourdeFAUXFAUXFAUXVRAIFAUXFAUXVRAI",BDD!$Z$2:$Z$3) -> 0

Sheet Indicateur Zone8
B2: Suivi des arrêts par banc
A3: Banc zone 8 | B3: Janvier | C3: Février | D3: Mars | E3: Avril | F3: Mai | G3: Juin | H3: Juillet | I3: Août | J3: Septembre | K3: Octobre | L3: Novembre | M3: Décembre
A4: Banc P5 | B4: =SUMIF(BDD!$H$2:$H$3,'Indicateur Zone8'!$A4,BDD!$Z$2:$Z$3) -> 0 | C4: =SUMIF(BDD!$H$2:$H$3,'Indicateur Zone8'!$A4,BDD!$Z$2:$Z$3) -> 0 | D4: =SUMIF(BDD!$H$2:$H$682,'Indicateur Zone8'!$A$4,BDD!$Z$2:$Z$682) -> 0 | E4: =SUMIF(BDD!$H$2:$H$3,'Indicateur Zone8'!$A4,BDD!$Z$2:$Z$3) -> 0 | F4: =SUMIF(BDD!$H$2:$H$3,'Indicateur Zone8'!$A4,BDD!$Z$2:$Z$3) -> 0 | G4: =SUMIF(BDD!$H$2:$H$3,'Indicateur Zone8'!$A4,BDD!$Z$2:$Z$3) -> 0 | H4: =SUMIF(BDD!$H$2:$H$3,'Indicateur Zone8'!$A4,BDD!$Z$2:$Z$3) -> 0 | I4: =SUMIF(BDD!$H$2:$H$3,'Indicateur Zone8'!$A4,BDD!$Z$2:$Z$3) -> 0 | J4: =SUMIF(BDD!$H$2:$H$3,'Indicateur Zone8'!$A4,BDD!$Z$2:$Z$3) -> 0 | K4: =SUMIF(BDD!$H$2:$H$3,'Indicateur Zone8'!$A4,BDD!$Z$2:$Z$3) -> 0 | L4: =SUMIF(BDD!$H$2:$H$3,'Indicateur Zone8'!$A4,BDD!$Z$2:$Z$3) -> 0 | M4: =SUMIF(BDD!$H$2:$H$3,'Indicateur Zone8'!$A4,BDD!$Z$2:$Z$3) -> 0
A5: Banc P7 | B5: =SUMIF(BDD!$H$2:$H$3,'Indicateur Zone8'!$A5,BDD!$Z$2:$Z$3) -> 0 | C5: =SUMIF(BDD!$H$2:$H$3,'Indicateur Zone8'!$A5,BDD!$Z$2:$Z$3) -> 0 | D5: =SUMIF(BDD!$H$2:$H$682,'Indicateur Zone8'!$A$5,BDD!$Z$2:$Z$682) -> 0.15 | E5: =SUMIF(BDD!$H$2:$H$3,'Indicateur Zone8'!$A5,BDD!$Z$2:$Z$3) -> 0 | F5: =SUMIF(BDD!$H$2:$H$3,'Indicateur Zone8'!$A5,BDD!$Z$2:$Z$3) -> 0 | G5: =SUMIF(BDD!$H$2:$H$3,'Indicateur Zone8'!$A5,BDD!$Z$2:$Z$3) -> 0 | H5: =SUMIF(BDD!$H$2:$H$3,'Indicateur Zone8'!$A5,BDD!$Z$2:$Z$3) -> 0 | I5: =SUMIF(BDD!$H$2:$H$3,'Indicateur Zone8'!$A5,BDD!$Z$2:$Z$3) -> 0 | J5: =SUMIF(BDD!$H$2:$H$3,'Indicateur Zone8'!$A5,BDD!$Z$2:$Z$3) -> 0 | K5: =SUMIF(BDD!$H$2:$H$3,'Indicateur Zone8'!$A5,BDD!$Z$2:$Z$3) -> 0 | L5: =SUMIF(BDD!$H$2:$H$3,'Indicateur Zone8'!$A5,BDD!$Z$2:$Z$3) -> 0 | M5: =SUMIF(BDD!$H$2:$H$3,'Indicateur Zone8'!$A5,BDD!$Z$2:$Z$3) -> 0
A6: Banc 101 | B6: =SUMIF(BDD!$H$2:$H$3,'Indicateur Zone8'!$A6,BDD!$Z$2:$Z$3) -> 0 | C6: =SUMIF(BDD!$H$2:$H$3,'Indicateur Zone8'!$A6,BDD!$Z$2:$Z$3) -> 0 | D6: =SUMIF(BDD!$H$2:$H$682,'Indicateur Zone8'!$A$6,BDD!$Z$2:$Z$682) -> 0.1 | E6: =SUMIF(BDD!$H$2:$H$3,'Indicateur Zone8'!$A6,BDD!$Z$2:$Z$3) -> 0 | F6: =SUMIF(BDD!$H$2:$H$3,'Indicateur Zone8'!$A6,BDD!$Z$2:$Z$3) -> 0 | G6: =SUMIF(BDD!$H$2:$H$3,'Indicateur Zone8'!$A6,BDD!$Z$2:$Z$3) -> 0 | H6: =SUMIF(BDD!$H$2:$H$3,'Indicateur Zone8'!$A6,BDD!$Z$2:$Z$3) -> 0 | I6: =SUMIF(BDD!$H$2:$H$3,'Indicateur Zone8'!$A6,BDD!$Z$2:$Z$3) -> 0 | J6: =SUMIF(BDD!$H$2:$H$3,'Indicateur Zone8'!$A6,BDD!$Z$2:$Z$3) -> 0 | K6: =SUMIF(BDD!$H$2:$H$3,'Indicateur Zone8'!$A6,BDD!$Z$2:$Z$3) -> 0 | L6: =SUMIF(BDD!$H$2:$H$3,'Indicateur Zone8'!$A6,BDD!$Z$2:$Z$3) -> 0 | M6: =SUMIF(BDD!$H$2:$H$3,'Indicateur Zone8'!$A6,BDD!$Z$2:$Z$3) -> 0
A7: Banc 104 | B7: =SUMIF(BDD!$H$2:$H$3,'Indicateur Zone8'!$A7,BDD!$Z$2:$Z$3) -> 0 | C7: =SUMIF(BDD!$H$2:$H$3,'Indicateur Zone8'!$A7,BDD!$Z$2:$Z$3) -> 0 | D7: =SUMIF(BDD!$H$2:$H$682,'Indicateur Zone8'!$A$7,BDD!$Z$2:$Z$682) -> 4.35 | E7: =SUMIF(BDD!$H$2:$H$3,'Indicateur Zone8'!$A7,BDD!$Z$2:$Z$3) -> 0 | F7: =SUMIF(BDD!$H$2:$H$3,'Indicateur Zone8'!$A7,BDD!$Z$2:$Z$3) -> 0 | G7: =SUMIF(BDD!$H$2:$H$3,'Indicateur Zone8'!$A7,BDD!$Z$2:$Z$3) -> 0 | H7: =SUMIF(BDD!$H$2:$H$3,'Indicateur Zone8'!$A7,BDD!$Z$2:$Z$3) -> 0 | I7: =SUMIF(BDD!$H$2:$H$3,'Indicateur Zone8'!$A7,BDD!$Z$2:$Z$3) -> 0 | J7: =SUMIF(BDD!$H$2:$H$3,'Indicateur Zone8'!$A7,BDD!$Z$2:$Z$3) -> 0 | K7: =SUMIF(BDD!$H$2:$H$3,'Indicateur Zone8'!$A7,BDD!$Z$2:$Z$3) -> 0 | L7: =SUMIF(BDD!$H$2:$H$3,'Indicateur Zone8'!$A7,BDD!$Z$2:$Z$3) -> 0 | M7: =SUMIF(BDD!$H$2:$H$3,'Indicateur Zone8'!$A7,BDD!$Z$2:$Z$3) -> 0
A8: Banc 121 | B8: =SUMIF(BDD!$H$2:$H$3,'Indicateur Zone8'!$A8,BDD!$Z$2:$Z$3) -> 0 | C8: =SUMIF(BDD!$H$2:$H$3,'Indicateur Zone8'!$A8,BDD!$Z$2:$Z$3) -> 0 | D8: =SUMIF(BDD!$H$2:$H$682,'Indicateur Zone8'!$A$8,BDD!$Z$2:$Z$682) -> 0 | E8: =SUMIF(BDD!$H$2:$H$3,'Indicateur Zone8'!$A8,BDD!$Z$2:$Z$3) -> 0 | F8: =SUMIF(BDD!$H$2:$H$3,'Indicateur Zone8'!$A8,BDD!$Z$2:$Z$3) -> 0 | G8: =SUMIF(BDD!$H$2:$H$3,'Indicateur Zone8'!$A8,BDD!$Z$2:$Z$3) -> 0 | H8: =SUMIF(BDD!$H$2:$H$3,'Indicateur Zone8'!$A8,BDD!$Z$2:$Z$3) -> 0 | I8: =SUMIF(BDD!$H$2:$H$3,'Indicateur Zone8'!$A8,BDD!$Z$2:$Z$3) -> 0 | J8: =SUMIF(BDD!$H$2:$H$3,'Indicateur Zone8'!$A8,BDD!$Z$2:$Z$3) -> 0 | K8: =SUMIF(BDD!$H$2:$H$3,'Indicateur Zone8'!$A8,BDD!$Z$2:$Z$3) -> 0 | L8: =SUMIF(BDD!$H$2:$H$3,'Indicateur Zone8'!$A8,BDD!$Z$2:$Z$3) -> 0 | M8: =SUMIF(BDD!$H$2:$H$3,'Indicateur Zone8'!$A8,BDD!$Z$2:$Z$3) -> 0
A9: Pompe à eau | B9: =SUMIF(BDD!$H$2:$H$3,'Indicateur Zone8'!$A9,BDD!$Z$2:$Z$3) -> 0 | C9: =SUMIF(BDD!$H$2:$H$3,'Indicateur Zone8'!$A9,BDD!$Z$2:$Z$3) -> 0 | D9: =SUMIF(BDD!$H$2:$H$682,'Indicateur Zone8'!$A$9,BDD!$Z$2:$Z$682) -> 6.3 | E9: =SUMIF(BDD!$H$2:$H$3,'Indicateur Zone8'!$A9,BDD!$Z$2:$Z$3) -> 0 | F9: =SUMIF(BDD!$H$2:$H$3,'Indicateur Zone8'!$A9,BDD!$Z$2:$Z$3) -> 0 | G9: =SUMIF(BDD!$H$2:$H$3,'Indicateur Zone8'!$A9,BDD!$Z$2:$Z$3) -> 0 | H9: =SUMIF(BDD!$H$2:$H$3,'Indicateur Zone8'!$A9,BDD!$Z$2:$Z$3) -> 0 | I9: =SUMIF(BDD!$H$2:$H$3,'Indicateur Zone8'!$A9,BDD!$Z$2:$Z$3) -> 0 | J9: =SUMIF(BDD!$H$2:$H$3,'Indicateur Zone8'!$A9,BDD!$Z$2:$Z$3) -> 0 | K9: =SUMIF(BDD!$H$2:$H$3,'Indicateur Zone8'!$A9,BDD!$Z$2:$Z$3) -> 0 | L9: =SUMIF(BDD!$H$2:$H$3,'Indicateur Zone8'!$A9,BDD!$Z$2:$Z$3) -> 0 | M9: =SUMIF(BDD!$H$2:$H$3,'Indicateur Zone8'!$A9,BDD!$Z$2:$Z$3) -> 0
A10: Banc PowerTrain | B10: =SUMIF(BDD!$H$2:$H$3,'Indicateur Zone8'!$A10,BDD!$Z$2:$Z$3) -> 0 | C10: =SUMIF(BDD!$H$2:$H$3,'Indicateur Zone8'!$A10,BDD!$Z$2:$Z$3) -> 0 | D10: =SUMIF(BDD!$H$2:$H$682,'Indicateur Zone8'!$A$10,BDD!$Z$2:$Z$682) -> 1.6 | E10: =SUMIF(BDD!$H$2:$H$3,'Indicateur Zone8'!$A10,BDD!$Z$2:$Z$3) -> 0 | F10: =SUMIF(BDD!$H$2:$H$3,'Indicateur Zone8'!$A10,BDD!$Z$2:$Z$3) -> 0 | G10: =SUMIF(BDD!$H$2:$H$3,'Indicateur Zone8'!$A10,BDD!$Z$2:$Z$3) -> 0 | H10: =SUMIF(BDD!$H$2:$H$3,'Indicateur Zone8'!$A10,BDD!$Z$2:$Z$3) -> 0 | I10: =SUMIF(BDD!$H$2:$H$3,'Indicateur Zone8'!$A10,BDD!$Z$2:$Z$3) -> 0 | J10: =SUMIF(BDD!$H$2:$H$3,'Indicateur Zone8'!$A10,BDD!$Z$2:$Z$3) -> 0 | K10: =SUMIF(BDD!$H$2:$H$3,'Indicateur Zone8'!$A10,BDD!$Z$2:$Z$3) -> 0 | L10: =SUMIF(BDD!$H$2:$H$3,'Indicateur Zone8'!$A10,BDD!$Z$2:$Z$3) -> 0 | M10: =SUMIF(BDD!$H$2:$H$3,'Indicateur Zone8'!$A10,BDD!$Z$2:$Z$3) -> 0
B31: Suivi du correctif et du préventif
A32: Type de maintenance | B32: Janvier | C32: Février | D32: Mars | E32: Avril | F32: Mai | G32: Juin | H32: Juillet | I32: Août | J32: Septembre | K32: Octobre | L32: Novembre | M32: Décembre
A33: Préventive | B33: =SUM(C58:C64) -> 0 | C33: =SUM(E58:E64) -> 0 | D33: =SUM(G58:G64) -> 2 | E33: =SUM(I58:I64) -> 0.3 | F33: =SUM(K58:K64) -> 0 | G33: =SUM(M58:M64) -> 0 | H33: =SUM(O58:O64) -> 0 | I33: =SUM(Q58:Q64) -> 0 | J33: =SUM(S58:S64) -> 0 | K33: =SUM(U58:U64) -> 0 | L33: =SUM(W58:W64) -> 0 | M33: =SUM(Y58:Y64) -> 0
A34: Corrective | B34: =SUM(B58:B64) -> 0 | C34: =SUM(D58:D64) -> 0 | D34: =SUM(F58:F64) -> 2.2 | E34: =SUM(H58:H64) -> 6.4 | F34: =SUM(J58:J64) -> 0 | G34: =SUM(L58:L64) -> 0 | H34: =SUM(N58:N64) -> 0 | I34: =SUM(N58:N64) -> 0 | J34: =SUM(R58:R64) -> 0 | K34: =SUM(T58:T64) -> 0 | L34: =SUM(V58:V64) -> 0 | M34: =SUM(X58:X64) -> 0
B55: Suivi du correctif et du préventif par banc
B56: Janvier | D56: Février | F56: Mars | H56: Avril | J56: Mai | L56: Juin | N56: Juillet | P56: Août | R56: Septembre | T56: Octobre | V56: Novembre | X56: Décembre
A57: Banc zone 8 | B57: Corrective | C57: Préventive | D57: Corrective | E57: Préventive | F57: Corrective | G57: Préventive | H57: Corrective | I57: Préventive | J57: Corrective | K57: Préventive | L57: Corrective | M57: Préventive | N57: Corrective | O57: Préventive | P57: Corrective | Q57: Préventive | R57: Corrective | S57: Préventive | T57: Corrective | U57: Préventive | V57: Corrective | W57: Préventive | X57: Corrective | Y57: Préventive
A58: Banc P5 | B58: =SUMIF(BDD!$BG$2:$BG$3,"Banc P5VRAIFAUX",BDD!$Z$2:$Z$3) -> 0 | C58: =SUMIF(BDD!$BG$2:$BG$3,"Banc P5FAUXVRAI",BDD!$Z$2:$Z$3) -> 0 | D58: =SUMIF(BDD!$BG$2:$BG$3,"Banc P5VRAIFAUX",BDD!$Z$2:$Z$3) -> 0 | E58: =SUMIF(BDD!$BG$2:$BG$3,"Banc P5FAUXVRAI",BDD!$Z$2:$Z$3) -> 0 | F58: =SUMIF(BDD!$BG$2:$BG$25,"Banc P5VRAIFAUX",BDD!$Z$2:$Z$25) -> 0 | G58: =SUMIF(BDD!$BG$2:$BG$25,"Banc P5FAUXvrai",BDD!$Z$2:$Z$25) -> 0 | H58: =SUMIF(BDD!$BG$26:$BG$149,"Banc P5VRAIFAUX",BDD!$Z$26:$Z$26) -> 0 | I58: =SUMIF(BDD!$BG$26:$BG$149,"Banc P5FAUXVRAI",BDD!$Z$26:$Z$149) -> 0 | J58: =SUMIF(BDD!$BG$2:$BG$3,"Banc P5VRAIFAUX",BDD!$Z$2:$Z$3) -> 0 | K58: =SUMIF(BDD!$BG$2:$BG$3,"Banc P5FAUXVRAI",BDD!$Z$2:$Z$3) -> 0 | L58: =SUMIF(BDD!$BG$2:$BG$3,"Banc P5VRAIFAUX",BDD!$Z$2:$Z$3) -> 0 | M58: =SUMIF(BDD!$BG$2:$BG$3,"Banc P5FAUXVRAI",BDD!$Z$2:$Z$3) -> 0 | N58: =SUMIF(BDD!$BG$2:$BG$3,"Banc P5VRAIFAUX",BDD!$Z$2:$Z$3) -> 0 | O58: =SUMIF(BDD!$BG$2:$BG$3,"Banc P5FAUXVRAI",BDD!$Z$2:$Z$3) -> 0 | P58: =SUMIF(BDD!$BG$2:$BG$3,"Banc P5VRAIFAUX",BDD!$Z$2:$Z$3) -> 0 | Q58: =SUMIF(BDD!$BG$2:$BG$3,"Banc P5FAUXVRAI",BDD!$Z$2:$Z$3) -> 0 | R58: =SUMIF(BDD!$BG$2:$BG$3,"Banc P5VRAIFAUX",BDD!$Z$2:$Z$3) -> 0 | S58: =SUMIF(BDD!$BG$2:$BG$3,"Banc P5FAUXVRAI",BDD!$Z$2:$Z$3) -> 0 | T58: =SUMIF(BDD!$BG$2:$BG$3,"Banc P5VRAIFAUX",BDD!$Z$2:$Z$3) -> 0 | U58: =SUMIF(BDD!$BG$2:$BG$3,"Banc P5FAUXVRAI",BDD!$Z$2:$Z$3) -> 0 | V58: =SUMIF(BDD!$BG$2:$BG$3,"Banc P5VRAIFAUX",BDD!$Z$2:$Z$3) -> 0 | W58: =SUMIF(BDD!$BG$2:$BG$3,"Banc P5FAUXVRAI",BDD!$Z$2:$Z$3) -> 0 | X58: =SUMIF(BDD!$BG$2:$BG$3,"Banc P5VRAIFAUX",BDD!$Z$2:$Z$3) -> 0 | Y58: =SUMIF(BDD!$BG$2:$BG$3,"Banc P5FAUXVRAI",BDD!$Z$2:$Z$3) -> 0
A59: Banc P7 | B59: =SUMIF(BDD!$BG$2:$BG$3,"Banc P7VRAIFAUX",BDD!$Z$2:$Z$3) -> 0 | C59: =SUMIF(BDD!$BG$2:$BG$3,"Banc P7FAUXVRAI",BDD!$Z$2:$Z$3) -> 0 | D59: =SUMIF(BDD!$BG$2:$BG$3,"Banc P7VRAIFAUX",BDD!$Z$2:$Z$3) -> 0 | E59: =SUMIF(BDD!$BG$2:$BG$3,"Banc P7FAUXVRAI",BDD!$Z$2:$Z$3) -> 0 | F59: =SUMIF(BDD!$BG$2:$BG$25,"Banc P7VRAIFAUX",BDD!$Z$2:$Z$25) -> 0.15 | G59: =SUMIF(BDD!$BG$2:$BG$25,"Banc P7FAUXVRAI",BDD!$Z$2:$Z$25) -> 0 | H59: =SUMIF(BDD!$BG$26:$BG$149,"Banc P7VRAIFAUX",BDD!$Z$26:$Z$26) -> 0 | I59: =SUMIF(BDD!$BG$26:$BG$149,"Banc P7FAUXVRAI",BDD!$Z$26:$Z$149) -> 0 | J59: =SUMIF(BDD!$BG$2:$BG$3,"Banc P7VRAIFAUX",BDD!$Z$2:$Z$3) -> 0 | K59: =SUMIF(BDD!$BG$2:$BG$3,"Banc P7FAUXVRAI",BDD!$Z$2:$Z$3) -> 0 | L59: =SUMIF(BDD!$BG$2:$BG$3,"Banc P7VRAIFAUX",BDD!$Z$2:$Z$3) -> 0 | M59: =SUMIF(BDD!$BG$2:$BG$3,"Banc P7FAUXVRAI",BDD!$Z$2:$Z$3) -> 0 | N59: =SUMIF(BDD!$BG$2:$BG$3,"Banc P7VRAIFAUX",BDD!$Z$2:$Z$3) -> 0 | O59: =SUMIF(BDD!$BG$2:$BG$3,"Banc P7FAUXVRAI",BDD!$Z$2:$Z$3) -> 0 | P59: =SUMIF(BDD!$BG$2:$BG$3,"Banc P7VRAIFAUX",BDD!$Z$2:$Z$3) -> 0 | Q59: =SUMIF(BDD!$BG$2:$BG$3,"Banc P7FAUXVRAI",BDD!$Z$2:$Z$3) -> 0 | R59: =SUMIF(BDD!$BG$2:$BG$3,"Banc P7VRAIFAUX",BDD!$Z$2:$Z$3) -> 0 | S59: =SUMIF(BDD!$BG$2:$BG$3,"Banc P7FAUXVRAI",BDD!$Z$2:$Z$3) -> 0 | T59: =SUMIF(BDD!$BG$2:$BG$3,"Banc P7VRAIFAUX",BDD!$Z$2:$Z$3) -> 0 | U59: =SUMIF(BDD!$BG$2:$BG$3,"Banc P7FAUXVRAI",BDD!$Z$2:$Z$3) -> 0 | V59: =SUMIF(BDD!$BG$2:$BG$3,"Banc P7VRAIFAUX",BDD!$Z$2:$Z$3) -> 0 | W59: =SUMIF(BDD!$BG$2:$BG$3,"Banc P7FAUXVRAI",BDD!$Z$2:$Z$3) -> 0 | X59: =SUMIF(BDD!$BG$2:$BG$3,"Banc P7VRAIFAUX",BDD!$Z$2:$Z$3) -> 0 | Y59: =SUMIF(BDD!$BG$2:$BG$3,"Banc P7FAUXVRAI",BDD!$Z$2:$Z$3) -> 0
A60: Banc 101 | B60: =SUMIF(BDD!$BG$2:$BG$682,"Banc 101VRAIFAUX",BDD!$Z$2:$Z$682) -> 0 | C60: =SUMIF(BDD!$BG$2:$BG$3,"Banc 101FAUXVRAI",BDD!$Z$2:$Z$3) -> 0 | D60: =SUMIF(BDD!$BG$2:$BG$682,"Banc 101VRAIFAUX",BDD!$Z$2:$Z$682) -> 0 | E60: =SUMIF(BDD!$BG$2:$BG$3,"Banc 101FAUXVRAI",BDD!$Z$2:$Z$3) -> 0 | F60: =SUMIF(BDD!$BG$2:$BG$25,"Banc 101VRAIFAUX",BDD!$Z$2:$Z$25) -> 0 | G60: =SUMIF(BDD!$BG$2:$BG$25,"Banc 101FAUXVRAI",BDD!$Z$2:$Z$25) -> 0 | H60: =SUMIF(BDD!$BG$26:$BG$149,"Banc 101VRAIFAUX",BDD!$Z$26:$Z$6825) -> 0 | I60: =SUMIF(BDD!$BG$26:$BG$149,"Banc 101FAUXVRAI",BDD!$Z$26:$Z$149) -> 0.1 | J60: =SUMIF(BDD!$BG$2:$BG$682,"Banc 101VRAIFAUX",BDD!$Z$2:$Z$682) -> 0 | K60: =SUMIF(BDD!$BG$2:$BG$3,"Banc 101FAUXVRAI",BDD!$Z$2:$Z$3) -> 0 | L60: =SUMIF(BDD!$BG$2:$BG$682,"Banc 101VRAIFAUX",BDD!$Z$2:$Z$682) -> 0 | M60: =SUMIF(BDD!$BG$2:$BG$3,"Banc 101FAUXVRAI",BDD!$Z$2:$Z$3) -> 0 | N60: =SUMIF(BDD!$BG$2:$BG$682,"Banc 101VRAIFAUX",BDD!$Z$2:$Z$682) -> 0 | O60: =SUMIF(BDD!$BG$2:$BG$3,"Banc 101FAUXVRAI",BDD!$Z$2:$Z$3) -> 0 | P60: =SUMIF(BDD!$BG$2:$BG$682,"Banc 101VRAIFAUX",BDD!$Z$2:$Z$682) -> 0 | Q60: =SUMIF(BDD!$BG$2:$BG$3,"Banc 101FAUXVRAI",BDD!$Z$2:$Z$3) -> 0 | R60: =SUMIF(BDD!$BG$2:$BG$682,"Banc 101VRAIFAUX",BDD!$Z$2:$Z$682) -> 0 | S60: =SUMIF(BDD!$BG$2:$BG$3,"Banc 101FAUXVRAI",BDD!$Z$2:$Z$3) -> 0 | T60: =SUMIF(BDD!$BG$2:$BG$682,"Banc 101VRAIFAUX",BDD!$Z$2:$Z$682) -> 0 | U60: =SUMIF(BDD!$BG$2:$BG$3,"Banc 101FAUXVRAI",BDD!$Z$2:$Z$3) -> 0 | V60: =SUMIF(BDD!$BG$2:$BG$682,"Banc 101VRAIFAUX",BDD!$Z$2:$Z$682) -> 0 | W60: =SUMIF(BDD!$BG$2:$BG$3,"Banc 101FAUXVRAI",BDD!$Z$2:$Z$3) -> 0 | X60: =SUMIF(BDD!$BG$2:$BG$682,"Banc 101VRAIFAUX",BDD!$Z$2:$Z$682) -> 0 | Y60: =SUMIF(BDD!$BG$2:$BG$3,"Banc 101FAUXVRAI",BDD!$Z$2:$Z$3) -> 0
A61: Banc 104 | B61: =SUMIF(BDD!$BG$2:$BG$3,"Banc 104VRAIFAUX",BDD!$Z$2:$Z$3) -> 0 | C61: =SUMIF(BDD!$BG$2:$BG$3,"Banc 104FAUXVRAI",BDD!$Z$2:$Z$3) -> 0 | D61: =SUMIF(BDD!$BG$2:$BG$3,"Banc 104VRAIFAUX",BDD!$Z$2:$Z$3) -> 0 | E61: =SUMIF(BDD!$BG$2:$BG$3,"Banc 104FAUXVRAI",BDD!$Z$2:$Z$3) -> 0 | F61: =SUMIF(BDD!$BG$2:$BG$25,"Banc 104VRAIFAUX",BDD!$Z$2:$Z$25) -> 2.05 | G61: =SUMIF(BDD!$BG$2:$BG$25,"Banc 104FAUXVRAI",BDD!$Z$2:$Z$25) -> 2 | H61: =SUMIF(BDD!$BG$26:$BG$149,"Banc 104VRAIFAUX",BDD!$Z$26:$Z$149) -> 0.1 | I61: =SUMIF(BDD!$BG$26:$BG$149,"Banc 104FAUXVRAI",BDD!$Z$26:$Z$149) -> 0.2 | J61: =SUMIF(BDD!$BG$2:$BG$3,"Banc 104VRAIFAUX",BDD!$Z$2:$Z$3) -> 0 | K61: =SUMIF(BDD!$BG$2:$BG$3,"Banc 104FAUXVRAI",BDD!$Z$2:$Z$3) -> 0 | L61: =SUMIF(BDD!$BG$2:$BG$3,"Banc 104VRAIFAUX",BDD!$Z$2:$Z$3) -> 0 | M61: =SUMIF(BDD!$BG$2:$BG$3,"Banc 104FAUXVRAI",BDD!$Z$2:$Z$3) -> 0 | N61: =SUMIF(BDD!$BG$2:$BG$3,"Banc 104VRAIFAUX",BDD!$Z$2:$Z$3) -> 0 | O61: =SUMIF(BDD!$BG$2:$BG$3,"Banc 104FAUXVRAI",BDD!$Z$2:$Z$3) -> 0 | P61: =SUMIF(BDD!$BG$2:$BG$3,"Banc 104VRAIFAUX",BDD!$Z$2:$Z$3) -> 0 | Q61: =SUMIF(BDD!$BG$2:$BG$3,"Banc 104FAUXVRAI",BDD!$Z$2:$Z$3) -> 0 | R61: =SUMIF(BDD!$BG$2:$BG$3,"Banc 104VRAIFAUX",BDD!$Z$2:$Z$3) -> 0 | S61: =SUMIF(BDD!$BG$2:$BG$3,"Banc 104FAUXVRAI",BDD!$Z$2:$Z$3) -> 0 | T61: =SUMIF(BDD!$BG$2:$BG$3,"Banc 104VRAIFAUX",BDD!$Z$2:$Z$3) -> 0 | U61: =SUMIF(BDD!$BG$2:$BG$3,"Banc 104FAUXVRAI",BDD!$Z$2:$Z$3) -> 0 | V61: =SUMIF(BDD!$BG$2:$BG$3,"Banc 104VRAIFAUX",BDD!$Z$2:$Z$3) -> 0 | W61: =SUMIF(BDD!$BG$2:$BG$3,"Banc 104FAUXVRAI",BDD!$Z$2:$Z$3) -> 0 | X61: =SUMIF(BDD!$BG$2:$BG$3,"Banc 104VRAIFAUX",BDD!$Z$2:$Z$3) -> 0 | Y61: =SUMIF(BDD!$BG$2:$BG$3,"Banc 104FAUXVRAI",BDD!$Z$2:$Z$3) -> 0
A62: Banc 121 | B62: =SUMIF(BDD!$BG$2:$BG$3,"Banc 121VRAIFAUX",BDD!$Z$2:$Z$3) -> 0 | C62: =SUMIF(BDD!$BG$2:$BG$3,"Banc 121FAUXVRAI",BDD!$Z$2:$Z$3) -> 0 | D62: =SUMIF(BDD!$BG$2:$BG$3,"Banc 121VRAIFAUX",BDD!$Z$2:$Z$3) -> 0 | E62: =SUMIF(BDD!$BG$2:$BG$3,"Banc 121FAUXVRAI",BDD!$Z$2:$Z$3) -> 0 | F62: =SUMIF(BDD!$BG$2:$BG$25,"Banc 121VRAIFAUX",BDD!$Z$2:$Z$25) -> 0 | G62: =SUMIF(BDD!$BG$2:$BG$25,"Banc 121FAUXVRAI",BDD!$Z$2:$Z$25) -> 0 | H62: =SUMIF(BDD!$BG$26:$BG$149,"Banc 1261VRAIFAUX",BDD!$Z$26:$Z$149) -> 0 | I62: =SUMIF(BDD!$BG$26:$BG$149,"Banc 1261FAUXVRAI",BDD!$Z$26:$Z$149) -> 0 | J62: =SUMIF(BDD!$BG$2:$BG$3,"Banc 121VRAIFAUX",BDD!$Z$2:$Z$3) -> 0 | K62: =SUMIF(BDD!$BG$2:$BG$3,"Banc 121FAUXVRAI",BDD!$Z$2:$Z$3) -> 0 | L62: =SUMIF(BDD!$BG$2:$BG$3,"Banc 121VRAIFAUX",BDD!$Z$2:$Z$3) -> 0 | M62: =SUMIF(BDD!$BG$2:$BG$3,"Banc 121FAUXVRAI",BDD!$Z$2:$Z$3) -> 0 | N62: =SUMIF(BDD!$BG$2:$BG$3,"Banc 121VRAIFAUX",BDD!$Z$2:$Z$3) -> 0 | O62: =SUMIF(BDD!$BG$2:$BG$3,"Banc 121FAUXVRAI",BDD!$Z$2:$Z$3) -> 0 | P62: =SUMIF(BDD!$BG$2:$BG$3,"Banc 121VRAIFAUX",BDD!$Z$2:$Z$3) -> 0 | Q62: =SUMIF(BDD!$BG$2:$BG$3,"Banc 121FAUXVRAI",BDD!$Z$2:$Z$3) -> 0 | R62: =SUMIF(BDD!$BG$2:$BG$3,"Banc 121VRAIFAUX",BDD!$Z$2:$Z$3) -> 0 | S62: =SUMIF(BDD!$BG$2:$BG$3,"Banc 121FAUXVRAI",BDD!$Z$2:$Z$3) -> 0 | T62: =SUMIF(BDD!$BG$2:$BG$3,"Banc 121VRAIFAUX",BDD!$Z$2:$Z$3) -> 0 | U62: =SUMIF(BDD!$BG$2:$BG$3,"Banc 121FAUXVRAI",BDD!$Z$2:$Z$3) -> 0 | V62: =SUMIF(BDD!$BG$2:$BG$3,"Banc 121VRAIFAUX",BDD!$Z$2:$Z$3) -> 0 | W62: =SUMIF(BDD!$BG$2:$BG$3,"Banc 121FAUXVRAI",BDD!$Z$2:$Z$3) -> 0 | X62: =SUMIF(BDD!$BG$2:$BG$3,"Banc 121VRAIFAUX",BDD!$Z$2:$Z$3) -> 0 | Y62: =SUMIF(BDD!$BG$2:$BG$3,"Banc 121FAUXVRAI",BDD!$Z$2:$Z$3) -> 0
